Workbook

Sheet Rev. History (hidden)
A1: Design Aid Rev. | B1: Data Sheet Rev. | C1: Date | D1: Who | E1: Remark
A2: Rev0.0 | B2: Product Preview Rev0.4 | C2: 2018-06-01 | D2: Gang Chen
A3: Rev0.1 | B3: Product Preview Rev0.5 | C3: 2018-06-11 | D3: Gang Chen | E3: 1. Updated inductor current ripple regarding to Vout. 2. Updated frequency in internal worksheets.
A4: Rev0.0 | B4: Product Preview Rev1.0 | C4: 2018-09-05 | D4: Gang Chen | E4: First NCP3284 design aid
A5: Rev0.2 | B5: Product Preview Rev1.2 | C5: 2019-01-29 | D5: Gang Chen | E5: 1. Current Limit Update. 2. Mode resistance update.
A6: Rev0.3 | B6: Product Preview Rev1.3 | C6: 2019-02-22 | D6: Gang Chen | E6: 1. 500kHz Mode. 2. EN calculation update.
A7: Rev1.0 | B7: Product Preview Rev1.3 | C7: 2019-06-14 | D7: Gang Chen | E7: 1. Updated EN figures. 2. Updated Current Limit Calculation.
B8: Datasheet Rev.1 | C8: 2020-02-18 | D8: Gang Chen | E8: 1. Minor edits.

Sheet Summary
B1: NCP3284 Applications Design Aid 30A Integrated POL
B3: Rev. 1.0 ( 2020-02-18 )
C5: Project Name: | D5: Vout = 1V | J5: Date: | K5: 2019-02-18
B7: Operation Mode & Parameters
E9: Device | G9: NCP3285A | I9: NCP3285 (15A); NCP3285A (25A)
E11: Fsw | G11: 600kHz | I11: Switching Frequency in CCM Operation
E12: Mode | G12: FCCM | I12: Operation Mode (FCCM or Auto DCM/CCM)
E13: RMODE | G13: ='Operation Configuration (1)'!$E$10 -> 0 | I13: Ω | J13: Resistor at Mode Pin
E15: Soft-Start Time | G15: 1 | I15: ms | J15: Selected Soft-Start Time
E16: RSS | G16: =IF(G15=1,"0 or 4.53k", (IF(G15=2, "1.5k or 5.76k", (IF(G15=4, "12.1k or Float", (IF(G15=8, "3.48k or 8.87k", "False"))))))) -> 0 or 4.53k | I16: Ω | J16: Resistor at SS Pin
E18: Protection Mode | G18: Latch Off | I18: - | J18: Selected Protection Mode (Latch Off or Hiccup)
E19: Pin 35 | G19: =IF(G18="Latch Off","Float","GND") -> Float | I19: - | J19: Pin 35 (HICCUP#) Configuration
B22: Input Voltage UVLO & Enable
E24: Items | F24: Value | H24: Unit
E25: Vin | F25: 12 | H25: V | I25: Typical Input Supply Voltage of Power Stage
E27: Enable and Vin UVLO
E28: Vin UVLO | F28: No | I28: Vin UVLO Function Set at EN Pins
E30: Items | F30: Value | H30: Unit
F31: Expected | G31: Actual
E32: Vin_L | F32: 6.5 | G32: ='Summary (int)'!G47 -> N/A | H32: V | I32: Low Threshold of Vin UVLO
E33: Vin_H | F33: 8 | G33: ='Summary (int)'!G48 -> N/A | I33: High Threshold of Vin UVLO
E34: Vin_hys | F34: ='Summary (int)'!F49 -> 1.5 | G34: ='Summary (int)'!G49 -> N/A | I34: Hysteresis of Vin UVLO
E35: Tfilter | F35: 2 | G35: ='Summary (int)'!G50 -> N/A | H35: us | I35: RC Time Constant of Vin Sense Network
E36: Ren1 | F36: ='Summary (int)'!F51 -> N/A | G36: 95.3 | H36: kΩ | I36: (Figure 5)
E37: Ren2 | F37: ='Summary (int)'!F52 -> N/A | G37: 27.4
E38: Cen | F38: ='Summary (int)'!F53 -> N/A | G38: 100 | H38: pF
E40: Ven_L | F40: 1.43 | G40: ='Summary (int)'!G55 -> 1.43 | H40: V | I40: Low Threshold of ENABLE
E41: Ven_H | F41: 1.78 | G41: ='Summary (int)'!G56 -> 1.77722 | I41: High Threshold of ENABLE
E42: Ven_hys | F42: ='Summary (int)'!F57 -> 0.35 | G42: ='Summary (int)'!G57 -> 0.34722 | I42: Hysteresis of ENABLE
E43: Tfilter | F43: 2.5 | G43: ='Summary (int)'!G58 -> 2.43 | H43: us | I43: RC Time Constant of ENABLE Filter
E44: Ren | F44: ='Summary (int)'!F59 -> 24.81481481 | G44: 24.3 | H44: kΩ | I44: (Figure 4)
E45: Cen | F45: ='Summary (int)'!F60 -> 100.7462687 | G45: 100 | H45: pF
B48: Output Voltage, Soft Start
E50: Output Voltage
E51: Iterms | F51: Value | H51: Unit
F52: Expected | G52: Actual
E53: Vo | F53: 1 | G53: =G97 -> 1 | H53: V
E55: Tss | G55: =G15 -> 1 | H55: ms | I55: Time for Vout Ramping Up in Soft Start
E56: Tpowerup | G56: =0.7+G55 -> 1.7 | I56: Time from EN to PGOOD
B59: Inductor Current & Output Current
E61: Items | F61: Value | H61: Unit
F62: Expected | G62: Actual
E63: IL_PP | F63: 7.28 | G63: ='Ripple_User Manual'!G26 -> 7.275132275 | H63: A | I63: Inductor Peak-to-Peak Ripple Current
E65: Ilim | F65: 36.77 | G65: ='Operation Configuration (1)'!G18 -> 36.773 | H65: A | I65: Output DC Current Limit in Normal Operation
E66: Rlim | F66: ='Operation Configuration (1)'!$E$17 -> 21.4978159 | G66: 21.5 | H66: kΩ | I66: Resistor at Ilim Pin
E68: ISS | F68: - | G68: =G81*G53/G55/1000 -> 1.38 | H68: A | I68: Charging Current into Output Capaciators during Soft Start
D70: Maximum Allowed Load Current | E70: Normal | F70: - | G70: =G65 -> 36.773 | H70: A | I70: Maximum Output Current in Normal Operation
E71: Soft Start | F71: - | G71: =G70-G68 -> 35.393 | I71: Maximum Output Current in Soft Start
B74: Output Filter
E76: Items | F76: Value | H76: Unit
F77: Recommended | G77: Actual
E78: L | F78: ='Ripple_Mode calculation'!AE7 -> 0.2098595849 | G78: 0.21 | H78: uH | I78: Inductance of Inductor
E79: DCR | F79: - | G79: 0.29 | H79: mΩ | I79: DCR of Inductor
E81: CTotal | F81: - | G81: ='Comp1_User Manual'!E30 -> 1380 | H81: uF | I81: Effective Total Filter Capacitance
E82: SP/Bulk Cap | F82: Number | G82: 2 | H82: pcs | I82: Total Number of SP/Bulk Caps
F83: C | G83: 470 | H83: uF/pcs | I83: Capacitance of Single SP/Bulk Cap
F84: ESR | G84: 6 | H84: mΩ/pcs | I84: ESR of Single SP/Bulk Cap
F85: ESL | G85: 1 | H85: nH/pcs | I85: ESL of Single SP/Bulk Cap
E86: MLCC Cap | F86: Number | G86: 20 | H86: pcs | I86: Total Number of MLCC Caps
F87: C | G87: 22 | H87: uF/pcs | I87: Capacitance of Single MLCC Cap
F88: ESR | G88: 3 | H88: mΩ/pcs | I88: ESR of Single MLCC Cap
F89: ESL | G89: 0.35 | H89: nH/pcs | I89: ESL of Single MLCC Cap
B92: Compensation & Bode Plot
E94: Output Voltage
E95: Iterms | F95: Value | H95: Unit
F96: Expected | G96: Actual
E97: Vo | F97: =F53 -> 1 | G97: =IF(G109="DNP", 0.8, 0.8/G109*(G107+G109)) -> 1 | H97: V
E99: Close-Loop Bandwidth & Phase Margin
E100: Items | F100: Expected | G100: Actual | H100: Unit
E101: Fc | F101: 100 | G101: ='Summary (int)'!G129 -> 146.6670866 | H101: kHz | I101: Close-Loop Bandwidth
E102: PM | F102: N/A | G102: ='Summary (int)'!G130 -> 98.42062157 | H102: degree | I102: Phase Margin
E104: Vout Sense & Compensation Network
E105: Items | F105: Value | H105: Unit
F106: Recommended | G106: Actual
E107: Rfb1 | F107: ='Summary (int)'!F135 -> 26.97920017 | G107: 33.2 | H107: kΩ
E108: Rfb2 | F108: ='Summary (int)'!F137 -> 1e-06 | G108: 0
E109: Rfb3 | F109: =IF(F53=0.8,"DNP",(IF(F53<0.8,"False",F107*0.8/(F53-0.8)))) -> 107.9168007 | G109: =121+11.8 -> 132.8
F110: =IF(F53=0.8,"DNP",(IF(F53<0.8,"False",G107*0.8/(F53-0.8)))) -> 132.8
E111: Cfb | F111: ='Summary (int)'!F140 -> 20.21759436 | G111: 10 | H111: pF
B146: Disclaimer
B147: This spreadsheet is a general tool being provided to assist designers in using the NCP3284. The output of this tool is to be used as a guide line and does not provide any measure of the success of a particular system design.
B149: Copyright © 2020, Semiconductor Component Industries, LLC.

Sheet Operation Configuration (1) (hidden)
J2: User Input
J3: Input from Other Sheets
J4: Output to Other Sheets
J5: Calculation Results
J6: No Change
D8: Fsw | E8: =Summary!$G$11 -> 600kHz
D9: Mode | E9: =Summary!$G$12 -> FCCM | I9: Operation Parameters:
D10: Rmode | E10: =IF(AND($E$8="600kHz",$E$9="FCCM"),"0", IF(AND($E$8="1000kHz",$E$9="FCCM"),"2.49k", IF(AND($E$8="500kHz",$E$9="Auto CCM/DCM"),"4.99k", IF(AND($E$8="500kHz",$E$9="FCCM"),"7.5k", IF(AND($E$8="600kHz",$E$9="Auto CCM/DCM"),"10.5k", IF(AND($E$8="800kHz",$E$9="Auto CCM/DCM"),"12.1k", IF(AND($E$8="1000kHz",$E$9="Auto CCM/DCM"),"14.0k", IF(AND($E$8="800kHz",$E$9="FCCM"),"Float", )))))))) -> 0 | I10: vin | J10: =K10 -> 12 | K10: =Summary!F25 -> 12 | L10: V
I11: vout | J11: =K11 -> 1 | K11: =Summary!G53 -> 1 | L11: V
D12: SVID address | E12: =Summary!$G$15 -> 1 | I12: L | J12: =K12 -> 0.21 | K12: =Summary!G78 -> 0.21 | L12: uH
D13: Raddress | E13: =IF($E$12="1111b","DNP", IF($E$12="1110b","150k", IF($E$12="1101b","127k", IF($E$12="1100b","105k", IF($E$12="1011b","88.7k", IF($E$12="1010b","75k", IF($E$12="1001b","61.9k", IF($E$12="1000b","51.1k", IF($E$12="0111b","43.2k", IF($E$12="0110b","36.5k", IF($E$12="0101b","30.1k", IF($E$12="0100b","21k", IF($E$12="0011b","14k", IF($E$12="0010b","9.53k", IF($E$12="0001b","5.62k", IF($E$12="0000b","0" )))))))))))))))) -> FALSE
D15: Iterms | E15: Value
E16: Default | G16: Actual | I16: Unit
D17: Rilim | E17: =(E18-(K11*(K10-K11))/2/K12/10^-6/VALUE(LEFT($E$8,LEN($E$8)-3))/1000/K10)/1.5412 -> 21.4978159 | G17: =Summary!G66 -> 21.5 | I17: kΩ
D18: Ilim | E18: =Summary!F65 -> 36.77 | G18: =ROUND($G$17*1.5412+(K11*(K10-K11))/2/K12/10^-6/VALUE(LEFT($E$8,LEN($E$8)-3))/1000/K10,3) -> 36.773 | I18: A
D19: Valley Current | E19: =(E18-(K11*(K10-K11))/2/K12/10^-6/VALUE(LEFT($E$8,LEN($E$8)-3))/1000/K10) -> 33.13243386 | G19: =(G18-(K11*(K10-K11))/2/K12/10^-6/VALUE(LEFT($E$8,LEN($E$8)-3))/1000/K10) -> 33.13543386 | I19: A

Sheet Summary (int) (hidden)
B1: NCP3285/A Applications Design Aid 15A/25A Integrated POL with SVID
B4: Project Name: | D4: VCCIO | H4: Date: | I4: 2018-05-01
B6: Operation Parameters
E8: Phase Number | G8: 1 | I8: Total Phase Number in Power Stage | M8: User Input
E9: Use of Phase Doubler | G9: No | M9: Input from Other Sheets
E10: Configuration | G10: =IF((G9="Yes"), G8/2, G8) -> 1 | I10: Phase Number Configuration of NCP81233 | M10: Output to Other Sheets
E11: Rcnfg | G11: ='Operation Configuration'!E16 -> 5.1k | I11: Resistor at CONFIG Pin | M11: Calculation Results
M12: No Change
E13: Fsw | G13: =Summary!G11 -> 600kHz | I13: Switching Frequency per Phase in Power Stage
E14: Fsw | G14: =IF((G9="Yes"),IF(G13="200kHz","400kHz",IF(G13="300kHz","600kHz",IF(G13="400kHz","800kHz",IF(G13="500kHz","1000kHz",IF(G13="600kHz","1200kHz",IF(G13="800kHz","Not Valid",IF(G13="1000kHz","Not Valid",IF(G13="1200kHz","Not Valid")))))))), IF(G13="200kHz","200kHz",IF(G13="300kHz","300kHz",IF(G13="400kHz","400kHz",IF(G13="500kHz","500kHz",IF(G13="600kHz","600kHz",IF(G13="800kHz","800kHz",IF(G13="1000kHz","1000kHz",IF(G13="1200kHz","1200kHz"))))))))) -> 600kHz | I14: PWM Frequency per Phase of NCP81233
E15: Rfs | G15: ='Operation Configuration'!E6 -> 0k | I15: Resistor at FSET Pin
E17: OVP & UVP | G17: Enabled | I17: OVP/UVP Enable/Disable
E18: OVP Option | G18: Latch Off | I18: OVP/UVP Recoverable/Latch-Off | L18: 1.1
E19: OCP, UVP, OTP | G19: Hiccup | I19: OCP & OTP Hiccup/Latch-Off | L19: ='Operation Configuration (1)'!$E$6 -> 0
E20: RMODE1 | G20: ='Operation Configuration'!E21 -> 20k | I20: Resistor at MODE1 Pin
E22: Regulation Reference | G22: VBOOT | I22: Reference Options
E23: PIN 27 Function | G23: VB_RST | I23: PIN 27 Options
E24: OTP Options | G24: OTP1 | I24: OTP Options
E25: RMODE2 | G25: ='Operation Configuration'!E26 -> DNP | I25: Resistor at MODE2 Pin
E27: VB_RST# | G27: Logic High | I27: VBOOT Reset
E29: Vboot | G29: 1 | H29: V | I29: Boot-Up Voltage
E30: RVBOOT1 | G30: =#REF! ->  | H30: =#REF! ->  | I30: Resistor at VBOOT1 Pin
E31: RVBOOT2 | G31: =#REF! ->  | H31: =#REF! ->  | I31: Resistor at VBOOT2 Pin
E33: SSSR | G33: 1.0mV/us | I33: Soft Start Slew Rate
E34: Rss | G34: ='Operation Configuration'!E9 -> 13k | I34: Resistor at SS Pin
E35: Tss | G35: =IF(G33="0.125mV/us",#REF!/0.000125/1000, IF(G33="0.25mV/us",#REF!/0.00025/1000, IF(G33="0.5mV/us",#REF!/0.0005/1000, IF(G33="1.0mV/us",#REF!/0.001/1000, IF(G33="2.0mV/us",#REF!/0.002/1000, IF(G33="4.0mV/us",#REF!/0.004/1000, IF(G33="8.0mV/us",#REF!/0.008/1000, IF(G33="16mV/us",#REF!/0.016/1000, )))))))) ->  | H35: ms | I35: Soft Start Time
F38: Input Voltage
E39: Items | F39: Value | H39: Unit
E40: Vin | F40: =Summary!F25 -> 12 | H40: V | I40: Typical Input Supply Voltage of Power Stage
E42: Enable and Vin UVLO
E43: Vin UVLO | F43: =Summary!F28 -> No | I43: Vin UVLO Function Set at EN Pins
E45: Items | F45: Value | H45: Unit
F46: Expected | G46: Actual
E47: Vin_L | F47: =Summary!F32 -> 6.5 | G47: =IF($F$43="Yes",'EN & Vin UVLO'!D10,"N/A") -> N/A | H47: V | I47: Low Threshold of VIN UVLO
E48: Vin_H | F48: =Summary!F33 -> 8 | G48: =IF($F$43="Yes",'EN & Vin UVLO'!D11,"N/A") -> N/A | H48: V | I48: High Threshold of VIN UVLO
E49: Vin_hys | F49: =F48-F47 -> 1.5 | G49: =IF($F$43="Yes",'EN & Vin UVLO'!D12,"N/A") -> N/A | H49: V | I49: Hysteresis of VIN UVLO
E50: Tfilter | F50: =Summary!F35 -> 2 | G50: =IF($F$43="Yes",'EN & Vin UVLO'!D13,"N/A") -> N/A | H50: us | I50: RC Time Constant of VIN Sense Network
E51: Ren1 | F51: =IF($F$43="Yes",'EN & Vin UVLO'!C21,"N/A") -> N/A | G51: =Summary!G36 -> 95.3 | H51: kΩ | I51: (Figure 5)
E52: Ren2 | F52: =IF($F$43="Yes",'EN & Vin UVLO'!C22,"N/A") -> N/A | G52: =Summary!G37 -> 27.4 | H52: kΩ
E53: Cen | F53: =IF($F$43="Yes",'EN & Vin UVLO'!C23,"N/A") -> N/A | G53: =Summary!G38 -> 100 | H53: pF
E55: Ven_L | F55: 1.43 | G55: =IF($F$43="No",'EN & Vin UVLO'!D34,"N/A") -> 1.43 | H55: V | I55: Low Threshold of ENABLE
E56: Ven_H | F56: =Summary!F41 -> 1.78 | G56: =IF($F$43="No",'EN & Vin UVLO'!D35,"N/A") -> 1.77722 | H56: V | I56: High Threshold of ENABLE
E57: Ven_hys | F57: =F56-F55 -> 0.35 | G57: =IF($F$43="No",'EN & Vin UVLO'!D38,"N/A") -> 0.34722 | H57: V | I57: Hysteresis of ENABLE
E58: Tfilter | F58: =Summary!F43 -> 2.5 | G58: =IF($F$43="No",'EN & Vin UVLO'!D39,"N/A") -> 2.43 | H58: us | I58: RC Time Constant of ENABLE Filter
E59: Ren | F59: =IF($F$43="No",'EN & Vin UVLO'!C47,"N/A") -> 24.81481481 | G59: =Summary!G44 -> 24.3 | H59: kΩ | I59: (Figure 4)
E60: Cen | F60: =IF($F$43="No",'EN & Vin UVLO'!C48,"N/A") -> 100.7462687 | G60: =Summary!G45 -> 100 | H60: pF
E63: Output Voltage Regulation
E64: Items | F64: Value | H64: Unit
F65: Expected | G65: Actual
E66: Vo | F66: =Summary!F53 -> 1 | G66: =Summary!G53 -> 1 | H66: V | I66: Output Voltage
E68: Items | F68: Value | H68: Unit
F69: Recommended | G69: Actual
E70: VDAC VID_HEX | F70: =#REF! ->  | G70: 1 | H70: V | I70: VID Voltage
F71: =#REF! ->  | G71: =#REF! ->  | H71: - | I71: VID Code
E73: Rvs1 | F73: =G73 -> 0 | G73: 0 | H73: kΩ | I73: (Figure 12)
E74: Rvs2 | F74: =G74 -> DNP | G74: DNP | H74: kΩ
E75: Rvs3 | F75: =G75 -> 0 | G75: 0 | H75: kΩ
E76: Cvs1 | F76: =G76 -> 100 | G76: 100 | H76: pF | I76: Capacitor in Parallel with Rvs2
E79: Output Current
E80: Items | F80: Value | H80: Unit
F81: Expected | G81: Actual
E82: Io | F82: 0 | G82: =F82 -> 0 | H82: A | I82: Test Load Current in Output
E83: I_pk | F83: =F84+0.5*'Ripple_User Manual'!J8*'Ripple_User Manual'!G26 -> 435.6375661 | G83: =IF(G9="No",#REF!,#REF!) ->  | H83: A
E84: Iocp, Ilimit | F84: 432 | G84: =G83-0.5*'Ripple_User Manual'!J8*'Ripple_User Manual'!G26 ->  | H84: A | I84: Over Current Protection (OCP) Level _ Total Iout
E85: Iss | G85: =G66*G114*0.001/G35 ->  | H85: A | I85: Charging Current into Output Capaciators during Soft Start (It needs to be lower than the OCP level)
E87: Current Ripple
E88: Items | F88: Value | H88: Unit
F89: Expected | G89: Actual
E90: IL1_pp | F90: =Summary!F63 -> 7.28 | G90: ='Ripple_User Manual'!G26 -> 7.275132275 | H90: A | I90: Inductor Peak-to-Peak Current per Phase
E91: IL_total_pp | G91: ='Ripple_User Manual'!I26 -> 7.275132275 | I91: Total Inductor Peak-to-Peak Current Ripple
E93: Voltage Ripple
E94: Vo1_pp | G94: ='Ripple_User Manual'!L26 -> 2.719426846 | H94: mV | K94: Output Ripple Voltage in ESR
E96: Load Transient
E97: Items | F97: Value | H97: Unit
E98: Io1_Low | F98: 1 | H98: A | K98: Low-Level Current in Output Load Transient
E99: Io1_High | F99: 10 | K99: High-Level Current in Output Load Transient
E100: tr1 | F100: 0.1 | H100: us | K100: Load Step Rising Time
E101: tf1 | F101: 0.1 | K101: Load Release Falling Time
E102: Vus | F102: =LoadTransient1!D22 -> 2.69546835 | H102: mV | K102: Undershoot
E103: Vos | F103: =LoadTransient1!D23 -> 13.9771294 | H103: mV | K103: Overshoot
B106: Components
E108: Output Filter
E109: Items | F109: Value | H109: Unit
F110: Recommended | G110: Actual
E111: L | F111: =IF(G9="Yes", 'Ripple_Mode calculation'!AE7*2, 'Ripple_Mode calculation'!AE7) -> 0.2098595849 | G111: =Summary!G78 -> 0.21 | H111: uH | I111: Inductance per Phase
E112: DCR | F112: - | G112: =Summary!G79 -> 0.29 | H112: mΩ | I112: DCR of Inductor
E114: C | G114: ='Comp1_User Manual'!E30 -> 1380 | H114: uF | I114: Effective Total Filter Capacitance
E115: SP Cap | F115: Number | G115: =Summary!G82 -> 2 | H115: pcs | I115: Total Number of SP Caps
F116: C | G116: =Summary!G83 -> 470 | H116: uF/pcs | I116: Capacitance of Single SP Cap
F117: ESR | G117: =Summary!G84 -> 6 | H117: mΩ/pcs | I117: ESR of Single SP Cap
F118: ESL | G118: =Summary!G85 -> 1 | H118: nF/pcs | I118: ESL of Single SP Cap
E119: MLCC Cap | F119: Number | G119: =Summary!G86 -> 20 | H119: pcs | I119: Total Number of MLCC Caps
F120: C | G120: =Summary!G87 -> 22 | H120: uF/pcs | I120: Capacitance of Single MLCC Cap
F121: ESR | G121: =Summary!G88 -> 3 | H121: mΩ/pcs | I121: ESR of Single MLCC Cap
F122: ESL | G122: =Summary!G89 -> 0.35 | H122: nF/pcs | I122: ESL of Single MLCC Cap
E125: Close-Loop Bandwidth & Phase Margin
E126: Items | F126: Expected | H126: Units
E127: Fc_expected | F127: =Summary!F101 -> 100 | H127: kHz | I127: Expected Close-Loop Bandwidth
E128: Items | F128: Recommended | G128: Actual | H128: Units
E129: Fc | F129: =COMP1!J102 -> 238.0967717 | G129: ='Comp1_User Manual'!E54 -> 146.6670866 | H129: kHz | I129: Close-Loop Bandwidth
E130: PM | F130: ='Comp1_User Manual'!D56 -> 101.5162546 | G130: ='Comp1_User Manual'!E56 -> 98.42062157 | H130: degree | I130: Phase Margin
E132: Compensation Network
E133: Items | F133: Value | H133: Units
F134: Recommended | G134: Actual
E135: R1 | F135: ='Comp1_User Manual'!D43 -> 26.97920017 | G135: =Summary!G107 -> 33.2 | H135: kΩ
E136: R2 | F136: ='Comp1_User Manual'!D44 -> 300 | G136: 300
E137: R3 | F137: ='Comp1_User Manual'!D45 -> 1e-06 | G137: =Summary!G108+0.001 -> 0.001
E138: C1 | F138: 2 | G138: 2 | H138: pF
E139: C2 | F139: ='Comp1_User Manual'!D48 -> 20 | G139: 20
E140: C3 | F140: ='Comp1_User Manual'!D49 -> 20.21759436 | G140: =Summary!G111 -> 10
B167: Disclaimer
B168: This spreadsheet is a general tool being provided to assist designers in using the NCP3285. The output of this tool is to be used as a guide line and does not provide any measure of the success of a particular system design.
D170: Copyright © 2018, Semiconductor Component Industries, LLC.

Sheet EN & Vin UVLO (hidden)
B2: Enable and Input Power UVLO | K2: User Input
K3: Input from Other Sheets
K4: Output to Other Sheets
B5: Operation Parameters | K5: Calculation Results
K6: No Change
B7: Input Voltage
B8: Iterms | C8: Value | E8: Unit
C9: Default | D9: Actual
B10: Vin_L | C10: ='Summary (int)'!F47 -> 6.5 | D10: =(D21/D22+1)*D34 -> 6.403686131 | E10: V | F10: Input Supply Voltage UVLO Falling
B11: Vin_H | C11: ='Summary (int)'!F48 -> 8 | D11: =D10+D12 -> 7.885576204 | E11: V | F11: Input Supply Voltage UVLO Rising
B12: Vin_hys | C12: =C11-C10 -> 1.5 | D12: =C36*(C37*(1+D21/D22)+D21)/1000 -> 1.481890073 | E12: V | F12: Input Supply Voltage UVLO Hysteresis
B13: Tfilter | C13: ='Summary (int)'!F50 -> 2 | D13: =(1/(1/D21+1/D22))*D23/1000 -> 2.128133659 | E13: us | F13: Filter Time Constant
B16: Components
B18: RC Network at EN
B19: Iterms | C19: Value | E19: Unit
C20: Recommended | D20: Actual
B21: Ren1 | C21: =C12/C36*1000-C37*C10/C34 -> 95.95959596 | D21: ='Summary (int)'!G51 -> 95.3 | E21: kOhm | F21: Pull Up Resistance
B22: Ren2 | C22: =C21/(C10/C34-1) -> 27.06552707 | D22: ='Summary (int)'!G52 -> 27.4 | E22: kOhm | F22: Pull Down Resistance
B23: Cen | C23: =C13/(1/(1/C21+1/C22))*1000 -> 94.73684211 | D23: ='Summary (int)'!G53 -> 100 | E23: pF | F23: Filter Capacitance
B29: Operation Parameters
B31: Input Voltage
B32: Iterms | C32: Value | E32: Unit
C33: Default | D33: Actual
B34: Ven_L | C34: 1.43 | D34: =C34 -> 1.43 | E34: V | F34: EN Falling
B35: Ven_H | C35: =Summary!F41 -> 1.78 | D35: =D34+D38 -> 1.77722 | E35: V | F35: EN Rising
B36: Ien_hys | C36: 5.4 | E36: uA | F36: I_EN_HYS
B37: RHYS | C37: 40 | E37: kOhm | F37: Internal Resistance for Hysteresis
B38: Ven_hys | C38: =C35-C34 -> 0.35 | D38: =C36*(C37+D47)/1000 -> 0.34722 | E38: V | F38: EN Hysteresis
B39: Tfilter | C39: ='Summary (int)'!F58 -> 2.5 | D39: =D47*D48/1000 -> 2.43 | E39: us | F39: Filter Time Constant
B42: Components
B44: RC Network at EN
B45: Iterms | C45: Value | E45: Unit
C46: Recommended | D46: Actual
B47: Ren | C47: =C38/C36*1000-C37 -> 24.81481481 | D47: ='Summary (int)'!G59 -> 24.3 | E47: kOhm | F47: EN Resistance
B48: Cen | C48: =C39/C47*1000 -> 100.7462687 | D48: ='Summary (int)'!G60 -> 100 | E48: pF | F48: Filter Capacitance

Sheet COMP1 (hidden)
B7: Operation Parameters | C7: Items | D7: Value | E7: Actual | F7: Unit
C8: Fsw | D8: ='Comp1_User Manual'!D5 -> 600 | E8: =D8 -> 600 | F8: kHz
C9: Vo | D9: ='Comp1_User Manual'!D12 -> 1 | E9: =D9 -> 1 | F9: V
C10: Io | D10: =E10 -> 0 | E10: ='Comp1_User Manual'!D6 -> 0 | F10: A
C11: Rload | D11: =IF(D10=0,E9/0.00000001,E9/D10) -> 100000000 | E11: =IF(E10=0,D9/0.00000001,D9/E10) -> 100000000 | F11: Ω
C13: L | D13: =E13 -> 0.21 | E13: ='Comp1_User Manual'!E16 -> 0.21 | F13: uH
C14: DCR | D14: =E14 -> 0.29 | E14: ='Comp1_User Manual'!E17 -> 0.29 | F14: mΩ
C15: Phase Number | D15: ='Comp1_User Manual'!D8 -> 1 | F15: - | G15: Phase Number by Configuration Pin
C17: Gamp | D17: =E17 -> 80 | E17: 80 | F17: dB | G17: open loop gain of error amplifier
C18: Famp | D18: =E18 -> 20 | E18: 20 | F18: MHz | G18: open loop Unity gain bandwidth of error amplifier | R18: =IMPRODUCT(P118,O118) -> 0.105184055110166-89.402895518969i
C20: Vramp | D20: =D21*0.1 -> 1.2 | E20: =0.1*E21 -> 1.2 | F20: V
C21: @Vin | D21: =E21 -> 12 | E21: ='Comp1_User Manual'!D4 -> 12 | F21: V
C23: Gain_CS | E23: 10 | F23: V/V | G23: Gain of current sense amplifier
C24: Rdson | E24: =IF(Summary!G9="NCP3285", 1.93, 1.29) -> 1.29 | F24: mΩ | G24: Rdson of LS MOSFET | N24: Items | O24: Value | P24: Actual | Q24: Unit | T24: 1st | U24: 2nd | V24: 3rd | W24: 4th | X24: 5th | Y24: 6th | Z24: Unit
C25: Gcs | E25: =E23*E24/1000 -> 0.0129 | F25: V/V | G25: Total gain in current sense | N25: Zcvs_fsw | O25: =COMPLEX(ROUND(IMREAL(IMPRODUCT("j",-1/(2*PI()*E8*1000*(10^(-12))*D61))),4),ROUND(IMAGINARY(IMPRODUCT("j",-1/(2*PI()*E8*1000*(10^(-12))*D61))),4)) -> -2652.5824i | P25: =COMPLEX(ROUND(IMREAL(IMPRODUCT("j",-1/(2*PI()*D8*1000*(10^(-12))*E61))),4),ROUND(IMAGINARY(IMPRODUCT("j",-1/(2*PI()*D8*1000*(10^(-12))*E61))),4)) -> -2652.5824i | S25: R1 | T25: =E66 -> 33.2 | Z25: kΩ
N26: Zl_fsw | O26: =COMPLEX(ROUND(IMREAL(IMSUM(0.001*D14/D15,IMPRODUCT("j",2*PI()*E8*D13*0.001/D15))),4),ROUND(IMAGINARY(IMSUM(0.001*D14/D15,IMPRODUCT("j",2*PI()*E8*D13*0.001/D15))),4)) -> 0.0003+0.7917i | P26: =COMPLEX(ROUND(IMREAL(IMSUM(0.001*E14/D15,IMPRODUCT("j",2*PI()*D8*E13*0.001/D15))),4),ROUND(IMAGINARY(IMSUM(0.001*E14/D15,IMPRODUCT("j",2*PI()*D8*E13*0.001/D15))),4)) -> 0.0003+0.7917i | Q26: Ω | S26: R2 | T26: =0.001/(2*PI()*D95*1000*T29*10^(-12)) ->  | U26: =0.001/(2*PI()*$D$95*1000*U29*10^(-12)) ->  | V26: =0.001/(2*PI()*$D$95*1000*V29*10^(-12)) ->  | W26: =0.001/(2*PI()*$D$95*1000*W29*10^(-12)) ->  | X26: =0.001/(2*PI()*$D$95*1000*X29*10^(-12)) ->  | Y26: =0.001/(2*PI()*$D$95*1000*Y29*10^(-12)) ->  | Z26: kΩ
C27: Ton | E27: =E9/E21/E8*1000000 -> 138.8888889 | F27: ns | G27: On time of PWM pulse | N27: Zbulk_fsw | O27: =COMPLEX(ROUND(IMREAL(IMSUM(D37*0.001/D35,IMPRODUCT("j",((2*PI()*E8*0.000001*D38/D35)-(1/(2*PI()*E8*0.001*D36*D35)))))),4),ROUND(IMAGINARY(IMSUM(D37*0.001/D35,IMPRODUCT("j",((2*PI()*E8*0.000001*D38/D35)-(1/(2*PI()*E8*0.001*D36*D35)))))),4)) -> 0.003+0.0016i | P27: =COMPLEX(ROUND(IMREAL(IMSUM(E37*0.001/D35,IMPRODUCT("j",((2*PI()*D8*0.000001*E38/D35)-(1/(2*PI()*D8*0.001*E36*D35)))))),4),ROUND(IMAGINARY(IMSUM(E37*0.001/D35,IMPRODUCT("j",((2*PI()*D8*0.000001*E38/D35)-(1/(2*PI()*D8*0.001*E36*D35)))))),4)) -> 0.003+0.0016i | Q27: Ω | S27: R3 | T27: =0.001/(2*PI()*D65*D97*T30*10^(-9)) ->  | U27: =0.001/(2*PI()*$D$65*$D$97*U30*10^(-9)) ->  | V27: =0.001/(2*PI()*$D$65*$D$97*V30*10^(-9)) ->  | W27: =0.001/(2*PI()*$D$65*$D$97*W30*10^(-9)) ->  | X27: =0.001/(2*PI()*$D$65*$D$97*X30*10^(-9)) ->  | Y27: =0.001/(2*PI()*$D$65*$D$97*Y30*10^(-9)) ->  | Z27: kΩ | AC27: Close_45deg_angle | AD27: Close_unit_gain | AE27: Find_Fesr_min | AF27: find_Gsys_min | AH27: find_real_gain_margin | AI27: find_recommand_GM
C28: Q1 | E28: =2/PI() -> 0.6366197724 | N28: Zmlcc_fsw | O28: =COMPLEX(ROUND(IMREAL(IMSUM(D46*0.001/D44,IMPRODUCT("j",((2*PI()*E8*0.000001*D47/D44)-(1/(2*PI()*E8*D45*0.001*D44)))))),4),ROUND(IMAGINARY(IMSUM(D46*0.001/D44,IMPRODUCT("j",((2*PI()*E8*0.000001*D47/D44)-(1/(2*PI()*E8*D45*0.001*D44)))))),4)) -> 0.0002-0.0005i | P28: =COMPLEX(ROUND(IMREAL(IMSUM(E46*0.001/D44,IMPRODUCT("j",((2*PI()*D8*0.000001*E47/D44)-(1/(2*PI()*D8*E45*0.001*D44)))))),4),ROUND(IMAGINARY(IMSUM(E46*0.001/D44,IMPRODUCT("j",((2*PI()*D8*0.000001*E47/D44)-(1/(2*PI()*D8*E45*0.001*D44)))))),4)) -> 0.0002-0.0005i | Q28: Ω | S28: C1 | T28: =T29/(2*PI()*D81*T26*T29*10^(-6)-1) ->  | U28: =U29/(2*PI()*$D$81*U26*U29*10^(-6)-1) ->  | V28: =V29/(2*PI()*$D$81*V26*V29*10^(-6)-1) ->  | W28: =W29/(2*PI()*$D$81*W26*W29*10^(-6)-1) ->  | X28: =X29/(2*PI()*$D$81*X26*X29*10^(-6)-1) ->  | Y28: =Y29/(2*PI()*$D$81*Y26*Y29*10^(-6)-1) ->  | Z28: pF | AC28: =MIN(CB118:CB617)-45 -> -45 | AD28: =MIN(AI118:AI617) -> 0.03715837037 | AE28: =MIN(K118:K617) -> 0.9085403116 | AF28: =MIN(BO118:BO617) -> 0.01072276411 | AH28: =MIN(AL118:AL617) -> 3.671382115 | AI28: =MIN(BR118:BR617) -> 4.119281641
C29: w1 | E29: =PI()/E27*1000000000 -> 22619467.11 | N29: Zload_fsw | O29: =D11 -> 100000000 | P29: =E11 -> 100000000 | Q29: Ω | S29: C2 | T29: =10^(AG118/20)*10^12/(2*PI()*D97*1000*T25*1000) -> 47.93823587 | U29: =10^($AG$118/20)*10^12/(2*PI()*$D$97*1000*$T$25*1000)-T28 ->  | V29: =10^($AG$118/20)*10^12/(2*PI()*$D$97*1000*$T$25*1000)-U28 ->  | W29: =10^($AG$118/20)*10^12/(2*PI()*$D$97*1000*$T$25*1000)-V28 ->  | X29: =10^($AG$118/20)*10^12/(2*PI()*$D$97*1000*$T$25*1000)-W28 ->  | Y29: =10^($AG$118/20)*10^12/(2*PI()*$D$97*1000*$T$25*1000)-X28 ->  | Z29: pF
N30: Zpcb_fsw | O30: =IMSUM(0,IMPRODUCT("j",0)) -> 0 | P30: =IMSUM(0,IMPRODUCT("j",0)) -> 0 | Q30: Ω | S30: C3 | T30: =(10^12)/(2*PI()*D96*1000*T25*1000) ->  | U30: =(10^12)/(2*PI()*$D$96*1000*($T$25+T27)*1000) ->  | V30: =(10^12)/(2*PI()*$D$96*1000*($T$25+U27)*1000) ->  | W30: =(10^12)/(2*PI()*$D$96*1000*($T$25+V27)*1000) ->  | X30: =(10^12)/(2*PI()*$D$96*1000*($T$25+W27)*1000) ->  | Y30: =(10^12)/(2*PI()*$D$96*1000*($T$25+X27)*1000) ->  | Z30: pF
B33: Capacitor | C33: SP Cap
C34: Items | D34: Value | E34: Actual | F34: Unit
C35: Number | D35: =IF('Comp1_User Manual'!E20=0,10^(-12),'Comp1_User Manual'!E20) -> 2 | F35: -
C36: Co | D36: =E36 -> 470 | E36: ='Comp1_User Manual'!E21 -> 470 | F36: uF/pcs
C37: ESR | D37: =E37 -> 6 | E37: ='Comp1_User Manual'!E22 -> 6 | F37: mΩ/pcs
C38: ESL | D38: =E38 -> 1 | E38: ='Comp1_User Manual'!E23 -> 1 | F38: nH/pcs
C39: Total Co 1 | D39: =D36*D35 -> 940 | E39: =E36*D35 -> 940 | F39: uF
C40: Total ESR 1 | D40: =D37/D35 -> 3 | E40: =E37/D35 -> 3 | F40: mΩ
C41: Total ESL 1 | D41: =D38/D35 -> 0.5 | E41: =E38/D35 -> 0.5 | F41: nH
C42: MLCC Cap
C43: Items | D43: Value | E43: Actual | F43: Unit
C44: Number | D44: =IF('Comp1_User Manual'!E25=0,10^(-12),'Comp1_User Manual'!E25) -> 20 | F44: -
C45: Co | D45: =E45 -> 22 | E45: ='Comp1_User Manual'!E26 -> 22 | F45: uF/pcs
C46: ESR | D46: =E46 -> 3 | E46: ='Comp1_User Manual'!E27 -> 3 | F46: mΩ/pcs
C47: ESL | D47: =E47 -> 0.35 | E47: ='Comp1_User Manual'!E28 -> 0.35 | F47: nH/pcs
C48: Total Co 2 | D48: =D45*D44 -> 440 | E48: =E45*D44 -> 440 | F48: uF
C49: Total ESR 2 | D49: =D46/D44 -> 0.15 | E49: =E46/D44 -> 0.15 | F49: mΩ
C50: Total ESL 2 | D50: =D47/D44 -> 0.0175 | E50: =E47/D44 -> 0.0175 | F50: nH
C52: Total C | D52: =D48+D39 -> 1380 | E52: =E48+E39 -> 1380 | F52: uF
C53: Total ESR | D53: =1000*(0.001*(D40+D49)*(0.001*D40*0.001*D49-(2*PI()*E8*10^(-6)*D41-1/(2*PI()*E8*D39*0.001))*(2*PI()*E8*D50*0.000001-1/(2*PI()*E8*D48*0.001)))+(2*PI()*E8*(D41+D50)*0.000001-(1/(2*PI()*E8*1000))*(1/(D39*0.000001)+1/(D48*0.000001)))*(D40*0.001*(2*PI()*E8*D50*0.000001-1/(2*PI()*E8*D48*0.001))+D49*0.001*(2*PI()*E8*D41*0.000001-1/(2*PI()*E8*D39*0.001))))/((2*PI()*E8*(D41+D50)*0.000001-(1/(2*PI()*E8*1000))*(1/(D39*0.000001)+1/(D48*0.000001)))^2+(0.001*D40+0.001*D49)^2) -> 0.2412212411 | E53: =1000*(0.001*(E40+E49)*(0.001*E40*0.001*E49-(2*PI()*D8*10^(-6)*E41-1/(2*PI()*D8*E39*0.001))*(2*PI()*D8*E50*0.000001-1/(2*PI()*D8*E48*0.001)))+(2*PI()*D8*(E41+E50)*0.000001-(1/(2*PI()*D8*1000))*(1/(E39*0.000001)+1/(E48*0.000001)))*(E40*0.001*(2*PI()*D8*E50*0.000001-1/(2*PI()*D8*E48*0.001))+E49*0.001*(2*PI()*D8*E41*0.000001-1/(2*PI()*D8*E39*0.001))))/((2*PI()*D8*(E41+E50)*0.000001-(1/(2*PI()*D8*1000))*(1/(E39*0.000001)+1/(E48*0.000001)))^2+(0.001*E40+0.001*E49)^2) -> 0.2412212411 | F53: mΩ
C54: Total ESL | D54: =D50*D41/(D41+D50) -> 0.01690821256 | E54: =E50*E41/(E41+E50) -> 0.01690821256 | F54: nH
B57: Output filter | C57: Items | D57: Value | E57: Actual | F57: Unit
C58: Rvs1 | D58: ='Summary (int)'!F73 -> 0 | E58: ='Comp1_User Manual'!E35 -> 0 | F58: kΩ
C59: Rvs2 | D59: ='Summary (int)'!F74 -> DNP | E59: ='Comp1_User Manual'!E36 -> DNP | F59: kΩ
C60: Rvs3 | D60: ='Summary (int)'!F75 -> 0 | E60: ='Comp1_User Manual'!E37 -> 0 | F60: kΩ
C61: Cvs | D61: =E61 -> 100 | E61: ='Comp1_User Manual'!E38 -> 100 | F61: pF
B64: Compensation Network | C64: Items | D64: Value | E64: Actual | F64: Unit
C65: Kp | D65: 5 | F65: -
C66: R1 | D66: =COMP1_hide!D66 -> 26.97920017 | E66: ='Comp1_User Manual'!E43 -> 33.2 | F66: kΩ
C67: R2 | D67: =COMP1_hide!D67 -> 300 | E67: ='Comp1_User Manual'!E44 -> 300 | F67: kΩ
C68: R3 | D68: =COMP1_hide!D68 -> 1e-06 | E68: ='Comp1_User Manual'!E45 -> 0.001 | F68: kΩ
C69: R4 | D69: =COMP1_hide!D69 -> DNP | E69: ='Comp1_User Manual'!E46 -> DNP | F69: kΩ
C70: C1 | D70: =COMP1_hide!D70 -> 2 | E70: ='Comp1_User Manual'!E47 -> 2 | F70: pF
C71: C2 | D71: =COMP1_hide!D71 -> 20 | E71: ='Comp1_User Manual'!E48 -> 20 | F71: pF
C72: C3 | D72: =COMP1_hide!D72 -> 20.21759436 | E72: ='Comp1_User Manual'!E49 -> 10 | F72: pF
B78: Calculation | C78: Items | D78: Value | E78: Actual | F78: Unit
C79: Gvo | D79: =D21/D20 -> 10 | E79: =E21/E20 -> 10 | F79: V/V | G79: Gain from PWM to Output
C80: Flc | D80: =0.001/(2*PI()*SQRT((D13*0.000001*D52*0.000001/D15))) -> 9.349124454 | E80: =0.001/(2*PI()*SQRT((E13*0.000001*E52*0.000001/D15))) -> 9.349124454 | F80: kHz | G80: Resonant Frequency of L and Co
C81: Fesr | D81: =E81 -> 1197.171343 | E81: =SUM(L118:L617) -> 1197.171343 | F81: kHz | G81: Frequency of output capcitor zero
C83: Gamp_fsw | D83: =-10*LOG((1/(10^(D17/20)))^2+(E8/(D18*1000))^2) -> 30.45752665 | E83: =-10*LOG((1/(10^(E17/20)))^2+(D8/(E18*1000))^2) -> 30.45752665 | F83: dB
C84: Gpwm_fsw | D84: =20*LOG(D21/(D20+10^(D85/20)*(D21-E9)/(D13*E8*0.001))) -> 18.96470297 | E84: =20*LOG(E21/(E20+10^(E85/20)*(E21-D9)/(E13*D8*0.001))) -> 18.96470297 | F84: dB
C85: Gcs_fsw | D85: =20*LOG(6*D14*0.001/D15) -> -55.18901503 | E85: =20*LOG(6*E14*0.001/D15) -> -55.18901503 | F85: dB
C86: Gvo_fsw | D86: =-20*LOG(IMABS(IMSUM(1,IMDIV(O26,O27),IMDIV(O26,O28),IMDIV(O26,O29)))) -> -63.30061657 | E86: =-20*LOG(IMABS(IMSUM(1,IMDIV(P26,P27),IMDIV(P26,P28),IMDIV(P26,P29)))) -> -63.30061657 | F86: dB
C87: Gvs_fsw | D87: =IF($D$59="DNP",20*LOG(IMABS(IMDIV(O25,IMSUM(O25,D58*1000,D60*1000)))),20*LOG(IMABS(O25))+20*LOG(D59*1000)-20*LOG(IMABS(IMSUM((1000*D59*(D58*1000+1000*D60)),IMPRODUCT(O25,(D58*1000+1000*D59+1000*D60)))))) -> 0 | E87: =IF($E$59="DNP",20*LOG(IMABS(IMDIV(P25,IMSUM(P25,$E$58,$E$60)))),20*LOG(IMABS(P25))+20*LOG(E59*1000)-20*LOG(IMABS(IMSUM((1000*E59*(E58*1000+1000*E60)),IMPRODUCT(P25,(E58*1000+1000*E59+1000*E60)))))) -> 0 | F87: dB
C88: Gvi_fsw | D88: =-20*LOG(IMABS(IMSUM(O26,IMDIV(1,IMSUM(IMDIV(1,O27),IMDIV(1,O28),IMDIV(1,O29)))))) -> 2.033879976 | E88: =-20*LOG(IMABS(IMSUM(P26,IMDIV(1,IMSUM(IMDIV(1,P27),IMDIV(1,P28),IMDIV(1,P29)))))) -> 2.033879976 | F88: dB
C90: Fz1 | D90: =0.001/(2*PI()*D67*D71*10^(-9)) -> 26.52582385 | E90: =0.001/(2*PI()*E67*E71*10^(-9)) -> 26.52582385 | F90: kHz | G90: First zero frequency
C91: Fz2 | D91: =0.001/(2*PI()*(D66+D68)*D72*10^(-9)) -> 291.7840623 | E91: =0.001/(2*PI()*(E66+E68)*E72*10^(-9)) -> 479.3679199 | F91: kHz | G91: Second zero frequency
C92: Fp1 | D92: =0.001/(2*PI()*D67*(D70*D71/(D70+D71))*10^(-9)) -> 291.7840623 | E92: =0.001/(2*PI()*E67*(E70*E71/(E70+E71))*10^(-9)) -> 291.7840623 | F92: kHz | G92: First pole frequency
C93: Fp2 | D93: =0.001/(2*PI()*D68*D72*10^(-9)) -> 7872100916 | E93: =0.001/(2*PI()*E68*E72*10^(-9)) -> 15915494.31 | F93: kHz | G93: Second pole frequnecy
C95: Fp1_GPWR | D95: =E95 -> 0 | E95: =SUM(CC118:CC617) -> 0 | F95: kHz
C96: Fp2_GPWR | D96: =D80^2/D95 ->  | E96: =E80^2/E95 ->  | F96: kHz
C97: Fc | D97: ='Comp1_User Manual'!D54 -> 100 | E97: =SUM(AJ118:AJ617) -> 146.6670866 | F97: kHz
C99: Phase Margin | D99: =180+SUM(BQ118:BQ617) -> 101.5162546 | E99: =180+SUM(AK118:AK617) -> 98.42062157 | F99: degree
C100: Gain Margin | D100: =IF(SUM(BS118:BS617)=0,"N/A",0-SUM(BS118:BS617)) -> -72.99849989 | E100: =IF(SUM(AM118:AM617)=0,"N/A",0-SUM(AM118:AM617)) -> -72.42293956 | F100: dB
J101: Recommend Fc
J102: =SUM(BP118:BP617) -> 238.0967717
E116: Actual | AI116: Find Unity gain frequency | AL116: find_gain margin | AO116: Recommend | BR116: find gain margin
B117: jw | C117: # | D117: Frequency (kHz) | E117: Zcvs (Ω) | F117: Zl (Ω) | G117: Zbulk (Ω) | H117: Zmlcc (Ω) | I117: Total Zc (Ω) | J117: PHzc (deg) | K117: |PHzc| | L117: Find_Fesr | M117: Gamp (dB) | N117: Gpwm (dB) | O117: Gpwm | P117: Gvo | Q117: Gvo (dB) | R117: Gvs | S117: Gvs (dB) | T117: Gvi | U117: Gvi (dB) | V117: Gcomp1 | W117: Gcomp1(db) | X117: Gamp | Y117: Gcomp (dB) | Z117: Gcomp | AA117: Gsys_actual (dB) | AB117: Gsys | AC117: PHvo (deg) | AD117: PHcomp (deg) | AE117: Phsys_actual (deg) | AI117: |Gsys| | AJ117: Find_fc_fre | AK117: Find_PM_deg | AL117: 180+phsys | AM117: gain of -180 | AO117: Zcvs (Ω) | AP117: Zl (Ω) | AQ117: Zbulk (Ω) | AR117: Zmlcc (Ω) | AS117: Gamp (dB) | AT117: Gpwm (dB) | AU117: Gpwm | AV117: Gvo | AW117: Gvo (dB) | AX117: Gvs | AY117: Gvs (dB) | AZ117: Gvi | BA117: Gvi (dB) | BB117: Gcomp1 | BC117: Gcomp1(db) | BD117: Gamp | BE117: Gcomp (dB) | BF117: Gcomp | BG117: Gsys_recommend (dB) | BH117: Gsys | BI117: PHvo (deg) | BJ117: PHcomp (deg) | BK117: Phsys_recommend (deg) | BO117: |Gsys| | BP117: Find_fc | BQ117: Find_PM_degree | BR117: 180+Phsys | BS117: gain of -180
B118: =IMPRODUCT("i",2*PI()*D118*1000) -> 628.318530717959i | C118: 1 | D118: =0.1*1.02334021219164^(C118-1) -> 0.1 | E118: =IMPRODUCT("i",-1/(2*PI()*D118*1000*(10^(-12))*$E$61)) -> -15915494.3091895i | F118: =IMSUM(0.001*$E$14/$D$15,IMPRODUCT("i",2*PI()*D118*$E$13*0.001/$D$15)) -> 0.00029+0.000131946891450771i | G118: =IMSUM($E$37*0.001/$D$35,IMPRODUCT("i",((2*PI()*D118*0.000001*$E$38/$D$35)-(1/(2*PI()*D118*0.001*$E$36*$D$35))))) -> 0.003-1.69313737830771i | H118: =IMSUM($E$46*0.001/$D$44,IMPRODUCT("i",((2*PI()*D118*0.000001*$E$47/$D$44)-(1/(2*PI()*D118*$E$45*0.001*$D$44))))) -> 0.00015-3.6171577865475i | I118: =IMDIV(IMPRODUCT(G118,H118),IMSUM(G118,H118)) -> 0.00140718307816462-1.15329729217303i | J118: =IF(AND(IMREAL(I118)>0,IMAGINARY(I118)>0),ATAN(IMAGINARY(I118)/IMREAL(I118))*180/PI(),IF(AND(IMREAL(I118)>0,IMAGINARY(I118)<0),ATAN(IMAGINARY(I118)/IMREAL(I118))*180/PI(),IF(AND(IMREAL(I118)<0,IMAGINARY(I118)>0),180+ATAN(IMAGINARY(I118)/IMREAL(I118))*180/PI(),IF(AND(IMREAL(I118)<0,IMAGINARY(I118)<0),-180+ATAN(IMAGINARY(I118)/IMREAL(I118))*180/PI(),IF(AND(IMREAL(I118)=0,IMAGINARY(I118)>0),90,IF(AND(IMREAL(I118)=0,IMAGINARY(I118)<0),-90,IF(AND(IMREAL(I118)>0,IMAGINARY(I118)=0),0,IF(AND(IMREAL(I118)=0,IMAGINARY(I118)<0),-180)))))))) -> -89.93009122 | K118: =IF(J118<-44.5,ABS(J118)-45) -> 44.93009122 | L118: =IF($AE$28=K118,D118) -> FALSE | M118: =-10*LOG((1/(10^($E$17/20)))^2+(D118/($E$18*1000))^2) -> 79.98915619 | N118: =20*LOG10(IMABS(O118)) -> 37.78820579 | O118: =IMDIV(1,IMPRODUCT($E$25,IMSUM(1,IMDIV(B118,$E$28*$E$29),IMDIV(IMPOWER(B118,2),$E$29^2)))) -> 77.5193797571896-0.0033824210297769i | P118: =COMPLEX(ROUND(IMREAL(IMDIV(1,IMSUM(IMDIV(1,G118),IMDIV(1,H118),IMDIV(1,$P$29)))),10),ROUND(IMAGINARY(IMDIV(1,IMSUM(IMDIV(1,G118),IMDIV(1,H118),IMDIV(1,$P$29)))),10)) -> 0.0014071964-1.1532972921i | Q118: =-20*LOG(IMABS(IMDIV(1, IMSUM(IMDIV(1,G118),IMDIV(1,H118),IMDIV(1,$P$29))))) -> -1.238831912 | R118: =IF($E$59="DNP",IMDIV(E118,IMSUM(E118,1000*$E$58,$E$60*1000)),IMDIV(IMPRODUCT(E118,$E$59*1000),IMSUM(IMPRODUCT(E118,$E$59*1000),IMPRODUCT(IMSUM(E118,$E$59*1000),IMSUM($E$58*1000,$E$60*1000))))) -> 1 | S118: =IF($E$59="DNP",20*LOG(IMABS(IMDIV(E118,IMSUM(E118,$E$58,$E$60)))),20*LOG(IMABS(E118))+20*LOG($E$59*1000)-20*LOG(IMABS(IMSUM((1000*$E$59*($E$58*1000+1000*$E$60)),IMPRODUCT(E118,($E$58*1000+1000*$E$59+1000*$E$60)))))) -> 0 | T118: =IMDIV(1,IMSUM(F118,IMDIV(1,IMSUM(IMDIV(1,G118),IMDIV(1,H118),IMDIV(1,$P$29))))) -> 0.00127628595694519+0.86717645306629i | U118: =-20*LOG(IMABS(IMSUM(F118,IMDIV(1,IMSUM(IMDIV(1,G118),IMDIV(1,H118),IMDIV(1,$P$29)))))) -> -1.237841058 | V118: =IMPRODUCT(($E$66+$E$68)/($E$66*$E$68*$E$70*10^(-9)),IMDIV(IMPRODUCT(IMSUM(1/($E$67*$E$71*10^(-9)),IMPRODUCT("i",2*PI()*D118*1000)),IMSUM(1/(($E$66+$E$68)*$E$72*10^(-9)),IMPRODUCT("i",2*PI()*D118*1000))),IMPRODUCT(IMPRODUCT("i",2*PI()*D118*1000),IMSUM(IMPRODUCT("i",2*PI()*D118*1000),($E$70+$E$71)/($E$67*$E$70*$E$71*10^(-9))),IMSUM(IMPRODUCT("i",2*PI()*D118*1000),1/($E$68*$E$72*10^(-9)))))) -> 7.92243319254724-2179.01172298831i | W118: =20*LOG(IMABS(V118)) -> 66.76524874 | X118: =IMDIV(10^($E$17/20),IMSUM(1,IMPRODUCT("i",0.001*D118*10^($E$17/20)/$E$18))) -> 9975.06234413965-498.753117206983i | Y118: =20*LOG(IMABS(IMDIV(IMPRODUCT(V118,X118),IMSUM(1,X118,V118)))) -> 66.46664436 | Z118: =IMDIV(IMPRODUCT(V118,X118),IMSUM(1,X118,V118)) -> 450.652605252142-2056.59242077392i | AA118: =20*LOG(IMABS(AB118)) -> 105.4936821 | AB118: =IMPRODUCT(R118,Z118,P118,O118) -> -183817.915851088-40505.9685132343i | AC118: =IF(AND(IMREAL(P118)>0,IMAGINARY(P118)>0),-360+ATAN(IMAGINARY(P118)/IMREAL(P118))*180/PI(),IF(AND(IMREAL(P118)>0,IMAGINARY(P118)<0),ATAN(IMAGINARY(P118)/IMREAL(P118))*180/PI(),IF(AND(IMREAL(P118)<0,IMAGINARY(P118)>0),-180+ATAN(IMAGINARY(P118)/IMREAL(P118))*180/PI(),IF(AND(IMREAL(P118)<0,IMAGINARY(P118)<0),-180+ATAN(IMAGINARY(P118)/IMREAL(P118))*180/PI(),IF(AND(IMREAL(P118)=0,IMAGINARY(P118)>0),-270,IF(AND(IMREAL(P118)=0,IMAGINARY(P118)<0),-90,IF(AND(IMREAL(P118)>0,IMAGINARY(P118)=0),0,IF(AND(IMREAL(P118)=0,IMAGINARY(P118)<0),-180)))))))) -> -89.93009055 | AD118: =IF(AND(IMREAL(Z118)>0,IMAGINARY(Z118)>0),ATAN(IMAGINARY(Z118)/IMREAL(Z118))*180/PI(),IF(AND(IMREAL(Z118)>0,IMAGINARY(Z118)<0),ATAN(IMAGINARY(Z118)/IMREAL(Z118))*180/PI(),IF(AND(IMREAL(Z118)<0,IMAGINARY(Z118)>0),180+ATAN(IMAGINARY(Z118)/IMREAL(Z118))*180/PI(),IF(AND(IMREAL(Z118)<0,IMAGINARY(Z118)<0),-180+ATAN(IMAGINARY(Z118)/IMREAL(Z118))*180/PI(),IF(AND(IMREAL(Z118)=0,IMAGINARY(Z118)>0),90,IF(AND(IMREAL(Z118)=0,IMAGINARY(Z118)<0),-90,IF(AND(IMREAL(Z118)>0,IMAGINARY(Z118)=0),0,IF(AND(IMREAL(Z118)=0,IMAGINARY(Z118)<0),-180)))))))) -> -77.64036198 | AE118: =IMARGUMENT(AB118)/PI()*180 -> -167.5729525 | AI118: =ABS(AA118) -> 105.4936821 | AJ118: =IF($AD$28=AI118,D118) -> FALSE | AK118: =IF($AD$28=AI118,AE118) -> FALSE | AL118: =IF(AL117=TRUE,TRUE,IF(AND(AE118<-170,AE118>=-180),AE118+180,IF(ABS(AE118)>180,TRUE))) -> FALSE | AM118: =IF($AH$28=AL118,AA118) -> FALSE | AO118: =IMPRODUCT("i",-1/(2*PI()*D118*1000*(10^(-12))*$D$61)) -> -15915494.3091895i | AP118: =IMSUM(0.001*$D$14/$D$15,IMPRODUCT("i",2*PI()*D118*$D$13*0.001/$D$15)) -> 0.00029+0.000131946891450771i | AQ118: =IMSUM($D$37*0.001/$D$35,IMPRODUCT("i",((2*PI()*D118*0.000001*$D$38/$D$35)-(1/(2*PI()*D118*0.001*$D$36*$D$35))))) -> 0.003-1.69313737830771i | AR118: =IMSUM($D$46*0.001/$D$44,IMPRODUCT("i",((2*PI()*D118*0.000001*$D$47/$D$44)-(1/(2*PI()*D118*$D$45*0.001*$D$44))))) -> 0.00015-3.6171577865475i | AS118: =-10*LOG((1/(10^($D$17/20)))^2+(D118/($D$18*1000))^2) -> 79.98915619 | AT118: =20*LOG10(IMABS(AU118)) -> 37.78820579 | AU118: =IMDIV(1,IMPRODUCT($E$25,IMSUM(1,IMDIV(B118,$E$28*$E$29),IMDIV(IMPOWER(B118,2),$E$29^2)))) -> 77.5193797571896-0.0033824210297769i | AV118: =COMPLEX(ROUND(IMREAL(IMDIV(1,IMSUM(IMDIV(1,AQ118),IMDIV(1,AR118),IMDIV(1,$P$29)))),10),ROUND(IMAGINARY(IMDIV(1,IMSUM(IMDIV(1,AQ118),IMDIV(1,AR118),IMDIV(1,$P$29)))),10)) -> 0.0014071964-1.1532972921i | AW118: =-20*LOG(IMABS(IMSUM(1,IMDIV(AP118,AQ118),IMDIV(AP118,AR118),IMDIV(AP118,$O$29)))) -> 0.0009908538706 | AX118: =IF($D$59="DNP",IMDIV(AO118,IMSUM(AO118,1000*$D$58,1000*$D$60)),IMDIV(IMPRODUCT(AO118,$D$59*1000),IMSUM(IMPRODUCT(AO118,$D$59*1000),IMPRODUCT(IMSUM(AO118,$D$59*1000),IMSUM($D$58*1000,$D$60*1000))))) -> 1 | AY118: =IF($D$59="DNP",20*LOG(IMABS(IMDIV(AO118,IMSUM(AO118,1000*$D$58,1000*$D$60)))),20*LOG(IMABS(AO118))+20*LOG($D$59*1000)-20*LOG(IMABS(IMSUM((1000*$D$59*(1000*$D$58+1000*$D$60)),IMPRODUCT(AO118,($D$58*1000+1000*$D$59+1000*$D$60)))))) -> 0 | AZ118: =IMDIV(1,IMSUM(AP118,IMDIV(1,IMSUM(IMDIV(1,AQ118),IMDIV(1,AR118),IMDIV(1,$O$29))))) -> 0.00127628595694519+0.86717645306629i | BA118: =-20*LOG(IMABS(IMSUM(AP118,IMDIV(1,IMSUM(IMDIV(1,AQ118),IMDIV(1,AR118),IMDIV(1,$O$29)))))) -> -1.237841058 | BB118: =IMPRODUCT(($D$66+$D$68)/($D$66*$D$68*$D$70*10^(-9)),IMDIV(IMPRODUCT(IMSUM(1/($D$67*$D$71*10^(-9)),IMPRODUCT("i",2*PI()*D118*1000)),IMSUM(1/(($D$66+$D$68)*$D$72*10^(-9)),IMPRODUCT("i",2*PI()*D118*1000))),IMPRODUCT(IMPRODUCT("i",2*PI()*D118*1000),IMSUM(IMPRODUCT("i",2*PI()*D118*1000),($D$70+$D$71)/($D$67*$D$70*$D$71*10^(-9))),IMSUM(IMPRODUCT("i",2*PI()*D118*1000),1/($D$68*$D$72*10^(-9)))))) -> 10.1087975215842-2681.44183282755i | BC118: =20*LOG(IMABS(BB118)) -> 68.56742933 | BD118: =IMDIV(10^($D$17/20),IMSUM(1,IMPRODUCT("i",0.001*D118*10^($D$17/20)/$D$18))) -> 9975.06234413965-498.753117206983i | BE118: =20*LOG(IMABS(IMDIV(IMPRODUCT(BB118,BD118),IMSUM(1,BB118,BD118)))) -> 68.14908885 | BF118: =IMDIV(IMPRODUCT(BB118,BD118),IMSUM(1,BD118,BB118)) -> 662.162763850464-2468.0915459572i | BG118: =20*LOG(IMABS(BH118)) -> 107.1761266 | BH118: =IMPRODUCT(AX118,BF118,AV118,AU118) -> -220584.881649818-59458.8722702617i | BI118: =IF(AND(IMREAL(AV118)>0,IMAGINARY(AV118)>0),-360+ATAN(IMAGINARY(AV118)/IMREAL(AV118))*180/PI(),IF(AND(IMREAL(AV118)>0,IMAGINARY(AV118)<0),ATAN(IMAGINARY(AV118)/IMREAL(AV118))*180/PI(),IF(AND(IMREAL(AV118)<0,IMAGINARY(AV118)>0),-180+ATAN(IMAGINARY(AV118)/IMREAL(AV118))*180/PI(),IF(AND(IMREAL(AV118)<0,IMAGINARY(AV118)<0),-180+ATAN(IMAGINARY(AV118)/IMREAL(AV118))*180/PI(),IF(AND(IMREAL(AV118)=0,IMAGINARY(AV118)>0),-270,IF(AND(IMREAL(AV118)=0,IMAGINARY(AV118)<0),-90,IF(AND(IMREAL(AV118)>0,IMAGINARY(AV118)=0),0,IF(AND(IMREAL(AV118)=0,IMAGINARY(AV118)<0),-180)))))))) -> -89.93009055 | BJ118: =IF(AND(IMREAL(BF118)>0,IMAGINARY(BF118)>0),ATAN(IMAGINARY(BF118)/IMREAL(BF118))*180/PI(),IF(AND(IMREAL(BF118)>0,IMAGINARY(BF118)<0),ATAN(IMAGINARY(BF118)/IMREAL(BF118))*180/PI(),IF(AND(IMREAL(BF118)<0,IMAGINARY(BF118)>0),180+ATAN(IMAGINARY(BF118)/IMREAL(BF118))*180/PI(),IF(AND(IMREAL(BF118)<0,IMAGINARY(BF118)<0),-180+ATAN(IMAGINARY(BF118)/IMREAL(BF118))*180/PI(),IF(AND(IMREAL(BF118)=0,IMAGINARY(BF118)>0),90,IF(AND(IMREAL(BF118)=0,IMAGINARY(BF118)<0),-90,IF(AND(IMREAL(BF118)>0,IMAGINARY(BF118)=0),0,IF(AND(IMREAL(BF118)=0,IMAGINARY(BF118)<0),-180)))))))) -> -74.98181562 | BK118: =IMARGUMENT(BH118)/PI()*180 -> -164.9144062 | BO118: =ABS(BG118) -> 107.1761266 | BP118: =IF($AF$28=BO118,D118) -> FALSE | BQ118: =IF($AF$28=BO118,BK118) -> FALSE | BR118: =IF(BR117=TRUE,TRUE,IF(AND(BK118<-170,BK118>=-180),180+BK118,IF(ABS(BK118)>180,TRUE))) -> FALSE | BS118: =IF($AI$28=BR118,BG118) -> FALSE
B119: =IMPRODUCT("i",2*PI()*D119*1000) -> 642.983618548855i | C119: =C118+1 -> 2 | D119: =0.1*1.02334021219164^(C119-1) -> 0.1023340212 | E119: =IMPRODUCT("i",-1/(2*PI()*D119*1000*(10^(-12))*$E$61)) -> -15552495.7580862i | F119: =IMSUM(0.001*$E$14/$D$15,IMPRODUCT("i",2*PI()*D119*$E$13*0.001/$D$15)) -> 0.00029+0.00013502655989526i | G119: =IMSUM($E$37*0.001/$D$35,IMPRODUCT("i",((2*PI()*D119*0.000001*$E$38/$D$35)-(1/(2*PI()*D119*0.001*$E$36*$D$35))))) -> 0.003-1.65452050383651i | H119: =IMSUM($E$46*0.001/$D$44,IMPRODUCT("i",((2*PI()*D119*0.000001*$E$47/$D$44)-(1/(2*PI()*D119*$E$45*0.001*$D$44))))) -> 0.00015-3.53465811558556i | I119: =IMDIV(IMPRODUCT(G119,H119),IMSUM(G119,H119)) -> 0.00140718306462636-1.12699306341596i | J119: -89.92845953 | K119: =IF(J119<-44.5,ABS(J119)-45) -> 44.92845953 | L119: FALSE | M119: =-10*LOG((1/(10^($E$17/20)))^2+(D119/($E$18*1000))^2) -> 79.98864475 | N119: =20*LOG10(IMABS(O119)) -> 37.78820579 | O119: =IMDIV(1,IMPRODUCT($E$25,IMSUM(1,IMDIV(B119,$E$28*$E$29),IMDIV(IMPOWER(B119,2),$E$29^2)))) -> 77.5193797530448-0.00346136745427442i | P119: =COMPLEX(ROUND(IMREAL(IMDIV(1,IMSUM(IMDIV(1,G119),IMDIV(1,H119),IMDIV(1,$P$29)))),10),ROUND(IMAGINARY(IMDIV(1,IMSUM(IMDIV(1,G119),IMDIV(1,H119),IMDIV(1,$P$29)))),10)) -> 0.0014071958-1.1269930634i | Q119: =-20*LOG(IMABS(IMDIV(1, IMSUM(IMDIV(1,G119),IMDIV(1,H119),IMDIV(1,$P$29))))) -> -1.038431631 | R119: =IF($E$59="DNP",IMDIV(E119,IMSUM(E119,1000*$E$58,$E$60*1000)),IMDIV(IMPRODUCT(E119,$E$59*1000),IMSUM(IMPRODUCT(E119,$E$59*1000),IMPRODUCT(IMSUM(E119,$E$59*1000),IMSUM($E$58*1000,$E$60*1000))))) -> 1 | S119: =IF($E$59="DNP",20*LOG(IMABS(IMDIV(E119,IMSUM(E119,$E$58,$E$60)))),20*LOG(IMABS(E119))+20*LOG($E$59*1000)-20*LOG(IMABS(IMSUM((1000*$E$59*($E$58*1000+1000*$E$60)),IMPRODUCT(E119,($E$58*1000+1000*$E$59+1000*$E$60)))))) -> 0 | T119: =IMDIV(1,IMSUM(F119,IMDIV(1,IMSUM(IMDIV(1,G119),IMDIV(1,H119),IMDIV(1,$P$29))))) -> 0.00133657256232266+0.887421218020377i | U119: =-20*LOG(IMABS(IMSUM(F119,IMDIV(1,IMSUM(IMDIV(1,G119),IMDIV(1,H119),IMDIV(1,$P$29)))))) -> -1.037393981 | V119: =IMPRODUCT(($E$66+$E$68)/($E$66*$E$68*$E$70*10^(-9)),IMDIV(IMPRODUCT(IMSUM(1/($E$67*$E$71*10^(-9)),IMPRODUCT("i",2*PI()*D119*1000)),IMSUM(1/(($E$66+$E$68)*$E$72*10^(-9)),IMPRODUCT("i",2*PI()*D119*1000))),IMPRODUCT(IMPRODUCT("i",2*PI()*D119*1000),IMSUM(IMPRODUCT("i",2*PI()*D119*1000),($E$70+$E$71)/($E$67*$E$70*$E$71*10^(-9))),IMSUM(IMPRODUCT("i",2*PI()*D119*1000),1/($E$68*$E$72*10^(-9)))))) -> 7.92243317633725-2129.31314955491i | W119: =20*LOG(IMABS(V119)) -> 66.56485084 | X119: =IMDIV(10^($E$17/20),IMSUM(1,IMPRODUCT("i",0.001*D119*10^($E$17/20)/$E$18))) -> 9973.88773381009-510.334019494641i | Y119: =20*LOG(IMABS(IMDIV(IMPRODUCT(V119,X119),IMSUM(1,X119,V119)))) -> 66.27493627 | Z119: =IMDIV(IMPRODUCT(V119,X119),IMSUM(1,X119,V119)) -> 431.526144718989-2013.71119839129i | AA119: =20*LOG(IMABS(AB119)) -> 105.1015737 | AB119: =IMPRODUCT(R119,Z119,P119,O119) -> -175880.089118985-37911.577526788i | AC119: =IF(AND(IMREAL(P119)>0,IMAGINARY(P119)>0),-360+ATAN(IMAGINARY(P119)/IMREAL(P119))*180/PI(),IF(AND(IMREAL(P119)>0,IMAGINARY(P119)<0),ATAN(IMAGINARY(P119)/IMREAL(P119))*180/PI(),IF(AND(IMREAL(P119)<0,IMAGINARY(P119)>0),-180+ATAN(IMAGINARY(P119)/IMREAL(P119))*180/PI(),IF(AND(IMREAL(P119)<0,IMAGINARY(P119)<0),-180+ATAN(IMAGINARY(P119)/IMREAL(P119))*180/PI(),IF(AND(IMREAL(P119)=0,IMAGINARY(P119)>0),-270,IF(AND(IMREAL(P119)=0,IMAGINARY(P119)<0),-90,IF(AND(IMREAL(P119)>0,IMAGINARY(P119)=0),0,IF(AND(IMREAL(P119)=0,IMAGINARY(P119)<0),-180)))))))) -> -89.92845889 | AD119: =IF(AND(IMREAL(Z119)>0,IMAGINARY(Z119)>0),ATAN(IMAGINARY(Z119)/IMREAL(Z119))*180/PI(),IF(AND(IMREAL(Z119)>0,IMAGINARY(Z119)<0),ATAN(IMAGINARY(Z119)/IMREAL(Z119))*180/PI(),IF(AND(IMREAL(Z119)<0,IMAGINARY(Z119)>0),180+ATAN(IMAGINARY(Z119)/IMREAL(Z119))*180/PI(),IF(AND(IMREAL(Z119)<0,IMAGINARY(Z119)<0),-180+ATAN(IMAGINARY(Z119)/IMREAL(Z119))*180/PI(),IF(AND(IMREAL(Z119)=0,IMAGINARY(Z119)>0),90,IF(AND(IMREAL(Z119)=0,IMAGINARY(Z119)<0),-90,IF(AND(IMREAL(Z119)>0,IMAGINARY(Z119)=0),0,IF(AND(IMREAL(Z119)=0,IMAGINARY(Z119)<0),-180)))))))) -> -77.90479128 | AE119: =IMARGUMENT(AB119)/PI()*180 -> -167.8358085 | AI119: =ABS(AA119) -> 105.1015737 | AJ119: FALSE | AK119: FALSE | AL119: =IF(AL118=TRUE,TRUE,IF(AND(AE119<-170,AE119>=-180),AE119+180,IF(ABS(AE119)>180,TRUE))) -> FALSE | AM119: =IF($AH$28=AL119,AA119) -> FALSE | AO119: =IMPRODUCT("i",-1/(2*PI()*D119*1000*(10^(-12))*$D$61)) -> -15552495.7580862i | AP119: =IMSUM(0.001*$D$14/$D$15,IMPRODUCT("i",2*PI()*D119*$D$13*0.001/$D$15)) -> 0.00029+0.00013502655989526i | AQ119: =IMSUM($D$37*0.001/$D$35,IMPRODUCT("i",((2*PI()*D119*0.000001*$D$38/$D$35)-(1/(2*PI()*D119*0.001*$D$36*$D$35))))) -> 0.003-1.65452050383651i | AR119: =IMSUM($D$46*0.001/$D$44,IMPRODUCT("i",((2*PI()*D119*0.000001*$D$47/$D$44)-(1/(2*PI()*D119*$D$45*0.001*$D$44))))) -> 0.00015-3.53465811558556i | AS119: =-10*LOG((1/(10^($D$17/20)))^2+(D119/($D$18*1000))^2) -> 79.98864475 | AT119: =20*LOG10(IMABS(AU119)) -> 37.78820579 | AU119: =IMDIV(1,IMPRODUCT($E$25,IMSUM(1,IMDIV(B119,$E$28*$E$29),IMDIV(IMPOWER(B119,2),$E$29^2)))) -> 77.5193797530448-0.00346136745427442i | AV119: =COMPLEX(ROUND(IMREAL(IMDIV(1,IMSUM(IMDIV(1,AQ119),IMDIV(1,AR119),IMDIV(1,$P$29)))),10),ROUND(IMAGINARY(IMDIV(1,IMSUM(IMDIV(1,AQ119),IMDIV(1,AR119),IMDIV(1,$P$29)))),10)) -> 0.0014071958-1.1269930634i | AW119: =-20*LOG(IMABS(IMSUM(1,IMDIV(AP119,AQ119),IMDIV(AP119,AR119),IMDIV(AP119,$O$29)))) -> 0.001037649814 | AX119: =IF($D$59="DNP",IMDIV(AO119,IMSUM(AO119,1000*$D$58,1000*$D$60)),IMDIV(IMPRODUCT(AO119,$D$59*1000),IMSUM(IMPRODUCT(AO119,$D$59*1000),IMPRODUCT(IMSUM(AO119,$D$59*1000),IMSUM($D$58*1000,$D$60*1000))))) -> 1 | AY119: =IF($D$59="DNP",20*LOG(IMABS(IMDIV(AO119,IMSUM(AO119,1000*$D$58,1000*$D$60)))),20*LOG(IMABS(AO119))+20*LOG($D$59*1000)-20*LOG(IMABS(IMSUM((1000*$D$59*(1000*$D$58+1000*$D$60)),IMPRODUCT(AO119,($D$58*1000+1000*$D$59+1000*$D$60)))))) -> 0 | AZ119: =IMDIV(1,IMSUM(AP119,IMDIV(1,IMSUM(IMDIV(1,AQ119),IMDIV(1,AR119),IMDIV(1,$O$29))))) -> 0.00133657256232266+0.887421218020377i | BA119: =-20*LOG(IMABS(IMSUM(AP119,IMDIV(1,IMSUM(IMDIV(1,AQ119),IMDIV(1,AR119),IMDIV(1,$O$29)))))) -> -1.037393981 | BB119: =IMPRODUCT(($D$66+$D$68)/($D$66*$D$68*$D$70*10^(-9)),IMDIV(IMPRODUCT(IMSUM(1/($D$67*$D$71*10^(-9)),IMPRODUCT("i",2*PI()*D119*1000)),IMSUM(1/(($D$66+$D$68)*$D$72*10^(-9)),IMPRODUCT("i",2*PI()*D119*1000))),IMPRODUCT(IMPRODUCT("i",2*PI()*D119*1000),IMSUM(IMPRODUCT("i",2*PI()*D119*1000),($D$70+$D$71)/($D$67*$D$70*$D$71*10^(-9))),IMSUM(IMPRODUCT("i",2*PI()*D119*1000),1/($D$68*$D$72*10^(-9)))))) -> 10.1087975215841-2620.28385172595i | BC119: =20*LOG(IMABS(BB119)) -> 68.36703145 | BD119: =IMDIV(10^($D$17/20),IMSUM(1,IMPRODUCT("i",0.001*D119*10^($D$17/20)/$D$18))) -> 9973.88773381009-510.334019494641i | BE119: =20*LOG(IMABS(IMDIV(IMPRODUCT(BB119,BD119),IMSUM(1,BB119,BD119)))) -> 67.96149836 | BF119: =IMDIV(IMPRODUCT(BB119,BD119),IMSUM(1,BD119,BB119)) -> 634.584724539362-2418.92257807664i | BG119: =20*LOG(IMABS(BH119)) -> 106.7881358 | BH119: =IMPRODUCT(AX119,BF119,AV119,AU119) -> -211259.539831161-55694.1700908885i | BI119: =IF(AND(IMREAL(AV119)>0,IMAGINARY(AV119)>0),-360+ATAN(IMAGINARY(AV119)/IMREAL(AV119))*180/PI(),IF(AND(IMREAL(AV119)>0,IMAGINARY(AV119)<0),ATAN(IMAGINARY(AV119)/IMREAL(AV119))*180/PI(),IF(AND(IMREAL(AV119)<0,IMAGINARY(AV119)>0),-180+ATAN(IMAGINARY(AV119)/IMREAL(AV119))*180/PI(),IF(AND(IMREAL(AV119)<0,IMAGINARY(AV119)<0),-180+ATAN(IMAGINARY(AV119)/IMREAL(AV119))*180/PI(),IF(AND(IMREAL(AV119)=0,IMAGINARY(AV119)>0),-270,IF(AND(IMREAL(AV119)=0,IMAGINARY(AV119)<0),-90,IF(AND(IMREAL(AV119)>0,IMAGINARY(AV119)=0),0,IF(AND(IMREAL(AV119)=0,IMAGINARY(AV119)<0),-180)))))))) -> -89.92845889 | BJ119: =IF(AND(IMREAL(BF119)>0,IMAGINARY(BF119)>0),ATAN(IMAGINARY(BF119)/IMREAL(BF119))*180/PI(),IF(AND(IMREAL(BF119)>0,IMAGINARY(BF119)<0),ATAN(IMAGINARY(BF119)/IMREAL(BF119))*180/PI(),IF(AND(IMREAL(BF119)<0,IMAGINARY(BF119)>0),180+ATAN(IMAGINARY(BF119)/IMREAL(BF119))*180/PI(),IF(AND(IMREAL(BF119)<0,IMAGINARY(BF119)<0),-180+ATAN(IMAGINARY(BF119)/IMREAL(BF119))*180/PI(),IF(AND(IMREAL(BF119)=0,IMAGINARY(BF119)>0),90,IF(AND(IMREAL(BF119)=0,IMAGINARY(BF119)<0),-90,IF(AND(IMREAL(BF119)>0,IMAGINARY(BF119)=0),0,IF(AND(IMREAL(BF119)=0,IMAGINARY(BF119)<0),-180)))))))) -> -75.3001714 | BK119: =IMARGUMENT(BH119)/PI()*180 -> -165.2311886 | BO119: 106.7881358 | BP119: =IF($AF$28=BO119,D119) -> FALSE | BQ119: FALSE | BR119: FALSE | BS119: FALSE
B120: 657.990992641534i | C120: =C119+1 -> 3 | D120: 0.104722519 | E120: -15197776.4313377i | F120: 0.00029+0.000138178108454722i | G120: 0.003-1.61678439774256i | H120: 0.00015-3.45404008651645i | I120: 0.00140718305044873-1.10128877878127i | J120: -89.92678977 | K120: 44.92678977 | L120: FALSE | M120: 79.98810923 | N120: 37.78820579 | O120: 77.5193797487036-0.00354215650506721i | P120: 0.0014071952-1.1012887788i | Q120: -0.8380313734 | R120: 1 | S120: 0 | T120: 0.00139970759019818+0.908138835723429i | U120: -0.8369447174 | V120: 7.92243315936174-2080.74809588328i | W120: 66.36445308 | X120: 9972.6579487843-522.1809307054i | Y120: 66.08285271 | Z120: 413.190552957197-1971.55355610253i | AA120: 104.7090899 | AB120: -168270.487214273-35481.9607350998i | AC120: -89.92678914 | AD120: -78.16348337 | AE120: -168.0928906 | AI120: 104.7090899 | AJ120: FALSE | AK120: FALSE | AL120: FALSE | AM120: FALSE | AO120: -15197776.4313377i | AP120: 0.00029+0.000138178108454722i | AQ120: 0.003-1.61678439774256i | AR120: 0.00015-3.45404008651645i | AS120: 79.98810923 | AT120: 37.78820579 | AU120: 77.5193797487036-0.00354215650506721i | AV120: 0.0014071952-1.1012887788i | AW120: 0.001086655964 | AX120: 1 | AY120: 0 | AZ120: 0.00139970759019818+0.908138835723429i | BA120: -0.8369447174 | BB120: 10.1087975215842-2560.52075400634i | BC120: 68.1666337 | BD120: 9972.6579487843-522.1809307054i | BE120: 67.77336581 | BF120: 608.09785909453-2370.43718853137i | BG120: 106.399603 | BH120: -202303.171637634-52163.3929750503i | BI120: -89.92678914 | BJ120: -75.61195016 | BK120: -165.5413574 | BO120: 106.399603 | BP120: FALSE | BQ120: FALSE | BR120: FALSE | BS120: FALSE
B121: 673.348642029975i | C121: 4 | D121: 0.1071667648 | E121: -14851147.4974577i | F121: 0.00029+0.000141403214826295i | G121: 0.003-1.57990897156586i | H121: 0.00015-3.37526078309315i | I121: 0.00140718303560158-1.07617075483558i | J121: -89.92508103 | K121: 44.92508103 | L121: FALSE | M121: 79.9875485 | N121: 37.78820579 | O121: 77.5193797441577-0.00362483118944376i | P121: 0.0014071946-1.0761707548i | Q121: -0.6376311419 | R121: 1 | S121: 0 | T121: 0.00146582569094617+0.92934036671996i | U121: -0.6364931652 | V121: 7.9224331415846-2033.29070882538i | W121: 66.16405546 | X121: 9971.37041197218-534.299753853133i | Y121: 65.89040924 | Z121: 395.616105198816-1930.11847721856i | AA121: 104.3162462 | AB121: -160976.773811456-33206.9327688111i | AC121: -89.92508042 | AD121: -78.41653129 | AE121: -168.3442909 | AI121: 104.3162462 | AJ121: FALSE | AK121: FALSE | AL121: FALSE | AM121: FALSE | AO121: -14851147.4974577i | AP121: 0.00029+0.000141403214826295i | AQ121: 0.003-1.57990897156586i | AR121: 0.00015-3.37526078309315i | AS121: 79.9875485 | AT121: 37.78820579 | AU121: 77.5193797441577-0.00362483118944376i | AV121: 0.0014071946-1.0761707548i | AW121: 0.001137976723 | AX121: 1 | AY121: 0 | AZ121: 0.00146582569094617+0.92934036671996i | BA121: -0.6364931652 | BB121: 10.1087975215841-2502.12072534764i | BC121: 67.96623609 | BD121: 9971.37041197218-534.299753853133i | BE121: 67.58471271 | BF121: 582.665218416543-2322.64516736211i | BG121: 106.0105496 | BH121: -193703.282950299-48852.6231623351i | BI121: -89.92508042 | BJ121: -75.91724032 | BK121: -165.8449999 | BO121: 106.0105496 | BP121: FALSE | BQ121: FALSE | BR121: FALSE | BS121: FALSE
B122: 689.064742213907i | C122: 5 | D122: 0.1096680598 | E122: -14512424.4318042i | F122: 0.00029+0.000144703595864921i | G122: 0.003-1.54387459502127i | H122: 0.00015-3.29827826789688i | I122: 0.00140718302005327-1.05162562023588i | J122: -89.92333241 | K122: 44.92333241 | L122: FALSE | M122: 79.98696135 | N122: 37.78820579 | O122: 77.5193797393976-0.00370943551849171i | P122: 0.0014071941-1.0516256202i | Q122: -0.4372309373 | R122: 1 | S122: 0 | T122: 0.00153506788670226+0.951037131435042i | U122: -0.4360392159 | V122: 7.92243312296789-1986.91572488907i | W122: 65.96365798 | X122: 9970.02242732208-546.696508051374i | Y122: 65.69762085 | Z122: 378.773939694898-1889.40408844945i | AA122: 103.9230576 | AB122: -153986.970782121-31076.9057150725i | AC122: -89.92333181 | AD122: -78.66402784 | AE122: -168.5901014 | AI122: 103.9230576 | AJ122: FALSE | AK122: FALSE | AL122: FALSE | AM122: FALSE | AO122: -14512424.4318042i | AP122: 0.00029+0.000144703595864921i | AQ122: 0.003-1.54387459502127i | AR122: 0.00015-3.29827826789688i | AS122: 79.98696135 | AT122: 37.78820579 | AU122: 77.5193797393976-0.00370943551849171i | AV122: 0.0014071941-1.0516256202i | AW122: 0.001191721426 | AX122: 1 | AY122: 0 | AZ122: 0.00153506788670226+0.951037131435042i | BA122: -0.4360392159 | BB122: 10.1087975215841-2445.05267704566i | BC122: 67.76583864 | BD122: 9970.02242732208-546.696508051374i | BE122: 67.39555986 | BF122: 558.250580562282-2275.55476822352i | BG122: 105.6209966 | BH122: -185447.625567203-45748.7043692669i | BI122: -89.92333181 | BJ122: -76.2161314 | BK122: -166.1422049 | BO122: 105.6209966 | BP122: FALSE | BQ122: FALSE | BR122: FALSE | BS122: FALSE
B123: 705.147659510958i | C123: 6 | D123: 0.1122277356 | E123: -14181426.9183497i | F123: 0.00029+0.000148081008497301i | G123: 0.003-1.50866208554848i | H123: 0.00015-3.22305156001213i | I123: 0.0014071830037707-1.02764030861139i | J123: -89.92154298 | K123: 44.92154298 | L123: FALSE | M123: 79.98634657 | N123: 37.78820579 | O123: 77.519379734412-0.00379601453052673i | P123: 0.0014071936-1.0276403086i | Q123: -0.2368307609 | R123: 1 | S123: 0 | T123: 0.00160758187351666+0.973240716363861i | U123: -0.2355827563 | V123: 7.92243310347201-1941.59845678926i | W123: 65.76326067 | X123: 9968.61117446521-559.377329697464i | Y123: 65.50450194 | Z123: 362.636055309778-1849.40772281774i | AA123: 103.5295385 | AB123: -147289.457147534-29082.8574327899i | AC123: -89.92154239 | AD123: -78.90606547 | AE123: -168.8304135 | AI123: 103.5295385 | AJ123: FALSE | AK123: FALSE | AL123: FALSE | AM123: FALSE | AO123: -14181426.9183497i | AP123: 0.00029+0.000148081008497301i | AQ123: 0.003-1.50866208554848i | AR123: 0.00015-3.22305156001213i | AS123: 79.98634657 | AT123: 37.78820579 | AU123: 77.519379734412-0.00379601453052673i | AV123: 0.0014071936-1.0276403086i | AW123: 0.001248004574 | AX123: 1 | AY123: 0 | AZ123: 0.00160758187351666+0.973240716363861i | BA123: -0.2355827563 | BB123: 10.1087975215841-2389.28622946342i | BC123: 67.56544134 | BD123: 9968.61117446521-559.377329697464i | BE123: 67.20592733 | BF123: 534.818484244532-2229.17279496597i | BG123: 105.2309639 | BH123: -177524.208474593-42839.2069229419i | BI123: -89.92154239 | BJ123: -76.5087139 | BK123: -166.433062 | BO123: 105.2309639 | BP123: FALSE | BQ123: FALSE | BR123: FALSE | BS123: FALSE
B124: 721.605955510382i | C124: 7 | D124: 0.1148471548 | E124: -13857978.7536913i | F124: 0.00029+0.00015153725065718i | G124: 0.003-1.47425269810036i | H124: 0.00015-3.14954061321083i | I124: 0.00140718298671916-1.0042020516078i | J124: -89.91971178 | K124: 44.91971178 | L124: FALSE | M124: 79.98570284 | N124: 37.78820579 | O124: 77.5193797291916-0.00388461431506848i | P124: 0.0014071931-1.0042020516i | Q124: -0.03643061405 | R124: 1 | S124: 0 | T124: 0.00168352233789641+0.995962980414351i | U124: -0.03512366797 | V124: 7.92243308305539-1897.31478030591i | W124: 65.56286352 | X124: 9967.13370313227-572.348473578365i | Y124: 65.31106638 | Z124: 347.175306662797-1810.12597970902i | AA124: 103.1357028 | AB124: -140872.967077619-27216.3012890289i | AC124: -89.9197112 | AD124: -79.14273613 | AE124: -169.0653185 | AI124: 103.1357028 | AJ124: FALSE | AK124: FALSE | AL124: FALSE | AM124: FALSE | AO124: -13857978.7536913i | AP124: 0.00029+0.00015153725065718i | AQ124: 0.003-1.47425269810036i | AR124: 0.00015-3.14954061321083i | AS124: 79.98570284 | AT124: 37.78820579 | AU124: 77.5193797291916-0.00388461431506848i | AV124: 0.0014071931-1.0042020516i | AW124: 0.00130694608 | AX124: 1 | AY124: 0 | AZ124: 0.00168352233789641+0.995962980414351i | BA124: -0.03512366797 | BB124: 10.1087975215841-2334.79169585881i | BC124: 67.36504421 | BD124: 9967.13370313227-572.348473578365i | BE124: 67.01583449 | BF124: 512.334256830607-2183.50468599858i | BG124: 104.8404709 | BH124: -169921.307330252-40112.3939042777i | BI124: -89.9197112 | BJ124: -76.79507902 | BK124: -166.7176614 | BO124: 104.8404709 | BP124: FALSE | BQ124: FALSE | BR124: FALSE | BS124: FALSE
B125: 738.448391630745i | C125: 8 | D125: 0.1175277117 | E125: -13541907.7532508i | F125: 0.00029+0.000155074162242456i | G125: 0.003-1.44062811516419i | H125: 0.00015-3.07770629463416i | I125: 0.00140718296886238-0.98129837209017i | J125: -89.91783784 | K125: 44.91783784 | L125: FALSE | M125: 79.98502882 | N125: 37.78820579 | O125: 77.5193797237243-0.00397528203737554i | P125: 0.0014071926-0.9812983721i | Q125: 0.1639695019 | R125: 1 | S125: 0 | T125: 0.00176305128842948+1.01921606140759i | U125: 0.1653381734 | V125: 7.92243306167465-1854.04112144173i | W125: 65.36246654 | X125: 9965.58692733366-585.616313889147i | Y125: 65.11732749 | Z125: 332.365397078687-1771.55478208858i | AA125: 102.7415638 | AB125: -134726.586981998-25469.2571312676i | AC125: -89.91783728 | AD125: -79.37413125 | AE125: -169.2949067 | AI125: 102.7415638 | AJ125: FALSE | AK125: FALSE | AL125: FALSE | AM125: FALSE | AO125: -13541907.7532508i | AP125: 0.00029+0.000155074162242456i | AQ125: 0.003-1.44062811516419i | AR125: 0.00015-3.07770629463416i | AS125: 79.98502882 | AT125: 37.78820579 | AU125: 77.5193797237243-0.00397528203737554i | AV125: 0.0014071926-0.9812983721i | AW125: 0.001368671521 | AX125: 1 | AY125: 0 | AZ125: 0.00176305128842948+1.01921606140759i | BA125: 0.1653381734 | BB125: 10.1087975215841-2281.54006658109i | BC125: 67.16464725 | BD125: 9965.58692733366-585.616313889147i | BE125: 66.82530001 | BF125: 490.764037242456-2138.55459624889i | BG125: 104.4495363 | BH125: -162627.472228103-37557.1881502087i | BI125: -89.91783728 | BJ125: -77.07531854 | BK125: -166.996094 | BO125: 104.4495363 | BP125: FALSE | BQ125: FALSE | BR125: FALSE | BS125: FALSE
B126: 755.683933783982i | C126: 9 | D126: 0.1202708335 | E126: -13233045.6596138i | F126: 0.00029+0.000158693626094636i | G126: 0.003-1.40777043701056i | H126: 0.00015-3.00751036396049i | I126: 0.0014071829501623-0.958917077500844i | J126: -89.91592017 | K126: 44.91592017 | L126: FALSE | M126: 79.98432308 | N126: 37.78820579 | O126: 77.5193797179989-0.00406806596355381i | P126: 0.0014071921-0.9589170775i | Q126: 0.3643695855 | R126: 1 | S126: 0 | T126: 0.00184633840321418+1.04301238273995i | U126: 0.3658028979 | V126: 7.92243303928412-1811.75444387277i | W126: 65.16206975 | X126: 9963.96761929475-599.187345154458i | Y126: 64.92329806 | Z126: 318.180869591009-1733.68943092571i | AA126: 102.3471343 | AB126: -128839.751753823-23834.2235470537i | AC126: -89.91591962 | AD126: -79.60034158 | AE126: -169.519268 | AI126: 102.3471343 | AJ126: FALSE | AK126: FALSE | AL126: FALSE | AM126: FALSE | AO126: -13233045.6596138i | AP126: 0.00029+0.000158693626094636i | AQ126: 0.003-1.40777043701056i | AR126: 0.00015-3.00751036396049i | AS126: 79.98432308 | AT126: 37.78820579 | AU126: 77.5193797179989-0.00406806596355381i | AV126: 0.0014071921-0.9589170775i | AW126: 0.001433312408 | AX126: 1 | AY126: 0 | AZ126: 0.00184633840321418+1.04301238273995i | BA126: 0.3658028979 | BB126: 10.1087975215841-2229.50299362792i | BC126: 66.96425048 | BD126: 9963.96761929475-599.187345154458i | BE126: 66.63434192 | BF126: 470.074794148194-2094.32547656959i | BG126: 104.0581781 | BH126: -155631.533822521-35163.1402474716i | BI126: -89.91591962 | BJ126: -77.34952464 | BK126: -167.268451 | BO126: 104.0581781 | BP126: FALSE | BQ126: FALSE | BR126: FALSE | BS126: FALSE
B127: 773.321757148313i | C127: 10 | D127: 0.1230779803 | E127: -12931228.0529592i | F127: 0.00029+0.000162397569001146i | G127: 0.003-1.37566217216457i | H127: 0.00015-2.93891545304852i | I127: 0.0014071829305791-0.937046253368847i | J127: -89.91395773 | K127: 44.91395773 | L127: FALSE | M127: 79.98358413 | N127: 37.78820579 | O127: 77.5193797120034-0.00416301548625021i | P127: 0.0014071917-0.9370462533i | Q127: 0.5647696351 | R127: 1 | S127: 0 | T127: 0.00193356139385524+1.06736466021186i | U127: 0.5662706416 | V127: 7.92243301583627-1770.4322366853i | W127: 64.96167314 | X127: 9962.27240313759-613.068183042553i | Y127: 64.72899042 | Z127: 304.597096226531-1696.52465687767i | AA127: 101.9524266 | AB127: -123202.240333289-22304.1513985125i | AC127: -89.9139572 | AD127: -79.82145715 | AE127: -169.7384913 | AI127: 101.9524266 | AJ127: FALSE | AK127: FALSE | AL127: FALSE | AM127: FALSE | AO127: -12931228.0529592i | AP127: 0.00029+0.000162397569001146i | AQ127: 0.003-1.37566217216457i | AR127: 0.00015-2.93891545304852i | AS127: 79.98358413 | AT127: 37.78820579 | AU127: 77.5193797120034-0.00416301548625021i | AV127: 0.0014071917-0.9370462533i | AW127: 0.001501006468 | AX127: 1 | AY127: 0 | AZ127: 0.00193356139385524+1.06736466021186i | BA127: 0.5662706416 | BB127: 10.1087975215841-2178.65277555458i | BC127: 66.76385389 | BD127: 9962.27240313759-613.068183042553i | BE127: 66.44297756 | BF127: 450.234339820933-2050.81915047484i | BG127: 103.6664137 | BH127: -148922.60802684-32920.3975728882i | BI127: -89.9139572 | BJ127: -77.61778975 | BK127: -167.5348239 | BO127: 103.6664137 | BP127: FALSE | BQ127: FALSE | BR127: FALSE | BS127: FALSE
B128: 791.371251052567i | C128: 11 | D128: 0.1259506464 | E128: -12636294.2635324i | F128: 0.00029+0.000166187962721039i | G128: 0.003-1.34428622809442i | H128: 0.00015-2.87188504604473i | I128: 0.00140718291007108-0.915674256967339i | J128: -89.9119495 | K128: 44.9119495 | L128: FALSE | M128: 79.98281042 | N128: 37.78820579 | O128: 77.519379705724-0.00426018115094642i | P128: 0.0014071913-0.9156742569i | Q128: 0.7651696493 | R128: 1 | S128: 0 | T128: 0.00202490638682431+1.09228590902743i | U128: 0.7667415472 | V128: 7.92243299128113-1730.05250239224i | W128: 64.76127673 | X128: 9960.49774829997-627.265565060719i | Y128: 64.53441636 | Z128: 291.590265782349-1660.05466929371i | AA128: 101.5574525 | AB128: -117804.170660335-20872.4185311532i | AC128: -89.91194897 | AD128: -80.0375672 | AE128: -169.9526649 | AI128: 101.5574525 | AJ128: FALSE | AK128: FALSE | AL128: FALSE | AM128: FALSE | AO128: -12636294.2635324i | AP128: 0.00029+0.000166187962721039i | AQ128: 0.003-1.34428622809442i | AR128: 0.00015-2.87188504604473i | AS128: 79.98281042 | AT128: 37.78820579 | AU128: 77.519379705724-0.00426018115094642i | AV128: 0.0014071913-0.9156742569i | AW128: 0.001571897935 | AX128: 1 | AY128: 0 | AZ128: 0.00202490638682431+1.09228590902743i | BA128: 0.7667415472 | BB128: 10.1087975215841-2128.96234272732i | BC128: 66.56345751 | BD128: 9960.49774829997-627.265565060719i | BE128: 66.25122365 | BF128: 431.21134002573-2008.03638811815i | BG128: 103.2742598 | BH128: -142490.099389275-30819.6743178017i | BI128: -89.91194897 | BJ128: -77.8802064 | BK128: -167.7953041 | BO128: 103.2742598 | BP128: FALSE | BQ128: FALSE | BR128: FALSE | BS128: FALSE
B129: 809.842023974497i | C129: 12 | D129: 0.1288903612 | E129: -12348087.2861136i | F129: 0.00029+0.000170066825034644i | G129: 0.003-1.31362590211235i | H129: 0.00015-2.80638345994449i | I129: 0.00140718288859457-0.89478971111571i | J129: -89.90989439 | K129: 44.90989439 | L129: FALSE | M129: 79.98200031 | N129: 37.78820579 | O129: 77.5193796991486-0.00435961468286655i | P129: 0.0014071909-0.8947897111i | Q129: 0.9655696262 | R129: 1 | S129: 0 | T129: 0.00212056832302137+1.11778945097028i | U129: 0.9672157641 | V129: 7.9224329655663-1690.59374522308i | W129: 64.56088053 | X129: 9958.63996268291-641.786351120101i | Y129: 64.33958724 | Z129: 279.1373702922-1624.27320260752i | AA129: 101.1622234 | AB129: -112635.994010213-19532.8057489069i | AC129: -89.90989388 | AD129: -80.24876008 | AE129: -170.1618762 | AI129: 101.1622234 | AJ129: FALSE | AK129: FALSE | AL129: 9.838123784 | AM129: FALSE | AO129: -12348087.2861136i | AP129: 0.00029+0.000170066825034644i | AQ129: 0.003-1.31362590211235i | AR129: 0.00015-2.80638345994449i | AS129: 79.98200031 | AT129: 37.78820579 | AU129: 77.5193796991486-0.00435961468286655i | AV129: 0.0014071909-0.8947897111i | AW129: 0.00164613786 | AX129: 1 | AY129: 0 | AZ129: 0.00212056832302137+1.11778945097028i | BA129: 0.9672157641 | BB129: 10.1087975215841-2080.40524291314i | BC129: 66.36306133 | BD129: 9958.63996268291-641.786351120101i | BE129: 66.0590963 | BF129: 412.975320279218-1965.97697744954i | BG129: 102.8817325 | BH129: -136323.703149909-28852.2226603799i | BI129: -89.90989388 | BJ129: -78.13686707 | BK129: -168.0499832 | BO129: 102.8817325 | BP129: FALSE | BQ129: FALSE | BR129: FALSE | BS129: FALSE
B130: 828.743908655769i | C130: 13 | D130: 0.1318986896 | E130: -12066453.6964381i | F130: 0.00029+0.000174036220817711i | G130: 0.003-1.28366487248317i | H130: 0.00015-2.74237582559656i | I130: 0.00140718286610383-0.874381498123061i | J130: -89.90779131 | K130: 44.90779131 | L130: FALSE | M130: 79.98115212 | N130: 37.78820579 | O130: 77.5193796922625-0.0044613690145122i | P130: 0.0014071905-0.8743814981i | Q130: 1.165969564 | R130: 1 | S130: 0 | T130: 0.00222075137641531+1.14388892176009i | U130: 1.167693449 | V130: 7.92243293863709-1652.0349596808i | W130: 64.36048454 | X130: 9956.69518551742-656.637523957077i | Y130: 64.14451396 | Z130: 267.216190363435-1589.17356019203i | AA130: 100.7667502 | AB130: -107688.488919647-18279.4739067928i | AC130: -89.90779081 | AD130: -80.45512323 | AE130: -170.3662115 | AI130: 100.7667502 | AJ130: FALSE | AK130: FALSE | AL130: 9.63378849 | AM130: FALSE | AO130: -12066453.6964381i | AP130: 0.00029+0.000174036220817711i | AQ130: 0.003-1.28366487248317i | AR130: 0.00015-2.74237582559656i | AS130: 79.98115212 | AT130: 37.78820579 | AU130: 77.5193796922625-0.0044613690145122i | AV130: 0.0014071905-0.8743814981i | AW130: 0.001723884432 | AX130: 1 | AY130: 0 | AZ130: 0.00222075137641531+1.14388892176009i | BA130: 1.167693449 | BB130: 10.1087975215842-2032.95562719814i | BC130: 66.16266537 | BD130: 9956.69518551742-656.637523957077i | BE130: 65.866611 | BF130: 395.496668809913-1924.63979251367i | BG130: 102.4888472 | BH130: -130413.406256343-27009.8049622701i | BI130: -89.90779081 | BJ130: -78.38786407 | BK130: -168.2989524 | BO130: 102.4888472 | BP130: FALSE | BQ130: FALSE | BR130: FALSE | BS130: FALSE
B131: 848.086967336324i | C131: 14 | D131: 0.134977233 | E131: -11791243.5695222i | F131: 0.00029+0.000178098263140628i | G131: 0.003-1.25438718973547i | H131: 0.00015-2.67982806914079i | I131: 0.00140718284255097-0.85443875386978i | J131: -89.90563915 | K131: 44.90563915 | L131: FALSE | M131: 79.98026404 | N131: 37.78820579 | O131: 77.5193796850514-0.00456549831384086i | P131: 0.0014071901-0.8544387538i | Q131: 1.366369461 | R131: 1 | S131: 0 | T131: 0.00232566939268557+1.17059827859549i | U131: 1.368174765 | V131: 7.92243291043614-1614.35561935977i | W131: 64.16008879 | X131: 9954.65937994124-671.826189397405i | Y131: 63.94920697 | Z131: 255.805279551852-1554.7486557552i | AA131: 100.3710433 | AB131: -102952.754729634-17106.9421477101i | AC131: -89.90563867 | AD131: -80.65674309 | AE131: -170.5657562 | AI131: 100.3710433 | AJ131: FALSE | AK131: FALSE | AL131: 9.434243818 | AM131: FALSE | AO131: -11791243.5695222i | AP131: 0.00029+0.000178098263140628i | AQ131: 0.003-1.25438718973547i | AR131: 0.00015-2.67982806914079i | AS131: 79.98026404 | AT131: 37.78820579 | AU131: 77.5193796850514-0.00456549831384086i | AV131: 0.0014071901-0.8544387538i | AW131: 0.001805303315 | AX131: 1 | AY131: 0 | AZ131: 0.00232566939268557+1.17059827859549i | BA131: 1.368174765 | BB131: 10.1087975215842-1986.58823622719i | BC131: 65.96226964 | BD131: 9954.65937994124-671.826189397405i | BE131: 65.67378267 | BF131: 378.74663652996-1884.0228588711i | BG131: 102.095619 | BH131: -124749.48738745-25284.6670658944i | BI131: -89.90563867 | BJ131: -78.63328946 | BK131: -168.5423026 | BO131: 102.095619 | BP131: FALSE | BQ131: FALSE | BR131: FALSE | BS131: FALSE
B132: 867.881497110918i | C132: 15 | D132: 0.1381276303 | E132: -11522310.3998517i | F132: 0.00029+0.000182255114393293i | G132: 0.003-1.22577726817114i | H132: 0.00015-2.61870689386928i | I132: 0.00140718281788581-0.834950862024164i | J132: -89.90343676 | K132: 44.90343676 | L132: FALSE | M132: 79.97933422 | N132: 37.78820579 | O132: 77.5193796774996-0.0046720580131015i | P132: 0.0014071898-0.834950862i | Q132: 1.566769316 | R132: 1 | S132: 0 | T132: 0.0024355463488304+1.19793180788822i | U132: 1.568659884 | V132: 7.9224328809034-1577.53566601877i | W132: 63.95969327 | X132: 9952.52832527636-687.359576448409i | Y132: 63.75367631 | Z132: 244.883947928142-1520.9910523594i | AA132: 99.97511279 | AB132: -98420.2047596114-16010.0672363312i | AC132: -89.90343628 | AD132: -80.85370505 | AE132: -170.7605945 | AI132: 99.97511279 | AJ132: FALSE | AK132: FALSE | AL132: 9.239405475 | AM132: FALSE | AO132: -11522310.3998517i | AP132: 0.00029+0.000182255114393293i | AQ132: 0.003-1.22577726817114i | AR132: 0.00015-2.61870689386928i | AS132: 79.97933422 | AT132: 37.78820579 | AU132: 77.5193796774996-0.0046720580131015i | AV132: 0.0014071898-0.834950862i | AW132: 0.001890568005 | AX132: 1 | AY132: 0 | AZ132: 0.0024355463488304+1.19793180788822i | BA132: 1.568659884 | BB132: 10.1087975215841-1941.27838675725i | BC132: 65.76187415 | BD132: 9952.52832527636-687.359576448409i | BE132: 65.48062564 | BF132: 362.697334311787-1844.12341614324i | BG132: 101.7020621 | BH132: -119322.516025251-23669.5126749426i | BI132: -89.90343628 | BJ132: -78.87323486 | BK132: -168.7801243 | BO132: 101.7020621 | BP132: FALSE | BQ132: FALSE | BR132: FALSE | BS132: FALSE
B133: 888.138035410685i | C133: 16 | D133: 0.1413515585 | E133: -11259511.0233916i | F133: 0.00029+0.000186508987436244i | G133: 0.003-1.19781987756839i | H133: 0.00015-2.55897976250114i | I133: 0.00140718279205584-0.815907448390877i | J133: -89.90118296 | K133: 44.90118296 | L133: FALSE | M133: 79.9783607 | N133: 37.78820579 | O133: 77.5193796695915-0.00478110483834361i | P133: 0.0014071894-0.8159074484i | Q133: 1.767169126 | R133: 1 | S133: 0 | T133: 0.00255061683475821+1.22590413319473i | U133: 1.769148986 | V133: 7.92243284997597-1541.55549890305i | W133: 63.759298 | X133: 9950.29760899774-703.245037203412i | Y133: 63.55793161 | Z133: 234.432244976642-1487.89299914929i | AA133: 99.57896828 | AB133: -94082.5591761969-14984.0238811276i | AC133: -89.9011825 | AD133: -81.04609345 | AE133: -170.9508097 | AI133: 99.57896828 | AJ133: FALSE | AK133: FALSE | AL133: 9.049190257 | AM133: FALSE | AO133: -11259511.0233916i | AP133: 0.00029+0.000186508987436244i | AQ133: 0.003-1.19781987756839i | AR133: 0.00015-2.55897976250114i | AS133: 79.9783607 | AT133: 37.78820579 | AU133: 77.5193796695915-0.00478110483834361i | AV133: 0.0014071894-0.8159074484i | AW133: 0.001979860196 | AX133: 1 | AY133: 0 | AZ133: 0.00255061683475821+1.22590413319473i | BA133: 1.769148986 | BB133: 10.1087975215841-1897.0019585175i | BC133: 65.56147891 | BD133: 9950.29760899774-703.245037203412i | BE133: 65.28715373 | BF133: 347.321727845932-1804.9379776979i | BG133: 101.3081904 | BH133: -114123.350677042-22157.4787235355i | BI133: -89.9011825 | BJ133: -79.10779144 | BK133: -169.0125077 | BO133: 101.3081904 | BP133: FALSE | BQ133: FALSE | BR133: FALSE | BS133: FALSE
B134: 908.867365612636i | C134: 17 | D134: 0.1446507339 | E134: -11002705.5413738i | F134: 0.00029+0.000190862146778654i | G134: 0.003-1.17050013507417i | H134: 0.00015-2.5006148798616i | I134: 0.00140718276500604-0.797298375388383i | J134: -89.89887657 | K134: 44.89887657 | L134: FALSE | M134: 79.97734145 | N134: 37.78820579 | O134: 77.5193796613096-0.00489269683961453i | P134: 0.0014071891-0.7972983754i | Q134: 1.967568889 | R134: 1 | S134: 0 | T134: 0.0026711265579249+1.25453022335033i | U134: 1.969642259 | V134: 7.922432817588-1506.3959643102i | W134: 63.55890299 | X134: 9947.96261838422-719.490046541566i | Y134: 63.3619821 | Z134: 224.430941955126-1455.44646587539i | AA134: 99.18261901 | AB134: -89931.8376982276-14024.2862147887i | AC134: -89.89887611 | AD134: -81.23399148 | AE134: -171.1364839 | AI134: 99.18261901 | AJ134: FALSE | AK134: FALSE | AL134: 8.863516139 | AM134: FALSE | AO134: -11002705.5413738i | AP134: 0.00029+0.000190862146778654i | AQ134: 0.003-1.17050013507417i | AR134: 0.00015-2.5006148798616i | AS134: 79.97734145 | AT134: 37.78820579 | AU134: 77.5193796613096-0.00489269683961453i | AV134: 0.0014071891-0.7972983754i | AW134: 0.002073370172 | AX134: 1 | AY134: 0 | AZ134: 0.0026711265579249+1.25453022335033i | BA134: 1.969642259 | BB134: 10.1087975215841-1853.7353813692i | BC134: 65.36108393 | BD134: 9947.96261838422-719.490046541566i | BE134: 65.09338018 | BF134: 332.593630339207-1766.46238750626i | BG134: 100.9140171 | BH134: -109143.136434283-20742.111979458i | BI134: -89.89887611 | BJ134: -79.33704974 | BK134: -169.2395421 | BO134: 100.9140171 | BP134: FALSE | BQ134: FALSE | BR134: FALSE | BS134: FALSE
B135: 930.080522780092i | C135: 18 | D135: 0.1480269127 | E135: -10751757.2458233i | F135: 0.00029+0.000195316909783819i | G135: 0.003-1.14380349728137i | H135: 0.00015-2.44358117595617i | I135: 0.00140718273667882-0.779113736652278i | J135: -89.89651634 | K135: 44.89651634 | L135: FALSE | M135: 79.97627431 | N135: 37.78820579 | O135: 77.5193796526362-0.00500689342186203i | P135: 0.0014071888-0.7791137366i | Q135: 2.167968603 | R135: 1 | S135: 0 | T135: 0.00279733287213689+1.28382540081245i | U135: 2.1701399 | V135: 7.92243278367047-1472.03834539374i | W135: 63.35850826 | X135: 9945.51853184196-736.102201605039i | Y135: 63.16583665 | Z135: 214.861513832549-1423.64317530103i | AA135: 98.78607384 | AB135: -85960.3521013027-13126.610076922i | AC135: -89.89651589 | AD135: -81.41748117 | AE135: -171.3176977 | AI135: 98.78607384 | AJ135: FALSE | AK135: FALSE | AL135: 8.682302264 | AM135: FALSE | AO135: -10751757.2458233i | AP135: 0.00029+0.000195316909783819i | AQ135: 0.003-1.14380349728137i | AR135: 0.00015-2.44358117595617i | AS135: 79.97627431 | AT135: 37.78820579 | AU135: 77.5193796526362-0.00500689342186203i | AV135: 0.0014071888-0.7791137366i | AW135: 0.002171297208 | AX135: 1 | AY135: 0 | AZ135: 0.00279733287213689+1.28382540081245i | BA135: 2.1701399 | BB135: 10.1087975215841-1811.45562275829i | BC135: 65.16068923 | BD135: 9945.51853184196-736.102201605039i | BE135: 64.89931775 | BF135: 318.487693295295-1728.69187421374i | BG135: 100.5195549 | BH135: -104373.301859509-19417.3464740992i | BI135: -89.89651589 | BJ135: -79.56109965 | BK135: -169.4613162 | BO135: 100.5195549 | BP135: FALSE | BQ135: FALSE | BR135: FALSE | BS135: FALSE
B136: 951.788799537091i | C136: 19 | D136: 0.1514818922 | E136: -10506532.546783i | F136: 0.00029+0.000199875647902789i | G136: 0.003-1.11771575248677i | H136: 0.00015-2.38784828943075i | I136: 0.00140718270701383-0.76134385176172i | J136: -89.89410102 | K136: 44.89410102 | L136: FALSE | M136: 79.97515706 | N136: 37.78820579 | O136: 77.5193796435536-0.00512375537655799i | P136: 0.0014071885-0.7613438517i | Q136: 2.368368265 | R136: 1 | S136: 0 | T136: 0.0029295053316922+1.31380535021911i | U136: 2.370642115 | V136: 7.9224327481512-1438.46435219949i | W136: 63.15811381 | X136: 9942.96030989142-753.089221034334i | Y136: 62.96950374 | Z136: 205.706120911215-1392.47463358131i | AA136: 98.38934126 | AB136: -82160.6986020638-12287.0163679651i | AC136: -89.89410058 | AD136: -81.59664337 | AE136: -171.494531 | AI136: 98.38934126 | AJ136: FALSE | AK136: FALSE | AL136: 8.505469002 | AM136: FALSE | AO136: -10506532.546783i | AP136: 0.00029+0.000199875647902789i | AQ136: 0.003-1.11771575248677i | AR136: 0.00015-2.38784828943075i | AS136: 79.97515706 | AT136: 37.78820579 | AU136: 77.5193796435536-0.00512375537655799i | AV136: 0.0014071885-0.7613438517i | AW136: 0.002273850003 | AX136: 1 | AY136: 0 | AZ136: 0.0029295053316922+1.31380535021911i | BA136: 2.370642115 | BB136: 10.1087975215841-1770.14017545425i | BC136: 64.96029481 | BD136: 9942.96030989142-753.089221034334i | BE136: 64.70497868 | BF136: 304.979395603759-1691.62110247821i | BG136: 100.1248162 | BH136: -99805.55530873-18177.482115805i | BI136: -89.89410058 | BJ136: -79.7800303 | BK136: -169.6779179 | BO136: 100.1248162 | BP136: FALSE | BQ136: FALSE | BR136: FALSE | BS136: FALSE
B137: 974.003752079913i | C137: 20 | D137: 0.1550175117 | E137: -10266900.9011985i | F137: 0.00029+0.000204540787936782i | G137: 0.003-1.09222301312563i | H137: 0.00015-2.33338655140914i | I137: 0.00140718267594791-0.743979261086183i | J137: -89.89162933 | K137: 44.89162933 | L137: FALSE | M137: 79.97398735 | N137: 37.78820579 | O137: 77.5193796340424-0.00524334491406004i | P137: 0.0014071882-0.7439792611i | Q137: 2.568767874 | R137: 1 | S137: 0 | T137: 0.00306792627209169+1.3444861271688i | U137: 2.571149121 | V137: 7.92243271095453-1405.65611192897i | W137: 62.95771966 | X137: 9940.28268580868-770.45894394118i | Y137: 62.77299152 | Z137: 196.947590229336-1361.93215870188i | AA137: 97.99242944 | AB137: -78525.7501139093-11501.7752356172i | AC137: -89.8916289 | AD137: -81.77155768 | AE137: -171.667062 | AI137: 97.99242944 | AJ137: FALSE | AK137: FALSE | AL137: 8.332937976 | AM137: FALSE | AO137: -10266900.9011985i | AP137: 0.00029+0.000204540787936782i | AQ137: 0.003-1.09222301312563i | AR137: 0.00015-2.33338655140914i | AS137: 79.97398735 | AT137: 37.78820579 | AU137: 77.5193796340424-0.00524334491406004i | AV137: 0.0014071882-0.7439792611i | AW137: 0.002381247117 | AX137: 1 | AY137: 0 | AZ137: 0.00306792627209169+1.3444861271688i | BA137: 2.571149121 | BB137: 10.1087975215841-1729.76704556859i | BC137: 64.7599007 | BD137: 9940.28268580868-770.45894394118i | BE137: 64.51037474 | BF137: 292.045031147247-1655.24422163693i | BG137: 99.72981265 | BH137: -95431.8807098039-17017.1642179598i | BI137: -89.8916289 | BJ137: -79.99392998 | BK137: -169.8894343 | BO137: 99.72981265 | BP137: FALSE | BQ137: FALSE | BR137: FALSE | BS137: FALSE
B138: 996.737206328911i | C138: 21 | D138: 0.1586356534 | E138: -10032734.7434246i | F138: 0.00029+0.000209314813329071i | G138: 0.003-1.06731170837869i | H138: 0.00015-2.28016696969904i | I138: 0.0014071826434149-0.727010720749677i | J138: -89.88909995 | K138: 44.88909995 | L138: FALSE | M138: 79.97276274 | N138: 37.78820579 | O138: 77.5193796240818-0.00536572569672854i | P138: 0.0014071879-0.7270107207i | Q138: 2.769167426 | R138: 1 | S138: 0 | T138: 0.00321289141861507+1.37588416722902i | U138: 2.771661144 | V138: 7.92243267200126-1373.59615942509i | W138: 62.75732583 | X138: 9937.48015591211-788.219328597125i | Y138: 62.5763078 | Z138: 188.569396830839-1332.00690706564i | AA138: 97.59534616 | AB138: -75048.6484577669-10767.3911352122i | AC138: -89.88909954 | AD138: -81.94230249 | AE138: -171.8353679 | AI138: 97.59534616 | AJ138: FALSE | AK138: FALSE | AL138: 8.164632084 | AM138: FALSE | AO138: -10032734.7434246i | AP138: 0.00029+0.000209314813329071i | AQ138: 0.003-1.06731170837869i | AR138: 0.00015-2.28016696969904i | AS138: 79.97276274 | AT138: 37.78820579 | AU138: 77.5193796240818-0.00536572569672854i | AV138: 0.0014071879-0.7270107207i | AW138: 0.002493717445 | AX138: 1 | AY138: 0 | AZ138: 0.00321289141861507+1.37588416722902i | BA138: 2.771661144 | BB138: 10.1087975215841-1690.31474084658i | BC138: 64.5595069 | BD138: 9937.48015591211-788.219328597125i | BE138: 64.31551721 | BF138: 279.661695121373-1619.55491177131i | BG138: 99.33455557 | BH138: -91244.5329172885-15931.3640157366i | BI138: -89.88909954 | BJ138: -80.20288609 | BK138: -170.0959515 | BO138: 99.33455557 | BP138: FALSE | BQ138: FALSE | BR138: 9.904048485 | BS138: FALSE
B139: 1020.00126422393i | C139: 22 | D139: 0.1623382432 | E139: -9803909.41731677i | F139: 0.00029+0.000214200265487025i | G139: 0.003-1.04296857694796i | H139: 0.00015-2.22816121335833i | I139: 0.00140718260934552-0.710429197709884i | J139: -89.88651154 | K139: 44.88651154 | L139: FALSE | M139: 79.97148067 | N139: 37.78820579 | O139: 77.5193796136505-0.00549096287281695i | P139: 0.0014071877-0.7104291977i | Q139: 2.96956692 | R139: 1 | S139: 0 | T139: 0.00336471052411877+1.40801629518007i | U139: 2.97217842 | V139: 7.92243263120838-1342.26742787465i | W139: 62.55693232 | X139: 9934.54696948585-806.378450814483i | Y139: 62.37946006 | Z139: 180.555644980122-1302.68989831306i | AA139: 97.19809893 | AB139: -71722.7966401895-10080.5887351184i | AC139: -89.88651112 | AD139: -82.10895489 | AE139: -171.9995245 | AI139: 97.19809893 | AJ139: FALSE | AK139: FALSE | AL139: 8.000475531 | AM139: FALSE | AO139: -9803909.41731677i | AP139: 0.00029+0.000214200265487025i | AQ139: 0.003-1.04296857694796i | AR139: 0.00015-2.22816121335833i | AS139: 79.97148067 | AT139: 37.78820579 | AU139: 77.5193796136505-0.00549096287281695i | AV139: 0.0014071877-0.7104291977i | AW139: 0.002611500702 | AX139: 1 | AY139: 0 | AZ139: 0.00336471052411877+1.40801629518007i | BA139: 2.97217842 | BB139: 10.1087975215841-1651.76225922611i | BC139: 64.35911344 | BD139: 9934.54696948585-806.378450814483i | BE139: 64.12041695 | BF139: 267.807269246949-1584.54642724399i | BG139: 98.93905582 | BH139: -87236.0328019907-14915.3601580868i | BI139: -89.88651112 | BJ139: -80.40698507 | BK139: -170.2975547 | BO139: 98.93905582 | BP139: FALSE | BQ139: FALSE | BR139: 9.702445348 | BS139: FALSE
B140: 1043.80831016666i | C140: 23 | D140: 0.1661272522 | E140: -9580303.10987213i | F140: 0.00029+0.000219199745134998i | G140: 0.003-1.01918065999714i | H140: 0.00015-2.17734159761338i | I140: 0.00140718257366719-0.694225864949483i | J140: -89.88386271 | K140: 44.88386271 | L140: FALSE | M140: 79.97013846 | N140: 37.78820579 | O140: 77.5193796027268-0.00561912311115272i | P140: 0.0014071874-0.6942258649i | Q140: 3.169966351 | R140: 1 | S140: 0 | T140: 0.00352370803748386+1.44089973450161i | U140: 3.172701199 | V140: 7.9224325884891-1311.65323972305i | W140: 62.35653916 | X140: 9931.47711833164-824.944501994797i | Y140: 62.18245547 | Z140: 172.89104939152-1273.97203846157i | AA140: 96.80069491 | AB140: -68541.8509755716-9438.29953186631i | AC140: -89.88386231 | AD140: -82.27159069 | AE140: -172.1596062 | AI140: 96.80069491 | AJ140: FALSE | AK140: FALSE | AL140: 7.84039382 | AM140: FALSE | AO140: -9580303.10987213i | AP140: 0.00029+0.000219199745134998i | AQ140: 0.003-1.01918065999714i | AR140: 0.00015-2.17734159761338i | AS140: 79.97013846 | AT140: 37.78820579 | AU140: 77.5193796027268-0.00561912311115272i | AV140: 0.0014071874-0.6942258649i | AW140: 0.002734847938 | AX140: 1 | AY140: 0 | AZ140: 0.00352370803748386+1.44089973450161i | BA140: 3.172701199 | BB140: 10.1087975215841-1614.08907765738i | BC140: 64.15872032 | BD140: 9931.47711833164-824.944501994797i | BE140: 63.92508436 | BF140: 256.460406040014-1550.21163778749i | BG140: 98.5433238 | BH140: -83399.1618269289-13964.7210169584i | BI140: -89.88386231 | BJ140: -80.60631235 | BK140: -170.4943278 | BO140: 98.5433238 | BP140: FALSE | BQ140: FALSE | BR140: 9.505672157 | BS140: FALSE
B141: 1068.17101761334i | C141: 24 | D141: 0.1700046975 | E141: -9361796.78638293i | F141: 0.00029+0.000224315913698802i | G141: 0.003-0.995935294253101i | H141: 0.00015-2.12768106912131i | I141: 0.00140718253630397-0.678392096777178i | J141: -89.88115206 | K141: 44.88115206 | L141: FALSE | M141: 79.96873331 | N141: 37.78820579 | O141: 77.5193795912873-0.00575027463662764i | P141: 0.0014071871-0.6783920968i | Q141: 3.370365718 | R141: 1 | S141: 0 | T141: 0.0036902238042121+1.47455211710961i | U141: 3.37322974 | V141: 7.92243254375235-1281.73729779613i | W141: 62.15614636 | X141: 9928.26432594103-843.925786818401i | Y141: 61.9853009 | Z141: 165.560916535431-1245.84414144681i | AA141: 96.40314097 | AB141: -65499.7134011884-8837.64934028897i | AC141: -89.88115167 | AD141: -82.4302844 | AE141: -172.3156862 | AI141: 96.40314097 | AJ141: FALSE | AK141: FALSE | AL141: 7.684313808 | AM141: FALSE | AO141: -9361796.78638293i | AP141: 0.00029+0.000224315913698802i | AQ141: 0.003-0.995935294253101i | AR141: 0.00015-2.12768106912131i | AS141: 79.96873331 | AT141: 37.78820579 | AU141: 77.5193795912873-0.00575027463662764i | AV141: 0.0014071871-0.6783920968i | AW141: 0.00286402207 | AX141: 1 | AY141: 0 | AZ141: 0.0036902238042121+1.47455211710961i | BA141: 3.37322974 | BB141: 10.1087975215841-1577.27514117772i | BC141: 63.95832756 | BD141: 9928.26432594103-843.925786818401i | BE141: 63.72952944 | BF141: 245.600512291744-1516.54306722738i | BG141: 98.14736951 | BH141: -79726.9565480478-13075.2880422935i | BI141: -89.88115167 | BJ141: -80.80095229 | BK141: -170.6863541 | BO141: 98.14736951 | BP141: FALSE | BQ141: FALSE | BR141: 9.313645916 | BS141: FALSE
B142: 1093.1023558214i | C142: 25 | D142: 0.1739726432 | E142: -9148274.12706984i | F142: 0.00029+0.000229551494722494i | G142: 0.003-0.973220105264762i | H142: 0.00015-2.0791531915684i | I142: 0.00140718249717626-0.662919464235907i | J142: -89.87837814 | K142: 44.87837814 | L142: FALSE | M142: 79.96726229 | N142: 37.78820579 | O142: 77.5193795793077-0.00588448726651713i | P142: 0.0014071869-0.6629194642i | Q142: 3.570765018 | R142: 1 | S142: 0 | T142: 0.00386461380074431+1.50899149335146i | U142: 3.573764316 | V142: 7.92243249690289-1252.50367662449i | W142: 61.95575394 | X142: 9924.90203628051-863.330720546958i | Y142: 61.78800293 | Z142: 158.551126076113-1218.29694914699i | AA142: 96.0054437 | AB142: -62590.5236976991-8275.94638089245i | AC142: -89.87837776 | AD142: -82.58510922 | AE142: -172.4678363 | AI142: 96.0054437 | AJ142: FALSE | AK142: FALSE | AL142: 7.532163704 | AM142: FALSE | AO142: -9148274.12706984i | AP142: 0.00029+0.000229551494722494i | AQ142: 0.003-0.973220105264762i | AR142: 0.00015-2.0791531915684i | AS142: 79.96726229 | AT142: 37.78820579 | AU142: 77.5193795793077-0.00588448726651713i | AV142: 0.0014071869-0.6629194642i | AW142: 0.002999298451 | AX142: 1 | AY142: 0 | AZ142: 0.00386461380074431+1.50899149335146i | BA142: 3.573764316 | BB142: 10.1087975215841-1541.30085223539i | BC142: 63.75793518 | BD142: 9924.90203628051-863.330720546958i | BE142: 63.53376176 | BF142: 235.207731897372-1483.53292992502i | BG142: 97.75120254 | BH142: -76212.7027168536-12243.159824815i | BI142: -89.87837776 | BJ142: -80.99098815 | BK142: -170.8737152 | BO142: 97.75120254 | BP142: FALSE | BQ142: FALSE | BR142: 9.126284773 | BS142: FALSE
B143: 1118.61559675345i | C143: 26 | D143: 0.1780332016 | E143: -8939621.46516006i | F143: 0.00029+0.000234909275318225i | G143: 0.003-0.951023000815612i | H143: 0.00015-2.03173213159697i | I143: 0.00140718245620073-0.647799730615741i | J143: -89.87553948 | K143: 44.87553948 | L143: FALSE | M143: 79.96572233 | N143: 37.78820579 | O143: 77.519379566762-0.0060218324476462i | P143: 0.0014071867-0.6477997306i | Q143: 3.771164246 | R143: 1 | S143: 0 | T143: 0.00404725090415684+1.54423634226765i | U143: 3.774305211 | V143: 7.92243244784101-1223.93681396578i | W143: 61.75536192 | X143: 9921.38340218265-883.167825909161i | Y143: 61.59056787 | Z143: 151.848112489678-1191.32114996922i | AA143: 95.60760942 | AB143: -59808.6519491508-7750.67008103623i | AC143: -89.87553911 | AD143: -82.736137 | AE143: -172.6161269 | AI143: 95.60760942 | AJ143: FALSE | AK143: FALSE | AL143: 7.383873061 | AM143: FALSE | AO143: -8939621.46516006i | AP143: 0.00029+0.000234909275318225i | AQ143: 0.003-0.951023000815612i | AR143: 0.00015-2.03173213159697i | AS143: 79.96572233 | AT143: 37.78820579 | AU143: 77.519379566762-0.0060218324476462i | AV143: 0.0014071867-0.6477997306i | AW143: 0.003140965449 | AX143: 1 | AY143: 0 | AZ143: 0.00404725090415684+1.54423634226765i | BA143: 3.774305211 | BB143: 10.1087975215841-1506.14706025718i | BC143: 63.5575432 | BD143: 9921.38340218265-883.167825909161i | BE143: 63.33779054 | BF143: 225.262928161318-1451.17316502735i | BG143: 97.35483208 | BH143: -72849.9294057904-11464.6770311299i | BI143: -89.87553911 | BJ143: -81.17650202 | BK143: -171.056492 | BO143: 97.35483208 | BP143: FALSE | BQ143: FALSE | BR143: 8.943508045 | BS143: FALSE
B144: 1144.72432214256i | C144: 27 | D144: 0.1821885343 | E144: -8735727.726378i | F144: 0.00029+0.000240392107649937i | G144: 0.003-0.929332164486563i | H144: 0.00015-1.98539264505324i | I144: 0.00140718241329013-0.633024847069165i | J144: -89.87263457 | K144: 44.87263457 | L144: FALSE | M144: 79.96411023 | N144: 37.78820579 | O144: 77.5193795536239-0.00616238329442411i | P144: 0.0014071864-0.6330248471i | Q144: 3.9715634 | R144: 1 | S144: 0 | T144: 0.00423852569897282+1.58030558212862i | U144: 3.974852725 | V144: 7.92243239646211-1196.02150252022i | W144: 61.5549703 | X144: 9917.70127333694-903.445729537872i | Y144: 61.39300176 | Z144: 145.438846904718-1164.90739607422i | AA144: 95.20964415 | AB144: -57148.6909344096-7259.46053825683i | AC144: -89.87263421 | AD144: -82.88343828 | AE144: -172.7606272 | AI144: 95.20964415 | AJ144: FALSE | AK144: FALSE | AL144: 7.239372799 | AM144: FALSE | AO144: -8735727.726378i | AP144: 0.00029+0.000240392107649937i | AQ144: 0.003-0.929332164486563i | AR144: 0.00015-1.98539264505324i | AS144: 79.96411023 | AT144: 37.78820579 | AU144: 77.5193795536239-0.00616238329442411i | AV144: 0.0014071864-0.6330248471i | AW144: 0.003289325073 | AX144: 1 | AY144: 0 | AZ144: 0.00423852569897282+1.58030558212862i | BA144: 3.974852725 | BB144: 10.1087975215841-1471.79505145366i | BC144: 63.35715164 | BD144: 9917.70127333694-903.445729537872i | BE144: 63.14162458 | BF144: 215.74766569414-1419.45546861141i | BG144: 96.95826697 | BH144: -69632.4027983013-10736.4081460304i | BI144: -89.87263421 | BJ144: -81.35757481 | BK144: -171.2347637 | BO144: 96.95826697 | BP144: FALSE | BQ144: FALSE | BR144: 8.765236265 | BS144: FALSE
B145: 1171.4424307223i | C145: 28 | D145: 0.1864408534 | E145: -8536484.36981589i | F145: 0.00029+0.000246002910451682i | G145: 0.003-0.908136049365581i | H145: 0.00015-1.94011006354882i | I145: 0.00140718236835307-0.618586948326344i | J145: -89.86966186 | K145: 44.86966186 | L145: FALSE | M145: 79.96242264 | N145: 37.78820579 | O145: 77.5193795398656-0.00630621462776571i | P145: 0.0014071862-0.6185869483i | Q145: 4.171962476 | R145: 1 | S145: 0 | T145: 0.00443884732291676+1.61721858125564i | U145: 4.175407169 | V145: 7.92243234265689-1168.74288183521i | W145: 61.35457913 | X145: 9913.8481838749-924.173157925158i | Y145: 61.19531038 | Z145: 139.310819202624-1139.04631931342i | AA145: 94.8115537 | AB145: -54605.4487142823-6800.10861370812i | AC145: -89.86966151 | AD145: -83.02708223 | AE145: -172.9014048 | AI145: 94.8115537 | AJ145: FALSE | AK145: FALSE | AL145: 7.09859524 | AM145: FALSE | AO145: -8536484.36981589i | AP145: 0.00029+0.000246002910451682i | AQ145: 0.003-0.908136049365581i | AR145: 0.00015-1.94011006354882i | AS145: 79.96242264 | AT145: 37.78820579 | AU145: 77.5193795398656-0.00630621462776571i | AV145: 0.0014071862-0.6185869483i | AW145: 0.003444693613 | AX145: 1 | AY145: 0 | AZ145: 0.00443884732291676+1.61721858125564i | BA145: 4.175407169 | BB145: 10.1087975215842-1438.2265388571i | BC145: 63.15676051 | BD145: 9913.8481838749-924.173157925158i | BE145: 62.94527234 | BF145: 206.64419200632-1388.37132381214i | BG145: 96.56151565 | BH145: -66554.1199832595-10055.1359996596i | BI145: -89.86966151 | BJ145: -81.53428622 | BK145: -171.4086087 | BO145: 96.56151565 | BP145: FALSE | BQ145: FALSE | BR145: 8.591391251 | BS145: FALSE
B146: 1198.78414562564i | C146: 29 | D146: 0.1907924225 | E146: -8341785.33015301i | F146: 0.00029+0.000251744670581385i | G146: 0.003-0.8874233719008i | H146: 0.00015-1.89586028132878i | I146: 0.00140718232129385-0.604478348508134i | J146: -89.86661977 | K146: 44.86661977 | L146: FALSE | M146: 79.96065606 | N146: 37.78820579 | O146: 77.5193795254571-0.00645340301492163i | P146: 0.001407186-0.6044783485i | Q146: 4.37236147 | R146: 1 | S146: 0 | T146: 0.00464864435353272+1.65499516913526i | U146: 4.375968873 | V146: 7.92243228631069-1142.08643039444i | W146: 61.1541884 | X146: 9909.81633954495-945.358932859569i | Y146: 60.99749928 | Z146: 133.452020409514-1113.72854594969i | AA146: 94.4133436 | AB146: -52173.9413649078-6370.54652640753i | AC146: -89.86661942 | AD146: -83.16713671 | AE146: -173.0385259 | AI146: 94.4133436 | AJ146: FALSE | AK146: FALSE | AL146: 6.961474062 | AM146: FALSE | AO146: -8341785.33015301i | AP146: 0.00029+0.000251744670581385i | AQ146: 0.003-0.8874233719008i | AR146: 0.00015-1.89586028132878i | AS146: 79.96065606 | AT146: 37.78820579 | AU146: 77.5193795254571-0.00645340301492163i | AV146: 0.001407186-0.6044783485i | AW146: 0.003607402319 | AX146: 1 | AY146: 0 | AZ146: 0.00464864435353272+1.65499516913526i | BA146: 4.375968873 | BB146: 10.1087975215841-1405.4236525866i | BC146: 62.95636984 | BD146: 9909.81633954495-945.358932859569i | BE146: 62.74874193 | BF146: 197.935418893804-1357.91202902151i | BG146: 96.16458624 | BH146: -63609.3027124772-9417.84492583809i | BI146: -89.86661942 | BJ146: -81.70671469 | BK146: -171.5781039 | BO146: 96.16458624 | BP146: FALSE | BQ146: FALSE | BR146: 8.421896076 | BS146: FALSE
B147: 1226.76402195652i | C147: 30 | D147: 0.1952455581 | E147: -8151526.96119289i | F147: 0.00029+0.000257620444610869i | G147: 0.003-0.867183105893829i | H147: 0.00015-1.85261974243911i | I147: 0.00140718227201226-0.590691537034548i | J147: -89.86350667 | K147: 44.86350667 | L147: FALSE | M147: 79.95880682 | N147: 37.78820579 | O147: 77.5193795103683-0.00660402681023865i | P147: 0.0014071858-0.590691537i | Q147: 4.57276038 | R147: 1 | S147: 0 | T147: 0.00486836573768545+1.69365564783712i | U147: 4.576538178 | V147: 7.92243222730352-1116.0379578875i | W147: 60.95379816 | X147: 9905.5976044736-967.011966308029i | Y147: 60.79957375 | Z147: 127.850925407165-1088.94471023056i | AA147: 94.01501916 | AB147: -49849.3857434395-5968.83907842281i | AC147: -89.86350633 | AD147: -83.3036682 | AE147: -173.1720557 | AI147: 94.01501916 | AJ147: FALSE | AK147: FALSE | AL147: 6.827944334 | AM147: FALSE | AO147: -8151526.96119289i | AP147: 0.00029+0.000257620444610869i | AQ147: 0.003-0.867183105893829i | AR147: 0.00015-1.85261974243911i | AS147: 79.95880682 | AT147: 37.78820579 | AU147: 77.5193795103683-0.00660402681023865i | AV147: 0.0014071858-0.590691537i | AW147: 0.003777798106 | AX147: 1 | AY147: 0 | AZ147: 0.00486836573768545+1.69365564783712i | BA147: 4.576538178 | BB147: 10.1087975215841-1373.36893033517i | BC147: 62.75597965 | BD147: 9905.5976044736-967.011966308029i | BE147: 62.55204112 | BF147: 189.604903700826-1328.06872424638i | BG147: 95.76748653 | BH147: -60792.3909916599-8821.70871238379i | BI147: -89.86350633 | BJ147: -81.8749374 | BK147: -171.7433249 | BO147: 95.76748653 | BP147: FALSE | BQ147: FALSE | BR147: 8.256675134 | BS147: FALSE
B148: 1255.39695453805i | C148: 31 | D148: 0.1998026309 | E148: -7965607.98068821i | F148: 0.00029+0.000263633360452991i | G148: 0.003-0.847404476630056i | H148: 0.00015-1.81036542818696i | I148: 0.00140718222040334-0.577219174626606i | J148: -89.86032092 | K148: 44.86032092 | L148: FALSE | M148: 79.95687109 | N148: 37.78820579 | O148: 77.5193794945675-0.00675816619687016i | P148: 0.0014071856-0.5772191746i | Q148: 4.7731592 | R148: 1 | S148: 0 | T148: 0.00509848176606794+1.73322080374519i | U148: 4.777115444 | V148: 7.92243216550976-1090.5835976559i | W148: 60.75340841 | X148: 9901.18348751051-989.141254702445i | Y148: 60.60153888 | Z148: 122.496475986111-1064.68546687977i | AA148: 93.61658547 | AB148: -47627.1924999472-5593.1753674428i | AC148: -89.86032059 | AD148: -83.43674184 | AE148: -173.3020575 | AI148: 93.61658547 | AJ148: FALSE | AK148: FALSE | AL148: 6.697942513 | AM148: FALSE | AO148: -7965607.98068821i | AP148: 0.00029+0.000263633360452991i | AQ148: 0.003-0.847404476630056i | AR148: 0.00015-1.81036542818696i | AS148: 79.95687109 | AT148: 37.78820579 | AU148: 77.5193794945675-0.00675816619687016i | AV148: 0.0014071856-0.5772191746i | AW148: 0.003956244303 | AX148: 1 | AY148: 0 | AZ148: 0.00509848176606794+1.73322080374519i | BA148: 4.777115444 | BB148: 10.1087975215842-1342.04530807395i | BC148: 62.55558996 | BD148: 9901.18348751051-989.141254702445i | BE148: 62.35517736 | BF148: 181.636830536833-1298.83241571123i | BG148: 95.37022395 | BH148: -58098.036784398-8264.07917921144i | BI148: -89.86032059 | BJ148: -82.0390302 | BK148: -171.9043459 | BO148: 95.37022395 | BP148: FALSE | BQ148: FALSE | BR148: 8.095654149 | BS148: FALSE
B149: 1284.69818584171i | C149: 32 | D149: 0.2044660667 | E149: -7783929.41642412i | F149: 0.00029+0.000269786619026759i | G149: 0.003-0.828076955142835i | H149: 0.00015-1.7690748448869i | I149: 0.00140718216635718-0.56405408939931i | J149: -89.85706081 | K149: 44.85706081 | L149: FALSE | M149: 79.95484487 | N149: 37.78820579 | O149: 77.5193794780198-0.00691590322946122i | P149: 0.0014071853-0.5640540894i | Q149: 4.973557926 | R149: 1 | S149: 0 | T149: 0.00533948509494891+1.77371191961335i | U149: 4.977701048 | V149: 7.92243210079776-1065.70979931115i | W149: 60.55301918 | X149: 9896.56512815685-1011.75587258897i | Y149: 60.40339952 | Z149: 117.378064260173-1040.94150257033i | AA149: 93.21804739 | AB149: -45502.9591695407-5241.86098538997i | AC149: -89.8570605 | AD149: -83.56642142 | AE149: -173.4285936 | AI149: 93.21804739 | AJ149: FALSE | AK149: FALSE | AL149: 6.571406427 | AM149: FALSE | AO149: -7783929.41642412i | AP149: 0.00029+0.000269786619026759i | AQ149: 0.003-0.828076955142835i | AR149: 0.00015-1.7690748448869i | AS149: 79.95484487 | AT149: 37.78820579 | AU149: 77.5193794780198-0.00691590322946122i | AV149: 0.0014071853-0.5640540894i | AW149: 0.004143121424 | AX149: 1 | AY149: 0 | AZ149: 0.00533948509494891+1.77371191961335i | BA149: 4.977701048 | BB149: 10.1087975215841-1311.43611096818i | BC149: 62.35520079 | BD149: 9896.56512815685-1011.75587258897i | BE149: 62.15815781 | BF149: 174.015991516072-1270.19399879049i | BG149: 94.97280567 | BH149: -55521.097638696-7742.47538080516i | BI149: -89.8570605 | BJ149: -82.19906766 | BK149: -172.0612398 | BO149: 94.97280567 | BP149: FALSE | BQ149: FALSE | BR149: 7.938760191 | BS149: FALSE
B150: 1314.68331410147i | C150: 33 | D150: 0.209238348 | E150: -7606394.55353137i | F150: 0.00029+0.000276083495961309i | G150: 0.003-0.809190252608488i | H150: 0.00015-1.72872601188653i | I150: 0.00140718210975868-0.551189273043772i | J150: -89.85372462 | K150: 44.85372462 | L150: FALSE | M150: 79.95272398 | N150: 37.78820579 | O150: 77.5193794606911-0.00707732187782974i | P150: 0.0014071851-0.551189273i | Q150: 5.173956554 | R150: 1 | S150: 0 | T150: 0.00559189181750935+1.81515078695649i | U150: 5.178295382 | V150: 7.92243203302972-1041.40332152142i | W150: 60.3526305 | X150: 9891.73328207733-1034.86496559551i | Y150: 60.20516035 | Z150: 112.485516458378-1017.70354643985i | AA150: 92.81940958 | AB150: -43472.4634443351-4913.31072759925i | AC150: -89.85372431 | AD150: -83.69276941 | AE150: -173.5517247 | AI150: 92.81940958 | AJ150: FALSE | AK150: FALSE | AL150: 6.448275322 | AM150: FALSE | AO150: -7606394.55353137i | AP150: 0.00029+0.000276083495961309i | AQ150: 0.003-0.809190252608488i | AR150: 0.00015-1.72872601188653i | AS150: 79.95272398 | AT150: 37.78820579 | AU150: 77.5193794606911-0.00707732187782974i | AV150: 0.0014071851-0.551189273i | AW150: 0.004338827984 | AX150: 1 | AY150: 0 | AZ150: 0.00559189181750935+1.81515078695649i | BA150: 5.178295382 | BB150: 10.1087975215841-1281.52504450065i | BC150: 62.15481218 | BD150: 9891.73328207733-1034.86496559551i | BE150: 61.96098928 | BF150: 166.727768081114-1242.14427935335i | BG150: 94.57523852 | BH150: -53056.6303689582-7254.57346912909i | BI150: -89.85372431 | BJ150: -82.35512301 | BK150: -172.2140783 | BO150: 94.57523852 | BP150: FALSE | BQ150: FALSE | BR150: 7.785921726 | BS150: FALSE
B151: 1345.36830161741i | C151: 34 | D151: 0.2141220155 | E151: -7432908.883001i | F151: 0.00029+0.000282527343339656i | G151: 0.003-0.790734314869147i | H151: 0.00015-1.68929744986537i | I151: 0.00140718205048732-0.538617877096401i | J151: -89.85031056 | K151: 44.85031056 | L151: FALSE | M151: 79.95050403 | N151: 37.78820579 | O151: 77.519379442544-0.00724250807166684i | P151: 0.001407185-0.5386178771i | Q151: 5.37435508 | R151: 1 | S151: 0 | T151: 0.0058562425872399+1.85755971878879i | U151: 5.378898862 | V151: 7.92243196206133-1017.65122496263i | W151: 60.1522424 | X151: 9886.67830619851-1058.47774267051i | Y151: 60.0068258 | Z151: 107.809077106925-994.96237970578i | AA151: 92.42067651 | AB151: -41531.6566395956-4606.04167186579i | AC151: -89.85031025 | AD151: -83.8158469 | AE151: -173.6715102 | AI151: 92.42067651 | AJ151: FALSE | AK151: FALSE | AL151: 6.328489804 | AM151: FALSE | AO151: -7432908.883001i | AP151: 0.00029+0.000282527343339656i | AQ151: 0.003-0.790734314869147i | AR151: 0.00015-1.68929744986537i | AS151: 79.95050403 | AT151: 37.78820579 | AU151: 77.519379442544-0.00724250807166684i | AV151: 0.001407185-0.5386178771i | AW151: 0.004543781356 | AX151: 1 | AY151: 0 | AZ151: 0.0058562425872399+1.85755971878879i | BA151: 5.378898862 | BB151: 10.1087975215842-1252.29618579737i | BC151: 61.95442414 | BD151: 9886.67830619851-1058.47774267051i | BE151: 61.76367835 | BF151: 159.75811246429-1214.6739936018i | BG151: 94.17752906 | BH151: -50699.8848262717-6798.19704738057i | BI151: -89.85031025 | BJ151: -82.50726812 | BK151: -172.3629314 | BO151: 94.17752906 | BP151: FALSE | BQ151: FALSE | BR151: 7.637068588 | BS151: FALSE
B152: 1376.76948325306i | C152: 35 | D152: 0.2191196688 | E152: -7263380.05137342i | F152: 0.00029+0.000289121591483144i | G152: 0.003-0.772699317080516i | H152: 0.00015-1.65076816940049i | I152: 0.00140718198841687-0.526333209293199i | J152: -89.84681682 | K152: 44.84681682 | L152: FALSE | M152: 79.94818047 | N152: 37.78820579 | O152: 77.5193794235393-0.00741154974628035i | P152: 0.0014071848-0.5263332093i | Q152: 5.574753498 | R152: 1 | S152: 0 | T152: 0.0061331037960005+1.90096156272152i | U152: 5.579511917 | V152: 7.92243188774149-994.440865430327i | W152: 59.95185489 | X152: 9881.39014339786-1082.60346754396i | Y152: 59.80840015 | Z152: 103.339393611117-972.708844435844i | AA152: 92.02185244 | AB152: -39676.6572505543-4318.6667093385i | AC152: -89.84681651 | AD152: -83.93571366 | AE152: -173.7880082 | AI152: 92.02185244 | AJ152: FALSE | AK152: FALSE | AL152: 6.211991834 | AM152: FALSE | AO152: -7263380.05137342i | AP152: 0.00029+0.000289121591483144i | AQ152: 0.003-0.772699317080516i | AR152: 0.00015-1.65076816940049i | AS152: 79.94818047 | AT152: 37.78820579 | AU152: 77.5193794235393-0.00741154974628035i | AV152: 0.0014071848-0.5263332093i | AW152: 0.004758418661 | AX152: 1 | AY152: 0 | AZ152: 0.0061331037960005+1.90096156272152i | BA152: 5.579511917 | BB152: 10.1087975215841-1223.73397515124i | BC152: 61.7540367 | BD152: 9881.39014339786-1082.60346754396i | BE152: 61.5662313 | BF152: 153.093529334864-1187.77382648056i | BG152: 93.77968359 | BH152: -48446.2976382138-6371.30811358047i | BI152: -89.84681651 | BJ152: -82.65557352 | BK152: -172.507868 | BO152: 93.77968359 | BP152: FALSE | BQ152: FALSE | BR152: 7.492131981 | BS152: FALSE
B153: 1408.90357513117i | C153: 36 | D153: 0.2242339683 | E153: -7097717.81157488i | F153: 0.00029+0.000295869750777545i | G153: 0.003-0.75507565848171i | H153: 0.00015-1.61311765979302i | I153: 0.00140718192341512-0.514328730007187i | J153: -89.84324153 | K153: 44.84324153 | L153: FALSE | M153: 79.9457485 | N153: 37.78820579 | O153: 77.5193794036379-0.00758453688940733i | P153: 0.0014071846-0.51432873i | Q153: 5.775151804 | R153: 1 | S153: 0 | T153: 0.00642306880947964+1.9453797144332i | U153: 5.780135002 | V153: 7.9224318099118-971.759887108621i | W153: 59.75146801 | X153: 9875.85830679005-1107.2514493585i | Y153: 59.60988749 | Z153: 99.0675012445716-950.933851526121i | AA153: 91.62294147 | AB153: -37903.7447551868-4049.88851438466i | AC153: -89.84324123 | AD153: -84.05242814 | AE153: -173.9012752 | AI153: 91.62294147 | AJ153: FALSE | AK153: FALSE | AL153: 6.09872478 | AM153: FALSE | AO153: -7097717.81157488i | AP153: 0.00029+0.000295869750777545i | AQ153: 0.003-0.75507565848171i | AR153: 0.00015-1.61311765979302i | AS153: 79.9457485 | AT153: 37.78820579 | AU153: 77.5193794036379-0.00758453688940733i | AV153: 0.0014071846-0.51432873i | AW153: 0.004983197705 | AX153: 1 | AY153: 0 | AZ153: 0.00642306880947964+1.9453797144332i | BA153: 5.780135002 | BB153: 10.1087975215842-1195.82320773893i | BC153: 61.55364989 | BD153: 9875.85830679005-1107.2514493585i | BE153: 61.36865414 | BF153: 146.721057673687-1161.43442873492i | BG153: 93.38170812 | BH153: -46291.4861184793-5971.99858397029i | BI153: -89.84324123 | BJ153: -82.80010837 | BK153: -172.6489555 | BO153: 93.38170812 | BP153: FALSE | BQ153: FALSE | BR153: 7.351044547 | BS153: FALSE
B154: 1441.78768353229i | C154: 37 | D154: 0.2294676367 | E154: -6935833.9748753i | F154: 0.00029+0.00030277541354178i | G154: 0.003-0.737853957284382i | H154: 0.00015-1.57632587814947i | I154: 0.00140718185534367-0.502598048767097i | J154: -89.8395828 | K154: 44.8395828 | L154: FALSE | M154: 79.94320315 | N154: 37.78820579 | O154: 77.5193793827962-0.00776156158911664i | P154: 0.0014071844-0.5025980488i | Q154: 5.975549992 | R154: 1 | S154: 0 | T154: 0.00672675926293639+1.99083813152575i | U154: 5.98076859 | V154: 7.92243172840664-949.596215992753i | W154: 59.55108179 | X154: 9870.07186361971-1132.43103241636i | Y154: 59.41129172 | Z154: 94.984808550809-929.628387937026i | AA154: 91.22394751 | AB154: -36209.3535490989-3798.49381035043i | AC154: -89.83958251 | AD154: -84.16604743 | AE154: -174.0113666 | AI154: 91.22394751 | AJ154: FALSE | AK154: FALSE | AL154: 5.988633364 | AM154: FALSE | AO154: -6935833.9748753i | AP154: 0.00029+0.00030277541354178i | AQ154: 0.003-0.737853957284382i | AR154: 0.00015-1.57632587814947i | AS154: 79.94320315 | AT154: 37.78820579 | AU154: 77.5193793827962-0.00776156158911664i | AV154: 0.0014071844-0.5025980488i | AW154: 0.005218597961 | AX154: 1 | AY154: 0 | AZ154: 0.00672675926293639+1.99083813152575i | BA154: 5.98076859 | BB154: 10.1087975215841-1168.54902552681i | BC154: 61.35326374 | BD154: 9870.07186361971-1132.43103241636i | BE154: 61.17095263 | BF154: 140.628252911678-1135.64643269027i | BG154: 92.98360843 | BH154: -44231.242220092-5598.48221857897i | BI154: -89.83958251 | BJ154: -82.94094047 | BK154: -172.7862597 | BO154: 92.98360843 | BP154: FALSE | BQ154: FALSE | BR154: 7.213740331 | BS154: FALSE
B155: 1475.43931400122i | C155: 38 | D155: 0.2348234601 | E155: -6777642.36394185i | F155: 0.00029+0.000309842255940257i | G155: 0.003-0.721025045678412i | H155: 0.00015-1.54037323871205i | I155: 0.00140718178405753-0.491134920855459i | J155: -89.83583868 | K155: 44.83583868 | L155: FALSE | M155: 79.94053919 | N155: 37.78820579 | O155: 77.5193793609706-0.00794271808283286i | P155: 0.0014071842-0.4911349208i | Q155: 6.175948056 | R155: 1 | S155: 0 | T155: 0.0070448264202603+2.03736134778073i | U155: 6.181413178 | V155: 7.92243164305237-927.938053461544i | W155: 59.35069625 | X155: 9864.01941877259-1158.15158498497i | Y155: 59.21261658 | Z155: 91.0830831601532-908.78352323438i | AA155: 90.82487431 | AB155: -34590.0670370706-3563.34802345574i | AC155: -89.8358384 | AD155: -84.27662735 | AE155: -174.1183363 | AI155: 90.82487431 | AJ155: FALSE | AK155: FALSE | AL155: 5.881663668 | AM155: FALSE | AO155: -6777642.36394185i | AP155: 0.00029+0.000309842255940257i | AQ155: 0.003-0.721025045678412i | AR155: 0.00015-1.54037323871205i | AS155: 79.94053919 | AT155: 37.78820579 | AU155: 77.5193793609706-0.00794271808283286i | AV155: 0.0014071842-0.4911349208i | AW155: 0.005465121596 | AX155: 1 | AY155: 0 | AZ155: 0.0070448264202603+2.03736134778073i | BA155: 6.181413178 | BB155: 10.1087975215841-1141.89690936135i | BC155: 61.15287829 | BD155: 9864.01941877259-1158.15158498497i | BE155: 60.9731323 | BF155: 134.803169363495-1110.40046682412i | BG155: 92.58539003 | BH155: -42261.5265680899-5249.08706304559i | BI155: -89.8358384 | BJ155: -83.07813622 | BK155: -172.9198452 | BO155: 92.58539003 | BP155: FALSE | BQ155: FALSE | BR155: 7.080154793 | BS155: FALSE
B156: 1509.8763806659i | C156: 39 | D156: 0.2403042894 | E156: -6623058.76696323i | F156: 0.00029+0.000317074039939839i | G156: 0.003-0.704579964951515i | H156: 0.00015-1.50524060243244i | I156: 0.0014071817094049-0.479933243984311i | J156: -89.83200717 | K156: 44.83200717 | L156: FALSE | M156: 79.93775117 | N156: 37.78820578 | O156: 77.5193793381139-0.00812810280750115i | P156: 0.001407184-0.479933244i | Q156: 6.376345992 | R156: 1 | S156: 0 | T156: 0.00737795259954567+2.08497448783045i | U156: 6.382069286 | V156: 7.92243155366728-906.773869996539i | W156: 59.15031144 | X156: 9857.68909791977-1184.42248710136i | Y156: 59.01386566 | Z156: 87.3544380231771-888.390415480914i | AA156: 90.42572545 | AB156: -33042.6119715982-3343.39026600767i | AC156: -89.8320069 | AD156: -84.38422236 | AE156: -174.2222369 | AI156: 90.42572545 | AJ156: FALSE | AK156: FALSE | AL156: 5.777763128 | AM156: FALSE | AO156: -6623058.76696323i | AP156: 0.00029+0.000317074039939839i | AQ156: 0.003-0.704579964951515i | AR156: 0.00015-1.50524060243244i | AS156: 79.93775117 | AT156: 37.78820578 | AU156: 77.5193793381139-0.00812810280750115i | AV156: 0.001407184-0.479933244i | AW156: 0.005723294548 | AX156: 1 | AY156: 0 | AZ156: 0.00737795259954567+2.08497448783045i | BA156: 6.382069286 | BB156: 10.1087975215841-1115.85267124002i | BC156: 60.95249356 | BD156: 9857.68909791977-1184.42248710136i | BE156: 60.77519844 | BF156: 129.234342983232-1085.68716919919i | BG156: 92.18705823 | BH156: -40378.4626918912-4922.24833714827i | BI156: -89.8320069 | BJ156: -83.21176068 | BK156: -173.0497752 | BO156: 92.18705823 | BP156: FALSE | BQ156: FALSE | BR156: 6.950224817 | BS156: FALSE
B157: 1545.11721577379i | C157: 40 | D157: 0.2459130425 | E157: -6472000.89282032i | F157: 0.00029+0.000324474615312495i | G157: 0.003-0.68850996072015i | H157: 0.00015-1.47090926678325i | I157: 0.0014071816312268-0.468987055046672i | J157: -89.82808624 | K157: 44.82808624 | L157: FALSE | M157: 79.9348334 | N157: 37.78820578 | O157: 77.5193793141782-0.00831781445092575i | P157: 0.0014071838-0.468987055i | Q157: 6.576743791 | R157: 1 | S157: 0 | T157: 0.0077268526685497+2.13370328225983i | U157: 6.582737459 | V157: 7.92243146006091-886.092399044399i | W157: 58.94992738 | X157: 9851.06853031362-1211.25311731315i | Y157: 58.81504239 | Z157: 83.7913180602289-868.440316520882i | AA157: 90.02650438 | AB157: -31563.8528377172-3137.62861749757i | AC157: -89.82808598 | AD157: -84.48888567 | AE157: -174.3231195 | AI157: 90.02650438 | AJ157: FALSE | AK157: FALSE | AL157: 5.676880525 | AM157: FALSE | AO157: -6472000.89282032i | AP157: 0.00029+0.000324474615312495i | AQ157: 0.003-0.68850996072015i | AR157: 0.00015-1.47090926678325i | AS157: 79.9348334 | AT157: 37.78820578 | AU157: 77.5193793141782-0.00831781445092575i | AV157: 0.0014071838-0.468987055i | AW157: 0.005993667654 | AX157: 1 | AY157: 0 | AZ157: 0.0077268526685497+2.13370328225983i | BA157: 6.582737459 | BB157: 10.1087975215841-1090.40244675841i | BC157: 60.75210959 | BD157: 9851.06853031362-1211.25311731315i | BE157: 60.5771561 | BF157: 123.910774464764-1061.49719982288i | BG157: 91.78861809 | BH157: -38578.3312197708-4616.50172617947i | BI157: -89.82808598 | BJ157: -83.34187749 | BK157: -173.1761113 | BO157: 91.78861809 | BP157: FALSE | BQ157: FALSE | BR157: 6.823888709 | BS157: FALSE
B158: 1581.1805794509i | C158: 41 | D158: 0.2516527051 | E158: -6324388.32727929i | F158: 0.00029+0.00033204792168469i | G158: 0.003-0.672806478269209i | H158: 0.00015-1.43736095580191i | I158: 0.00140718154935673-0.458290526942154i | J158: -89.8240738 | K158: 44.8240738 | L158: FALSE | M158: 79.93177995 | N158: 37.78820578 | O158: 77.5193792891116-0.00851195400430416i | P158: 0.0014071836-0.4582905269i | Q158: 6.777141449 | R158: 1 | S158: 0 | T158: 0.00809227561358316+2.18357408315527i | U158: 6.783418267 | V158: 7.922431362034-865.882631019226i | W158: 58.74954411 | X158: 9844.14483125711-1238.65283829045i | Y158: 58.61615004 | Z158: 80.386487225159-848.924576698156i | AA158: 89.62721438 | AB158: -30150.7865594117-2945.13571320309i | AC158: -89.82407354 | AD158: -84.59066916 | AE158: -174.421034 | AI158: 89.62721438 | AJ158: FALSE | AK158: FALSE | AL158: 5.578965978 | AM158: FALSE | AO158: -6324388.32727929i | AP158: 0.00029+0.00033204792168469i | AQ158: 0.003-0.672806478269209i | AR158: 0.00015-1.43736095580191i | AS158: 79.93177995 | AT158: 37.78820578 | AU158: 77.5193792891116-0.00851195400430416i | AV158: 0.0014071836-0.4582905269i | AW158: 0.006276817831 | AX158: 1 | AY158: 0 | AZ158: 0.00809227561358316+2.18357408315527i | BA158: 6.783418267 | BB158: 10.1087975215841-1065.53268772969i | BC158: 60.55172641 | BD158: 9844.14483125711-1238.65283829045i | BE158: 60.37901013 | BF158: 118.82191270566-1037.82125199639i | BG158: 91.39007447 | BH158: -36857.5643791697-4330.47709365074i | BI158: -89.82407354 | BJ158: -83.46854894 | BK158: -173.2989138 | BO158: 91.39007447 | BP158: FALSE | BQ158: FALSE | BR158: 6.701086201 | BS158: FALSE
B159: 1618.08566968859i | C159: 42 | D159: 0.2575263327 | E159: -6180142.49018383i | F159: 0.00029+0.000339797990634604i | G159: 0.003-0.657461157997998i | H159: 0.00015-1.40457781036164i | I159: 0.00140718146362034-0.44783796547496i | J159: -89.81996771 | K159: 44.81996771 | L159: FALSE | M159: 79.92858459 | N159: 37.78820578 | O159: 77.5193792628616-0.0087106248159907i | P159: 0.0014071835-0.4478379655i | Q159: 6.977538959 | R159: 1 | S159: 0 | T159: 0.00847500618557477+2.23461388011782i | U159: 6.984112308 | V159: 7.92243125937776-846.133807441709i | W159: 58.54916167 | X159: 9836.90458427288-1266.63098124116i | Y159: 58.41719177 | Z159: 77.1330159801213-829.834649046197i | AA159: 89.22785859 | AB159: -28800.5372521871-2765.04460223001i | AC159: -89.81996745 | AD159: -84.68962345 | AE159: -174.5160291 | AI159: 89.22785859 | AJ159: FALSE | AK159: FALSE | AL159: 5.483970943 | AM159: FALSE | AO159: -6180142.49018383i | AP159: 0.00029+0.000339797990634604i | AQ159: 0.003-0.657461157997998i | AR159: 0.00015-1.40457781036164i | AS159: 79.92858459 | AT159: 37.78820578 | AU159: 77.5193792628616-0.0087106248159907i | AV159: 0.0014071835-0.4478379655i | AW159: 0.006573349317 | AX159: 1 | AY159: 0 | AZ159: 0.00847500618557477+2.23461388011782i | BA159: 6.984112308 | BB159: 10.1087975215842-1041.23015497231i | BC159: 60.35134407 | BD159: 9836.90458427288-1266.63098124116i | BE159: 60.18076519 | BF159: 113.957638650077-1014.65006271329i | BG159: 90.99143202 | BH159: -35212.7404729412-4062.89256111744i | BI159: -89.81996745 | BJ159: -83.59183593 | BK159: -173.4182415 | BO159: 90.99143202 | BP159: FALSE | BQ159: FALSE | BR159: 6.58175846 | BS159: FALSE
B160: 1655.85213256337i | C160: 43 | D160: 0.2635370519 | E160: -6039186.59362375i | F160: 0.00029+0.000347728947838308i | G160: 0.003-0.642465830970077i | H160: 0.00015-1.37254237866435i | I160: 0.00140718137383505-0.437623806322629i | J160: -89.81576579 | K160: 44.81576579 | L160: FALSE | M160: 79.92524085 | N160: 37.78820578 | O160: 77.5193792353715-0.00891393264651069i | P160: 0.0014071833-0.4376238063i | Q160: 7.177936313 | R160: 1 | S160: 0 | T160: 0.0088758666272558+2.28685031675894i | U160: 7.184820208 | V160: 7.92243115187353-826.835415211988i | W160: 58.3487801 | X160: 9829.3338230025-1295.19682905882i | Y160: 58.21817057 | Z160: 74.0242691772275-811.162092986074i | AA160: 88.82844004 | AB160: -27510.3511996567-2596.54483755032i | AC160: -89.81576554 | AD160: -84.78579788 | AE160: -174.6081518 | AI160: 88.82844004 | AJ160: FALSE | AK160: FALSE | AL160: 5.39184816 | AM160: FALSE | AO160: -6039186.59362375i | AP160: 0.00029+0.000347728947838308i | AQ160: 0.003-0.642465830970077i | AR160: 0.00015-1.37254237866435i | AS160: 79.92524085 | AT160: 37.78820578 | AU160: 77.5193792353715-0.00891393264651069i | AV160: 0.0014071833-0.4376238063i | AW160: 0.006883894963 | AX160: 1 | AY160: 0 | AZ160: 0.0088758666272558+2.28685031675894i | BA160: 7.184820208 | BB160: 10.1087975215841-1017.48191126231i | BC160: 60.1509626 | BD160: 9829.3338230025-1295.19682905882i | BE160: 59.98242571 | BF160: 109.30824952303-991.974422165361i | BG160: 90.59269518 | BH160: -33640.578556111-3812.54891307102i | BI160: -89.81576554 | BJ160: -83.711798 | BK160: -173.534152 | BO160: 90.59269518 | BP160: FALSE | BQ160: FALSE | BR160: 6.465848037 | BS160: FALSE
B161: 1694.50007269538i | C161: 44 | D161: 0.2696880626 | E161: -5901445.60105764i | F161: 0.00029+0.00035584501526603i | G161: 0.003-0.627812514564606i | H161: 0.00015-1.34123760695026i | I161: 0.00140718127980964-0.42764261207392i | J161: -89.8114658 | K161: 44.8114658 | L161: FALSE | M161: 79.92174196 | N161: 37.78820578 | O161: 77.5193792065836-0.0091219857248632i | P161: 0.0014071831-0.4276426121i | Q161: 7.378333504 | R161: 1 | S161: 0 | T161: 0.00929571848562438+2.34031170769793i | U161: 7.385542622 | V161: 7.92243103929243-807.977181013064i | W161: 58.14839944 | X161: 9821.41801287148-1324.35959812977i | Y161: 58.01908934 | Z161: 71.0538943418201-792.898577566557i | AA161: 88.42896161 | AB161: -26277.5920230142-2438.87887740032i | AC161: -89.81146556 | AD161: -84.87924053 | AE161: -174.6974483 | AI161: 88.42896161 | AJ161: FALSE | AK161: FALSE | AL161: 5.302551711 | AM161: FALSE | AO161: -5901445.60105764i | AP161: 0.00029+0.00035584501526603i | AQ161: 0.003-0.627812514564606i | AR161: 0.00015-1.34123760695026i | AS161: 79.92174196 | AT161: 37.78820578 | AU161: 77.5193792065836-0.0091219857248632i | AV161: 0.0014071831-0.4276426121i | AW161: 0.007209117599 | AX161: 1 | AY161: 0 | AZ161: 0.00929571848562438+2.34031170769793i | BA161: 7.385542622 | BB161: 10.1087975215841-994.275314446246i | BC161: 59.95058204 | BD161: 9821.41801287148-1324.35959812977i | BE161: 59.78399596 | BF161: 104.864443465572-969.785182410377i | BG161: 90.19386824 | BH161: -32137.9332787029-3578.32442235356i | BI161: -89.81146556 | BJ161: -83.8284933 | BK161: -173.6467011 | BO161: 90.19386824 | BP161: FALSE | BQ161: FALSE | BR161: 6.35329894 | BS161: FALSE
B162: 1734.05006395084i | C162: 45 | D162: 0.2759826392 | E162: -5766846.18736792i | F162: 0.00029+0.000364150513429676i | G162: 0.003-0.613493408226875i | H162: 0.00015-1.31064683041956i | I162: 0.00140718118134387-0.417889069334263i | J162: -89.80706545 | K162: 44.80706545 | L162: FALSE | M162: 79.91808085 | N162: 37.78820578 | O162: 77.5193791764363-0.00933489480613436i | P162: 0.0014071829-0.4178890693i | Q162: 7.578730525 | R162: 1 | S162: 0 | T162: 0.00973546451407859+2.3950270560812i | U162: 7.586280237 | V162: 7.92243092139468-789.549065841917i | W162: 57.94801972 | X162: 9813.14203256088-1354.12841872392i | Y162: 57.81995081 | Z162: 68.215810351391-775.035884278645i | AA162: 88.02942607 | AB162: -25099.7359338995-2291.33864249947i | AC162: -89.80706522 | AD162: -84.96999825 | AE162: -174.783963 | AI162: 88.02942607 | AJ162: FALSE | AK162: FALSE | AL162: 5.216036968 | AM162: FALSE | AO162: -5766846.18736792i | AP162: 0.00029+0.000364150513429676i | AQ162: 0.003-0.613493408226875i | AR162: 0.00015-1.31064683041956i | AS162: 79.91808085 | AT162: 37.78820578 | AU162: 77.5193791764363-0.00933489480613436i | AV162: 0.0014071829-0.4178890693i | AW162: 0.007549711452 | AX162: 1 | AY162: 0 | AZ162: 0.00973546451407859+2.3950270560812i | BA162: 7.586280237 | BB162: 10.1087975215841-971.598010711278i | BC162: 59.75020243 | BD162: 9813.14203256088-1354.12841872392i | BE162: 59.58548001 | BF162: 100.617304577912-948.073265254051i | BG162: 89.79495527 | BH162: -30701.7897692715-3359.16990212375i | BI162: -89.80706522 | BJ162: -83.94197864 | BK162: -173.7559434 | BO162: 89.79495527 | BP162: FALSE | BQ162: FALSE | BR162: 6.244056579 | BS162: FALSE
B163: 1774.52316039438i | C163: 46 | D163: 0.2824241326 | E163: -5635316.69982687i | F163: 0.00029+0.00037264986368282i | G163: 0.003-0.599500889315747i | H163: 0.00015-1.28075376436104i | I163: 0.00140718107822806-0.408357985897221i | J163: -89.80256241 | K163: 44.80256241 | L163: FALSE | M163: 79.91425015 | N163: 37.78820578 | O163: 77.5193791448649-0.00955277323045699i | P163: 0.0014071827-0.4083579859i | Q163: 7.779127367 | R163: 1 | S163: 0 | T163: 0.0101960506688521+2.45102607164463i | U163: 7.787033771 | V163: 7.92243079792922-771.541259665334i | W163: 57.747641 | X163: 9804.49015533227-1384.5123138908i | Y163: 57.62075764 | Z163: 65.5041965033731-757.565909474791i | AA163: 87.62983606 | AB163: -23974.3672482598-2153.26233060788i | AC163: -89.80256218 | AD163: -85.05811663 | AE163: -174.8677394 | AI163: 87.62983606 | AJ163: FALSE | AK163: FALSE | AL163: 5.132260587 | AM163: FALSE | AO163: -5635316.69982687i | AP163: 0.00029+0.00037264986368282i | AQ163: 0.003-0.599500889315747i | AR163: 0.00015-1.28075376436104i | AS163: 79.91425015 | AT163: 37.78820578 | AU163: 77.5193791448649-0.00955277323045699i | AV163: 0.0014071827-0.4083579859i | AW163: 0.007906403641 | AX163: 1 | AY163: 0 | AZ163: 0.0101960506688521+2.45102607164463i | BA163: 7.787033771 | BB163: 10.1087975215841-949.437928008782i | BC163: 59.54982383 | BD163: 9804.49015533227-1384.5123138908i | BE163: 59.38688176 | BF163: 96.5582883753091-926.829669396023i | BG163: 89.39596018 | BH163: -29329.2587790159-3154.10411177408i | BI163: -89.80256218 | BJ163: -84.05230944 | BK163: -173.8619322 | BO163: 89.39596018 | BP163: FALSE | BQ163: FALSE | BR163: 6.138067774 | BS163: FALSE
B164: 1815.94090749696i | C164: 47 | D164: 0.2890159718 | E164: -5506787.11995298i | F164: 0.00029+0.000381347590574362i | G164: 0.003-0.585827509045821i | H164: 0.00015-1.25154249548307i | I164: 0.0014071809702426-0.399044287980465i | J164: -89.79795427 | K164: 44.79795427 | L164: FALSE | M164: 79.91024216 | N164: 37.78820578 | O164: 77.5193791118027-0.00977573698334634i | P164: 0.0014071826-0.399044288i | Q164: 7.979524023 | R164: 1 | S164: 0 | T164: 0.0106784682046414+2.50833918934165i | U164: 7.987803978 | V164: 7.92243066863307-753.944176197633i | W164: 57.54726333 | X164: 9795.44603025907-1415.52017678044i | Y164: 57.42151235 | Z164: 62.9134819645043-740.480666421422i | AA164: 87.23019411 | AB164: -22899.173962119-2024.03142376303i | AC164: -89.79795403 | AD164: -85.14364005 | AE164: -174.9488195 | AI164: 87.23019411 | AJ164: FALSE | AK164: FALSE | AL164: 5.05118052 | AM164: FALSE | AO164: -5506787.11995298i | AP164: 0.00029+0.000381347590574362i | AQ164: 0.003-0.585827509045821i | AR164: 0.00015-1.25154249548307i | AS164: 79.91024216 | AT164: 37.78820578 | AU164: 77.5193791118027-0.00977573698334634i | AV164: 0.0014071826-0.399044288i | AW164: 0.008279955742 | AX164: 1 | AY164: 0 | AZ164: 0.0106784682046414+2.50833918934165i | BA164: 7.987803978 | BB164: 10.1087975215841-927.783269627834i | BC164: 59.34944628 | BD164: 9795.44603025907-1415.52017678044i | BE164: 59.18820496 | BF164: 92.6792076594205-906.045476886776i | BG164: 88.99688672 | BH164: -28017.5718484664-2962.20943196859i | BI164: -89.79795403 | BJ164: -84.15953981 | BK164: -173.9647192 | BO164: 88.99688672 | BP164: FALSE | BQ164: FALSE | BR164: 6.035280763 | BS164: FALSE
B165: 1858.32535360542i | C165: 48 | D165: 0.2957616659 | E165: -5381189.02623728i | F165: 0.00029+0.000390248324257138i | G165: 0.003-0.57246598852214i | H165: 0.00015-1.22299747344232i | I165: 0.00140718085715753-0.389943017524795i | J165: -89.79323857 | K165: 44.79323857 | L165: FALSE | M165: 79.90604886 | N165: 37.78820578 | O165: 77.5193790771794-0.0100039047574442i | P165: 0.0014071824-0.3899430175i | Q165: 8.179920482 | R165: 1 | S165: 0 | T165: 0.011183755874588+2.56699758856035i | U165: 8.188591648 | V165: 7.92243053323089-736.748447797477i | W165: 57.34688675 | X165: 9785.99266342419-1447.16074630632i | Y165: 57.22221736 | Z165: 60.4383355938978-723.772287011646i | AA165: 86.83050266 | AB165: -21871.9435545962-1903.06786280493i | AC165: -89.79323835 | AD165: -85.22661167 | AE165: -175.0272441 | AI165: 86.83050266 | AJ165: FALSE | AK165: FALSE | AL165: 4.972755939 | AM165: FALSE | AO165: -5381189.02623728i | AP165: 0.00029+0.000390248324257138i | AQ165: 0.003-0.57246598852214i | AR165: 0.00015-1.22299747344232i | AS165: 79.90604886 | AT165: 37.78820578 | AU165: 77.5193790771794-0.0100039047574442i | AV165: 0.0014071824-0.3899430175i | AW165: 0.008671165425 | AX165: 1 | AY165: 0 | AZ165: 0.011183755874588+2.56699758856035i | BA165: 8.188591648 | BB165: 10.1087975215841-906.622507915388i | BC165: 59.14906982 | BD165: 9785.99266342419-1447.16074630632i | BE165: 58.98945318 | BF165: 88.972218806147-885.711858940601i | BG165: 88.59773848 | BH165: -26764.0767038618-2782.62778026077i | BI165: -89.79323835 | BJ165: -84.26372247 | BK165: -174.0643549 | BO165: 88.59773848 | BP165: FALSE | BQ165: FALSE | BR165: 5.935645142 | BS165: FALSE
B166: 1901.69906167968i | C166: 49 | D166: 0.3026648059 | E166: -5258455.55771979i | F166: 0.00029+0.000399356802952732i | G166: 0.003-0.55940921486534i | H166: 0.00015-1.19510350256567i | I166: 0.00140718073873201-0.381049329554771i | J166: -89.78841283 | K166: 44.78841283 | L166: FALSE | M166: 79.90166186 | N166: 37.78820578 | O166: 77.5193790409208-0.0102373980157027i | P166: 0.0014071822-0.3810493295i | Q166: 8.380316737 | R166: 1 | S166: 0 | T166: 0.0117130022400709+2.62703321295481i | U166: 8.389397605 | V166: 7.92243039143432-719.944920481126i | W166: 57.14651131 | X166: 9776.11239915146-1479.44258106615i | Y166: 57.02287499 | Z166: 58.0736561315972-707.43302316346i | AA166: 86.43076403 | AB166: -20890.5589146348-1789.83145600573i | AC166: -89.78841261 | AD166: -85.30707346 | AE166: -175.1030527 | AI166: 86.43076403 | AJ166: FALSE | AK166: FALSE | AL166: 4.896947318 | AM166: FALSE | AO166: -5258455.55771979i | AP166: 0.00029+0.000399356802952732i | AQ166: 0.003-0.55940921486534i | AR166: 0.00015-1.19510350256567i | AS166: 79.90166186 | AT166: 37.78820578 | AU166: 77.5193790409208-0.0102373980157027i | AV166: 0.0014071822-0.3810493295i | AW166: 0.00908086817 | AX166: 1 | AY166: 0 | AZ166: 0.0117130022400709+2.62703321295481i | BA166: 8.389397605 | BB166: 10.1087975215841-885.944378139631i | BC166: 58.94869451 | BD166: 9776.11239915146-1479.44258106615i | BE166: 58.79062985 | BF166: 85.4298084693084-865.82008114683i | BG166: 88.19851889 | BH166: -25566.2327586954-2614.55684566743i | BI166: -89.78841261 | BJ166: -84.36490884 | BK166: -174.1608881 | BO166: 88.19851889 | BP166: FALSE | BQ166: FALSE | BR166: 5.839111936 | BS166: FALSE
B167: 1946.08512130392i | C167: 50 | D167: 0.3097290667 | E167: -5138521.37839673i | F167: 0.00029+0.000408677875473824i | G167: 0.003-0.546650237425177i | H167: 0.00015-1.16784573376095i | I167: 0.00140718061471385-0.372358489599526i | J167: -89.78347445 | K167: 44.78347445 | L167: FALSE | M167: 79.89707243 | N167: 37.78820578 | O167: 77.5193790029499-0.0104763410560449i | P167: 0.001407182-0.3723584896i | Q167: 8.580712776 | R167: 1 | S167: 0 | T167: 0.0122673480960736+2.68847879091727i | U167: 8.590222715 | V167: 7.9224302429414-703.524649049378i | W167: 56.94613706 | X167: 9765.78690134625-1512.3740314342i | Y167: 56.82348745 | Z167: 55.8145627440051-691.455247927137i | AA167: 86.03098046 | AB167: -19952.9944119857-1683.8173961338i | AC167: -89.78347424 | AD167: -85.38506617 | AE167: -175.1762836 | AI167: 86.03098046 | AJ167: FALSE | AK167: FALSE | AL167: 4.823716361 | AM167: FALSE | AO167: -5138521.37839673i | AP167: 0.00029+0.000408677875473824i | AQ167: 0.003-0.546650237425177i | AR167: 0.00015-1.16784573376095i | AS167: 79.89707243 | AT167: 37.78820578 | AU167: 77.5193790029499-0.0104763410560449i | AV167: 0.001407182-0.3723584896i | AW167: 0.009509939068 | AX167: 1 | AY167: 0 | AZ167: 0.0122673480960736+2.68847879091727i | BA167: 8.590222715 | BB167: 10.1087975215841-865.737872493325i | BC167: 58.74832041 | BD167: 9765.78690134625-1512.3740314342i | BE167: 58.59173825 | BF167: 82.044780698117-846.361508119623i | BG167: 87.79923126 | BH167: -24421.6067517116-2457.24648750978i | BI167: -89.78347424 | BJ167: -84.46314899 | BK167: -174.2543665 | BO167: 87.79923126 | BP167: FALSE | BQ167: FALSE | BR167: 5.745633542 | BS167: FALSE
B168: 1991.50716097815i | C168: 51 | D168: 0.3169582089 | E168: -5021322.64243951i | F168: 0.00029+0.000418216503805411i | G168: 0.003-0.53418226408041i | H168: 0.00015-1.14120965661215i | I168: 0.00140718048483893-0.36386587117242i | J168: -89.77842082 | K168: 44.77842082 | L168: FALSE | M168: 79.89227146 | N168: 37.78820578 | O168: 77.5193789631855-0.0107208610775332i | P168: 0.0014071818-0.3638658712i | Q168: 8.781108591 | R168: 1 | S168: 0 | T168: 0.0128479890182168+2.75136785671844i | U168: 8.791067886 | V168: 7.92243008743592-687.478892325685i | W168: 56.74576408 | X168: 9754.99713502927-1545.96320973801i | Y168: 56.62405689 | Z168: 53.6563859173469-675.831456324148i | AA168: 85.63115407 | AB168: -19057.3121079598-1584.55396366624i | AC168: -89.77842061 | AD168: -85.46062943 | AE168: -175.246974 | AI168: 85.63115407 | AJ168: FALSE | AK168: FALSE | AL168: 4.753026005 | AM168: FALSE | AO168: -5021322.64243951i | AP168: 0.00029+0.000418216503805411i | AQ168: 0.003-0.53418226408041i | AR168: 0.00015-1.14120965661215i | AS168: 79.89227146 | AT168: 37.78820578 | AU168: 77.5193789631855-0.0107208610775332i | AV168: 0.0014071818-0.3638658712i | AW168: 0.009959294706 | AX168: 1 | AY168: 0 | AZ168: 0.0128479890182168+2.75136785671844i | BA168: 8.791067886 | BB168: 10.1087975215841-845.992234233846i | BC168: 58.54794757 | BD168: 9754.99713502927-1545.96320973801i | BE168: 58.39278154 | BF168: 78.8102444651656-827.327607624224i | BG168: 87.39987872 | BH168: -23327.8685173622-2309.9953924655i | BI168: -89.77842061 | BJ168: -84.5584917 | BK168: -174.3448363 | BO168: 87.39987872 | BP168: FALSE | BQ168: FALSE | BR168: 5.655163733 | BS168: FALSE
B169: 2037.98936069655i | C169: 52 | D169: 0.3243560807 | E169: -4906796.96020698i | F169: 0.00029+0.000427977765746275i | G169: 0.003-0.521998657623084i | H169: 0.00015-1.11518109165495i | I169: 0.00140718034883067-0.355566953308173i | J169: -89.77324925 | K169: 44.77324925 | L169: FALSE | M169: 79.88724945 | N169: 37.78820578 | O169: 77.5193789215435-0.0109710882480827i | P169: 0.0014071816-0.3555669533i | Q169: 8.98150417 | R169: 1 | S169: 0 | T169: 0.0134561780379027+2.81573477234624i | U169: 8.991934066 | V169: 7.92242992458666-671.79910850287i | W169: 56.5453924 | X169: 9743.72334815711-1580.21795843138i | Y169: 56.42458532 | Z169: 51.5946586901078-660.554265938505i | AA169: 85.23128693 | AB169: -18201.6581313019-1491.60037337793i | AC169: -89.77324905 | AD169: -85.53380164 | AE169: -175.3151596 | AI169: 85.23128693 | AJ169: FALSE | AK169: FALSE | AL169: 4.684840414 | AM169: FALSE | AO169: -4906796.96020698i | AP169: 0.00029+0.000427977765746275i | AQ169: 0.003-0.521998657623084i | AR169: 0.00015-1.11518109165495i | AS169: 79.88724945 | AT169: 37.78820578 | AU169: 77.5193789215435-0.0109710882480827i | AV169: 0.0014071816-0.3555669533i | AW169: 0.01042989514 | AX169: 1 | AY169: 0 | AZ169: 0.0134561780379027+2.81573477234624i | BA169: 8.991934066 | BB169: 10.1087975215841-826.696951957i | BC169: 58.34757605 | BD169: 9743.72334815711-1580.21795843138i | BE169: 58.19376271 | BF169: 75.719601600585-808.709954215774i | BG169: 87.00046432 | BH169: -22282.7869236503-2172.14793671223i | BI169: -89.77324905 | BJ169: -84.6509844 | BK169: -174.4323424 | BO169: 87.00046432 | BP169: FALSE | BQ169: FALSE | BR169: 5.567657649 | BS169: FALSE
B170: 2085.55646481951i | C170: 53 | D170: 0.3319266205 | E170: -4794883.36503295i | F170: 0.00029+0.000437966857612097i | G170: 0.003-0.510092932225273i | H170: 0.00015-1.08974618282843i | I170: 0.00140718020639942-0.347457318156172i | J170: -89.76795698 | K170: 44.76795698 | L170: FALSE | M170: 79.88199648 | N170: 37.78820578 | O170: 77.5193788779349-0.0112271557737544i | P170: 0.0014071814-0.3474573181i | Q170: 9.181899503 | R170: 1 | S170: 0 | T170: 0.0140932284523845+2.88161475007327i | U170: 9.192822249 | V170: 7.92242975404682-656.476950595975i | W170: 56.3450221 | X170: 9731.9450538327-1615.14581617519i | Y170: 56.22507471 | Z170: 49.6251082152532-645.616417280111i | AA170: 84.83138098 | AB170: -17384.2591762088-1404.54475784604i | AC170: -89.76795678 | AD170: -85.60462009 | AE170: -175.380875 | AI170: 84.83138098 | AJ170: FALSE | AK170: FALSE | AL170: 4.619124963 | AM170: FALSE | AO170: -4794883.36503295i | AP170: 0.00029+0.000437966857612097i | AQ170: 0.003-0.510092932225273i | AR170: 0.00015-1.08974618282843i | AS170: 79.88199648 | AT170: 37.78820578 | AU170: 77.5193788779349-0.0112271557737544i | AV170: 0.0014071814-0.3474573181i | AW170: 0.01092274598 | AX170: 1 | AY170: 0 | AZ170: 0.0140932284523845+2.88161475007327i | BA170: 9.192822249 | BB170: 10.1087975215841-807.841754001366i | BC170: 58.14720591 | BD170: 9731.9450538327-1615.14581617519i | BE170: 57.99468466 | BF170: 72.7665351270632-790.500232424399i | BG170: 86.60099093 | BH170: -21284.2259275052-2043.09124318426i | BI170: -89.76795678 | BJ170: -84.74067327 | BK170: -174.5169282 | BO170: 86.60099093 | BP170: FALSE | BQ170: FALSE | BR170: 5.483071788 | BS170: FALSE
B171: 2134.23379524605i | C171: 54 | D171: 0.3396738582 | E171: -4685522.2807711i | F171: 0.00029+0.000448189097001669i | G171: 0.003-0.49845874998641i | H171: 0.00015-1.06489139009888i | I171: 0.00140718005724186-0.339532648628668i | J171: -89.7625412 | K171: 44.7625412 | L171: FALSE | M171: 79.87650225 | N171: 37.78820578 | O171: 77.5193788322671-0.0114891999696667i | P171: 0.0014071812-0.3395326486i | Q171: 9.382294578 | R171: 1 | S171: 0 | T171: 0.0147605167769759+2.94904387578715i | U171: 9.393733478 | V171: 7.92242957545324-641.504261998827i | W171: 56.14465324 | X171: 9719.64101301962-1650.75398173777i | Y171: 56.02552693 | Z171: 47.743647642934-631.010773938512i | AA171: 84.43143813 | AB171: -16603.4191306573-1323.0022803018i | AC171: -89.762541 | AD171: -85.67312092 | AE171: -175.4441538 | AI171: 84.43143813 | AJ171: FALSE | AK171: FALSE | AL171: 4.555846229 | AM171: FALSE | AO171: -4685522.2807711i | AP171: 0.00029+0.000448189097001669i | AQ171: 0.003-0.49845874998641i | AR171: 0.00015-1.06489139009888i | AS171: 79.87650225 | AT171: 37.78820578 | AU171: 77.5193788322671-0.0114891999696667i | AV171: 0.0014071812-0.3395326486i | AW171: 0.01143890054 | AX171: 1 | AY171: 0 | AZ171: 0.0147605167769759+2.94904387578715i | BA171: 9.393733478 | BB171: 10.1087975215841-789.416602980222i | BC171: 57.94683721 | BD171: 9719.64101301962-1650.75398173777i | BE171: 57.79555014 | BF171: 69.9449979895851-772.690239518552i | BG171: 86.20146134 | BH171: -20330.1407603312-1922.25242368008i | BI171: -89.762541 | BJ171: -84.82760315 | BK171: -174.598636 | BO171: 86.20146134 | BP171: FALSE | BQ171: FALSE | BR171: 5.401363997 | BS171: FALSE
B172: 2184.04726489366i | C172: 55 | D172: 0.3476019182 | E172: -4578655.49008021i | F172: 0.00029+0.000458649925627668i | G172: 0.003-0.487089917559368i | H172: 0.00015-1.04060348225195i | I172: 0.00140717990104036-0.331788726102623i | J172: -89.75699902 | K172: 44.75699902 | L172: FALSE | M172: 79.87075599 | N172: 37.78820578 | O172: 77.5193787844422-0.0117573603325604i | P172: 0.001407181-0.3317887261i | Q172: 9.582689381 | R172: 1 | S172: 0 | T172: 0.0154594858470368+3.01805913311752i | U172: 9.594668844 | V172: 7.92242938842556-626.873072141951i | W172: 55.94428589 | X172: 9706.78921788563-1687.04927562758i | Y172: 55.82594378 | Z172: 45.9463683143498-616.730322544209i | AA172: 84.03146017 | AB172: -15857.5158268729-1246.61336842862i | AC172: -89.75699883 | AD172: -85.73933914 | AE172: -175.505028 | AI172: 84.03146017 | AJ172: FALSE | AK172: FALSE | AL172: 4.494971983 | AM172: FALSE | AO172: -4578655.49008021i | AP172: 0.00029+0.000458649925627668i | AQ172: 0.003-0.487089917559368i | AR172: 0.00015-1.04060348225195i | AS172: 79.87075599 | AT172: 37.78820578 | AU172: 77.5193787844422-0.0117573603325604i | AV172: 0.001407181-0.3317887261i | AW172: 0.01197946212 | AX172: 1 | AY172: 0 | AZ172: 0.0154594858470368+3.01805913311752i | BA172: 9.594668844 | BB172: 10.1087975215841-771.411690438304i | BC172: 57.74647004 | BD172: 9706.78921788563-1687.04927562758i | BE172: 57.59636181 | BF172: 67.2492021731329-755.271887876921i | BG172: 85.80187821 | BH172: -19418.5742361707-1809.0959942319i | BI172: -89.75699883 | BJ172: -84.91181766 | BK172: -174.6775065 | BO172: 85.80187821 | BP172: FALSE | BQ172: FALSE | BR172: 5.322493465 | BS172: FALSE
B173: 2235.02339149285i | C173: 56 | D173: 0.3557150207 | E173: -4474226.10343271i | F173: 0.00029+0.000469354912213497i | G173: 0.003-0.475980382853487i | H173: 0.00015-1.01686952984907i | I173: 0.00140717973746222-0.324221428173949i | J173: -89.7513275 | K173: 44.7513275 | L173: FALSE | M173: 79.8647465 | N173: 37.78820577 | O173: 77.5193787343592-0.01203177961506i | P173: 0.0014071808-0.3242214282i | Q173: 9.783083902 | R173: 1 | S173: 0 | T173: 0.016191648077826+3.08869842839803i | U173: 9.795629489 | V173: 7.92242919256551-612.575592249477i | W173: 55.74392012 | X173: 9693.36687591255-1724.0380993722i | Y173: 55.62632696 | Z173: 44.229532257412-602.768172553592i | AA173: 83.63144884 | AB173: -15144.9979392924-1175.04206367868i | AC173: -89.75132731 | AD173: -85.80330864 | AE173: -175.5635288 | AI173: 83.63144884 | AJ173: FALSE | AK173: FALSE | AL173: 4.436471177 | AM173: FALSE | AO173: -4474226.10343271i | AP173: 0.00029+0.000469354912213497i | AQ173: 0.003-0.475980382853487i | AR173: 0.00015-1.01686952984907i | AS173: 79.8647465 | AT173: 37.78820577 | AU173: 77.5193787343592-0.01203177961506i | AV173: 0.0014071808-0.3242214282i | AW173: 0.01254558641 | AX173: 1 | AY173: 0 | AZ173: 0.016191648077826+3.08869842839803i | BA173: 9.795629489 | BB173: 10.1087975215841-753.817431630313i | BC173: 57.54610445 | BD173: 9693.36687591255-1724.0380993722i | BE173: 57.39712221 | BF173: 64.673608200898-738.237206996997i | BG173: 85.40224409 | BH173: -18547.6532157695-1703.12145641017i | BI173: -89.75132731 | BJ173: -84.9933591 | BK173: -174.7535793 | BO173: 85.40224409 | BP173: FALSE | BQ173: FALSE | BR173: 5.246420712 | BS173: FALSE
B174: 2287.18931170357i | C174: 57 | D174: 0.3640174847 | E174: -4372178.52883009i | F174: 0.00029+0.000480309755457749i | G174: 0.003-0.4651242318128i | H174: 0.00015-0.993676898344661i | I174: 0.00140717956615914-0.316826726463005i | J174: -89.74552362 | K174: 44.74552362 | L174: FALSE | M174: 79.85846212 | N174: 37.78820577 | O174: 77.5193786819108-0.0123126039016651i | P174: 0.0014071806-0.3168267265i | Q174: 9.983478126 | R174: 1 | S174: 0 | T174: 0.0169585888907904+3.1610006165016i | U174: 9.99661661 | V174: 7.92242898745593-598.604211192912i | W174: 55.543556 | X174: 9679.3503949224-1761.72639236052i | Y174: 55.42667815 | Z174: 42.5895649749034-589.117555872613i | AA174: 83.2314058 | AB174: -14464.3819862545-1107.97447588856i | AC174: -89.74552343 | AD174: -85.8650622 | AE174: -175.6196861 | AI174: 83.2314058 | AJ174: FALSE | AK174: FALSE | AL174: 4.380313933 | AM174: FALSE | AO174: -4372178.52883009i | AP174: 0.00029+0.000480309755457749i | AQ174: 0.003-0.4651242318128i | AR174: 0.00015-0.993676898344661i | AS174: 79.85846212 | AT174: 37.78820577 | AU174: 77.5193786819108-0.0123126039016651i | AV174: 0.0014071806-0.3168267265i | AW174: 0.01313848395 | AX174: 1 | AY174: 0 | AZ174: 0.0169585888907904+3.1610006165016i | BA174: 9.99661661 | BB174: 10.1087975215841-736.624460418615i | BC174: 57.34574053 | BD174: 9679.3503949224-1761.72639236052i | BE174: 57.19783377 | BF174: 62.2129150051529-721.578345167222i | BG174: 85.00256142 | BH174: -17715.5851750276-1603.86103013392i | BI174: -89.74552343 | BJ174: -85.07226856 | BK174: -174.8268924 | BO174: 85.00256142 | BP174: FALSE | BQ174: FALSE | BR174: 5.173107579 | BS174: FALSE
B175: 2340.57279556118i | C175: 58 | D175: 0.3725137301 | E175: -4272458.44220897i | F175: 0.00029+0.000491520287067848i | G175: 0.003-0.454515685267747i | H175: 0.00015-0.971013241360196i | I175: 0.00140717938676628-0.309600684470112i | J175: -89.73958428 | K175: 44.73958428 | L175: FALSE | M175: 79.85189068 | N175: 37.78820577 | O175: 77.5193786269851-0.0125999826865177i | P175: 0.0014071803-0.3096006845i | Q175: 10.18387204 | R175: 1 | S175: 0 | T175: 0.0177619703153764+3.23500552759131i | U175: 10.19763146 | V175: 7.92242877266001-584.951491439389i | W175: 55.34319362 | X175: 9664.71536918329-1800.11958616788i | Y175: 55.22699892 | Z175: 41.0230485158661-575.771826333117i | AA175: 82.83133265 | AB175: -13814.2494569304-1045.11733391741i | AC175: -89.73958411 | AD175: -85.92463153 | AE175: -175.6735285 | AI175: 82.83133265 | AJ175: FALSE | AK175: FALSE | AL175: 4.326471519 | AM175: FALSE | AO175: -4272458.44220897i | AP175: 0.00029+0.000491520287067848i | AQ175: 0.003-0.454515685267747i | AR175: 0.00015-0.971013241360196i | AS175: 79.85189068 | AT175: 37.78820577 | AU175: 77.5193786269851-0.0125999826865177i | AV175: 0.0014071803-0.3096006845i | AW175: 0.01375942278 | AX175: 1 | AY175: 0 | AZ175: 0.0177619703153764+3.23500552759131i | BA175: 10.19763146 | BB175: 10.1087975215841-719.823624287217i | BC175: 57.14537834 | BD175: 9664.71536918329-1800.11958616788i | BE175: 56.99849881 | BF175: 59.8620501624605-705.287570827601i | BG175: 84.60283255 | BH175: -16920.6549061472-1510.87752594816i | BI175: -89.73958411 | BJ175: -85.14858584 | BK175: -174.8974828 | BO175: 84.60283255 | BP175: FALSE | BQ175: FALSE | BR175: 5.102517201 | BS175: FALSE
B176: 2395.20226125956i | C176: 59 | D176: 0.3812082796 | E176: -4175012.75852225i | F176: 0.00029+0.000502992474864507i | G176: 0.003-0.444149095858684i | H176: 0.00015-0.948866494111745i | I176: 0.0014071791989016-0.302539455480002i | J176: -89.73350634 | K176: 44.73350634 | L176: FALSE | M176: 79.84501956 | N176: 37.78820577 | O176: 77.5193785694663-0.0128940689529848i | P176: 0.0014071801-0.3025394555i | Q176: 10.38426563 | R176: 1 | S176: 0 | T176: 0.0186035347760055+3.31075399483111i | U176: 10.39867536 | V176: 7.92242854772044-571.610165092378i | W176: 55.14283305 | X176: 9649.43656677222-1839.22255628875i | Y176: 55.02729079 | Z176: 39.5267148210447-562.724459035014i | AA176: 82.43123093 | AB176: -13193.2440479836-986.196652121775i | AC176: -89.73350617 | AD176: -85.98204722 | AE176: -175.7250836 | AI176: 82.43123093 | AJ176: FALSE | AK176: FALSE | AL176: 4.274916407 | AM176: FALSE | AO176: -4175012.75852225i | AP176: 0.00029+0.000502992474864507i | AQ176: 0.003-0.444149095858684i | AR176: 0.00015-0.948866494111745i | AS176: 79.84501956 | AT176: 37.78820577 | AU176: 77.5193785694663-0.0128940689529848i | AV176: 0.0014071801-0.3025394555i | AW176: 0.0144097312 | AX176: 1 | AY176: 0 | AZ176: 0.0186035347760055+3.31075399483111i | BA176: 10.39867536 | BB176: 10.1087975215841-703.405979469552i | BC176: 56.94501798 | BD176: 9649.43656677222-1839.22255628875i | BE176: 56.79911958 | BF176: 57.6161604846175-689.35727364251i | BG176: 84.20305973 | BH176: -16161.2213337823-1423.76237975704i | BI176: -89.73350617 | BJ176: -85.22234955 | BK176: -174.9653859 | BO176: 84.20305973 | BP176: FALSE | BQ176: FALSE | BR176: 5.034614072 | BS176: FALSE
B177: 2451.10679027925i | C177: 60 | D177: 0.3901057617 | E177: -4079789.60347979i | F177: 0.00029+0.000514732425958643i | G177: 0.003-0.434018945029561i | H177: 0.00015-0.927224866987401i | I177: 0.00140717900216504-0.295639280514055i | J177: -89.72728655 | K177: 44.72728655 | L177: FALSE | M177: 79.83783557 | N177: 37.78820577 | O177: 77.5193785092309-0.0131950192550953i | P177: 0.0014071799-0.2956392805i | Q177: 10.58465888 | R177: 1 | S177: 0 | T177: 0.0194851090744323+3.38828788310315i | U177: 10.59974968 | V177: 7.92242831215799-558.573130022697i | W177: 54.94247437 | X177: 9633.48791838706-1879.03957120683i | Y177: 54.82755523 | Z177: 38.0974393333315-549.969049566529i | AA177: 82.03110212 | AB177: -12600.069011423-930.95643931478i | AC177: -89.72728637 | AD177: -86.03733882 | AE177: -175.7743778 | AI177: 82.03110212 | AJ177: FALSE | AK177: FALSE | AL177: 4.225622159 | AM177: FALSE | AO177: -4079789.60347979i | AP177: 0.00029+0.000514732425958643i | AQ177: 0.003-0.434018945029561i | AR177: 0.00015-0.927224866987401i | AS177: 79.83783557 | AT177: 37.78820577 | AU177: 77.5193785092309-0.0131950192550953i | AV177: 0.0014071799-0.2956392805i | AW177: 0.01509080059 | AX177: 1 | AY177: 0 | AZ177: 0.0194851090744323+3.38828788310315i | BA177: 10.59974968 | BB177: 10.1087975215841-687.362786187327i | BC177: 56.74465953 | BD177: 9633.48791838706-1879.03957120683i | BE177: 56.59969823 | BF177: 55.4706029564432-673.779965307668i | BG177: 83.80324512 | BH177: -15435.7144507162-1342.13375910859i | BI177: -89.72728637 | BJ177: -85.29359706 | BK177: -175.0306361 | BO177: 83.80324512 | BP177: FALSE | BQ177: FALSE | BR177: 4.969363924 | BS177: FALSE
B178: 2508.31614286874i | C178: 61 | D178: 0.399210913 | E178: -3986738.28593356i | F178: 0.00029+0.000526746390002435i | G178: 0.003-0.42411984009018i | H178: 0.00015-0.906076839271187i | I178: 0.00140717879613762-0.288896486329238i | J178: -89.7209216 | K178: 44.7209216 | L178: FALSE | M178: 79.83032504 | N178: 37.78820577 | O178: 77.5193784461504-0.0135029938008819i | P178: 0.0014071796-0.2888964863i | Q178: 10.78505177 | R178: 1 | S178: 0 | T178: 0.0204086085783479+3.46765011878198i | U178: 10.80085586 | V178: 7.92242806547116-545.83344608774i | W178: 54.74211769 | X178: 9616.84250781496-1919.57423873963i | Y178: 54.62779364 | Z178: 36.7322348642653-537.49931311386i | AA178: 81.63094764 | AB178: -12033.4846124616-879.157531360497i | AC178: -89.72092144 | AD178: -86.09053482 | AE178: -175.8214365 | AI178: 81.63094764 | AJ178: FALSE | AK178: FALSE | AL178: 4.178563467 | AM178: FALSE | AO178: -3986738.28593356i | AP178: 0.00029+0.000526746390002435i | AQ178: 0.003-0.42411984009018i | AR178: 0.00015-0.906076839271187i | AS178: 79.83032504 | AT178: 37.78820577 | AU178: 77.5193784461504-0.0135029938008819i | AV178: 0.0014071796-0.2888964863i | AW178: 0.01580408852 | AX178: 1 | AY178: 0 | AZ178: 0.0204086085783479+3.46765011878198i | BA178: 10.80085586 | BB178: 10.1087975215841-671.685503997984i | BC178: 56.54430308 | BD178: 9616.84250781496-1919.57423873963i | BE178: 56.4002368 | BF178: 53.420936011339-658.548280112102i | BG178: 83.4033908 | BH178: -14742.6323716349-1265.63483954496i | BI178: -89.72092144 | BJ178: -85.36236451 | BK178: -175.0932662 | BO178: 83.4033908 | BP178: FALSE | BQ178: FALSE | BR178: 4.906733772 | BS178: FALSE
B179: 2566.86077388701i | C179: 62 | D179: 0.4085285804 | E179: -3895809.27089277i | F179: 0.00029+0.000539040762516272i | G179: 0.003-0.414446511345439i | H179: 0.00015-0.885411153010111i | I179: 0.00140717858038058-0.282307483462695i | J179: -89.71440812 | K179: 44.71440812 | L179: FALSE | M179: 79.82247372 | N179: 37.78820577 | O179: 77.5193783800912-0.0138181565376662i | P179: 0.0014071794-0.2823074835i | Q179: 10.98544428 | R179: 1 | S179: 0 | T179: 0.0213760416277538+3.54888472061865i | U179: 11.00199541 | V179: 7.92242780713453-533.384331436991i | W179: 54.54176309 | X179: 9599.47256428071-1960.82944960264i | Y179: 54.42800736 | Z179: 35.4282457078123-525.309083470968i | AA179: 81.23076885 | AB179: -11492.3056836869-830.576498355636i | AC179: -89.71440795 | AD179: -86.14166263 | AE179: -175.8662838 | AI179: 81.23076885 | AJ179: FALSE | AK179: FALSE | AL179: 4.133716206 | AM179: FALSE | AO179: -3895809.27089277i | AP179: 0.00029+0.000539040762516272i | AQ179: 0.003-0.414446511345439i | AR179: 0.00015-0.885411153010111i | AS179: 79.82247372 | AT179: 37.78820577 | AU179: 77.5193783800912-0.0138181565376662i | AV179: 0.0014071794-0.2823074835i | AW179: 0.0165511218 | AX179: 1 | AY179: 0 | AZ179: 0.0213760416277538+3.54888472061865i | BA179: 11.00199541 | BB179: 10.1087975215841-656.365787248305i | BC179: 56.34394872 | BD179: 9599.47256428071-1960.82944960264i | BE179: 56.20073727 | BF179: 51.4629111354227-643.654975274549i | BG179: 83.00349876 | BH179: -14080.5384903276-1193.93218974185i | BI179: -89.71440795 | BJ179: -85.42868687 | BK179: -175.153308 | BO179: 83.00349876 | BP179: FALSE | BQ179: FALSE | BR179: 4.846691964 | BS179: FALSE
B180: 2626.77184901593i | C180: 63 | D180: 0.4180637241 | E180: -3806954.1531543i | F180: 0.00029+0.000551622088293345i | G180: 0.003-0.404993809290065i | H180: 0.00015-0.865216807021107i | I180: 0.00140717835443445-0.275868764320924i | J180: -89.70774262 | K180: 44.70774262 | L180: FALSE | M180: 79.8142668 | N180: 37.78820577 | O180: 77.5193783109126-0.0141406752393331i | P180: 0.0014071791-0.2758687643i | Q180: 11.18583641 | R180: 1 | S180: 0 | T180: 0.0223895141713609+3.63203683179095i | U180: 11.20316991 | V180: 7.92242753659799-521.219158901733i | W180: 54.34141067 | X180: 9581.34945691443-2002.80731814866i | Y180: 54.22819771 | Z180: 34.1827419927871-513.392311959275i | AA180: 80.83056707 | AB180: -10975.3992716234-785.004581673994i | AC180: -89.70774247 | AD180: -86.19074865 | AE180: -175.9089427 | AI180: 80.83056707 | AJ180: FALSE | AK180: FALSE | AL180: 4.091057288 | AM180: FALSE | AO180: -3806954.1531543i | AP180: 0.00029+0.000551622088293345i | AQ180: 0.003-0.404993809290065i | AR180: 0.00015-0.865216807021107i | AS180: 79.8142668 | AT180: 37.78820577 | AU180: 77.5193783109126-0.0141406752393331i | AV180: 0.0014071791-0.2758687643i | AW180: 0.01733349992 | AX180: 1 | AY180: 0 | AZ180: 0.0223895141713609+3.63203683179095i | BA180: 11.20316991 | BB180: 10.1087975215841-641.395480631627i | BC180: 56.14359655 | BD180: 9581.34945691443-2002.80731814866i | BE180: 56.00120154 | BF180: 49.5924647909176-629.092931072377i | BG180: 82.6035709 | BH180: -13448.058737338-1126.71420965571i | BI180: -89.70774247 | BJ180: -85.4925979 | BK180: -175.210792 | BO180: 82.6035709 | BP180: FALSE | BQ180: FALSE | BR180: 4.789208036 | BS180: FALSE
B181: 2688.08126135099i | C181: 64 | D181: 0.4278214202 | E181: -3720125.63153472i | F181: 0.00029+0.000564497064883708i | G181: 0.003-0.395756701867319i | H181: 0.00015-0.845483051034651i | I181: 0.00140717811781805-0.269576901312546i | J181: -89.70092158 | K181: 44.70092158 | L181: FALSE | M181: 79.80568891 | N181: 37.78820577 | O181: 77.519378238467-0.0144707215956447i | P181: 0.0014071788-0.2695769013i | Q181: 11.38622813 | R181: 1 | S181: 0 | T181: 0.0234512346460411+3.71715275318043i | U181: 11.40438103 | V181: 7.9224272532853-509.331452467165i | W181: 54.14106054 | X181: 9562.44369159532-2045.50912024905i | Y181: 54.02836592 | Z181: 32.9931142654791-501.743066266577i | AA181: 80.43034356 | AB181: -10481.6824136268-742.246759284047i | AC181: -89.70092143 | AD181: -86.23781824 | AE181: -175.9494352 | AI181: 80.43034356 | AJ181: FALSE | AK181: FALSE | AL181: 4.050564792 | AM181: FALSE | AO181: -3720125.63153472i | AP181: 0.00029+0.000564497064883708i | AQ181: 0.003-0.395756701867319i | AR181: 0.00015-0.845483051034651i | AS181: 79.80568891 | AT181: 37.78820577 | AU181: 77.519378238467-0.0144707215956447i | AV181: 0.0014071788-0.2695769013i | AW181: 0.01815289842 | AX181: 1 | AY181: 0 | AZ181: 0.0234512346460411+3.71715275318043i | BA181: 11.40438103 | BB181: 10.1087975215841-626.766614846499i | BC181: 55.94324668 | BD181: 9562.44369159532-2045.50912024905i | BE181: 55.80163144 | BF181: 47.8057106494903-614.855150780288i | BG181: 82.20360908 | BH181: -12843.8789841417-1063.68974207636i | BI181: -89.70092143 | BJ181: -85.55413019 | BK181: -175.2657472 | BO181: 82.20360908 | BP181: FALSE | BQ181: FALSE | BR181: 4.73425284 | BS181: FALSE
B182: 2750.82164837929i | C182: 65 | D182: 0.4378068629 | E182: -3635277.48368991i | F182: 0.00029+0.000577672546159651i | G182: 0.003-0.38673027179023i | H182: 0.00015-0.826199379971965i | I182: 0.00140717787002748-0.263428545023658i | J182: =IF(AND(IMREAL(I182)>0,IMAGINARY(I182)>0),ATAN(IMAGINARY(I182)/IMREAL(I182))*180/PI(),IF(AND(IMREAL(I182)>0,IMAGINARY(I182)<0),ATAN(IMAGINARY(I182)/IMREAL(I182))*180/PI(),IF(AND(IMREAL(I182)<0,IMAGINARY(I182)>0),180+ATAN(IMAGINARY(I182)/IMREAL(I182))*180/PI(),IF(AND(IMREAL(I182)<0,IMAGINARY(I182)<0),-180+ATAN(IMAGINARY(I182)/IMREAL(I182))*180/PI(),IF(AND(IMREAL(I182)=0,IMAGINARY(I182)>0),90,IF(AND(IMREAL(I182)=0,IMAGINARY(I182)<0),-90,IF(AND(IMREAL(I182)>0,IMAGINARY(I182)=0),0,IF(AND(IMREAL(I182)=0,IMAGINARY(I182)<0),-180)))))))) -> -89.69394135 | K182: 44.69394135 | L182: =IF($AE$28=K182,D182) -> FALSE | M182: 79.79672405 | N182: 37.78820576 | O182: 77.5193781626002-0.014808471303637i | P182: 0.0014071786-0.263428545i | Q182: 11.58661941 | R182: 1 | S182: 0 | T182: 0.0245635191131887+3.80427997793962i | U182: 11.60563049 | V182: 7.92242695659322-497.714883824946i | W182: 53.9407128 | X182: 9542.72491044491-2088.93522829773i | Y182: 53.82851321 | Z182: 31.8568682942043-490.355529213651i | AA182: 80.03009956 | AB182: -10010.1199550896-702.120828558855i | AC182: -89.69394119 | AD182: -86.28289574 | AE182: -175.9877821 | AI182: 80.03009956 | AJ182: =IF($AD$28=AI182,D182) -> FALSE | AK182: =IF($AD$28=AI182,AE182) -> FALSE | AL182: 4.012217897 | AM182: FALSE | AO182: -3635277.48368991i | AP182: 0.00029+0.000577672546159651i | AQ182: 0.003-0.38673027179023i | AR182: 0.00015-0.826199379971965i | AS182: 79.79672405 | AT182: 37.78820576 | AU182: 77.5193781626002-0.014808471303637i | AV182: 0.0014071786-0.263428545i | AW182: 0.01901107263 | AX182: 1 | AY182: 0 | AZ182: 0.0245635191131887+3.80427997793962i | BA182: 11.60563049 | BB182: 10.1087975215841-612.471402354264i | BC182: 55.74289922 | BD182: 9542.72491044491-2088.93522829773i | BE182: 55.60202871 | BF182: 46.0989321261656-600.934760434525i | BG182: 81.80361505 | BH182: -12266.742486158-1004.58671955847i | BI182: -89.69394119 | BJ182: -85.61331517 | BK182: -175.3182015 | BO182: =ABS(BG182) -> 81.80361505 | BP182: FALSE | BQ182: =IF($AF$28=BO182,BK182) -> FALSE | BR182: =IF(BR181=TRUE,TRUE,IF(AND(BK182<-170,BK182>=-180),180+BK182,IF(ABS(BK182)>180,TRUE))) -> 4.681798475 | BS182: =IF($AI$28=BR182,BG182) -> FALSE
B183: =IMPRODUCT("i",2*PI()*D183*1000) -> 2815.02640935382i | C183: 66 | D183: =0.1*1.02334021219164^(C183-1) -> 0.448025368 | E183: =IMPRODUCT("i",-1/(2*PI()*D183*1000*(10^(-12))*$E$61)) -> -3552364.54150903i | F183: =IMSUM(0.001*$E$14/$D$15,IMPRODUCT("i",2*PI()*D183*$E$13*0.001/$D$15)) -> 0.00029+0.000591155545964302i | G183: =IMSUM($E$37*0.001/$D$35,IMPRODUCT("i",((2*PI()*D183*0.000001*$E$38/$D$35)-(1/(2*PI()*D183*0.001*$E$36*$D$35))))) -> 0.003-0.377909713923926i | H183: =IMSUM($E$46*0.001/$D$44,IMPRODUCT("i",((2*PI()*D183*0.000001*$E$47/$D$44)-(1/(2*PI()*D183*$E$45*0.001*$D$44))))) -> 0.00015-0.807355528352727i | I183: =IMDIV(IMPRODUCT(G183,H183),IMSUM(G183,H183)) -> 0.00140717761053506-0.25742042243481i | J183: -89.68679822 | K183: =IF(J183<-44.5,ABS(J183)-45) -> 44.68679822 | L183: FALSE | M183: =-10*LOG((1/(10^($E$17/20)))^2+(D183/($E$18*1000))^2) -> 79.78735561 | N183: =20*LOG10(IMABS(O183)) -> 37.78820576 | O183: =IMDIV(1,IMPRODUCT($E$25,IMSUM(1,IMDIV(B183,$E$28*$E$29),IMDIV(IMPOWER(B183,2),$E$29^2)))) -> 77.5193780831499-0.0151541041611503i | P183: =COMPLEX(ROUND(IMREAL(IMDIV(1,IMSUM(IMDIV(1,G183),IMDIV(1,H183),IMDIV(1,$P$29)))),10),ROUND(IMAGINARY(IMDIV(1,IMSUM(IMDIV(1,G183),IMDIV(1,H183),IMDIV(1,$P$29)))),10)) -> 0.0014071783-0.2574204224i | Q183: =-20*LOG(IMABS(IMDIV(1, IMSUM(IMDIV(1,G183),IMDIV(1,H183),IMDIV(1,$P$29))))) -> 11.78701025 | R183: =IF($E$59="DNP",IMDIV(E183,IMSUM(E183,1000*$E$58,$E$60*1000)),IMDIV(IMPRODUCT(E183,$E$59*1000),IMSUM(IMPRODUCT(E183,$E$59*1000),IMPRODUCT(IMSUM(E183,$E$59*1000),IMSUM($E$58*1000,$E$60*1000))))) -> 1 | S183: =IF($E$59="DNP",20*LOG(IMABS(IMDIV(E183,IMSUM(E183,$E$58,$E$60)))),20*LOG(IMABS(E183))+20*LOG($E$59*1000)-20*LOG(IMABS(IMSUM((1000*$E$59*($E$58*1000+1000*$E$60)),IMPRODUCT(E183,($E$58*1000+1000*$E$59+1000*$E$60)))))) -> 0 | T183: =IMDIV(1,IMSUM(F183,IMDIV(1,IMSUM(IMDIV(1,G183),IMDIV(1,H183),IMDIV(1,$P$29))))) -> 0.0257287966667434+3.89346722741801i | U183: =-20*LOG(IMABS(IMSUM(F183,IMDIV(1,IMSUM(IMDIV(1,G183),IMDIV(1,H183),IMDIV(1,$P$29)))))) -> 11.80692011 | V183: =IMPRODUCT(($E$66+$E$68)/($E$66*$E$68*$E$70*10^(-9)),IMDIV(IMPRODUCT(IMSUM(1/($E$67*$E$71*10^(-9)),IMPRODUCT("i",2*PI()*D183*1000)),IMSUM(1/(($E$66+$E$68)*$E$72*10^(-9)),IMPRODUCT("i",2*PI()*D183*1000))),IMPRODUCT(IMPRODUCT("i",2*PI()*D183*1000),IMSUM(IMPRODUCT("i",2*PI()*D183*1000),($E$70+$E$71)/($E$67*$E$70*$E$71*10^(-9))),IMSUM(IMPRODUCT("i",2*PI()*D183*1000),1/($E$68*$E$72*10^(-9)))))) -> 7.92242664588986-486.363269004372i | W183: =20*LOG(IMABS(V183)) -> 53.74036756 | X183: =IMDIV(10^($E$17/20),IMSUM(1,IMPRODUCT("i",0.001*D183*10^($E$17/20)/$E$18))) -> 9522.16189426065-2133.08504333439i | Y183: =20*LOG(IMABS(IMDIV(IMPRODUCT(V183,X183),IMSUM(1,X183,V183)))) -> 53.62864072 | Z183: =IMDIV(IMPRODUCT(V183,X183),IMSUM(1,X183,V183)) -> 30.7716200877086-479.223997456526i | AA183: =20*LOG(IMABS(AB183)) -> 79.62983623 | AB183: =IMPRODUCT(R183,Z183,P183,O183) -> -9559.72249816389-664.456552572781i | AC183: =IF(AND(IMREAL(P183)>0,IMAGINARY(P183)>0),-360+ATAN(IMAGINARY(P183)/IMREAL(P183))*180/PI(),IF(AND(IMREAL(P183)>0,IMAGINARY(P183)<0),ATAN(IMAGINARY(P183)/IMREAL(P183))*180/PI(),IF(AND(IMREAL(P183)<0,IMAGINARY(P183)>0),-180+ATAN(IMAGINARY(P183)/IMREAL(P183))*180/PI(),IF(AND(IMREAL(P183)<0,IMAGINARY(P183)<0),-180+ATAN(IMAGINARY(P183)/IMREAL(P183))*180/PI(),IF(AND(IMREAL(P183)=0,IMAGINARY(P183)>0),-270,IF(AND(IMREAL(P183)=0,IMAGINARY(P183)<0),-90,IF(AND(IMREAL(P183)>0,IMAGINARY(P183)=0),0,IF(AND(IMREAL(P183)=0,IMAGINARY(P183)<0),-180)))))))) -> -89.68679806 | AD183: =IF(AND(IMREAL(Z183)>0,IMAGINARY(Z183)>0),ATAN(IMAGINARY(Z183)/IMREAL(Z183))*180/PI(),IF(AND(IMREAL(Z183)>0,IMAGINARY(Z183)<0),ATAN(IMAGINARY(Z183)/IMREAL(Z183))*180/PI(),IF(AND(IMREAL(Z183)<0,IMAGINARY(Z183)>0),180+ATAN(IMAGINARY(Z183)/IMREAL(Z183))*180/PI(),IF(AND(IMREAL(Z183)<0,IMAGINARY(Z183)<0),-180+ATAN(IMAGINARY(Z183)/IMREAL(Z183))*180/PI(),IF(AND(IMREAL(Z183)=0,IMAGINARY(Z183)>0),90,IF(AND(IMREAL(Z183)=0,IMAGINARY(Z183)<0),-90,IF(AND(IMREAL(Z183)>0,IMAGINARY(Z183)=0),0,IF(AND(IMREAL(Z183)=0,IMAGINARY(Z183)<0),-180)))))))) -> -86.32600449 | AE183: =IMARGUMENT(AB183)/PI()*180 -> -176.0240032 | AI183: =ABS(AA183) -> 79.62983623 | AJ183: FALSE | AK183: FALSE | AL183: =IF(AL182=TRUE,TRUE,IF(AND(AE183<-170,AE183>=-180),AE183+180,IF(ABS(AE183)>180,TRUE))) -> 3.97599681 | AM183: =IF($AH$28=AL183,AA183) -> FALSE | AO183: =IMPRODUCT("i",-1/(2*PI()*D183*1000*(10^(-12))*$D$61)) -> -3552364.54150903i | AP183: =IMSUM(0.001*$D$14/$D$15,IMPRODUCT("i",2*PI()*D183*$D$13*0.001/$D$15)) -> 0.00029+0.000591155545964302i | AQ183: =IMSUM($D$37*0.001/$D$35,IMPRODUCT("i",((2*PI()*D183*0.000001*$D$38/$D$35)-(1/(2*PI()*D183*0.001*$D$36*$D$35))))) -> 0.003-0.377909713923926i | AR183: =IMSUM($D$46*0.001/$D$44,IMPRODUCT("i",((2*PI()*D183*0.000001*$D$47/$D$44)-(1/(2*PI()*D183*$D$45*0.001*$D$44))))) -> 0.00015-0.807355528352727i | AS183: =-10*LOG((1/(10^($D$17/20)))^2+(D183/($D$18*1000))^2) -> 79.78735561 | AT183: =20*LOG10(IMABS(AU183)) -> 37.78820576 | AU183: =IMDIV(1,IMPRODUCT($E$25,IMSUM(1,IMDIV(B183,$E$28*$E$29),IMDIV(IMPOWER(B183,2),$E$29^2)))) -> 77.5193780831499-0.0151541041611503i | AV183: =COMPLEX(ROUND(IMREAL(IMDIV(1,IMSUM(IMDIV(1,AQ183),IMDIV(1,AR183),IMDIV(1,$P$29)))),10),ROUND(IMAGINARY(IMDIV(1,IMSUM(IMDIV(1,AQ183),IMDIV(1,AR183),IMDIV(1,$P$29)))),10)) -> 0.0014071783-0.2574204224i | AW183: =-20*LOG(IMABS(IMSUM(1,IMDIV(AP183,AQ183),IMDIV(AP183,AR183),IMDIV(AP183,$O$29)))) -> 0.01990986144 | AX183: =IF($D$59="DNP",IMDIV(AO183,IMSUM(AO183,1000*$D$58,1000*$D$60)),IMDIV(IMPRODUCT(AO183,$D$59*1000),IMSUM(IMPRODUCT(AO183,$D$59*1000),IMPRODUCT(IMSUM(AO183,$D$59*1000),IMSUM($D$58*1000,$D$60*1000))))) -> 1 | AY183: =IF($D$59="DNP",20*LOG(IMABS(IMDIV(AO183,IMSUM(AO183,1000*$D$58,1000*$D$60)))),20*LOG(IMABS(AO183))+20*LOG($D$59*1000)-20*LOG(IMABS(IMSUM((1000*$D$59*(1000*$D$58+1000*$D$60)),IMPRODUCT(AO183,($D$58*1000+1000*$D$59+1000*$D$60)))))) -> 0 | AZ183: =IMDIV(1,IMSUM(AP183,IMDIV(1,IMSUM(IMDIV(1,AQ183),IMDIV(1,AR183),IMDIV(1,$O$29))))) -> 0.0257287966667434+3.89346722741801i | BA183: =-20*LOG(IMABS(IMSUM(AP183,IMDIV(1,IMSUM(IMDIV(1,AQ183),IMDIV(1,AR183),IMDIV(1,$O$29)))))) -> 11.80692011 | BB183: =IMPRODUCT(($D$66+$D$68)/($D$66*$D$68*$D$70*10^(-9)),IMDIV(IMPRODUCT(IMSUM(1/($D$67*$D$71*10^(-9)),IMPRODUCT("i",2*PI()*D183*1000)),IMSUM(1/(($D$66+$D$68)*$D$72*10^(-9)),IMPRODUCT("i",2*PI()*D183*1000))),IMPRODUCT(IMPRODUCT("i",2*PI()*D183*1000),IMSUM(IMPRODUCT("i",2*PI()*D183*1000),($D$70+$D$71)/($D$67*$D$70*$D$71*10^(-9))),IMSUM(IMPRODUCT("i",2*PI()*D183*1000),1/($D$68*$D$72*10^(-9)))))) -> 10.1087975215841-598.502233233453i | BC183: =20*LOG(IMABS(BB183)) -> 55.54255427 | BD183: =IMDIV(10^($D$17/20),IMSUM(1,IMPRODUCT("i",0.001*D183*10^($D$17/20)/$D$18))) -> 9522.16189426065-2133.08504333439i | BE183: =20*LOG(IMABS(IMDIV(IMPRODUCT(BB183,BD183),IMSUM(1,BB183,BD183)))) -> 55.40239502 | BF183: =IMDIV(IMPRODUCT(BB183,BD183),IMSUM(1,BD183,BB183)) -> 44.4685752045253-587.325008437617i | BG183: =20*LOG(IMABS(BH183)) -> 81.40359053 | BH183: =IMPRODUCT(AX183,BF183,AV183,AU183) -> -11715.4474766102-949.150903745676i | BI183: =IF(AND(IMREAL(AV183)>0,IMAGINARY(AV183)>0),-360+ATAN(IMAGINARY(AV183)/IMREAL(AV183))*180/PI(),IF(AND(IMREAL(AV183)>0,IMAGINARY(AV183)<0),ATAN(IMAGINARY(AV183)/IMREAL(AV183))*180/PI(),IF(AND(IMREAL(AV183)<0,IMAGINARY(AV183)>0),-180+ATAN(IMAGINARY(AV183)/IMREAL(AV183))*180/PI(),IF(AND(IMREAL(AV183)<0,IMAGINARY(AV183)<0),-180+ATAN(IMAGINARY(AV183)/IMREAL(AV183))*180/PI(),IF(AND(IMREAL(AV183)=0,IMAGINARY(AV183)>0),-270,IF(AND(IMREAL(AV183)=0,IMAGINARY(AV183)<0),-90,IF(AND(IMREAL(AV183)>0,IMAGINARY(AV183)=0),0,IF(AND(IMREAL(AV183)=0,IMAGINARY(AV183)<0),-180)))))))) -> -89.68679806 | BJ183: =IF(AND(IMREAL(BF183)>0,IMAGINARY(BF183)>0),ATAN(IMAGINARY(BF183)/IMREAL(BF183))*180/PI(),IF(AND(IMREAL(BF183)>0,IMAGINARY(BF183)<0),ATAN(IMAGINARY(BF183)/IMREAL(BF183))*180/PI(),IF(AND(IMREAL(BF183)<0,IMAGINARY(BF183)>0),180+ATAN(IMAGINARY(BF183)/IMREAL(BF183))*180/PI(),IF(AND(IMREAL(BF183)<0,IMAGINARY(BF183)<0),-180+ATAN(IMAGINARY(BF183)/IMREAL(BF183))*180/PI(),IF(AND(IMREAL(BF183)=0,IMAGINARY(BF183)>0),90,IF(AND(IMREAL(BF183)=0,IMAGINARY(BF183)<0),-90,IF(AND(IMREAL(BF183)>0,IMAGINARY(BF183)=0),0,IF(AND(IMREAL(BF183)=0,IMAGINARY(BF183)<0),-180)))))))) -> -85.67018308 | BK183: =IMARGUMENT(BH183)/PI()*180 -> -175.3681818 | BO183: 81.40359053 | BP183: =IF($AF$28=BO183,D183) -> FALSE | BQ183: FALSE | BR183: 4.63181822 | BS183: FALSE
B184: 2880.72972307321i | C184: =C183+1 -> 67 | D184: 0.4584823751 | E184: -3471342.66706973i | F184: 0.00029+0.000604953241845374i | G184: 0.003-0.369290332727663i | H184: 0.00015-0.788941464830351i | I184: 0.00140717733878817-0.25154933517863i | J184: -89.67948839 | K184: 44.67948839 | L184: FALSE | M184: 79.77756636 | N184: 37.78820576 | O184: 77.5193779999482-0.0155078041625442i | P184: 0.001407178-0.2515493352i | Q184: 11.98740062 | R184: 1 | S184: 0 | T184: 0.0269496151285828+3.9847644885191i | U184: 12.00825181 | V184: 7.92242632051351-475.270565080411i | W184: 53.54002495 | X184: 9500.72256819811-2177.95692430136i | Y184: 53.42874958 | Z184: 29.7350911195604-468.342880131827i | AA184: 79.22955473 | AB184: -9129.54441573935-629.094894540538i | AC184: -89.67948824 | AD184: -86.36716681 | AE184: -176.0581171 | AI184: 79.22955473 | AJ184: FALSE | AK184: FALSE | AL184: 3.941882885 | AM184: FALSE | AO184: -3471342.66706973i | AP184: 0.00029+0.000604953241845374i | AQ184: 0.003-0.369290332727663i | AR184: 0.00015-0.788941464830351i | AS184: 79.77756636 | AT184: 37.78820576 | AU184: 77.5193779999482-0.0155078041625442i | AV184: 0.001407178-0.2515493352i | AW184: 0.02085119131 | AX184: 1 | AY184: 0 | AZ184: 0.0269496151285828+3.9847644885191i | BA184: 12.00825181 | BB184: 10.1087975215841-584.851671128702i | BC184: 55.34221196 | BD184: 9500.72256819811-2177.95692430136i | BE184: 55.20273201 | BF184: 42.9112415439352-574.019265017537i | BG184: 81.00353715 | BH184: -11188.8448304722-897.144745587547i | BI184: -89.67948824 | BJ184: -85.72476305 | BK184: -175.4157134 | BO184: 81.00353715 | BP184: FALSE | BQ184: FALSE | BR184: 4.584286645 | BS184: FALSE
B185: 2947.9665660765i | C185: 68 | D185: 0.4691834511 | E185: -3392168.72914172i | F185: 0.00029+0.000619072978876065i | G185: 0.003-0.360867539755198i | H185: 0.00015-0.770947386851885i | I185: 0.00140717705420808-0.245812157837219i | J185: -89.67200798 | K185: 44.67200798 | L185: FALSE | M185: 79.76733842 | N185: 37.78820576 | O185: 77.5193779128173-0.0158697595966428i | P185: 0.0014071777-0.2458121578i | Q185: 12.18779049 | R185: 1 | S185: 0 | T185: 0.0282286470480238+4.07822305256624i | U185: 12.20962758 | V185: 7.92242597977129-464.430866956804i | W185: 53.33968508 | X185: 9478.37401102696-2223.54811446892i | Y185: 53.22884087 | Z185: 28.7451037508349-457.70669745198i | AA185: 78.82925614 | AB185: -8718.68194204243-595.887264823488i | AC185: -89.67200783 | AD185: -86.40640405 | AE185: -176.0901415 | AI185: 78.82925614 | AJ185: FALSE | AK185: FALSE | AL185: 3.909858532 | AM185: FALSE | AO185: -3392168.72914172i | AP185: 0.00029+0.000619072978876065i | AQ185: 0.003-0.360867539755198i | AR185: 0.00015-0.770947386851885i | AS185: 79.76733842 | AT185: 37.78820576 | AU185: 77.5193779128173-0.0158697595966428i | AV185: 0.0014071777-0.2458121578i | AW185: 0.02183708052 | AX185: 1 | AY185: 0 | AZ185: 0.0282286470480238+4.07822305256624i | BA185: 12.20962758 | BB185: 10.1087975215841-571.512449292091i | BC185: 55.14187242 | BD185: 9478.37401102696-2223.54811446892i | BE185: 55.00304122 | BF185: 41.4236818596551-561.011021554267i | BG185: 80.60345649 | BH185: -10685.8358142861-848.346273253264i | BI185: -89.67200783 | BJ185: -85.77708306 | BK185: -175.4608205 | BO185: 80.60345649 | BP185: FALSE | BQ185: FALSE | BR185: 4.539179522 | BS185: FALSE
B186: 3016.77273126259i | C186: 69 | D186: 0.4801342924 | E186: -3314800.58022627i | F186: 0.00029+0.000633522273565143i | G186: 0.003-0.352636851212173i | H186: 0.00015-0.75336371543972i | I186: 0.0014071767561888-0.240205836278352i | J186: -89.66435301 | K186: 44.66435301 | L186: FALSE | M186: 79.75665321 | N186: 37.78820576 | O186: 77.5193778215715-0.01624016314697i | P186: 0.0014071773-0.2402058363i | Q186: 12.38817985 | R186: 1 | S186: 0 | T186: 0.0295686960232793+4.17389555575932i | U186: 12.4110495 | V186: 7.9224256229376-453.838404222542i | W186: 53.13934809 | X186: 9455.0824683032-2269.85466508705i | Y186: 53.02891563 | Z186: 27.7995768436478-447.310079256659i | AA186: 78.42894154 | AB186: -8326.27137616832-564.694834292253i | AC186: -89.66435288 | AD186: -86.44373656 | AE186: -176.1200928 | AI186: 78.42894154 | AJ186: FALSE | AK186: FALSE | AL186: 3.879907207 | AM186: FALSE | AO186: -3314800.58022627i | AP186: 0.00029+0.000633522273565143i | AQ186: 0.003-0.352636851212173i | AR186: 0.00015-0.75336371543972i | AS186: 79.75665321 | AT186: 37.78820576 | AU186: 77.5193778215715-0.01624016314697i | AV186: 0.0014071773-0.2402058363i | AW186: 0.02286964356 | AX186: 1 | AY186: 0 | AZ186: 0.0295686960232793+4.17389555575932i | BA186: 12.4110495 | BB186: 10.1087975215841-558.477466714747i | BC186: 54.94153576 | BD186: 9455.0824683032-2269.85466508705i | BE186: 54.80332416 | BF186: 40.0027895667661-548.293889785901i | BG186: 80.20335007 | BH186: -10205.3699662961-802.548073527464i | BI186: -89.66435288 | BJ186: -85.82716995 | BK186: -175.5035262 | BO186: 80.20335007 | BP186: FALSE | BQ186: FALSE | BR186: 4.496473816 | BS186: FALSE
B187: 3087.18484694421i | C187: 70 | D187: 0.4913407286 | E187: -3239197.03411939i | F187: 0.00029+0.000648308817858284i | G187: 0.003-0.344593885569214i | H187: 0.00015-0.736181090092308i | I187: 0.00140717644409563-0.23472738602965i | J187: -89.65651939 | K187: 44.65651939 | L187: FALSE | M187: 79.74549151 | N187: 37.78820576 | O187: 77.5193777260167-0.016619211994322i | P187: 0.001407177-0.234727386i | Q187: 12.58856867 | R187: 1 | S187: 0 | T187: 0.0309727033639141+4.27183602131112i | U187: 12.61251977 | V187: 7.92242524925239-443.48753808004i | W187: 52.93901411 | X187: 9430.81336981566-2316.87135634735i | Y187: 52.82897487 | Z187: 26.8965215582697-437.147763526338i | AA187: 78.02861195 | AB187: -7951.48730565377-535.387902874011i | AC187: -89.65651926 | AD187: -86.47918372 | AE187: -176.1479865 | AI187: 78.02861195 | AJ187: FALSE | AK187: FALSE | AL187: 3.852013502 | AM187: FALSE | AO187: -3239197.03411939i | AP187: 0.00029+0.000648308817858284i | AQ187: 0.003-0.344593885569214i | AR187: 0.00015-0.736181090092308i | AS187: 79.74549151 | AT187: 37.78820576 | AU187: 77.5193777260167-0.016619211994322i | AV187: 0.001407177-0.234727386i | AW187: 0.02395109576 | AX187: 1 | AY187: 0 | AZ187: 0.0309727033639141+4.27183602131112i | BA187: 12.61251977 | BB187: 10.1087975215841-545.739784346702i | BC187: 54.74120213 | BD187: 9430.81336981566-2316.87135634735i | BE187: 54.60358227 | BF187: 38.6455946790135-535.861600905575i | BG187: 79.80321935 | BH187: -9746.44299378311-759.556351088191i | BI187: -89.65651926 | BJ187: -85.87504946 | BK187: -175.5438522 | BO187: 79.80321935 | BP187: FALSE | BQ187: FALSE | BR187: 4.45614777 | BS187: FALSE
B188: 3159.2403963467i | C188: 71 | D188: 0.5028087255 | E188: -3165317.84398675i | F188: 0.00029+0.000663440483232807i | G188: 0.003-0.336734361229457i | H188: 0.00015-0.719390363801192i | I188: 0.00140717611726394-0.229373890689814i | J188: -89.64850297 | K188: 44.64850297 | L188: FALSE | M188: 79.73383335 | N188: 37.78820575 | O188: 77.519377625949-0.0170071079217343i | P188: 0.0014071766-0.2293738907i | Q188: 12.78895693 | R188: 1 | S188: 0 | T188: 0.0324437551146227+4.37209990335652i | U188: 12.81404068 | V188: 7.92242485791995-433.372758343379i | W188: 52.73868329 | X188: 9405.53135168096-2364.59161576711i | Y188: 52.62901955 | Z188: 26.0340373267815-427.214594863382i | AA188: 77.62826838 | AB188: -7593.54096822882-507.845275929397i | AC188: -89.64850285 | AD188: -86.51276396 | AE188: -176.173837 | AI188: 77.62826838 | AJ188: FALSE | AK188: FALSE | AL188: 3.826162971 | AM188: FALSE | AO188: -3165317.84398675i | AP188: 0.00029+0.000663440483232807i | AQ188: 0.003-0.336734361229457i | AR188: 0.00015-0.719390363801192i | AS188: 79.73383335 | AT188: 37.78820575 | AU188: 77.519377625949-0.0170071079217343i | AV188: 0.0014071766-0.2293738907i | AW188: 0.02508375815 | AX188: 1 | AY188: 0 | AZ188: 0.0324437551146227+4.37209990335652i | BA188: 12.81404068 | BB188: 10.1087975215841-533.292621402951i | BC188: 54.54087168 | BD188: 9405.53135168096-2364.59161576711i | BE188: 54.40381694 | BF188: 37.3492579538039-523.70800455977i | BG188: 79.40306577 | BH188: -9308.0948337047-719.190008580138i | BI188: -89.64850285 | BJ188: -85.9207462 | BK188: -175.5818193 | BO188: 79.40306577 | BP188: FALSE | BQ188: FALSE | BR188: 4.418180729 | BS188: FALSE
B189: 3232.97773756183i | C189: 72 | D189: 0.5145443878 | E189: -3093123.68093866i | F189: 0.00029+0.000678925324887985i | G189: 0.003-0.329054094249286i | H189: 0.00015-0.702982598181676i | I189: 0.00140717577499775-0.224142500376116i | J189: -89.64029948 | K189: 44.64029948 | L189: FALSE | M189: 79.7216581 | N189: 37.78820575 | O189: 77.5193775211555-0.0174040574218996i | P189: 0.0014071763-0.2241425004i | Q189: 12.98934459 | R189: 1 | S189: 0 | T189: 0.0339850894620395+4.47474413273561i | U189: 13.01561465 | V189: 7.92242444810686-423.488680505011i | W189: 52.53835577 | X189: 9379.20028347471-2413.00743414002i | Y189: 52.42905063 | Z189: 25.2103079964366-417.505522945702i | AA189: 77.2279118 | AB189: -7251.67862370547-481.953728347224i | AC189: -89.64029935 | AD189: -86.54449473 | AE189: -176.1976577 | AI189: 77.2279118 | AJ189: FALSE | AK189: FALSE | AL189: 3.802342317 | AM189: FALSE | AO189: -3093123.68093866i | AP189: 0.00029+0.000678925324887985i | AQ189: 0.003-0.329054094249286i | AR189: 0.00015-0.702982598181676i | AS189: 79.7216581 | AT189: 37.78820575 | AU189: 77.5193775211555-0.0174040574218996i | AV189: 0.0014071763-0.2241425004i | AW189: 0.02627006256 | AX189: 1 | AY189: 0 | AZ189: 0.0339850894620395+4.47474413273561i | BA189: 13.01561465 | BB189: 10.1087975215841-521.129351753757i | BC189: 54.34054454 | BD189: 9379.20028347471-2413.00743414002i | BE189: 54.20402951 | BF189: 36.1110652747333-511.827067757742i | BG189: 79.00289068 | BH189: -8889.40771906908-681.279843189636i | BI189: -89.64029935 | BJ189: -85.96428371 | BK189: -175.6174467 | BO189: 79.00289068 | BP189: FALSE | BQ189: FALSE | BR189: 4.382553334 | BS189: FALSE
B190: 3308.43612396737i | C190: 73 | D190: 0.526553963 | E190: -3022576.11309367i | F190: 0.00029+0.000694771586033149i | G190: 0.003-0.321548996111052i | H190: 0.00015-0.686949058714566i | I190: 0.00140717541656816-0.219030430207283i | J190: -89.63190456 | K190: 44.63190456 | L190: FALSE | M190: 79.70894435 | N190: 37.78820575 | O190: 77.5193774114135-0.0178102718070912i | P190: 0.0014071759-0.2190304302i | Q190: 13.18973163 | R190: 1 | S190: 0 | T190: 0.0356001045477947+4.5798271647578i | U190: 13.21724418 | V190: 7.92242401894044-413.830042869367i | W190: 52.33803171 | X190: 9351.78330079981-2462.10927923191i | Y190: 52.22906902 | Z190: 24.4235981361081-408.015600957606i | AA190: 76.82754315 | AB190: -6925.18003712307-457.607453797909i | AC190: -89.63190443 | AD190: -86.57439253 | AE190: -176.2194608 | AI190: 76.82754315 | AJ190: FALSE | AK190: FALSE | AL190: 3.780539193 | AM190: FALSE | AO190: -3022576.11309367i | AP190: 0.00029+0.000694771586033149i | AQ190: 0.003-0.321548996111052i | AR190: 0.00015-0.686949058714566i | AS190: 79.70894435 | AT190: 37.78820575 | AU190: 77.5193774114135-0.0178102718070912i | AV190: 0.0014071759-0.2190304302i | AW190: 0.02751255696 | AX190: 1 | AY190: 0 | AZ190: 0.0356001045477947+4.5798271647578i | BA190: 13.21724418 | BB190: 10.1087975215841-509.243500397306i | BC190: 54.14022088 | BD190: 9351.78330079981-2462.10927923191i | BE190: 54.00422128 | BF190: 34.9284222632417-500.212873701263i | BG190: 78.60269541 | BH190: -8489.50437690017-645.667734720292i | BI190: -89.63190443 | BJ190: -86.00568441 | BK190: -175.6507527 | BO190: 78.60269541 | BP190: FALSE | BQ190: FALSE | BR190: 4.349247308 | BS190: FALSE
B191: 3385.65572512326i | C191: 74 | D191: 0.5388438443 | E191: -2953637.58511977i | F191: 0.00029+0.000710987702275885i | G191: 0.003-0.314215071546581i | H191: 0.00015-0.671281210096428i | I191: 0.00140717504121186-0.214034958820995i | J191: -89.62331373 | K191: 44.62331373 | L191: FALSE | M191: 79.69566996 | N191: 37.78820575 | O191: 77.5193772964888-0.0182259673216529i | P191: 0.0014071755-0.2140349588i | Q191: 13.39011801 | R191: 1 | S191: 0 | T191: 0.0372923667126284+4.68740902906152i | U191: 13.41893193 | V191: 7.92242356950665-404.391703751838i | W191: 52.13771127 | X191: 9323.24284370345-2511.88600743881i | Y191: 52.02907561 | Z191: 23.6722494994053-398.739984002142i | AA191: 76.42716334 | AB191: -6613.35700856321-434.707597460686i | AC191: -89.62331361 | AD191: -86.60247292 | AE191: -176.2392576 | AI191: 76.42716334 | AJ191: FALSE | AK191: FALSE | AL191: 3.760742368 | AM191: FALSE | AO191: -2953637.58511977i | AP191: 0.00029+0.000710987702275885i | AQ191: 0.003-0.314215071546581i | AR191: 0.00015-0.671281210096428i | AS191: 79.69566996 | AT191: 37.78820575 | AU191: 77.5193772964888-0.0182259673216529i | AV191: 0.0014071755-0.2140349588i | AW191: 0.0288139111 | AX191: 1 | AY191: 0 | AZ191: 0.0372923667126284+4.68740902906152i | BA191: 13.41893193 | BB191: 10.1087975215841-497.628740012779i | BC191: 53.93990086 | BD191: 9323.24284370345-2511.88600743881i | BE191: 53.80439351 | BF191: 33.7988491111352-488.859620543081i | BG191: 78.20248124 | BH191: -8107.54627775594-612.2059444031i | BI191: -89.62331361 | BJ191: -86.04496966 | BK191: -175.6817544 | BO191: 78.20248124 | BP191: FALSE | BQ191: FALSE | BR191: 4.318245633 | BS191: FALSE
B192: 3464.67764815548i | C192: 75 | D192: 0.5514205739 | E192: -2886271.39824214i | F192: 0.00029+0.00072758230611265i | G192: 0.003-0.30704841641034i | H192: 0.00015-0.6559707116959i | I192: 0.00140717464812952-0.209153426925193i | J192: -89.61452244 | K192: 44.61452244 | L192: FALSE | M192: 79.68181205 | N192: 37.78820575 | O192: 77.5193771761362-0.0186513652571145i | P192: 0.0014071751-0.2091534269i | Q192: 13.59050372 | R192: 1 | S192: 0 | T192: 0.0390656191981322+4.79755138169221i | U192: 13.62068065 | V192: 7.92242309884842-395.168638741658i | W192: 51.93739463 | X192: 9293.5407013629-2562.32477366554i | Y192: 51.82907126 | Z192: 22.9546776382625-389.673927498859i | AA192: 76.02677328 | AB192: -6315.551963667-413.161784505137i | AC192: -89.61452232 | AD192: -86.62875054 | AE192: -176.2570584 | AI192: 76.02677328 | AJ192: FALSE | AK192: FALSE | AL192: 3.742941625 | AM192: FALSE | AO192: -2886271.39824214i | AP192: 0.00029+0.00072758230611265i | AQ192: 0.003-0.30704841641034i | AR192: 0.00015-0.6559707116959i | AS192: 79.68181205 | AT192: 37.78820575 | AU192: 77.5193771761362-0.0186513652571145i | AV192: 0.0014071751-0.2091534269i | AW192: 0.03017692234 | AX192: 1 | AY192: 0 | AZ192: 0.0390656191981322+4.79755138169221i | BA192: 13.62068065 | BB192: 10.1087975215841-486.278887592096i | BC192: 53.73958466 | BD192: 9293.5407013629-2562.32477366554i | BE192: 53.6045474 | BF192: 32.7199756259419-477.761620082044i | BG192: 77.80224942 | BH192: -7742.73195553336-580.756416551982i | BI192: -89.61452232 | BJ192: -86.08215973 | BK192: -175.7104676 | BO192: 77.80224942 | BP192: FALSE | BQ192: FALSE | BR192: 4.28953244 | BS192: FALSE
B193: 3545.54395963906i | C193: 76 | D193: 0.5642908471 | E193: -2820441.69070689i | F193: 0.00029+0.000744564231524202i | G193: 0.003-0.300045215601094i | H193: 0.00015-0.641009413113638i | I193: 0.00140717423648404-0.204383235882431i | J193: -89.60552601 | K193: 44.60552601 | L193: FALSE | M193: 79.66734694 | N193: 37.78820574 | O193: 77.5193770501008-0.019086692069995i | P193: 0.0014071747-0.2043832359i | Q193: 13.79088872 | R193: 1 | S193: 0 | T193: 0.0409237913345692+4.91031755953012i | U193: 13.82249324 | V193: 7.92242260596343-386.155938027197i | W193: 51.73708196 | X193: 9262.638063466-2613.41093972816i | Y193: 51.62905682 | Z193: 22.2693686609917-380.812785570633i | AA193: 75.62637384 | AB193: -6031.13661163454-392.883695720773i | AC193: -89.60552588 | AD193: -86.65323907 | AE193: -176.2728722 | AI193: 75.62637384 | AJ193: FALSE | AK193: FALSE | AL193: 3.727127781 | AM193: FALSE | AO193: -2820441.69070689i | AP193: 0.00029+0.000744564231524202i | AQ193: 0.003-0.300045215601094i | AR193: 0.00015-0.641009413113638i | AS193: 79.66734694 | AT193: 37.78820574 | AU193: 77.5193770501008-0.019086692069995i | AV193: 0.0014071747-0.2043832359i | AW193: 0.03160452191 | AX193: 1 | AY193: 0 | AZ193: 0.0409237913345692+4.91031755953012i | BA193: 13.82249324 | BB193: 10.1087975215841-475.187901148426i | BC193: 53.53927245 | BD193: 9262.638063466-2613.41093972816i | BE193: 53.40468413 | BF193: 31.6895364812324-466.913296402115i | BG193: 77.40200115 | BH193: -7394.2954056005-551.190145727904i | BI193: -89.60552588 | BJ193: -86.11727382 | BK193: -175.736907 | BO193: 77.40200115 | BP193: FALSE | BQ193: FALSE | BR193: 4.263093029 | BS193: FALSE
B194: 3628.29770799182i | C194: 77 | D194: 0.5774615152 | E194: -2756113.41869043i | F194: 0.00029+0.000761942518678282i | G194: 0.003-0.293201741030979i | H194: 0.00015-0.626389349843525i | I194: 0.00140717380539878-0.199721846326517i | J194: -89.59631964 | K194: 44.59631964 | L194: FALSE | M194: 79.65225019 | N194: 37.78820574 | O194: 77.5193769181129-0.0195321795023522i | P194: 0.0014071742-0.1997218463i | Q194: 13.99127297 | R194: 1 | S194: 0 | T194: 0.0428710082452587+5.02577263720786i | U194: 14.02437275 | V194: 7.92242208980198-377.348803782271i | W194: 51.53677345 | X194: 9230.49557871477-2665.12798163142i | Y194: 51.4290331 | Z194: 21.6148761290068-372.152009422874i | AA194: 75.22596587 | AB194: -5759.51065107366-373.792664544158i | AC194: -89.59631953 | AD194: -86.67595127 | AE194: -176.2867073 | AI194: 75.22596587 | AJ194: FALSE | AK194: FALSE | AL194: 3.713292657 | AM194: FALSE | AO194: -2756113.41869043i | AP194: 0.00029+0.000761942518678282i | AQ194: 0.003-0.293201741030979i | AR194: 0.00015-0.626389349843525i | AS194: 79.65225019 | AT194: 37.78820574 | AU194: 77.5193769181129-0.0195321795023522i | AV194: 0.0014071742-0.1997218463i | AW194: 0.03309978132 | AX194: 1 | AY194: 0 | AZ194: 0.0428710082452587+5.02577263720786i | BA194: 14.02437275 | BB194: 10.1087975215841-464.349876499793i | BC194: 53.33896442 | BD194: 9230.49557871477-2665.12798163142i | BE194: 53.20480484 | BF194: 30.7053666642733-456.309184462109i | BG194: 77.00173761 | BH194: -7061.50453783453-523.38657715812i | BI194: -89.59631953 | BJ194: -86.1503301 | BK194: -175.7610862 | BO194: 77.00173761 | BP194: FALSE | BQ194: FALSE | BR194: 4.238913835 | BS194: FALSE
B195: 3712.98294639079i | C195: 78 | D195: 0.5909395895 | E195: -2693252.33764419i | F195: 0.00029+0.000779726418742066i | G195: 0.003-0.286514349640887i | H195: 0.00015-0.612102739032841i | I195: 0.00140717335395575-0.195166776810698i | J195: -89.58689845 | K195: 44.58689845 | L195: FALSE | M195: 79.63649654 | N195: 37.78820574 | O195: 77.519376779892-0.0199880647051502i | P195: 0.0014071737-0.1951667768i | Q195: 14.19165644 | R195: 1 | S195: 0 | T195: 0.0449116011002327+5.14398348666878i | U195: 14.22632236 | V195: 7.92242154926495-368.742547612069i | W195: 51.33646929 | X195: 9197.07342087911-2717.4573961242i | Y195: 51.2290009 | Z195: 20.9898180866249-363.687145718211i | AA195: 74.8255502 | AB195: -5500.1005501098-355.81331324826i | AC195: -89.58689835 | AD195: -86.696899 | AE195: -176.2985708 | AI195: 74.8255502 | AJ195: FALSE | AK195: FALSE | AL195: 3.701429155 | AM195: FALSE | AO195: -2693252.33764419i | AP195: 0.00029+0.000779726418742066i | AQ195: 0.003-0.286514349640887i | AR195: 0.00015-0.612102739032841i | AS195: 79.63649654 | AT195: 37.78820574 | AU195: 77.519376779892-0.0199880647051502i | AV195: 0.0014071737-0.1951667768i | AW195: 0.03466591924 | AX195: 1 | AY195: 0 | AZ195: 0.0449116011002327+5.14398348666878i | BA195: 14.22632236 | BB195: 10.1087975215841-453.75904412605i | BC195: 53.13866078 | BD195: 9197.07342087911-2717.4573961242i | BE195: 53.00491063 | BF195: 29.7653971135795-445.943928642433i | BG195: 76.60145993 | BH195: -6743.65971707366-497.233062101357i | BI195: -89.58689835 | BJ195: -86.18134565 | BK195: -175.7830175 | BO195: 76.60145993 | BP195: FALSE | BQ195: FALSE | BR195: 4.216982511 | BS195: FALSE
B196: 3799.64475622349i | C196: 79 | D196: 0.6047322449 | E196: -2631824.98406485i | F196: 0.00029+0.000797925398806933i | G196: 0.003-0.279979481461117i | H196: 0.00015-0.598141975339138i | I196: 0.00140717288119354-0.190715602486696i | J196: -89.57725743 | K196: 44.57725743 | L196: FALSE | M196: 79.62005994 | N196: 37.78820574 | O196: 77.5193766351433-0.0204545903645029i | P196: 0.0014071732-0.1907156025i | Q196: 14.39203909 | R196: 1 | S196: 0 | T196: 0.0470501179542487+5.26501883952676i | U196: 14.4283454 | V196: 7.9224209832012-360.332588057324i | W196: 51.1361697 | X196: 9162.33136282204-2770.37860699003i | Y196: 51.02896101 | Z196: 20.392874218535-355.413834949433i | AA196: 74.42512766 | AB196: -5252.35835308865-338.875194447861i | AC196: -89.57725733 | AD196: -86.71609318 | AE196: -176.3084688 | AI196: 74.42512766 | AJ196: FALSE | AK196: FALSE | AL196: 3.691531178 | AM196: FALSE | AO196: -2631824.98406485i | AP196: 0.00029+0.000797925398806933i | AQ196: 0.003-0.279979481461117i | AR196: 0.00015-0.598141975339138i | AS196: 79.62005994 | AT196: 37.78820574 | AU196: 77.5193766351433-0.0204545903645029i | AV196: 0.0014071732-0.1907156025i | AW196: 0.03630630859 | AX196: 1 | AY196: 0 | AZ196: 0.0470501179542487+5.26501883952676i | BA196: 14.4283454 | BB196: 10.1087975215841-443.409766097524i | BC196: 52.93836171 | BD196: 9162.33136282204-2770.37860699003i | BE196: 52.80500258 | BF196: 28.8676505391137-435.812281254627i | BG196: 76.20116923 | BH196: -6440.09233317853-472.624325706745i | BI196: -89.57725733 | BJ196: -86.21033653 | BK196: -175.8027122 | BO196: 76.20116923 | BP196: FALSE | BQ196: FALSE | BR196: 4.197287834 | BS196: FALSE
B197: 3888.3292710866i | C197: 80 | D197: 0.6188468239 | E197: -2571798.65768042i | F197: 0.00029+0.000816549146928186i | G197: 0.003-0.27359365771626i | H197: 0.00015-0.584499626881606i | I197: 0.00140717238610542-0.186365953813854i | J197: -89.56739144 | K197: 44.56739144 | L197: FALSE | M197: 79.60291355 | N197: 37.78820573 | O197: 77.5193764835593-0.0209320048308662i | P197: 0.0014071727-0.1863659538i | Q197: 14.59242088 | R197: 1 | S197: 0 | T197: 0.0492913352068629+5.38894935240066i | U197: 14.63044537 | V197: 7.92242039040519-352.11444815542i | W197: 50.93587489 | X197: 9126.2288589071-2823.86887158774i | Y197: 50.82891419 | Z197: 19.8227831297317-347.327809813274i | AA197: 74.02469904 | AB197: -5015.76055730513-322.912468715244i | AC197: -89.56739134 | AD197: -86.73354384 | AE197: -176.3164064 | AI197: 74.02469904 | AJ197: FALSE | AK197: FALSE | AL197: 3.683593648 | AM197: FALSE | AO197: -2571798.65768042i | AP197: 0.00029+0.000816549146928186i | AQ197: 0.003-0.27359365771626i | AR197: 0.00015-0.584499626881606i | AS197: 79.60291355 | AT197: 37.78820573 | AU197: 77.5193764835593-0.0209320048308662i | AV197: 0.0014071727-0.1863659538i | AW197: 0.0380244841 | AX197: 1 | AY197: 0 | AZ197: 0.0492913352068629+5.38894935240066i | BA197: 14.63044537 | BB197: 10.1087975215841-433.296533073718i | BC197: 52.73806745 | BD197: 9126.2288589071-2823.86887158774i | BE197: 52.60508173 | BF197: 28.0102374181532-425.909101019086i | BG197: 75.80086658 | BH197: -6150.16345389249-449.461985281577i | BI197: -89.56739134 | BJ197: -86.23731775 | BK197: -175.8201803 | BO197: 75.80086658 | BP197: FALSE | BQ197: FALSE | BR197: 4.179819736 | BS197: FALSE
B198: 3979.08370134473i | C198: 81 | D198: 0.63329084 | E198: -2513141.40404247i | F198: 0.00029+0.000835607577282393i | G198: 0.003-0.267353478973306i | H198: 0.00015-0.571168431284779i | I198: 0.00140717186763705-0.182115515297737i | J198: -89.55729524 | K198: 44.55729524 | L198: FALSE | M198: 79.5850297 | N198: 37.78820573 | O198: 77.5193763248161-0.0214205622512428i | P198: 0.0014071722-0.1821155153i | Q198: 14.79280178 | R198: 1 | S198: 0 | T198: 0.0516402697250654+5.51584767540844i | U198: 14.83262593 | V198: 7.92241976961455-344.083753057124i | W198: 50.73558507 | X198: 9088.72513618224-2877.90318821733i | Y198: 50.6288612 | Z198: 19.2783397428831-339.424893587393i | AA198: 73.62426515 | AB198: -4789.80703712893-307.863600575511i | AC198: -89.55729514 | AD198: -86.74926008 | AE198: -176.3223875 | AI198: 73.62426515 | AJ198: FALSE | AK198: FALSE | AL198: 3.677612513 | AM198: FALSE | AO198: -2513141.40404247i | AP198: 0.00029+0.000835607577282393i | AQ198: 0.003-0.267353478973306i | AR198: 0.00015-0.571168431284779i | AS198: 79.5850297 | AT198: 37.78820573 | AU198: 77.5193763248161-0.0214205622512428i | AV198: 0.0014071722-0.1821155153i | AW198: 0.03982415014 | AX198: 1 | AY198: 0 | AZ198: 0.0516402697250654+5.51584767540844i | BA198: 14.83262593 | BB198: 10.1087975215841-423.413961370466i | BC198: 52.53777822 | BD198: 9088.72513618224-2877.90318821733i | BE198: 52.40514909 | BF198: 27.1913521599761-416.229351515958i | BG198: 75.40055305 | BH198: -5873.26253318499-427.654096609614i | BI198: -89.55729514 | BJ198: -86.26230329 | BK198: -175.8354307 | BO198: 75.40055305 | BP198: FALSE | BQ198: FALSE | BR198: 4.164569296 | BS198: FALSE
B199: 4071.95635926241i | C199: 82 | D199: 0.6480719826 | E199: -2455821.99751556i | F199: 0.00029+0.000855110835445106i | G199: 0.003-0.261255623331986i | H199: 0.00015-0.558141291812482i | I199: 0.00140717132468434-0.177962024257503i | J199: -89.54696347 | K199: 44.54696347 | L199: FALSE | M199: 79.56637988 | N199: 37.78820573 | O199: 77.519376158577-0.0219205227044781i | P199: 0.0014071716-0.1779620243i | Q199: 14.99318173 | R199: 1 | S199: 0 | T199: 0.0541021916720547+5.64578852401988i | U199: 15.03489092 | V199: 7.92241911950722-336.236227697675i | W199: 50.5353005 | X199: 9049.77929471195-2932.45420494888i | Y199: 50.42880277 | Z199: 18.7583928083024-331.70099851269i | AA199: 73.22382676 | AB199: -4574.02000339942-293.671071359193i | AC199: -89.54696338 | AD199: -86.76325011 | AE199: -176.3264153 | AI199: 73.22382676 | AJ199: FALSE | AK199: FALSE | AL199: 3.673584704 | AM199: FALSE | AO199: -2455821.99751556i | AP199: 0.00029+0.000855110835445106i | AQ199: 0.003-0.261255623331986i | AR199: 0.00015-0.558141291812482i | AS199: 79.56637988 | AT199: 37.78820573 | AU199: 77.519376158577-0.0219205227044781i | AV199: 0.0014071716-0.1779620243i | AW199: 0.04170918905 | AX199: 1 | AY199: 0 | AZ199: 0.0541021916720547+5.64578852401988i | BA199: 15.03489092 | BB199: 10.1087975215841-413.75679009398i | BC199: 52.33749425 | BD199: 9049.77929471195-2932.45420494888i | BE199: 52.20520567 | BF199: 26.4092694328119-406.768099613784i | BG199: 75.00022967 | BH199: -5608.80616042946-407.114726008402i | BI199: -89.54696338 | BJ199: -86.28530611 | BK199: -175.8484713 | BO199: 75.00022967 | BP199: FALSE | BQ199: FALSE | BR199: 4.151528705 | BS199: FALSE
B200: 4166.99668472269i | C200: 83 | D200: 0.6631981202 | E200: -2399809.92465452i | F200: 0.00029+0.000875069303791765i | G200: 0.003-0.255296844656394i | H200: 0.00015-0.545411273589949i | I200: 0.00140717075609107-0.173903269621379i | J200: -89.53639063 | K200: 44.53639063 | L200: FALSE | M200: 79.54693479 | N200: 37.78820573 | O200: 77.5193759844867-0.0224321523397059i | P200: 0.0014071711-0.1739032696i | Q200: 15.19356071 | R200: 1 | S200: 0 | T200: 0.056682638089048+5.77884875448112i | U200: 15.23724437 | V200: 7.92241843869876-328.567694520993i | W200: 50.33502141 | X200: 9009.35041739978-2987.49213061661i | Y200: 50.22873963 | Z200: 18.2618425218531-324.152124182918i | AA200: 72.82338464 | AB200: -4367.94301469129-280.281124188008i | AC200: -89.53639051 | AD200: -86.77552126 | AE200: -176.3284917 | AI200: 72.82338464 | AJ200: FALSE | AK200: FALSE | AL200: 3.67150827 | AM200: FALSE | AO200: -2399809.92465452i | AP200: 0.00029+0.000875069303791765i | AQ200: 0.003-0.255296844656394i | AR200: 0.00015-0.545411273589949i | AS200: 79.54693479 | AT200: 37.78820573 | AU200: 77.5193759844867-0.0224321523397059i | AV200: 0.0014071711-0.1739032696i | AW200: 0.04368366981 | AX200: 1 | AY200: 0 | AZ200: 0.056682638089048+5.77884875448112i | BA200: 15.23724437 | BB200: 10.1087975215841-404.319878340259i | BC200: 52.1372158 | BD200: 9009.35041739978-2987.49213061661i | BE200: 52.00525243 | BF200: 25.6623406466419-397.520513880136i | BG200: 74.59989745 | BH200: -5356.23687082603-387.763566746056i | BI200: -89.53639051 | BJ200: -86.30633814 | BK200: -175.8593086 | BO200: 74.59989745 | BP200: FALSE | BQ200: FALSE | BR200: 4.140691395 | BS200: FALSE
B201: 4264.25527154598i | C201: 84 | D201: 0.6786773051 | E201: -2345075.36796093i | F201: 0.00029+0.000895493607024656i | G201: 0.003-0.249473970846931i | H201: 0.00015-0.532971599912107i | I201: 0.00140717016064638-0.169937090749625i | J201: -89.52557109 | K201: 44.52557109 | L201: FALSE | M201: 79.5266643 | N201: 37.78820572 | O201: 77.5193758021752-0.0229557235180335i | P201: 0.0014071704-0.1699370907i | Q201: 15.39393865 | R201: 1 | S201: 0 | T201: 0.0593874272806641+5.91510744304045i | U201: 15.4396905 | V201: 7.92241772573929-321.074071255794i | W201: 50.13474806 | X201: 8967.39768960633-3042.98464874642i | Y201: 50.02867249 | Z201: 17.7876382463062-316.774355943339i | AA201: 72.42293956 | AB201: -4171.14004236037-267.643496142575i | AC201: -89.52557101 | AD201: -86.78607994 | AE201: -176.3286179 | AI201: 72.42293956 | AJ201: FALSE | AK201: FALSE | AL201: 3.671382115 | AM201: 72.42293956 | AO201: -2345075.36796093i | AP201: 0.00029+0.000895493607024656i | AQ201: 0.003-0.249473970846931i | AR201: 0.00015-0.532971599912107i | AS201: 79.5266643 | AT201: 37.78820572 | AU201: 77.5193758021752-0.0229557235180335i | AV201: 0.0014071704-0.1699370907i | AW201: 0.04575185719 | AX201: 1 | AY201: 0 | AZ201: 0.0593874272806641+5.91510744304045i | BA201: 15.4396905 | BB201: 10.1087975215841-395.098202458385i | BC201: 51.93694312 | BD201: 8967.39768960633-3042.98464874642i | BE201: 51.80529031 | BF201: 24.948990585685-388.481862978153i | BG201: 74.19955738 | BH201: -5115.02202005763-369.525544391411i | BI201: -89.52557101 | BJ201: -86.32541029 | BK201: -175.8679482 | BO201: 74.19955738 | BP201: FALSE | BQ201: FALSE | BR201: 4.132051772 | BS201: FALSE
B202: 4363.78389442318i | C202: 85 | D202: 0.6945177774 | E202: -2291589.19001002i | F202: 0.00029+0.000916394617828868i | G202: 0.003-0.243783902151672i | H202: 0.00015-0.52081564863606i | I202: 0.00140716953708226-0.166061376284335i | J202: -89.51449911 | K202: 44.51449911 | L202: FALSE | M202: 79.50553747 | N202: 37.78820572 | O202: 77.5193756112535-0.0234915149575281i | P202: 0.0014071698-0.1660613763i | Q202: 15.59431551 | R202: 1 | S202: 0 | T202: 0.0622226740583261+6.05464596922117i | U202: 15.64223373 | V202: 7.9224169791106-313.751368742437i | W202: 49.93448073 | X202: 8923.88052882223-3098.89683525118i | Y202: 49.82860207 | Z202: 17.3347763318302-309.563863300081i | AA202: 72.02249228 | AB202: -3983.19455528753-255.711214096122i | AC202: -89.51449902 | AD202: -86.79493168 | AE202: -176.3267936 | AI202: 72.02249228 | AJ202: FALSE | AK202: FALSE | AL202: 3.673206358 | AM202: FALSE | AO202: -2291589.19001002i | AP202: 0.00029+0.000916394617828868i | AQ202: 0.003-0.243783902151672i | AR202: 0.00015-0.52081564863606i | AS202: 79.50553747 | AT202: 37.78820572 | AU202: 77.5193756112535-0.0234915149575281i | AV202: 0.0014071698-0.1660613763i | AW202: 0.04791822133 | AX202: 1 | AY202: 0 | AZ202: 0.0622226740583261+6.05464596922117i | BA202: 15.64223373 | BB202: 10.1087975215841-386.086853376222i | BC202: 51.73667649 | BD202: 8923.88052882223-3098.89683525118i | BE202: 51.60532026 | BF202: 24.2677141845943-379.647514052557i | BG202: 73.79921047 | BH202: -4884.65268075119-352.330504323366i | BI202: -89.51449902 | BJ202: -86.34253245 | BK202: -175.8743944 | BO202: 73.79921047 | BP202: FALSE | BQ202: FALSE | BR202: 4.125605583 | BS202: FALSE
B203: 4465.63553647748i | C203: 86 | D203: 0.7107279697 | E203: -2239322.91793971i | F203: 0.00029+0.00093778346266027i | G203: 0.003-0.238223609516243i | H203: 0.00015-0.508936948655857i | I203: 0.00140716888407083-0.162274063025471i | J203: -89.5031688 | K203: 44.5031688 | L203: FALSE | M203: 79.48352254 | N203: 37.78820571 | O203: 77.5193754113162-0.0240398118815906i | P203: 0.0014071691-0.162274063i | Q203: 15.79469124 | R203: 1 | S203: 0 | T203: 0.065194805900467+6.19754810340646i | U203: 15.84487868 | V203: 7.9224161972226-306.595688809328i | W203: 49.7342197 | X203: 8878.75872460147-3155.19108079494i | Y203: 49.62852907 | Z203: 16.9022980314575-302.516898341609i | AA203: 71.62204354 | AB203: -3803.70865241393-244.440350860904i | AC203: -89.50316872 | AD203: -86.8020811 | AE203: -176.323018 | AI203: 71.62204354 | AJ203: FALSE | AK203: FALSE | AL203: 3.676981973 | AM203: FALSE | AO203: -2239322.91793971i | AP203: 0.00029+0.00093778346266027i | AQ203: 0.003-0.238223609516243i | AR203: 0.00015-0.508936948655857i | AS203: 79.48352254 | AT203: 37.78820571 | AU203: 77.5193754113162-0.0240398118815906i | AV203: 0.0014071691-0.162274063i | AW203: 0.05018744786 | AX203: 1 | AY203: 0 | AZ203: 0.065194805900467+6.19754810340646i | BA203: 15.84487868 | BB203: 10.1087975215841-377.281033987124i | BC203: 51.53641619 | BD203: 8878.75872460147-3155.19108079494i | BE203: 51.40534317 | BF203: 23.6170734425952-371.01293110846i | BG203: 73.39885765 | BH203: -4664.64259640759-336.112854637452i | BI203: -89.50316872 | BJ203: -86.35771353 | BK203: -175.8786505 | BO203: 73.39885765 | BP203: FALSE | BQ203: FALSE | BR203: 4.121349542 | BS203: FALSE
B204: 4569.86441746939i | C204: 87 | D204: 0.7273165113 | E204: -2188248.72829326i | F204: 0.00029+0.000959671527668572i | G204: 0.003-0.232790132971329i | H204: 0.00015-0.497329176457659i | I204: 0.0014071682002215-0.158573134832549i | J204: -89.49157414 | K204: 44.49157414 | L204: FALSE | M204: 79.46058696 | N204: 37.78820571 | O204: 77.5193752019363-0.024600906170789i | P204: 0.0014071685-0.1585731348i | Q204: 15.99506578 | R204: 1 | S204: 0 | T204: 0.0683105800929865+6.34390009902092i | U204: 16.04763023 | V204: 7.92241537841029-299.603222197771i | W204: 49.53396527 | X204: 8831.99258889656-3211.82701879193i | Y204: 49.42845418 | Z204: 16.4892875075386-295.62979417363i | AA204: 71.2215941 | AB204: -3632.30224856353-233.7898461185i | AC204: -89.49157403 | AD204: -86.80753197 | AE204: -176.3172889 | AI204: 71.2215941 | AJ204: FALSE | AK204: FALSE | AL204: 3.682711087 | AM204: FALSE | AO204: -2188248.72829326i | AP204: 0.00029+0.000959671527668572i | AQ204: 0.003-0.232790132971329i | AR204: 0.00015-0.497329176457659i | AS204: 79.46058696 | AT204: 37.78820571 | AU204: 77.5193752019363-0.024600906170789i | AV204: 0.0014071685-0.1585731348i | AW204: 0.05256444848 | AX204: 1 | AY204: 0 | AZ204: 0.0683105800929865+6.34390009902092i | BA204: 16.04763023 | BB204: 10.1087975215841-368.676056596235i | BC204: 51.33616252 | BD204: 8831.99258889656-3211.82701879193i | BE204: 51.20535997 | BF204: 22.9956944699859-362.573673385995i | BG204: 72.99849989 | BH204: -4454.52719864042-320.811292429835i | BI204: -89.49157403 | BJ204: -86.37096142 | BK204: -175.8807184 | BO204: 72.99849989 | BP204: FALSE | BQ204: FALSE | BR204: 4.119281641 | BS204: 72.99849989
B205: 4676.52602266015i | C205: 88 | D205: 0.744292233 | E205: -2138339.43220778i | F205: 0.00029+0.000982070464758632i | G205: 0.003-0.227480580056965i | H205: 0.00015-0.485986152753471i | I205: 0.00140716748407798-0.154956621551353i | J205: -89.47970896 | K205: 44.47970896 | L205: FALSE | M205: 79.43669738 | N205: 37.78820571 | O205: 77.5193749826682-0.0251750965182399i | P205: 0.0014071677-0.1549566215i | Q205: 16.19543909 | R205: 1 | S205: 0 | T205: 0.0715771019185133+6.49379078961451i | U205: 16.25049346 | V205: 7.92241452092991-292.770246534133i | W205: 49.33371774 | X205: 8783.54311686329-3268.76146006962i | Y205: 49.22837809 | Z205: 16.0948699253417-288.898963368616i | AA205: 70.82114471 | AB205: -3468.61227172573-223.721295970958i | AC205: -89.47970888 | AD205: -86.81128714 | AE205: -176.3096033 | AI205: 70.82114471 | AJ205: FALSE | AK205: FALSE | AL205: 3.690396674 | AM205: FALSE | AO205: -2138339.43220778i | AP205: 0.00029+0.000982070464758632i | AQ205: 0.003-0.227480580056965i | AR205: 0.00015-0.485986152753471i | AS205: 79.43669738 | AT205: 37.78820571 | AU205: 77.5193749826682-0.0251750965182399i | AV205: 0.0014071677-0.1549566215i | AW205: 0.0550543721 | AX205: 1 | AY205: 0 | AZ205: 0.0715771019185133+6.49379078961451i | BA205: 16.25049346 | BB205: 10.1087975215841-360.267340425039i | BC205: 51.1359158 | BD205: 8783.54311686329-3268.76146006962i | BE205: 51.00537152 | BF205: 22.4022646616292-354.325393733539i | BG205: 72.59813813 | BH205: -4253.8626374758-306.368494849481i | BI205: -89.47970888 | BJ205: -86.38228298 | BK205: -175.8805992 | BO205: 72.59813813 | BP205: FALSE | BQ205: FALSE | BR205: 4.119400829 | BS205: FALSE
B206: 4785.67713234876i | C206: 89 | D206: 0.7616641717 | E206: -2089568.46094047i | F206: 0.00029+0.00100499219779324i | G206: 0.003-0.22229212428276i | H206: 0.00015-0.474901839191666i | I206: 0.00140716673411527-0.15142259796515i | J206: -89.46756696 | K206: 44.46756696 | L206: FALSE | M206: 79.41181967 | N206: 37.7882057 | O206: 77.5193747530457-0.0257626885886134i | P206: 0.001407167-0.151422598i | Q206: 16.3958111 | R206: 1 | S206: 0 | T206: 0.0750018439686559+6.64731169117932i | U206: 16.45347372 | V206: 7.92241362295531-286.093124348289i | W206: 49.13347744 | X206: 8733.37215811872-3325.94833528483i | Y206: 49.02830151 | Z206: 15.7182096301089-282.320896431013i | AA206: 70.42069611 | AB206: -3312.29191322027-214.198802722727i | AC206: -89.46756686 | AD206: -86.81334859 | AE206: -176.2999571 | AI206: 70.42069611 | AJ206: FALSE | AK206: FALSE | AL206: 3.700042946 | AM206: FALSE | AO206: -2089568.46094047i | AP206: 0.00029+0.00100499219779324i | AQ206: 0.003-0.22229212428276i | AR206: 0.00015-0.474901839191666i | AS206: 79.41181967 | AT206: 37.7882057 | AU206: 77.5193747530457-0.0257626885886134i | AV206: 0.001407167-0.151422598i | AW206: 0.05766261659 | AX206: 1 | AY206: 0 | AZ206: 0.0750018439686559+6.64731169117932i | BA206: 16.45347372 | BB206: 10.1087975215841-352.050409172837i | BC206: 50.93567634 | BD206: 8733.37215811872-3325.94833528483i | BE206: 50.8053787 | BF206: 21.8355299922546-346.263836982101i | BG206: 72.19777331 | BH206: -4062.22487477349-292.730887512711i | BI206: -89.46756686 | BJ206: -86.39168413 | BK206: -175.8782926 | BO206: 72.19777331 | BP206: FALSE | BQ206: FALSE | BR206: 4.12170741 | BS206: FALSE
B207: 4897.37585209846i | C207: 90 | D207: 0.779441575 | E207: -2041909.85172501i | F207: 0.00029+0.00102844892894068i | G207: 0.003-0.217222003623245i | H207: 0.00015-0.464070335142515i | I207: 0.00140716594873632-0.147969182769817i | J207: -89.45514169 | K207: 44.45514169 | L207: FALSE | M207: 79.38591898 | N207: 37.7882057 | O207: 77.5193745125789-0.0263639951808493i | P207: 0.0014071662-0.1479691828i | Q207: 16.59618175 | R207: 1 | S207: 0 | T207: 0.0785926666594922+6.80455711005383i | U207: 16.65657659 | V207: 7.92241268257434-279.568301137235i | W207: 48.93324472 | X207: 8681.44259834117-3383.33864623673i | Y207: 48.8282251 | Z207: 15.3585084040254-275.892160279031i | AA207: 70.02024905 | AB207: -3163.00989512737-205.188784846778i | AC207: -89.45514159 | AD207: -86.81371742 | AE207: -176.288345 | AI207: 70.02024905 | AJ207: FALSE | AK207: FALSE | AL207: 3.711654956 | AM207: FALSE | AO207: -2041909.85172501i | AP207: 0.00029+0.00102844892894068i | AQ207: 0.003-0.217222003623245i | AR207: 0.00015-0.464070335142515i | AS207: 79.38591898 | AT207: 37.7882057 | AU207: 77.5193745125789-0.0263639951808493i | AV207: 0.0014071662-0.1479691828i | AW207: 0.06039484107 | AX207: 1 | AY207: 0 | AZ207: 0.0785926666594922+6.80455711005383i | BA207: 16.65657659 | BB207: 10.1087975215841-344.020888633814i | BC207: 50.7354445 | BD207: 8681.44259834117-3383.33864623673i | BE207: 50.60538239 | BF207: 21.2942924285599-338.384838323142i | BG207: 71.79740634 | BH207: -3879.20879811697-279.848366993954i | BI207: -89.45514159 | BJ207: -86.39916973 | BK207: -175.8737974 | BO207: 71.79740634 | BP207: FALSE | BQ207: FALSE | BR207: 4.126202641 | BS207: FALSE
B208: 5011.68164366865i | C208: 91 | D208: 0.7976339068 | E208: -1995338.23395051i | F208: 0.00029+0.00105245314517042i | G208: 0.003-0.21226751904753i | H208: 0.00015-0.453485874557051i | I208: 0.00140716512626869-0.144594537572343i | J208: -89.44242653 | K208: 44.44242653 | L208: FALSE | M208: 79.35895969 | N208: 37.78820569 | O208: 77.5193742607564-0.0269793363946737i | P208: 0.0014071653-0.1445945376i | Q208: 16.79655097 | R208: 1 | S208: 0 | T208: 0.0823578400372608+6.96562425679714i | U208: 16.85980795 | V208: 7.92241169778438-273.192303472892i | W208: 48.73301993 | X208: 8627.71855099514-3440.88042726941i | Y208: 48.62814957 | Z208: 15.0150037997035-269.609396743909i | AA208: 69.61980429 | AB208: -3020.44979112055-196.659840095255i | AC208: -89.44242646 | AD208: -86.81239383 | AE208: -176.2747611 | AI208: 69.61980429 | AJ208: FALSE | AK208: FALSE | AL208: 3.72523886 | AM208: FALSE | AO208: -1995338.23395051i | AP208: 0.00029+0.00105245314517042i | AQ208: 0.003-0.21226751904753i | AR208: 0.00015-0.453485874557051i | AS208: 79.35895969 | AT208: 37.78820569 | AU208: 77.5193742607564-0.0269793363946737i | AV208: 0.0014071653-0.1445945376i | AW208: 0.06325697888 | AX208: 1 | AY208: 0 | AZ208: 0.0823578400372608+6.96562425679714i | BA208: 16.85980795 | BB208: 10.1087975215841-336.174504368482i | BC208: 50.53522063 | BD208: 8627.71855099514-3440.88042726941i | BE208: 50.40538343 | BF208: 20.7774074533025-330.684321692012i | BG208: 71.39703815 | BH208: -3704.42739874255-267.67409160081i | BI208: -89.44242646 | BJ208: -86.4047437 | BK208: -175.867111 | BO208: 71.39703815 | BP208: FALSE | BQ208: FALSE | BR208: 4.132888992 | BS208: FALSE
B209: 5128.65535666883i | C209: 92 | D209: 0.8162508514 | E209: -1949828.81565573i | F209: 0.00029+0.00107701762490045i | G209: 0.003-0.207426033082506i | H209: 0.00015-0.443142822897561i | I209: 0.00140716426496095-0.141296865912185i | J209: -89.42941475 | K209: 44.42941475 | L209: FALSE | M209: 79.3309055 | N209: 37.78820569 | O209: 77.5193739970412-0.0276090398009981i | P209: 0.0014071645-0.1412968659i | Q209: 16.99691871 | R209: 1 | S209: 0 | T209: 0.0863060669685393+7.13061336644649i | U209: 17.06317396 | V209: 7.92241066648816-266.961737153052i | W209: 48.53280344 | X209: 8572.16555884765-3498.51871799804i | Y209: 48.42807561 | Z209: 14.6869675469043-263.469321087337i | AA209: 69.21936259 | AB209: -2884.30935594341-188.582601137752i | AC209: -89.42941465 | AD209: -86.80937716 | AE209: -176.2591981 | AI209: 69.21936259 | AJ209: FALSE | AK209: FALSE | AL209: 3.740801923 | AM209: FALSE | AO209: -1949828.81565573i | AP209: 0.00029+0.00107701762490045i | AQ209: 0.003-0.207426033082506i | AR209: 0.00015-0.443142822897561i | AS209: 79.3309055 | AT209: 37.78820569 | AU209: 77.5193739970412-0.0276090398009981i | AV209: 0.0014071645-0.1412968659i | AW209: 0.06625525125 | AX209: 1 | AY209: 0 | AZ209: 0.0863060669685393+7.13061336644649i | BA209: 17.06317396 | BB209: 10.1087975215841-328.507079428219i | BC209: 50.3350051 | BD209: 8572.16555884765-3498.51871799804i | BE209: 50.20538269 | BF209: 20.2837816967414-323.158298158891i | BG209: 70.99666967 | BH209: -3537.5109592436-256.164265479229i | BI209: -89.42941465 | BJ209: -86.40840892 | BK209: -175.8582298 | BO209: 70.99666967 | BP209: FALSE | BQ209: FALSE | BR209: 4.141770155 | BS209: FALSE
B210: 5248.35926095127i | C210: 93 | D210: 0.8353023195 | E210: -1905357.37033129i | F210: 0.00029+0.00110215544479977i | G210: 0.003-0.202694968408805i | H210: 0.00015-0.433035674138098i | I210: 0.00140716336297896-0.138074412304933i | J210: -89.41609941 | K210: 44.41609941 | L210: FALSE | M210: 79.30171942 | N210: 37.78820568 | O210: 77.5193737208718-0.0282534406162997i | P210: 0.0014071636-0.1380744123i | Q210: 17.19728488 | R210: 1 | S210: 0 | T210: 0.0904465078172135+7.29962782560212i | U210: 17.26668106 | V210: 7.92240958648964-260.873285394514i | W210: 48.33259565 | X210: 8514.75080481494-3556.19554862394i | Y210: 48.2280039 | Z210: 14.3737040293736-257.468720537721i | AA210: 68.8189247 | AB210: -2754.2998993932-180.929589565852i | AC210: -89.41609931 | AD210: -86.80466584 | AE210: -176.2416477 | AI210: 68.8189247 | AJ210: FALSE | AK210: FALSE | AL210: 3.758352287 | AM210: FALSE | AO210: -1905357.37033129i | AP210: 0.00029+0.00110215544479977i | AQ210: 0.003-0.202694968408805i | AR210: 0.00015-0.433035674138098i | AS210: 79.30171942 | AT210: 37.78820568 | AU210: 77.5193737208718-0.0282534406162997i | AV210: 0.0014071636-0.1380744123i | AW210: 0.06939618157 | AX210: 1 | AY210: 0 | AZ210: 0.0904465078172135+7.29962782560212i | BA210: 17.26668106 | BB210: 10.1087975215841-321.014532131714i | BC210: 50.13479832 | BD210: 8514.75080481494-3556.19554862394i | BE210: 50.00538101 | BF210: 19.8123706709717-315.802864329007i | BG210: 70.59630181 | BH210: -3378.10629506643-245.277923375026i | BI210: -89.41609931 | BJ210: -86.41016733 | BK210: -175.8471492 | BO210: 70.59630181 | BP210: FALSE | BQ210: FALSE | BR210: 4.152850804 | BS210: FALSE
B211: 5370.85707975983i | C211: 94 | D211: 0.8547984529 | E211: -1861900.22402294i | F211: 0.00029+0.00112787998674956i | G211: 0.003-0.198071806488794i | H211: 0.00015-0.423159047833396i | I211: 0.00140716241840201-0.134925461307794i | J211: -89.40247345 | K211: 44.40247345 | L211: FALSE | M211: 79.27136383 | N211: 37.78820568 | O211: 77.5193734316607-0.0289128818810694i | P211: 0.0014071626-0.1349254613i | Q211: 17.39764942 | R211: 1 | S211: 0 | T211: 0.0947888067193574+7.47277430682085i | U211: 17.47033603 | V211: 7.92240845548877-254.923707067418i | W211: 48.13239696 | X211: 8455.44333154103-3613.84993912429i | Y211: 48.02793515 | Z211: 14.0745488287718-251.604452845818i | AA211: 68.41849141 | AB211: -2630.14567586607-173.675103232059i | AC211: -89.40247338 | AD211: -86.79825745 | AE211: -176.2221008 | AI211: 68.41849141 | AJ211: FALSE | AK211: FALSE | AL211: 3.77789921 | AM211: FALSE | AO211: -1861900.22402294i | AP211: 0.00029+0.00112787998674956i | AQ211: 0.003-0.198071806488794i | AR211: 0.00015-0.423159047833396i | AS211: 79.27136383 | AT211: 37.78820568 | AU211: 77.5193734316607-0.0289128818810694i | AV211: 0.0014071626-0.1349254613i | AW211: 0.07268661058 | AX211: 1 | AY211: 0 | AZ211: 0.0947888067193574+7.47277430682085i | BA211: 17.47033603 | BB211: 10.1087975215841-313.692873892117i | BC211: 49.93460069 | BD211: 8455.44333154103-3613.84993912429i | BE211: 49.80537924 | BF211: 19.3621766028371-308.614200753702i | BG211: 70.1959355 | BH211: -3225.87601405506-234.976758550983i | BI211: -89.40247338 | BJ211: -86.41001982 | BK211: -175.8338632 | BO211: 70.1959355 | BP211: FALSE | BQ211: FALSE | BR211: 4.166136837 | BS211: FALSE
B212: 5496.2140236524i | C212: 95 | D212: 0.8747496302 | E212: -1819434.24272891i | F212: 0.00029+0.001154204944967i | G212: 0.003-0.193554086225851i | H212: 0.00015-0.413507686254643i | I212: 0.00140716142921864-0.131848336606399i | J212: -89.38852964 | K212: 44.38852964 | L212: FALSE | M212: 79.23980051 | N212: 37.78820567 | O212: 77.5193731287915-0.0295877146424243i | P212: 0.0014071616-0.1318483366i | Q212: 17.59801225 | R212: 1 | S212: 0 | T212: 0.0993431195768295+7.65016291083687i | U212: 17.67414596 | V212: 7.9224072710772-249.109834969864i | W212: 47.93220781 | X212: 8394.21426896234-3671.41791360946i | Y212: 47.82787007 | Z212: 13.7888673328216-245.87344486025i | AA212: 68.01806349 | AB212: -2511.58331123198-166.795097407651i | AC212: -89.38852956 | AD212: -86.79014866 | AE212: -176.200547 | AI212: 68.01806349 | AJ212: FALSE | AK212: FALSE | AL212: 3.799453038 | AM212: FALSE | AO212: -1819434.24272891i | AP212: 0.00029+0.001154204944967i | AQ212: 0.003-0.193554086225851i | AR212: 0.00015-0.413507686254643i | AS212: 79.23980051 | AT212: 37.78820567 | AU212: 77.5193731287915-0.0295877146424243i | AV212: 0.0014071616-0.1318483366i | AW212: 0.07613371218 | AX212: 1 | AY212: 0 | AZ212: 0.0993431195768295+7.65016291083687i | BA212: 17.67414596 | BB212: 10.1087975215841-306.538207093756i | BC212: 49.73441265 | BD212: 8394.21426896234-3671.41791360946i | BE212: 49.60537823 | BF212: 18.9322463613045-301.588570353802i | BG212: 69.79557165 | BH212: -3080.49782116934-225.224945421441i | BI212: -89.38852956 | BJ212: -86.40796635 | BK212: -175.8183647 | BO212: 69.79557165 | BP212: FALSE | BQ212: FALSE | BR212: 4.181635346 | BS212: FALSE
B213: 5624.49682521511i | C213: 96 | D213: 0.8951664721 | E213: -1777936.8200848i | F213: 0.00029+0.00118114433329517i | G213: 0.003-0.189139402654226i | H213: 0.00015-0.404076451590578i | I213: 0.00140716039332246-0.128841400122424i | J213: -89.37426056 | K213: 44.37426056 | L213: FALSE | M213: 79.20699067 | N213: 37.78820567 | O213: 77.5193728116191-0.0302782981409841i | P213: 0.0014071606-0.1288414001i | Q213: 17.79837328 | R213: 1 | S213: 0 | T213: 0.104120143900992+7.83190731717053i | U213: 17.87811829 | V213: 7.92240603073254-243.428574141881i | W213: 47.73202864 | X213: 8331.03706895676-3728.83253113303i | Y213: 47.62780936 | Z213: 13.5160534048937-240.272691123294i | AA213: 67.61764174 | AB213: -2398.36124874534-160.267071736882i | AC213: -89.37426046 | AD213: -86.78033525 | AE213: -176.1769749 | AI213: 67.61764174 | AJ213: FALSE | AK213: FALSE | AL213: 3.823025122 | AM213: FALSE | AO213: -1777936.8200848i | AP213: 0.00029+0.00118114433329517i | AQ213: 0.003-0.189139402654226i | AR213: 0.00015-0.404076451590578i | AS213: 79.20699067 | AT213: 37.78820567 | AU213: 77.5193728116191-0.0302782981409841i | AV213: 0.0014071606-0.1288414001i | AW213: 0.07974501022 | AX213: 1 | AY213: 0 | AZ213: 0.104120143900992+7.83190731717053i | BA213: 17.87811829 | BB213: 10.1087975215841-299.546723017276i | BC213: 49.53423464 | BD213: 8331.03706895676-3728.83253113303i | BE213: 49.40537882 | BF213: 18.5216694753283-294.722316856567i | BG213: 69.3952112 | BH213: -2941.66384588064-215.988971310145i | BI213: -89.37426046 | BJ213: -86.40400584 | BK213: -175.8006455 | BO213: 69.3952112 | BP213: FALSE | BQ213: FALSE | BR213: 4.199354533 | BS213: FALSE
B214: 5755.77377458683i | C214: 97 | D214: 0.9160598475 | E214: -1737385.86532926i | F214: 0.00029+0.00120871249266324i | G214: 0.003-0.184825405658779i | H214: 0.00015-0.394860323212427i | I214: 0.00140715930850759-0.125903051141579i | J214: -89.35965863 | K214: 44.35965863 | L214: FALSE | M214: 79.17289503 | N214: 37.78820566 | O214: 77.519372479468-0.0309850000021081i | P214: 0.0014071595-0.1259030511i | Q214: 17.99873244 | R214: 1 | S214: 0 | T214: 0.109131150649684+8.01812494373119i | U214: 18.08226083 | V214: 7.92240473181341-237.876900217855i | W214: 47.53185993 | X214: 8265.8877460123-3786.02393421472i | Y214: 47.42775375 | Z214: 13.2555281123861-234.799252487303i | AA214: 67.21722697 | AB214: -2290.23922267932-154.069968771729i | AC214: -89.35965854 | AD214: -86.76881214 | AE214: -176.1513722 | AI214: 67.21722697 | AJ214: FALSE | AK214: FALSE | AL214: 3.848627823 | AM214: FALSE | AO214: -1737385.86532926i | AP214: 0.00029+0.00120871249266324i | AQ214: 0.003-0.184825405658779i | AR214: 0.00015-0.394860323212427i | AS214: 79.17289503 | AT214: 37.78820566 | AU214: 77.519372479468-0.0309850000021081i | AV214: 0.0014071595-0.1259030511i | AW214: 0.0835283961 | AX214: 1 | AY214: 0 | AZ214: 0.109131150649684+8.01812494373119i | BA214: 18.08226083 | BB214: 10.1087975215841-292.714699812104i | BC214: 49.33406715 | BD214: 8265.8877460123-3786.02393421472i | BE214: 49.20538187 | BF214: 18.1295762383646-288.011863247395i | BG214: 68.99485509 | BH214: -2809.08000291456-207.237484378819i | BI214: -89.35965854 | BJ214: -86.39813625 | BK214: -175.7806963 | BO214: 68.99485509 | BP214: FALSE | BQ214: FALSE | BR214: 4.21930371 | BS214: FALSE
B215: 5890.11475581277i | C215: 98 | D215: 0.9374408788 | E215: -1697759.79154418i | F215: 0.00029+0.00123692409872068i | G215: 0.003-0.180609798723918i | H215: 0.00015-0.385854395001215i | I215: 0.001407158172464-0.123031725461485i | J215: -89.3447161 | K215: 44.3447161 | L215: FALSE | M215: 79.13747386 | N215: 37.78820566 | O215: 77.5193721316313-0.0317081964315967i | P215: 0.0014071583-0.1230317255i | Q215: 18.19908963 | R215: 1 | S215: 0 | T215: 0.114388018213437+8.20893711607005i | U215: 18.28658177 | V215: 7.92240337155389-232.451857816534i | W215: 47.33170217 | X215: 8198.74512268148-3842.91941629296i | Y215: 47.22770397 | Z215: 13.0067385113456-229.450254752028i | AA215: 66.81682 | AB215: -2186.98775456538-148.184082761304i | AC215: -89.34471604 | AD215: -86.75557334 | AE215: -176.1237254 | AI215: 66.81682 | AJ215: FALSE | AK215: FALSE | AL215: 3.876274603 | AM215: FALSE | AO215: -1697759.79154418i | AP215: 0.00029+0.00123692409872068i | AQ215: 0.003-0.180609798723918i | AR215: 0.00015-0.385854395001215i | AS215: 79.13747386 | AT215: 37.78820566 | AU215: 77.5193721316313-0.0317081964315967i | AV215: 0.0014071583-0.1230317255i | AW215: 0.08749214734 | AX215: 1 | AY215: 0 | AZ215: 0.114388018213437+8.20893711607005i | BA215: 18.28658177 | BB215: 10.1087975215841-286.038500515157i | BC215: 49.13391065 | BD215: 8198.74512268148-3842.91941629296i | BE215: 49.00538823 | BF215: 17.7551358958902-281.453710237313i | BG215: 68.59450427 | BH215: -2682.46538012608-198.941155940457i | BI215: -89.34471604 | BJ215: -86.39035454 | BK215: -175.7585066 | BO215: 68.59450427 | BP215: FALSE | BQ215: FALSE | BR215: 4.241493395 | BS215: FALSE
B216: 6027.59128404655i | C216: 99 | D216: 0.9593209478 | E216: -1659037.50416313i | F216: 0.00029+0.00126579416964977i | G216: 0.003-0.176490337711074i | H216: 0.00015-0.377053872736045i | I216: 0.00140715698277261-0.120225894558979i | J216: -89.32942504 | K216: 44.32942504 | L216: FALSE | M216: 79.10068701 | N216: 37.78820565 | O216: 77.5193717673675-0.0324482724159575i | P216: 0.0014071571-0.1202258946i | Q216: 18.39944476 | R216: 1 | S216: 0 | T216: 0.119903268721143+8.40446924699324i | U216: 18.4910897 | V216: 7.92240194705724-227.150558967764i | W216: 47.13155586 | X216: 8129.59107841463-3899.44350925969i | Y216: 47.02766076 | Z216: 12.7691564848936-224.222887323091i | AA216: 66.41642166 | AB216: -2088.38766457032-142.590970341513i | AC216: -89.32942498 | AD216: -86.74061196 | AE216: -176.09402 | AI216: 66.41642166 | AJ216: FALSE | AK216: FALSE | AL216: 3.90598004 | AM216: FALSE | AO216: -1659037.50416313i | AP216: 0.00029+0.00126579416964977i | AQ216: 0.003-0.176490337711074i | AR216: 0.00015-0.377053872736045i | AS216: 79.10068701 | AT216: 37.78820565 | AU216: 77.5193717673675-0.0324482724159575i | AV216: 0.0014071571-0.1202258946i | AW216: 0.09164494714 | AX216: 1 | AY216: 0 | AZ216: 0.119903268721143+8.40446924699324i | BA216: 18.4910897 | BB216: 10.1087975215841-279.51457111474i | BC216: 48.93376568 | BD216: 8129.59107841463-3899.44350925969i | BE216: 48.80539878 | BF216: 17.3975549123869-275.044434747186i | BG216: 68.19415967 | BH216: -2561.55164445761-191.072546739612i | BI216: -89.32942498 | BJ216: -86.38065668 | BK216: -175.7340647 | BO216: 68.19415967 | BP216: FALSE | BQ216: FALSE | BR216: 4.265935319 | BS216: FALSE
B217: 6168.27654362067i | C217: 100 | D217: 0.9817117023 | E217: -1621198.38974181i | F217: 0.00029+0.00129533807416034i | G217: 0.003-0.172464829664048i | H217: 0.00015-0.368454071541935i | I217: 0.00140715573690006-0.117484064776424i | J217: -89.31377732 | K217: 44.31377732 | L217: FALSE | M217: 79.06249403 | N217: 37.78820564 | O217: 77.5193713859017-0.0332056219273509i | P217: 0.0014071559-0.1174840648i | Q217: 18.59979773 | R217: 1 | S217: 0 | T217: 0.125690106851012+8.60485102730459i | U217: 18.69579364 | V217: 7.92240045528996-221.970181575101i | W217: 46.93142156 | X217: 8058.41080019108-3955.5180921435i | Y217: 46.8276249 | Z217: 12.5422776331168-219.114401891764i | AA217: 66.01603281 | AB217: -1994.22962027401-137.273364609315i | AC217: -89.31377724 | AD217: -86.72392023 | AE217: -176.0622403 | AI217: 66.01603281 | AJ217: FALSE | AK217: FALSE | AL217: 3.937759737 | AM217: FALSE | AO217: -1621198.38974181i | AP217: 0.00029+0.00129533807416034i | AQ217: 0.003-0.172464829664048i | AR217: 0.00015-0.368454071541935i | AS217: 79.06249403 | AT217: 37.78820564 | AU217: 77.5193713859017-0.0332056219273509i | AV217: 0.0014071559-0.1174840648i | AW217: 0.09599590501 | AX217: 1 | AY217: 0 | AZ217: 0.125690106851012+8.60485102730459i | BA217: 18.69579364 | BB217: 10.1087975215841-273.139438658602i | BC217: 48.73363278 | BD217: 8058.41080019108-3955.5180921435i | BE217: 48.60541437 | BF217: 17.0560753144102-268.78068840946i | BG217: 67.79382229 | BH217: -2446.08249332688-183.605979093315i | BI217: -89.31377724 | BJ217: -86.36903763 | BK217: -175.7073577 | BO217: 67.79382229 | BP217: FALSE | BQ217: FALSE | BR217: 4.29264234 | BS217: FALSE
B218: 6312.24542700549i | C218: 101 | D218: 1.004625062 | E218: -1584222.30498474i | F218: 0.00029+0.00132557153967115i | G218: 0.003-0.16853113164162i | H218: 0.00015-0.360050413395872i | I218: 0.00140715443219341-0.114804776526575i | J218: -89.29776464 | K218: 44.29776464 | L218: FALSE | M218: 79.02285419 | N218: 37.78820564 | O218: 77.5193709864214-0.0339806481333135i | P218: 0.0014071546-0.1148047765i | Q218: 18.80014845 | R218: 1 | S218: 0 | T218: 0.131762461349962+8.81021662851096i | U218: 18.90070303 | V218: 7.9223988930753-216.907967913488i | W218: 46.73129983 | X218: 7985.19303319362-4011.06252189769i | Y218: 46.62759714 | Z218: 12.3256202121836-214.122111136187i | AA218: 65.61565433 | AB218: -1904.31369084721-132.215097651414i | AC218: -89.29776456 | AD218: -86.70548948 | AE218: -176.0283697 | AI218: 65.61565433 | AJ218: FALSE | AK218: FALSE | AL218: 3.971630329 | AM218: FALSE | AO218: -1584222.30498474i | AP218: 0.00029+0.00132557153967115i | AQ218: 0.003-0.16853113164162i | AR218: 0.00015-0.360050413395872i | AS218: 79.02285419 | AT218: 37.78820564 | AU218: 77.5193709864214-0.0339806481333135i | AV218: 0.0014071546-0.1148047765i | AW218: 0.1005545785 | AX218: 1 | AY218: 0 | AZ218: 0.131762461349962+8.81021662851096i | BA218: 18.90070303 | BB218: 10.1087975215842-266.909709405136i | BC218: 48.53351251 | BD218: 7985.19303319362-4011.06252189769i | BE218: 48.40543591 | BF218: 16.7299731064884-262.659196088155i | BG218: 67.39349309 | BH218: -2335.81311217645-176.517420765873i | BI218: -89.29776456 | BJ218: -86.35549137 | BK218: -175.6783716 | BO218: 67.39349309 | BP218: FALSE | BQ218: FALSE | BR218: 4.321628445 | BS218: FALSE
B219: 6459.57457467751i | C219: 102 | D219: 1.028073224 | E219: -1548089.56602212i | F219: 0.00029+0.00135651066068228i | G219: 0.003-0.164687149576767i | H219: 0.00015-0.351838424689744i | I219: 0.00140715306587447-0.112186603515574i | J219: -89.28137851 | K219: 44.28137851 | L219: FALSE | M219: 78.98172658 | N219: 37.78820563 | O219: 77.5193705680747-0.0347737636113794i | P219: 0.0014071532-0.1121866035i | Q219: 19.0004968 | R219: 1 | S219: 0 | T219: 0.138135029483698+9.02070491839503i | U219: 19.1058278 | V219: 7.92239725708658-211.961223161222i | W219: 46.53119126 | X219: 7909.93032960255-4065.99378711518i | Y219: 46.42757829 | Z219: 12.1187241205383-209.243387444139i | AA219: 65.21528712 | AB219: -1818.44892912281-127.401031909138i | AC219: -89.28137844 | AD219: -86.68531014 | AE219: -175.9923904 | AI219: 65.21528712 | AJ219: FALSE | AK219: FALSE | AL219: 4.007609585 | AM219: FALSE | AO219: -1548089.56602212i | AP219: 0.00029+0.00135651066068228i | AQ219: 0.003-0.164687149576767i | AR219: 0.00015-0.351838424689744i | AS219: 78.98172658 | AT219: 37.78820563 | AU219: 77.5193705680747-0.0347737636113794i | AV219: 0.0014071532-0.1121866035i | AW219: 0.1053309961 | AX219: 1 | AY219: 0 | AZ219: 0.138135029483698+9.02070491839503i | BA219: 19.1058278 | BB219: 10.1087975215841-260.822067016764i | BC219: 48.33340546 | BD219: 7909.93032960255-4065.99378711518i | BE219: 48.20546427 | BF219: 16.4185567567425-256.676754417779i | BG219: 66.9931731 | BH219: -2230.5096658216-169.784381134397i | BI219: -89.28137844 | BJ219: -86.34001088 | BK219: -175.6470912 | BO219: 66.9931731 | BP219: FALSE | BQ219: FALSE | BR219: 4.352908849 | BS219: FALSE
B220: 6610.34241591821i | C220: 103 | D220: 1.052068671 | E220: -1512780.93793133i | F220: 0.00029+0.00138817190734282i | G220: 0.003-0.160930837161912i | H220: 0.00015-0.343813733848855i | I220: 0.0014071516350338-0.109628151983687i | J220: -89.26461022 | K220: 44.26461022 | L220: FALSE | M220: 78.93907018 | N220: 37.78820562 | O220: 77.5193701299723-0.0355853905687124i | P220: 0.0014071518-0.109628152i | Q220: 19.20084267 | R220: 1 | S220: 0 | T220: 0.144823324660857+9.23645969043698i | U220: 19.31117836 | V220: 7.92239554383988-207.127313965377i | W220: 46.33109646 | X220: 7832.61929342366-4120.22668533225i | Y220: 46.22756915 | Z220: 11.9211499301206-204.475661657358i | AA220: 64.81493209 | AB220: -1736.45296553177-122.816992301232i | AC220: -89.26461013 | AD220: -86.66337173 | AE220: -175.9542836 | AI220: 64.81493209 | AJ220: FALSE | AK220: FALSE | AL220: 4.045716424 | AM220: FALSE | AO220: -1512780.93793133i | AP220: 0.00029+0.00138817190734282i | AQ220: 0.003-0.160930837161912i | AR220: 0.00015-0.343813733848855i | AS220: 78.93907018 | AT220: 37.78820562 | AU220: 77.5193701299723-0.0355853905687124i | AV220: 0.0014071518-0.109628152i | AW220: 0.1103356814 | AX220: 1 | AY220: 0 | AZ220: 0.144823324660857+9.23645969043698i | BA220: 19.31117836 | BB220: 10.1087975215841-254.873270794505i | BC220: 48.13331227 | BD220: 7832.61929342366-4120.22668533225i | BE220: 48.00550038 | BF220: 16.1211657492225-250.830230361651i | BG220: 66.59286333 | BH220: -2129.94880402153-163.385809525198i | BI220: -89.26461013 | BJ220: -86.32258813 | BK220: -175.6135 | BO220: 66.59286333 | BP220: FALSE | BQ220: FALSE | BR220: 4.386500015 | BS220: FALSE
B221: 6764.62921056513i | C221: 104 | D221: 1.076624177 | E221: -1478277.62449741i | F221: 0.00029+0.00142057213421868i | G221: 0.003-0.157260194759587i | H221: 0.00015-0.335972069004763i | I221: 0.00140715013662469-0.107128059963339i | J221: -89.24745088 | K221: 44.24745088 | L221: FALSE | M221: 78.89484394 | N221: 37.78820561 | O221: 77.5193696711799-0.0364159610668586i | P221: 0.0014071503-0.10712806i | Q221: 19.40118596 | R221: 1 | S221: 0 | T221: 0.15184372749809+9.45762990815128i | U221: 19.51676564 | V221: 7.92239374968694-202.403667039969i | W221: 46.1310161 | X221: 7753.26081911375-4173.67402439782i | Y221: 46.02757055 | Z221: 11.7324779606345-199.816421837469i | AA221: 64.41459021 | AB221: -1658.15162663949-118.449698547425i | AC221: -89.24745079 | AD221: -86.63966284 | AE221: -175.9140292 | AI221: 64.41459021 | AJ221: FALSE | AK221: FALSE | AL221: 4.085970764 | AM221: FALSE | AO221: -1478277.62449741i | AP221: 0.00029+0.00142057213421868i | AQ221: 0.003-0.157260194759587i | AR221: 0.00015-0.335972069004763i | AS221: 78.89484394 | AT221: 37.78820561 | AU221: 77.5193696711799-0.0364159610668586i | AV221: 0.0014071503-0.10712806i | AW221: 0.1155796788 | AX221: 1 | AY221: 0 | AZ221: 0.15184372749809+9.45762990815128i | BA221: 19.51676564 | BB221: 10.1087975215841-249.060153952827i | BC221: 47.93323358 | BD221: 7753.26081911375-4173.67402439782i | BE221: 47.80554516 | BF221: 15.8371692000986-245.116559790176i | BG221: 66.19256482 | BH221: -2033.91719693332-157.301995055378i | BI221: -89.24745079 | BJ221: -86.3032141 | BK221: -175.5775805 | BO221: 66.19256482 | BP221: FALSE | BQ221: FALSE | BR221: 4.422419502 | BS221: FALSE
B222: 6922.51709173749i | C222: 105 | D222: 1.101752814 | E222: -1444561.25820703i | F222: 0.00029+0.00145372858926487i | G222: 0.003-0.153673268337947i | H222: 0.00015-0.328309255721186i | I222: 0.00140714856745649-0.104684996554088i | J222: -89.22989137 | K222: 44.22989137 | L222: FALSE | M222: 78.84900687 | N222: 37.7882056 | O222: 77.519369190721-0.0372659172517519i | P222: 0.0014071487-0.1046849966i | Q222: 19.60152652 | R222: 1 | S222: 0 | T222: 0.159213540618768+9.684369965497i | U222: 19.7226011 | V222: 7.9223918708072-197.78776779609i | W222: 45.93095084 | X222: 7671.86032163089-4226.24684817326i | Y222: 45.82758335 | Z222: 11.5523073949866-195.263212053458i | AA222: 64.01426243 | AB222: -1583.37856812128-114.286711275874i | AC222: -89.2298913 | AD222: -86.61417119 | AE222: -175.8716063 | AI222: 64.01426243 | AJ222: FALSE | AK222: FALSE | AL222: 4.128393691 | AM222: FALSE | AO222: -1444561.25820703i | AP222: 0.00029+0.00145372858926487i | AQ222: 0.003-0.153673268337947i | AR222: 0.00015-0.328309255721186i | AS222: 78.84900687 | AT222: 37.7882056 | AU222: 77.519369190721-0.0372659172517519i | AV222: 0.0014071487-0.1046849966i | AW222: 0.1210745802 | AX222: 1 | AY222: 0 | AZ222: 0.159213540618768+9.684369965497i | BA222: 19.7226011 | BB222: 10.1087975215842-243.379621933836i | BC222: 47.73317008 | BD222: 7671.86032163089-4226.24684817326i | BE222: 47.60559956 | BF222: 15.5659645349448-239.532746079424i | BG222: 65.79227864 | BH222: -1942.21108790703-151.514484497524i | BI222: -89.2298913 | BJ222: -86.28187875 | BK222: -175.5393139 | BO222: 65.79227864 | BP222: FALSE | BQ222: FALSE | BR222: 4.460686125 | BS222: FALSE
B223: 7084.0901095589i | C223: 106 | D223: 1.127467958 | E223: -1411613.89047078i | F223: 0.00029+0.00148765892300737i | G223: 0.003-0.15016814843056i | H223: 0.00015-0.320821214771782i | I223: 0.00140714692418795-0.102297661214131i | J223: -89.2119224 | K223: 44.2119224 | L223: FALSE | M223: 78.80151815 | N223: 37.78820559 | O223: 77.5193686875729-0.038135711589082i | P223: 0.001407147-0.1022976612i | Q223: 19.80186425 | R223: 1 | S223: 0 | T223: 0.166951047506998+9.91683996462252i | U223: 19.9286968 | V223: 7.92238990319953-193.277159003291i | W223: 45.7309014 | X223: 7588.42795542013-4277.85468659228i | Y223: 45.62760842 | Z223: 11.3802554340868-190.813631190667i | AA223: 63.61394977 | AB223: -1511.97492267501-110.316375358863i | AC223: -89.21192236 | AD223: -86.58688353 | AE223: -175.8269926 | AI223: 63.61394977 | AJ223: FALSE | AK223: FALSE | AL223: 4.173007412 | AM223: FALSE | AO223: -1411613.89047078i | AP223: 0.00029+0.00148765892300737i | AQ223: 0.003-0.15016814843056i | AR223: 0.00015-0.320821214771782i | AS223: 78.80151815 | AT223: 37.78820559 | AU223: 77.5193686875729-0.038135711589082i | AV223: 0.001407147-0.1022976612i | AW223: 0.1268325536 | AX223: 1 | AY223: 0 | AZ223: 0.166951047506998+9.91683996462252i | BA223: 19.9286968 | BB223: 10.1087975215841-237.828650759914i | BC223: 47.53312248 | BD223: 7588.42795542013-4277.85468659228i | BE223: 47.40566453 | BF223: 15.3069762244809-234.07585873036i | BG223: 65.39200588 | BH223: -1854.63586438047-146.005997788689i | BI223: -89.21192236 | BJ223: -86.25857103 | BK223: -175.4986801 | BO223: 65.39200588 | BP223: FALSE | BQ223: FALSE | BR223: 4.501319916 | BS223: FALSE
B224: 7249.4342759007i | C224: 107 | D224: 1.1537833 | E224: -1379417.98206834i | F224: 0.00029+0.00152238119793915i | G224: 0.003-0.146742969119919i | H224: 0.00015-0.313503959968614i | I224: 0.00140714520332004-0.0999647830679756i | J224: -89.19353442 | K224: 44.19353442 | L224: FALSE | M224: 78.7523372 | N224: 37.78820559 | O224: 77.5193681606632-0.0390258071051579i | P224: 0.0014071453-0.0999647831i | Q224: 20.00219899 | R224: 1 | S224: 0 | T224: 0.175075575770485+10.1552060123162i | U224: 20.13506537 | V224: 7.92238784267412-188.869439481499i | W224: 45.53086852 | X224: 7502.97881975002-4328.40582985038i | Y224: 45.42764667 | Z224: 11.2159564892793-186.465331781202i | AA224: 63.21365326 | AB224: -1443.78896910873-106.527770328136i | AC224: -89.19353436 | AD224: -86.55778573 | AE224: -175.7801647 | AI224: 63.21365326 | AJ224: FALSE | AK224: FALSE | AL224: 4.219835324 | AM224: FALSE | AO224: -1379417.98206834i | AP224: 0.00029+0.00152238119793915i | AQ224: 0.003-0.146742969119919i | AR224: 0.00015-0.313503959968614i | AS224: 78.7523372 | AT224: 37.78820559 | AU224: 77.5193681606632-0.0390258071051579i | AV224: 0.0014071453-0.0999647831i | AW224: 0.1328663732 | AX224: 1 | AY224: 0 | AZ224: 0.175075575770485+10.1552060123162i | BA224: 20.13506537 | BB224: 10.1087975215841-232.404285423942i | BC224: 47.33309153 | BD224: 7502.97881975002-4328.40582985038i | BE224: 47.20574108 | BF224: 15.0596545762442-228.743032009043i | BG224: 64.99174767 | BH224: -1771.0056544785-140.760353252633i | BI224: -89.19353436 | BJ224: -86.23327887 | BK224: -175.4556578 | BO224: 64.99174767 | BP224: FALSE | BQ224: FALSE | BR224: 4.544342187 | BS224: FALSE
B225: 7418.63761016957i | C225: 108 | D225: 1.180712847 | E225: -1347956.3938117i | F225: 0.00029+0.00155791389813561i | G225: 0.003-0.143395907044141i | H225: 0.00015-0.306353596040137i | I225: 0.00140714340118853-0.0976851202298957i | J225: -89.17471768 | K225: 44.17471768 | L225: FALSE | M225: 78.70142381 | N225: 37.78820558 | O225: 77.5193676088695-0.0399366776333937i | P225: 0.0014071435-0.0976851202i | Q225: 20.20253062 | R225: 1 | S225: 0 | T225: 0.18360756520146+10.3996405366572i | U225: 20.34172007 | V225: 7.92238568484303-184.562262822766i | W225: 45.33085298 | X225: 7415.53314774945-4377.80762621242i | Y225: 45.22769902 | Z225: 11.0590614107543-182.216018855671i | AA225: 62.81337397 | AB225: -1378.67580318669-102.910657536743i | AC225: -89.17471763 | AD225: -86.52686269 | AE225: -175.7310981 | AI225: 62.81337397 | AJ225: FALSE | AK225: FALSE | AL225: 4.268901859 | AM225: FALSE | AO225: -1347956.3938117i | AP225: 0.00029+0.00155791389813561i | AQ225: 0.003-0.143395907044141i | AR225: 0.00015-0.306353596040137i | AS225: 78.70142381 | AT225: 37.78820558 | AU225: 77.5193676088695-0.0399366776333937i | AV225: 0.0014071435-0.0976851202i | AW225: 0.1391894509 | AX225: 1 | AY225: 0 | AZ225: 0.18360756520146+10.3996405366572i | BA225: 20.34172007 | BB225: 10.1087975215841-227.103638316218i | BC225: 47.13307801 | BD225: 7415.53314774945-4377.80762621242i | BE225: 47.0058302 | BF225: 14.823474579748-223.531463607934i | BG225: 64.59150516 | BH225: -1691.14292558312-135.762389658521i | BI225: -89.17471763 | BJ225: -86.20598918 | BK225: -175.4102246 | BO225: 64.59150516 | BP225: FALSE | BQ225: FALSE | BR225: 4.589775376 | BS225: FALSE
B226: 7591.79018616381i | C226: 109 | D226: 1.208270935 | E226: -1317212.37742123i | F226: 0.00029+0.0015942759390944i | G226: 0.003-0.140125180426314i | H226: 0.00015-0.299366316557588i | I226: 0.00140714151395618-0.0954574591428301i | J226: -89.15546222 | K226: 44.15546222 | L226: FALSE | M226: 78.64873819 | N226: 37.78820557 | O226: 77.5193670310182-0.0408688080665493i | P226: 0.0014071416-0.0954574591i | Q226: 20.40285898 | R226: 1 | S226: 0 | T226: 0.192568641064559+10.6503226254983i | U226: 20.54867485 | V226: 7.92238342511152-180.353336142191i | W226: 45.1308556 | X226: 7326.11647645704-4425.96680262687i | Y226: 45.02776644 | Z226: 10.909236750352-178.063448816107i | AA226: 62.41311302 | AB226: -1316.497042568-99.4554405694558i | AC226: -89.15546216 | AD226: -86.4940984 | AE226: -175.6797673 | AI226: 62.41311302 | AJ226: FALSE | AK226: FALSE | AL226: 4.320232657 | AM226: FALSE | AO226: -1317212.37742123i | AP226: 0.00029+0.0015942759390944i | AQ226: 0.003-0.140125180426314i | AR226: 0.00015-0.299366316557588i | AS226: 78.64873819 | AT226: 37.78820557 | AU226: 77.5193670310182-0.0408688080665493i | AV226: 0.0014071416-0.0954574591i | AW226: 0.1458158703 | AX226: 1 | AY226: 0 | AZ226: 0.192568641064559+10.6503226254983i | BA226: 20.54867485 | BB226: 10.1087975215841-221.923887687275i | BC226: 46.93308275 | BD226: 7326.11647645704-4425.96680262687i | BE226: 46.80593295 | BF226: 14.5979348028269-218.438413328584i | BG226: 64.19127952 | BH226: -1614.87812445655-130.997905537806i | BI226: -89.15546216 | BJ226: -86.17668784 | BK226: -175.3623568 | BO226: 64.19127952 | BP226: FALSE | BQ226: FALSE | BR226: 4.637643219 | BS226: FALSE
B227: 7768.98418002328i | C227: 110 | D227: 1.236472235 | E227: -1287169.56660993i | F227: 0.00029+0.00163148667780489i | G227: 0.003-0.136929048125988i | H227: 0.00015-0.292538401908671i | I227: 0.0014071395376046-0.0932806139323538i | J227: -89.13575781 | K227: 44.13575781 | L227: FALSE | M227: 78.59424116 | N227: 37.78820555 | O227: 77.519366425877-0.0418226946148498i | P227: 0.0014071396-0.0932806139i | Q227: 20.60318393 | R227: 1 | S227: 0 | T227: 0.201981693084642+10.9074383885553i | U227: 20.75594435 | V227: 7.92238105866734-176.240418857311i | W227: 44.93087723 | X227: 7234.75979519501-4472.78980701977i | Y227: 44.82784992 | Z227: 10.766164057245-174.005428329924i | AA227: 62.01287155 | AB227: -1257.1205265234-96.1531214861925i | AC227: -89.13575777 | AD227: -86.4594759 | AE227: -175.6261455 | AI227: 62.01287155 | AJ227: FALSE | AK227: FALSE | AL227: 4.373854524 | AM227: FALSE | AO227: -1287169.56660993i | AP227: 0.00029+0.00163148667780489i | AQ227: 0.003-0.136929048125988i | AR227: 0.00015-0.292538401908671i | AS227: 78.59424116 | AT227: 37.78820555 | AU227: 77.519366425877-0.0418226946148498i | AV227: 0.0014071396-0.0932806139i | AW227: 0.1527604219 | AX227: 1 | AY227: 0 | AZ227: 0.201981693084642+10.9074383885553i | BA227: 20.75594435 | BB227: 10.1087975215841-216.862276145744i | BC227: 46.73310659 | BD227: 7234.75979519501-4472.78980701977i | BE227: 46.60605037 | BF227: 14.3825563369149-213.461201785737i | BG227: 63.791072 | BH227: -1542.0493108122-126.453594060421i | BI227: -89.13575777 | BJ227: -86.14535972 | BK227: -175.3120293 | BO227: 63.791072 | BP227: FALSE | BQ227: FALSE | BR227: 4.687970705 | BS227: FALSE
B228: 7950.31391929852i | C228: 111 | D228: 1.265331759 | E228: -1257811.96837097i | F228: 0.00029+0.00166956592305269i | G228: 0.003-0.133805808712293i | H228: 0.00015-0.285866217317454i | I228: 0.00140713746792566-0.0911534257753897i | J228: -89.11559402 | K228: 44.11559402 | L228: FALSE | M228: 78.5378942 | N228: 37.78820554 | O228: 77.5193657921581-0.0427988450701418i | P228: 0.0014071376-0.0911534258i | Q228: 20.80350529 | R228: 1 | S228: 0 | T228: 0.211870960656919+11.1711813450484i | U228: 20.96354393 | V228: 7.92237858047165-172.221321495362i | W228: 44.73091877 | X228: 7141.49966961643-4518.18317081465i | Y228: 44.62795049 | Z228: 10.6295392050508-170.039813244756i | AA228: 61.61265075 | AB228: -1200.42003993881-92.9952633393993i | AC228: -89.11559394 | AD228: -86.42297726 | AE228: -175.5702045 | AI228: 61.61265075 | AJ228: FALSE | AK228: FALSE | AL228: 4.429795507 | AM228: FALSE | AO228: -1257811.96837097i | AP228: 0.00029+0.00166956592305269i | AQ228: 0.003-0.133805808712293i | AR228: 0.00015-0.285866217317454i | AS228: 78.5378942 | AT228: 37.78820554 | AU228: 77.5193657921581-0.0427988450701418i | AV228: 0.0014071376-0.0911534258i | AW228: 0.1600386407 | AX228: 1 | AY228: 0 | AZ228: 0.211870960656919+11.1711813450484i | BA228: 20.96354393 | BB228: 10.1087975215841-211.916109190486i | BC228: 46.53315045 | BD228: 7141.49966961643-4518.18317081465i | BE228: 46.40618359 | BF228: 14.1768817891418-208.59720913298i | BG228: 63.39088384 | BH228: -1472.50182048713-122.1169864404i | BI228: -89.11559394 | BJ228: -86.11198861 | BK228: -175.2592158 | BO228: 63.39088384 | BP228: FALSE | BQ228: FALSE | BR228: 4.740784154 | BS228: FALSE
B229: 8135.87593316509i | C229: 112 | D229: 1.294864871 | E229: -1229123.95446396i | F229: 0.00029+0.00170853394596467i | G229: 0.003-0.130753799558199i | H229: 0.00015-0.279346210909434i | I229: 0.00140713530051256-0.0890747622833192i | J229: -89.09496016 | K229: 44.09496016 | L229: FALSE | M229: 78.47965958 | N229: 37.78820553 | O229: 77.5193651285122-0.0437977790762049i | P229: 0.0014071354-0.0890747623i | Q229: 21.0038229 | R229: 1 | S229: 0 | T229: 0.222262124856835+11.4417528390153i | U229: 21.17148975 | V229: 7.92237598524713-168.293904527717i | W229: 44.53098114 | X229: 7046.37833885331-4562.05388989126i | Y229: 44.4280692 | Z229: 10.49907174898-166.164507523961i | AA229: 61.21245183 | AB229: -1146.27504442042-89.9739482999737i | AC229: -89.0949601 | AD229: -86.38458362 | AE229: -175.5119153 | AI229: 61.21245183 | AJ229: FALSE | AK229: FALSE | AL229: 4.488084658 | AM229: FALSE | AO229: -1229123.95446396i | AP229: 0.00029+0.00170853394596467i | AQ229: 0.003-0.130753799558199i | AR229: 0.00015-0.279346210909434i | AS229: 78.47965958 | AT229: 37.78820553 | AU229: 77.5193651285122-0.0437977790762049i | AV229: 0.0014071354-0.0890747623i | AW229: 0.1676668461 | AX229: 1 | AY229: 0 | AZ229: 0.222262124856835+11.4417528390153i | BA229: 21.17148975 | BB229: 10.1087975215841-207.082753776198i | BC229: 46.33321525 | BD229: 7046.37833885331-4562.05388989126i | BE229: 46.20633371 | BF229: 13.9804743191877-203.843873809967i | BG229: 62.99071634 | BH229: -1406.08793721391-117.976390618067i | BI229: -89.0949601 | BJ229: -86.0765573 | BK229: -175.203889 | BO229: 62.99071634 | BP229: FALSE | BQ229: FALSE | BR229: 4.796110978 | BS229: FALSE
B230: 8325.76900381002i | C230: 113 | D230: 1.325087292 | E230: -1201090.2530954i | F230: 0.00029+0.00174841149080011i | G230: 0.003-0.127771395955434i | H230: 0.00015-0.272974911820724i | I230: 0.00140713303075044-0.0870435168991657i | J230: -89.07384531 | K230: 44.07384531 | L230: FALSE | M230: 78.41950046 | N230: 37.78820552 | O230: 77.519364433525-0.0448200284053749i | P230: 0.0014071331-0.0870435169i | Q230: 21.20413659 | R230: 1 | S230: 0 | T230: 0.233182407888779+11.7193624846191i | U230: 21.37979877 | V230: 7.92237326746752-164.456077230943i | W230: 44.33106534 | X230: 6949.44378331553-4604.30982186174i | Y230: 44.22820715 | Z230: 10.374484311698-162.377462202627i | AA230: 60.81227609 | AB230: -1094.5704269397-87.0817518920655i | AC230: -89.07384526 | AD230: -86.34427514 | AE230: -175.4512476 | AI230: 60.81227609 | AJ230: FALSE | AK230: FALSE | AL230: 4.548752418 | AM230: FALSE | AO230: -1201090.2530954i | AP230: 0.00029+0.00174841149080011i | AQ230: 0.003-0.127771395955434i | AR230: 0.00015-0.272974911820724i | AS230: 78.41950046 | AT230: 37.78820552 | AU230: 77.519364433525-0.0448200284053749i | AV230: 0.0014071331-0.0870435169i | AW230: 0.1756621843 | AX230: 1 | AY230: 0 | AZ230: 0.233182407888779+11.7193624846191i | BA230: 21.37979877 | BB230: 10.1087975215841-202.359636911733i | BC230: 46.13330199 | BD230: 6949.44378331553-4604.30982186174i | BE230: 46.00650192 | BF230: 13.7929167189526-199.198691311218i | BG230: 62.59057085 | BH230: -1342.66658567694-114.020850404381i | BI230: -89.07384526 | BJ230: -86.0390475 | BK230: -175.1460199 | BO230: 62.59057085 | BP230: FALSE | BQ230: FALSE | BR230: 4.853980061 | BS230: FALSE
B231: 8520.09421901753i | C231: 114 | D231: 1.356015111 | E231: -1173695.94078892i | F231: 0.00029+0.00178921978599368i | G231: 0.003-0.124857010249584i | H231: 0.00015-0.266748928350378i | I231: 0.00140713065380658-0.0850586083085294i | J231: -89.05223827 | K231: 44.05223827 | L231: FALSE | M231: 78.35738104 | N231: 37.78820551 | O231: 77.5193637057166-0.0458661372416274i | P231: 0.0014071307-0.0850586083i | Q231: 21.40444616 | R231: 1 | S231: 0 | T231: 0.244660680681729+12.0042286439939i | U231: 21.58848883 | V231: 7.92237042134575-160.70579657382i | W231: 44.13117238 | X231: 6850.74976085862-4644.86009721302i | Y231: 44.02836549 | Z231: 10.2555119966293-158.676674363839i | AA231: 60.41212484 | AB231: -1045.19625383573-84.3117056894949i | AC231: -89.05223823 | AD231: -86.30203101 | AE231: -175.3881696 | AI231: 60.41212484 | AJ231: FALSE | AK231: FALSE | AL231: 4.61183038 | AM231: FALSE | AO231: -1173695.94078892i | AP231: 0.00029+0.00178921978599368i | AQ231: 0.003-0.124857010249584i | AR231: 0.00015-0.266748928350378i | AS231: 78.35738104 | AT231: 37.78820551 | AU231: 77.5193637057166-0.0458661372416274i | AV231: 0.0014071307-0.0850586083i | AW231: 0.1840426724 | AX231: 1 | AY231: 0 | AZ231: 0.244660680681729+12.0042286439939i | BA231: 21.58848883 | BB231: 10.1087975215841-197.744244290401i | BC231: 45.93341169 | BD231: 6850.74976085862-4644.86009721302i | BE231: 45.8066894 | BF231: 13.6138105331511-194.659212976479i | BG231: 62.19044875 | BH231: -1282.10303110032-110.240091038376i | BI231: -89.05223823 | BJ231: -85.99943986 | BK231: -175.0855785 | BO231: 62.19044875 | BP231: FALSE | BQ231: FALSE | BR231: 4.914421528 | BS231: FALSE
B232: 8718.95502598216i | C232: 115 | D232: 1.387664791 | E232: -1146926.43444087i | F232: 0.00029+0.00183098055545625i | G232: 0.003-0.12200909099492i | H232: 0.00015-0.260664946154848i | I232: 0.00140712816462009-0.0831189798639587i | J232: -89.0301276 | K232: 44.0301276 | L232: FALSE | M232: 78.29326665 | N232: 37.78820549 | O232: 77.5193629435379-0.0469366624702639i | P232: 0.0014071282-0.0831189799i | Q232: 21.60475143 | R232: 1 | S232: 0 | T232: 0.256727579417346+12.2965789404146i | U232: 21.79757868 | V232: 7.92236744082128-157.041066129743i | W232: 43.93130334 | X232: 6750.3558092522-4683.61554154662i | Y232: 43.8285454 | Z232: 10.1419018274843-155.060186134979i | AA232: 60.01199947 | AB232: -998.047539105621-81.6572690595686i | AC232: -89.03012758 | AD232: -86.25782943 | AE232: -175.3226486 | AI232: 60.01199947 | AJ232: FALSE | AK232: FALSE | AL232: 4.677351369 | AM232: FALSE | AO232: -1146926.43444087i | AP232: 0.00029+0.00183098055545625i | AQ232: 0.003-0.12200909099492i | AR232: 0.00015-0.260664946154848i | AS232: 78.29326665 | AT232: 37.78820549 | AU232: 77.5193629435379-0.0469366624702639i | AV232: 0.0014071282-0.0831189799i | AW232: 0.1928272461 | AX232: 1 | AY232: 0 | AZ232: 0.256727579417346+12.2965789404146i | BA232: 21.79757868 | BB232: 10.1087975215841-193.23411895149i | BC232: 45.73354544 | BD232: 6750.3558092522-4683.61554154662i | BE232: 45.60689742 | BF232: 13.4427752190425-190.223044802555i | BG232: 61.79035149 | BH232: -1224.2685961994-106.624476442777i | BI232: -89.03012758 | BJ232: -85.95771398 | BK232: -175.0225332 | BO232: 61.79035149 | BP232: FALSE | BQ232: FALSE | BR232: 4.977466819 | BS232: FALSE
B233: 8922.45728637795i | C233: 116 | D233: 1.420053182 | E233: -1120767.48355715i | F233: 0.00029+0.00187371603013937i | G233: 0.003-0.119226122128501i | H233: 0.00015-0.254719726483623i | I233: 0.00140712555789116-0.0812235990224532i | J233: -89.00750161 | K233: 44.00750161 | L233: FALSE | M233: 78.22712386 | N233: 37.78820548 | O233: 77.5193621453652-0.0480321739743587i | P233: 0.0014071256-0.081223599i | Q233: 21.80505219 | R233: 1 | S233: 0 | T233: 0.269415631862953+12.5966508098483i | U233: 22.007088 | V233: 7.92236431954741-153.459935013953i | W233: 43.73145935 | X233: 6648.32721314113-4720.48910584681i | Y233: 43.6287481 | Z233: 10.0334122128524-151.526083703849i | AA233: 59.61190139 | AB233: -953.024019372992-79.1123012720829i | AC233: -89.00750158 | AD233: -86.21164764 | AE233: -175.2546505 | AI233: 59.61190139 | AJ233: FALSE | AK233: FALSE | AL233: 4.745349454 | AM233: FALSE | AO233: -1120767.48355715i | AP233: 0.00029+0.00187371603013937i | AQ233: 0.003-0.119226122128501i | AR233: 0.00015-0.254719726483623i | AS233: 78.22712386 | AT233: 37.78820548 | AU233: 77.5193621453652-0.0480321739743587i | AV233: 0.0014071256-0.081223599i | AW233: 0.20203581 | AX233: 1 | AY233: 0 | AZ233: 0.269415631862953+12.5966508098483i | BA233: 22.007088 | BB233: 10.1087975215841-188.826859972338i | BC233: 45.53370437 | BD233: 6648.32721314113-4720.48910584681i | BE233: 45.40712725 | BF233: 13.2794473435846-185.887846276584i | BG233: 61.39028054 | BH233: -1169.04038622536-103.164967438662i | BI233: -89.00750158 | BJ233: -85.91384839 | BK233: -174.9568513 | BO233: 61.39028054 | BP233: FALSE | BQ233: FALSE | BR233: 5.043148705 | BS233: FALSE
B234: 9130.70933271286i | C234: 117 | D234: 1.453197524 | E234: -1095205.16266712i | F234: 0.00029+0.0019174489598697i | G234: 0.003-0.116506622163113i | H234: 0.00015-0.248910104455115i | I234: 0.00140712282806977-0.0793714567958005i | J234: -88.98434831 | K234: 43.98434831 | L234: FALSE | M234: 78.15892062 | N234: 37.78820546 | O234: 77.5193613094983-0.0491532549381273i | P234: 0.0014071229-0.0793714568i | Q234: 22.00534823 | R234: 1 | S234: 0 | T234: 0.282759394479541+12.9046920942433i | U234: 22.21703752 | V234: 7.92236105087801-149.960496845i | W234: 43.53164157 | X234: 6544.73493399628-4755.39630143393i | Y234: 43.42897487 | Z234: 9.92981243474359-148.072496354342i | AA234: 59.21183211 | AB234: -910.02994821746-76.6710360494722i | AC234: -88.98434825 | AD234: -86.16346185 | AE234: -175.18414 | AI234: 59.21183211 | AJ234: FALSE | AK234: FALSE | AL234: 4.81585996 | AM234: FALSE | AO234: -1095205.16266712i | AP234: 0.00029+0.0019174489598697i | AQ234: 0.003-0.116506622163113i | AR234: 0.00015-0.248910104455115i | AS234: 78.15892062 | AT234: 37.78820546 | AU234: 77.5193613094983-0.0491532549381273i | AV234: 0.0014071229-0.0793714568i | AW234: 0.2116892905 | AX234: 1 | AY234: 0 | AZ234: 0.282759394479541+12.9046920942433i | BA234: 22.21703752 | BB234: 10.1087975215841-184.520121190218i | BC234: 45.33388965 | BD234: 6544.73493399628-4755.39630143393i | BE234: 45.20738023 | BF234: 13.1234798163518-181.651329230576i | BG234: 60.99023747 | BH234: -1116.3010376622-99.853083515943i | BI234: -88.98434825 | BJ234: -85.86782051 | BK234: -174.8884987 | BO234: 60.99023747 | BP234: FALSE | BQ234: FALSE | BR234: 5.111501293 | BS234: FALSE
B235: 9343.82202599856i | C235: 118 | D235: 1.487115463 | E235: -1070225.86391047i | F235: 0.00029+0.0019622026254597i | G235: 0.003-0.113849143398612i | H235: 0.00015-0.243232987371858i | I235: 0.00140711996934392-0.0775615672134474i | J235: -88.96065545 | K235: 43.96065545 | L235: FALSE | M235: 78.08862635 | N235: 37.78820545 | O235: 77.5193604341572-0.0503005021573752i | P235: 0.00140712-0.0775615672i | Q235: 22.20563932 | R235: 1 | S235: 0 | T235: 0.29679560138501+13.2209616802507i | U235: 22.42744901 | V235: 7.92235762785296-146.540888729894i | W235: 43.33185124 | X235: 6439.65550189911-4788.25563601732i | Y235: 43.22922704 | Z235: 9.83088216002292-144.69759552143i | AA235: 58.81179316 | AB235: -868.973885595861-74.328055761469i | AC235: -88.96065543 | AD235: -86.11324727 | AE235: -175.1110806 | AI235: 58.81179316 | AJ235: FALSE | AK235: FALSE | AL235: 4.888919414 | AM235: FALSE | AO235: -1070225.86391047i | AP235: 0.00029+0.0019622026254597i | AQ235: 0.003-0.113849143398612i | AR235: 0.00015-0.243232987371858i | AS235: 78.08862635 | AT235: 37.78820545 | AU235: 77.5193604341572-0.0503005021573752i | AV235: 0.00140712-0.0775615672i | AW235: 0.221809693 | AX235: 1 | AY235: 0 | AZ235: 0.29679560138501+13.2209616802507i | BA235: 22.42744901 | BB235: 10.1087975215841-180.311609953378i | BC235: 45.13410252 | BD235: 6439.65550189911-4788.25563601732i | BE235: 45.00765774 | BF235: 12.9745411566516-177.511256717136i | BG235: 60.59022387 | BH235: -1065.93846081927-96.6808645417772i | BI235: -88.96065543 | BJ235: -85.81960671 | BK235: -174.81744 | BO235: 60.59022387 | BP235: FALSE | BQ235: FALSE | BR235: 5.182559977 | BS235: FALSE
B236: 9561.90881476629i | C236: 119 | D236: 1.521825053 | E236: -1045816.28979322i | F236: 0.00029+0.00200800085110092i | G236: 0.003-0.111252271151255i | H236: 0.00015-0.237685353074147i | I236: 0.00140711697562721-0.0757929667976307i | J236: -88.93641051 | K236: 43.93641051 | L236: FALSE | M236: 78.01621205 | N236: 37.78820543 | O236: 77.5193595174784-0.0514745263571912i | P236: 0.001407117-0.0757929668i | Q236: 22.40592523 | R236: 1 | S236: 0 | T236: 0.311563326376857+13.5457301874357i | U236: 22.6383454 | V236: 7.92235404318339-143.199290272412i | W236: 43.13208964 | X236: 6333.17086839028-4818.98904705909i | Y236: 43.02950598 | Z236: 9.73641097371005-141.399593865182i | AA236: 58.41178617 | AB236: -829.768510105161-72.0782726710507i | AC236: -88.93641049 | AD236: -86.06097811 | AE236: -175.0354342 | AI236: 58.41178617 | AJ236: FALSE | AK236: FALSE | AL236: 4.964565771 | AM236: FALSE | AO236: -1045816.28979322i | AP236: 0.00029+0.00200800085110092i | AQ236: 0.003-0.111252271151255i | AR236: 0.00015-0.237685353074147i | AS236: 78.01621205 | AT236: 37.78820543 | AU236: 77.5193595174784-0.0514745263571912i | AV236: 0.001407117-0.0757929668i | AW236: 0.2324201616 | AX236: 1 | AY236: 0 | AZ236: 0.311563326376857+13.5457301874357i | BA236: 22.6383454 | BB236: 10.1087975215842-176.199085900576i | BC236: 44.93434428 | BD236: 6333.17086839028-4818.98904705909i | BE236: 44.80796121 | BF236: 12.8323147933316-173.465441906201i | BG236: 60.19024141 | BH236: -1017.84561033452-93.6408416462884i | BI236: -88.93641049 | BJ236: -85.76918222 | BK236: -174.7436383 | BO236: 60.19024141 | BP236: FALSE | BQ236: FALSE | BR236: 5.256361662 | BS236: FALSE
B237: 9785.08579546004i | C237: 120 | D237: 1.557344773 | E237: -1021963.44610894i | F237: 0.00029+0.00205486801704661i | G237: 0.003-0.108714623000607i | H237: 0.00015-0.232264248331213i | I237: 0.00140711384054593-0.0740647140504749i | J237: -88.91160065 | K237: 43.91160065 | L237: FALSE | M237: 77.94165044 | N237: 37.78820541 | O237: 77.5193585575091-0.0526759525170537i | P237: 0.0014071139-0.074064714i | Q237: 22.60620573 | R237: 1 | S237: 0 | T237: 0.32710415935861+13.8792807104585i | U237: 22.84975077 | V237: 7.92235028923658-139.933922604033i | W237: 42.93235813 | X237: 6225.36822003255-4847.52232850291i | Y237: 42.82981312 | Z237: 9.6461979331833-138.176744363586i | AA237: 58.0118128 | AB237: -792.330429792691-69.9169040844977i | AC237: -88.9116006 | AD237: -86.00662755 | AE237: -174.9571618 | AI237: 58.0118128 | AJ237: FALSE | AK237: FALSE | AL237: 5.042838225 | AM237: FALSE | AO237: -1021963.44610894i | AP237: 0.00029+0.00205486801704661i | AQ237: 0.003-0.108714623000607i | AR237: 0.00015-0.232264248331213i | AS237: 77.94165044 | AT237: 37.78820541 | AU237: 77.5193585575091-0.0526759525170537i | AV237: 0.0014071139-0.074064714i | AW237: 0.2435450432 | AX237: 1 | AY237: 0 | AZ237: 0.32710415935861+13.8792807104585i | BA237: 22.84975077 | BB237: 10.1087975215841-172.18035976844i | BC237: 44.73461628 | BD237: 6225.36822003255-4847.52232850291i | BE237: 44.60829213 | BF237: 12.6964983958305-169.51174700261i | BG237: 59.79029181 | BH237: -971.920253864166-90.7260009700149i | BI237: -88.9116006 | BJ237: -85.7165212 | BK237: -174.6670554 | BO237: 59.79029181 | BP237: FALSE | BQ237: FALSE | BR237: 5.332944572 | BS237: FALSE
B238: 10013.4717742395i | C238: 121 | D238: 1.59369353 | E238: -998654.635021378i | F238: 0.00029+0.00210282907259029i | G238: 0.003-0.106234848053621i | H238: 0.00015-0.226966787269103i | I238: 0.00140711055742549-0.0723758889527963i | J238: -88.88621277 | K238: 43.88621277 | L238: FALSE | M238: 77.86491602 | N238: 37.7882054 | O238: 77.5193575522053-0.0539054202035295i | P238: 0.0014071106-0.072375889i | Q238: 22.80648055 | R238: 1 | S238: 0 | T238: 0.343462398672591+14.2219096201562i | U238: 23.0616905 | V238: 7.92234635801932-136.743047436965i | W238: 42.73265812 | X238: 6116.33975278692-4873.7855468155i | Y238: 42.63014997 | Z238: 9.56005114234995-135.027339423845i | AA238: 57.61187483 | AB238: -756.580010904608-67.8394531566763i | AC238: -88.88621274 | AD238: -85.95016772 | AE238: -174.8762228 | AI238: 57.61187483 | AJ238: FALSE | AK238: FALSE | AL238: 5.123777201 | AM238: FALSE | AO238: -998654.635021378i | AP238: 0.00029+0.00210282907259029i | AQ238: 0.003-0.106234848053621i | AR238: 0.00015-0.226966787269103i | AS238: 77.86491602 | AT238: 37.7882054 | AU238: 77.5193575522053-0.0539054202035295i | AV238: 0.0014071106-0.072375889i | AW238: 0.2552099554 | AX238: 1 | AY238: 0 | AZ238: 0.343462398672591+14.2219096201562i | BA238: 23.0616905 | BB238: 10.1087975215841-168.253292226036i | BC238: 44.53491995 | BD238: 6116.33975278692-4873.7855468155i | BE238: 44.40865205 | BF238: 12.5668032351002-165.648082184336i | BG238: 59.3903769 | BH238: -928.064762687412-87.929754792195i | BI238: -88.88621274 | BJ238: -85.66159668 | BK238: -174.5876518 | BO238: 59.3903769 | BP238: FALSE | BQ238: FALSE | BR238: 5.412348246 | BS238: FALSE
B239: 10247.1883302252i | C239: 122 | D239: 1.630890676 | E239: -975877.448304905i | F239: 0.00029+0.0021519095493473i | G239: 0.003-0.103811626225506i | H239: 0.00015-0.22179014983441i | I239: 0.00140710711927622-0.0707255924743384i | J239: -88.86023345 | K239: 43.86023345 | L239: FALSE | M239: 77.78598518 | N239: 37.78820538 | O239: 77.5193564994255-0.0551635839107311i | P239: 0.0014071072-0.0707255925i | Q239: 23.00674942 | R239: 1 | S239: 0 | T239: 0.360685261020964+14.5739274289795i | U239: 23.27419128 | V239: 7.92234224116087-133.624966138787i | W239: 42.53299108 | X239: 6006.1824077705-4897.71344223947i | Y239: 42.43051808 | Z239: 9.4777873448963-131.949710011934i | AA239: 57.21197404 | AB239: -722.44120018828-65.8416930799596i | AC239: -88.86023339 | AD239: -85.89156972 | AE239: -174.7925754 | AI239: 57.21197404 | AJ239: FALSE | AK239: FALSE | AL239: 5.207424623 | AM239: FALSE | AO239: -975877.448304905i | AP239: 0.00029+0.0021519095493473i | AQ239: 0.003-0.103811626225506i | AR239: 0.00015-0.22179014983441i | AS239: 77.78598518 | AT239: 37.78820538 | AU239: 77.5193564994255-0.0551635839107311i | AV239: 0.0014071072-0.0707255925i | AW239: 0.2674418594 | AX239: 1 | AY239: 0 | AZ239: 0.360685261020964+14.5739274289795i | BA239: 23.27419128 | BB239: 10.1087975215841-164.415792736018i | BC239: 44.33525676 | BD239: 6006.1824077705-4897.71344223947i | BE239: 44.20904256 | BF239: 12.4429535730652-161.872404561167i | BG239: 58.99049852 | BH239: -886.185894321915-85.2459170770174i | BI239: -88.86023339 | BJ239: -85.60438054 | BK239: -174.5053862 | BO239: 58.99049852 | BP239: FALSE | BQ239: FALSE | BR239: 5.494613802 | BS239: FALSE
... 378 more rows

Sheet COMP1_hide (hidden)
A7: Operation Parameters | C7: Items | D7: Value | E7: Actual | F7: Unit
C8: Fsw | D8: =COMP1!D8 -> 600 | E8: =D8 -> 600 | F8: kHz
C9: Vo | D9: =COMP1!D9 -> 1 | E9: =D9 -> 1 | F9: V
C10: Io | D10: =E10 -> 1e-08 | E10: 1e-08 | F10: A
C11: Rload | D11: =D9/D10 -> 100000000 | E11: =D9/E10 -> 100000000 | F11: Ω
C13: L | D13: =E13 -> 0.21 | E13: =COMP1!E13 -> 0.21 | F13: uH
C14: DCR | D14: =E14 -> 0.29 | E14: =COMP1!E14 -> 0.29 | F14: mΩ
C15: Phase Number | D15: =COMP1!D15 -> 1 | F15: - | G15: Phase number of channel 1
C17: Gamp | D17: =E17 -> 80 | E17: =COMP1!E17 -> 80 | F17: dB | G17: open loop gain of error amplifier
C18: Famp | D18: =E18 -> 20 | E18: =COMP1!E18 -> 20 | F18: MHz | G18: open loop Unity gain bandwidth of error amplifier
C20: Vramp | D20: =D21*0.1 -> 1.2 | E20: =0.1*E21 -> 1.2 | F20: V
C21: @Vin | D21: =E21 -> 12 | E21: =COMP1!E21 -> 12 | F21: V
C23: Gain_CS | E23: 10 | F23: V/V | G23: Gain of current sense amplifier
C24: Rdson | E24: =IF(Summary!G9="NCP3285", 1.93, 1.29) -> 1.29 | F24: mΩ | G24: Rdson of LS MOSFET | N24: Items | O24: Value | P24: Actual | Q24: Unit | T24: 1st | U24: 2nd | V24: 3rd | W24: 4th | X24: 5th | Y24: 6th | Z24: Unit
C25: Gcs | E25: =E23*E24/1000 -> 0.0129 | F25: V/V | G25: Total gain in current sense | N25: Zcvs_fsw | O25: =COMPLEX(ROUND(IMREAL(IMPRODUCT("j",-1/(2*PI()*E8*1000*(10^(-12))*D61))),4),ROUND(IMAGINARY(IMPRODUCT("j",-1/(2*PI()*E8*1000*(10^(-12))*D61))),4)) -> -2652.5824i | P25: =COMPLEX(ROUND(IMREAL(IMPRODUCT("j",-1/(2*PI()*D8*1000*(10^(-12))*E61))),4),ROUND(IMAGINARY(IMPRODUCT("j",-1/(2*PI()*D8*1000*(10^(-12))*E61))),4)) -> -2652.5824i | S25: R1 | T25: =E66 -> 33.2 | Z25: kΩ
N26: Zl_fsw | O26: =COMPLEX(ROUND(IMREAL(IMSUM(0.001*D14/D15,IMPRODUCT("j",2*PI()*E8*D13*0.001/D15))),4),ROUND(IMAGINARY(IMSUM(0.001*D14/D15,IMPRODUCT("j",2*PI()*E8*D13*0.001/D15))),4)) -> 0.0003+0.7917i | P26: =COMPLEX(ROUND(IMREAL(IMSUM(0.001*E14/D15,IMPRODUCT("j",2*PI()*D8*E13*0.001/D15))),4),ROUND(IMAGINARY(IMSUM(0.001*E14/D15,IMPRODUCT("j",2*PI()*D8*E13*0.001/D15))),4)) -> 0.0003+0.7917i | Q26: Ω | S26: R2 | T26: =0.001/(2*PI()*D95*1000*T29*10^(-12)) -> 0.3745064862 | U26: =0.001/(2*PI()*$D$95*1000*U29*10^(-12)) -> 0.1872532431 | V26: =0.001/(2*PI()*$D$95*1000*V29*10^(-12)) -> 0.1248354954 | W26: =0.001/(2*PI()*$D$95*1000*W29*10^(-12)) -> 0.09362662155 | X26: =0.001/(2*PI()*$D$95*1000*X29*10^(-12)) -> 0.07490129724 | Y26: =0.001/(2*PI()*$D$95*1000*Y29*10^(-12)) -> 0.0624177477 | Z26: kΩ
C27: Ton | E27: =E9/E21/E8*1000000 -> 138.8888889 | F27: ns | G27: On time of PWM pulse | N27: Zbulk_fsw | O27: =COMPLEX(ROUND(IMREAL(IMSUM(D37*0.001/D35,IMPRODUCT("j",((2*PI()*E8*0.000001*D38/D35)-(1/(2*PI()*E8*0.001*D36*D35)))))),4),ROUND(IMAGINARY(IMSUM(D37*0.001/D35,IMPRODUCT("j",((2*PI()*E8*0.000001*D38/D35)-(1/(2*PI()*E8*0.001*D36*D35)))))),4)) -> 0.003+0.0016i | P27: =COMPLEX(ROUND(IMREAL(IMSUM(E37*0.001/D35,IMPRODUCT("j",((2*PI()*D8*0.000001*E38/D35)-(1/(2*PI()*D8*0.001*E36*D35)))))),4),ROUND(IMAGINARY(IMSUM(E37*0.001/D35,IMPRODUCT("j",((2*PI()*D8*0.000001*E38/D35)-(1/(2*PI()*D8*0.001*E36*D35)))))),4)) -> 0.003+0.0016i | Q27: Ω | S27: R3 | T27: =0.001/(2*PI()*D65*D97*T30*10^(-9)) -> 0.0006546832378 | U27: =0.001/(2*PI()*$D$65*$D$97*U30*10^(-9)) -> 0.0006546961477 | V27: =0.001/(2*PI()*$D$65*$D$97*V30*10^(-9)) -> 0.000654696148 | W27: =0.001/(2*PI()*$D$65*$D$97*W30*10^(-9)) -> 0.000654696148 | X27: =0.001/(2*PI()*$D$65*$D$97*X30*10^(-9)) -> 0.000654696148 | Y27: =0.001/(2*PI()*$D$65*$D$97*Y30*10^(-9)) -> 0.000654696148 | Z27: kΩ | AC27: Close_45deg_angle | AD27: Close_unit_gain | AE27: Find_Fesr_min | AF27: find_Gsys_min | AG27: find_Gpwr_min | AH27: find_real_gain_margin | AI27: find_recommand_GM
C28: Q1 | E28: =2/PI() -> 0.6366197724 | N28: Zmlcc_fsw | O28: =COMPLEX(ROUND(IMREAL(IMSUM(D46*0.001/D44,IMPRODUCT("j",((2*PI()*E8*0.000001*D47/D44)-(1/(2*PI()*E8*D45*0.001*D44)))))),4),ROUND(IMAGINARY(IMSUM(D46*0.001/D44,IMPRODUCT("j",((2*PI()*E8*0.000001*D47/D44)-(1/(2*PI()*E8*D45*0.001*D44)))))),4)) -> 0.0002-0.0005i | P28: =COMPLEX(ROUND(IMREAL(IMSUM(E46*0.001/D44,IMPRODUCT("j",((2*PI()*D8*0.000001*E47/D44)-(1/(2*PI()*D8*E45*0.001*D44)))))),4),ROUND(IMAGINARY(IMSUM(E46*0.001/D44,IMPRODUCT("j",((2*PI()*D8*0.000001*E47/D44)-(1/(2*PI()*D8*E45*0.001*D44)))))),4)) -> 0.0002-0.0005i | Q28: Ω | S28: C1 | T28: =T29/(2*PI()*D81*T26*T29*10^(-6)-1) -> -47.93823587 | U28: =U29/(2*PI()*$D$81*U26*U29*10^(-6)-1) -> -95.87647174 | V28: =V29/(2*PI()*$D$81*V26*V29*10^(-6)-1) -> -143.8147076 | W28: =W29/(2*PI()*$D$81*W26*W29*10^(-6)-1) -> -191.7529435 | X28: =X29/(2*PI()*$D$81*X26*X29*10^(-6)-1) -> -239.6911794 | Y28: =Y29/(2*PI()*$D$81*Y26*Y29*10^(-6)-1) -> -287.6294152 | Z28: pF | AC28: =MIN(CE118:CE617)-45 -> -45 | AD28: =MIN(AI118:AI617) -> 0 | AE28: =MIN(K118:K617) -> 0 | AF28: =MIN(BS118:BS617) -> 0.01072276411 | AG28: =MIN(BQ118:BQ617) -> 0.0368261784 | AH28: =MIN(AL118:AL617) -> 0 | AI28: =MIN(BU118:BU617) -> -78.48374542
C29: w1 | E29: =PI()/E27*1000000000 -> 22619467.11 | N29: Zload_fsw | O29: =D11 -> 100000000 | P29: =E11 -> 100000000 | Q29: Ω | S29: C2 | T29: =10^(AG118/20)*10^12/(2*PI()*D97*1000*T25*1000) -> 47.93823587 | U29: =10^($AG$118/20)*10^12/(2*PI()*$D$97*1000*$T$25*1000)-T28 -> 95.87647174 | V29: =10^($AG$118/20)*10^12/(2*PI()*$D$97*1000*$T$25*1000)-U28 -> 143.8147076 | W29: =10^($AG$118/20)*10^12/(2*PI()*$D$97*1000*$T$25*1000)-V28 -> 191.7529435 | X29: =10^($AG$118/20)*10^12/(2*PI()*$D$97*1000*$T$25*1000)-W28 -> 239.6911794 | Y29: =10^($AG$118/20)*10^12/(2*PI()*$D$97*1000*$T$25*1000)-X28 -> 287.6294152 | Z29: pF
N30: Zpcb_fsw | O30: =IMSUM(0,IMPRODUCT("j",0)) -> 0 | P30: =IMSUM(0,IMPRODUCT("j",0)) -> 0 | Q30: Ω | S30: C3 | T30: =(10^12)/(2*PI()*D96*1000*T25*1000) -> 486204.4235 | U30: =(10^12)/(2*PI()*$D$96*1000*($T$25+T27)*1000) -> 486194.836 | V30: =(10^12)/(2*PI()*$D$96*1000*($T$25+U27)*1000) -> 486194.8358 | W30: =(10^12)/(2*PI()*$D$96*1000*($T$25+V27)*1000) -> 486194.8358 | X30: =(10^12)/(2*PI()*$D$96*1000*($T$25+W27)*1000) -> 486194.8358 | Y30: =(10^12)/(2*PI()*$D$96*1000*($T$25+X27)*1000) -> 486194.8358 | Z30: pF
A33: Capacitor | C33: SP Cap
C34: Items | D34: Value | E34: Actual | F34: Unit
C35: Number | D35: =IF(COMP1!D35=0,10^(-12),COMP1!D35) -> 2 | F35: -
C36: Co | D36: =E36 -> 470 | E36: =COMP1!E36 -> 470 | F36: uF/pcs
C37: ESR | D37: =E37 -> 6 | E37: =COMP1!E37 -> 6 | F37: mΩ/pcs
C38: ESL | D38: =E38 -> 1 | E38: =COMP1!E38 -> 1 | F38: nH/pcs
C39: Total Co 1 | D39: =D36*D35 -> 940 | E39: =E36*D35 -> 940 | F39: uF
C40: Total ESR 1 | D40: =D37/D35 -> 3 | E40: =E37/D35 -> 3 | F40: mΩ
C41: Total ESL 1 | D41: =D38/D35 -> 0.5 | E41: =E38/D35 -> 0.5 | F41: nH
C42: MLCC Cap
C43: Items | D43: Value | E43: Actual | F43: Unit
C44: Number | D44: =IF(COMP1!D44=0,10^(-12),COMP1!D44) -> 20 | F44: -
C45: Co | D45: =E45 -> 22 | E45: =COMP1!E45 -> 22 | F45: uF/pcs
C46: ESR | D46: =E46 -> 3 | E46: =COMP1!E46 -> 3 | F46: mΩ/pcs
C47: ESL | D47: =E47 -> 0.35 | E47: =COMP1!E47 -> 0.35 | F47: nH/pcs
C48: Total Co 2 | D48: =D45*D44 -> 440 | E48: =E45*D44 -> 440 | F48: uF
C49: Total ESR 2 | D49: =D46/D44 -> 0.15 | E49: =E46/D44 -> 0.15 | F49: mΩ
C50: Total ESL 2 | D50: =D47/D44 -> 0.0175 | E50: =E47/D44 -> 0.0175 | F50: nH
C52: Total C | D52: =D48+D39 -> 1380 | E52: =E48+E39 -> 1380 | F52: uF
C53: Total ESR | D53: =1000*(0.001*(D40+D49)*(0.001*D40*0.001*D49-(2*PI()*E8*10^(-6)*D41-1/(2*PI()*E8*D39*0.001))*(2*PI()*E8*D50*0.000001-1/(2*PI()*E8*D48*0.001)))+(2*PI()*E8*(D41+D50)*0.000001-(1/(2*PI()*E8*1000))*(1/(D39*0.000001)+1/(D48*0.000001)))*(D40*0.001*(2*PI()*E8*D50*0.000001-1/(2*PI()*E8*D48*0.001))+D49*0.001*(2*PI()*E8*D41*0.000001-1/(2*PI()*E8*D39*0.001))))/((2*PI()*E8*(D41+D50)*0.000001-(1/(2*PI()*E8*1000))*(1/(D39*0.000001)+1/(D48*0.000001)))^2+(0.001*D40+0.001*D49)^2) -> 0.2412212411 | E53: =1000*(0.001*(E40+E49)*(0.001*E40*0.001*E49-(2*PI()*D8*10^(-6)*E41-1/(2*PI()*D8*E39*0.001))*(2*PI()*D8*E50*0.000001-1/(2*PI()*D8*E48*0.001)))+(2*PI()*D8*(E41+E50)*0.000001-(1/(2*PI()*D8*1000))*(1/(E39*0.000001)+1/(E48*0.000001)))*(E40*0.001*(2*PI()*D8*E50*0.000001-1/(2*PI()*D8*E48*0.001))+E49*0.001*(2*PI()*D8*E41*0.000001-1/(2*PI()*D8*E39*0.001))))/((2*PI()*D8*(E41+E50)*0.000001-(1/(2*PI()*D8*1000))*(1/(E39*0.000001)+1/(E48*0.000001)))^2+(0.001*E40+0.001*E49)^2) -> 0.2412212411 | F53: mΩ
C54: Total ESL | D54: =D50*D41/(D41+D50) -> 0.01690821256 | E54: =E50*E41/(E41+E50) -> 0.01690821256 | F54: nH
A57: Output filter | C57: Items | D57: Value | E57: Actual | F57: Unit
C58: Rvs1 | D58: =COMP1!D58 -> 0 | E58: =COMP1!E58 -> 0 | F58: kΩ
C59: Rvs2 | D59: =COMP1!D59 -> DNP | E59: =COMP1!E59 -> DNP | F59: kΩ
C60: Rvs3 | D60: =COMP1!D60 -> 0 | E60: =COMP1!E60 -> 0 | F60: kΩ
C61: Cvs | D61: =E61 -> 100 | E61: =COMP1!E61 -> 100 | F61: pF
A64: Compensation Network | C64: Items | D64: Value | E64: Actual | F64: Unit
C65: Kp | D65: =COMP1!D65 -> 5 | F65: -
C66: R1 | D66: =D74 -> 26.97920017 | E66: =COMP1!E66 -> 33.2 | F66: kΩ
C67: R2 | D67: =E67 -> 300 | E67: =COMP1!E67 -> 300 | F67: kΩ
C68: R3 | D68: 1e-06 | E68: =COMP1!E68 -> 0.001 | F68: kΩ
C69: R4 | D69: DNP | E69: =COMP1!E69 -> DNP | F69: kΩ
C70: C1 | D70: =E70 -> 2 | E70: =COMP1!E70 -> 2 | F70: pF
C71: C2 | D71: =E71 -> 20 | E71: =COMP1!E71 -> 20 | F71: pF
C72: C3 | D72: =D73 -> 20.21759436 | E72: =COMP1!E72 -> 10 | F72: pF
C73: C3 Calculation | D73: =D67/(D66+D68)*D70*D71/(D70+D71) -> 20.21759436 | F73: pF
C74: R1 Calculation | D74: =D67*D75/D97 -> 26.97920017 | F74: kΩ
C75: f0 Calculation | D75: =SUM(BR118:BR617) -> 8.993066723 | F75: kHz
A78: Calculation | C78: Items | D78: Value | E78: Actual | F78: Unit
C79: Gvo | D79: =D21/D20 -> 10 | E79: =E21/E20 -> 10 | F79: V/V | G79: Gain from PWM to Output
C80: Flc | D80: =0.001/(2*PI()*SQRT((D13*0.000001*D52*0.000001/D15))) -> 9.349124454 | E80: =0.001/(2*PI()*SQRT((E13*0.000001*E52*0.000001/D15))) -> 9.349124454 | F80: kHz | G80: Resonant Frequency of L and Co
C81: Fesr | D81: =E81 -> 0 | E81: =SUM(L118:L617) -> 0 | F81: kHz | G81: Frequency of output capcitor zero
C83: Gamp_fsw | D83: =-10*LOG((1/(10^(D17/20)))^2+(E8/(D18*1000))^2) -> 30.45752665 | E83: =-10*LOG((1/(10^(E17/20)))^2+(D8/(E18*1000))^2) -> 30.45752665 | F83: dB
C84: Gpwm_fsw | D84: =20*LOG(D21/(D20+10^(D85/20)*(D21-E9)/(D13*E8*0.001))) -> 18.96470297 | E84: =20*LOG(E21/(E20+10^(E85/20)*(E21-D9)/(E13*D8*0.001))) -> 18.96470297 | F84: dB
C85: Gcs_fsw | D85: =20*LOG(6*D14*0.001/D15) -> -55.18901503 | E85: =20*LOG(6*E14*0.001/D15) -> -55.18901503 | F85: dB
C86: Gvo_fsw | D86: =-20*LOG(IMABS(IMSUM(1,IMDIV(O26,O27),IMDIV(O26,O28),IMDIV(O26,O29)))) -> -63.30061657 | E86: =-20*LOG(IMABS(IMSUM(1,IMDIV(P26,P27),IMDIV(P26,P28),IMDIV(P26,P29)))) -> -63.30061657 | F86: dB
C87: Gvs_fsw | D87: =IF($D$59="DNP",20*LOG(IMABS(IMDIV(O25,IMSUM(O25,D58*1000,D60*1000)))),20*LOG(IMABS(O25))+20*LOG(D59*1000)-20*LOG(IMABS(IMSUM((1000*D59*(D58*1000+1000*D60)),IMPRODUCT(O25,(D58*1000+1000*D59+1000*D60)))))) -> 0 | E87: =IF($E$59="DNP",20*LOG(IMABS(IMDIV(P25,IMSUM(P25,$E$58,$E$60)))),20*LOG(IMABS(P25))+20*LOG(E59*1000)-20*LOG(IMABS(IMSUM((1000*E59*(E58*1000+1000*E60)),IMPRODUCT(P25,(E58*1000+1000*E59+1000*E60)))))) -> 0 | F87: dB
C88: Gvi_fsw | D88: =-20*LOG(IMABS(IMSUM(O26,IMDIV(1,IMSUM(IMDIV(1,O27),IMDIV(1,O28),IMDIV(1,O29)))))) -> 2.033879976 | E88: =-20*LOG(IMABS(IMSUM(P26,IMDIV(1,IMSUM(IMDIV(1,P27),IMDIV(1,P28),IMDIV(1,P29)))))) -> 2.033879976 | F88: dB
C90: Fz1 | D90: =0.001/(2*PI()*D67*D71*10^(-9)) -> 26.52582385 | E90: =0.001/(2*PI()*E67*E71*10^(-9)) -> 26.52582385 | F90: kHz | G90: First zero frequency
C91: Fz2 | D91: =0.001/(2*PI()*(D66+D68)*D72*10^(-9)) -> 291.7840623 | E91: =0.001/(2*PI()*(E66+E68)*E72*10^(-9)) -> 479.3679199 | F91: kHz | G91: Second zero frequency
C92: Fp1 | D92: =0.001/(2*PI()*D67*(D70*D71/(D70+D71))*10^(-9)) -> 291.7840623 | E92: =0.001/(2*PI()*E67*(E70*E71/(E70+E71))*10^(-9)) -> 291.7840623 | F92: kHz | G92: First pole frequency
C93: Fp2 | D93: =0.001/(2*PI()*D68*D72*10^(-9)) -> 7872100916 | E93: =0.001/(2*PI()*E68*E72*10^(-9)) -> 15915494.31 | F93: kHz | G93: Second pole frequnecy
C95: Fp1_GPWR | D95: =E95 -> 8865 | E95: =SUM(CF118:CF617) -> 8865 | F95: kHz
C96: Fp2_GPWR | D96: =D80^2/D95 -> 0.009859687316 | E96: =E80^2/E95 -> 0.009859687316 | F96: kHz
C97: Fc | D97: =COMP1!D97 -> 100 | E97: =SUM(AJ118:AJ617) -> 0 | F97: kHz
C99: Phase Margin | D99: =180+SUM(BT118:BT617) -> 418.0967717 | E99: =180+SUM(AK118:AK617) -> 180 | F99: degree
C100: Gain Margin | D100: =0-SUM(BV118:BV617) -> -797.8639313 | E100: =0-SUM(AM118:AM617) -> 0 | F100: dB
E116: Actual | AO116: Recommend | BU116: find gain margin | BX116: Ideal case to find -45deg frequency
B117: jw | C117: # | D117: Frequency (kHz) | AO117: Zcvs (Ω) | AP117: Zl (Ω) | AQ117: Zbulk (Ω) | AR117: Zmlcc (Ω) | AS117: Gamp (dB) | AT117: Gpwm (dB) | AU117: Gpwm | AV117: PHpwm (deg) | AW117: Gvo | AX117: Gvo (dB) | AY117: Phvo(deg) | AZ117: Gvs | BA117: Gvs (dB) | BB117: Gvi | BC117: Gvi (dB) | BD117: Gcomp1 | BE117: Gcomp1(db) | BF117: Gamp | BG117: Gcomp (dB) | BH117: Gcomp | BI117: Gsys_recommend (dB) | BJ117: Gsys | BK117: PHvo (deg) | BL117: PHcomp (deg) | BM117: Phsys_recommend (deg) | BN117: Gpwr | BO117: Gpwr (dB) | BP117: PHpwr (deg) | BQ117: |Gpwr| | BR117: Find_f0 | BS117: |Gsys| | BT117: Find_fc | BU117: Find_PM_degree | BV117: 180+Phsys | BW117: gain of -180 | BY117: Zl (Ω) | BZ117: Zbulk (Ω) | CA117: Zmlcc (Ω) | CB117: Gvo | CC117: Gvi | CD117: Gpwr | CE117: PHpwr | CF117: PH_choose | CG117: Find_frequency
B118: =IMPRODUCT("i",2*PI()*D118*1000) -> 628.318530717959i | C118: 1 | D118: =0.1*1.02334021219164^(C118-1) -> 0.1 | AO118: =IMPRODUCT("i",-1/(2*PI()*D118*1000*(10^(-12))*$D$61)) -> -15915494.3091895i | AP118: =IMSUM(0.001*$D$14/$D$15,IMPRODUCT("i",2*PI()*D118*$D$13*0.001/$D$15)) -> 0.00029+0.000131946891450771i | AQ118: =IMSUM($D$37*0.001/$D$35,IMPRODUCT("i",((2*PI()*D118*0.000001*$D$38/$D$35)-(1/(2*PI()*D118*0.001*$D$36*$D$35))))) -> 0.003-1.69313737830771i | AR118: =IMSUM($D$46*0.001/$D$44,IMPRODUCT("i",((2*PI()*D118*0.000001*$D$47/$D$44)-(1/(2*PI()*D118*$D$45*0.001*$D$44))))) -> 0.00015-3.6171577865475i | AS118: =-10*LOG((1/(10^($D$17/20)))^2+(D118/($D$18*1000))^2) -> 79.98915619 | AT118: =20*LOG10(IMABS(AU118)) -> 37.78820579 | AU118: =IMDIV(1,IMPRODUCT($E$25,IMSUM(1,IMDIV(B118,$E$28*$E$29),IMDIV(IMPOWER(B118,2),$E$29^2)))) -> 77.5193797571896-0.0033824210297769i | AV118: =IMARGUMENT(AU118)/PI()*180 -> -0.0025 | AW118: =COMPLEX(ROUND(IMREAL(IMDIV(1,IMSUM(IMDIV(1,AQ118),IMDIV(1,AR118),IMDIV(1,$P$29)))),10),ROUND(IMAGINARY(IMDIV(1,IMSUM(IMDIV(1,AQ118),IMDIV(1,AR118),IMDIV(1,$P$29)))),10)) -> 0.0014071964-1.1532972921i | AX118: =20*LOG10(IMABS(AW118)) -> 1.238831912 | AY118: =IMARGUMENT(AW118)/PI()*180 -> -89.93009055 | AZ118: =IF($D$59="DNP",IMDIV(AO118,IMSUM(AO118,1000*$D$58,1000*$D$60)),IMDIV(IMPRODUCT(AO118,$D$59*1000),IMSUM(IMPRODUCT(AO118,$D$59*1000),IMPRODUCT(IMSUM(AO118,$D$59*1000),IMSUM($D$58*1000,$D$60*1000))))) -> 1 | BA118: =20*LOG10(IMABS(AZ118)) -> 0 | BB118: =IMDIV(1,IMSUM(AP118,IMDIV(1,IMSUM(IMDIV(1,AQ118),IMDIV(1,AR118),IMDIV(1,$O$29))))) -> 0.00127628595694519+0.86717645306629i | BC118: =-20*LOG(IMABS(IMSUM(AP118,IMDIV(1,IMSUM(IMDIV(1,AQ118),IMDIV(1,AR118),IMDIV(1,$O$29)))))) -> -1.237841058 | BD118: =IMPRODUCT(($D$66+$D$68)/($D$66*$D$68*$D$70*10^(-9)),IMDIV(IMPRODUCT(IMSUM(1/($D$67*$D$71*10^(-9)),IMPRODUCT("i",2*PI()*D118*1000)),IMSUM(1/(($D$66+$D$68)*$D$72*10^(-9)),IMPRODUCT("i",2*PI()*D118*1000))),IMPRODUCT(IMPRODUCT("i",2*PI()*D118*1000),IMSUM(IMPRODUCT("i",2*PI()*D118*1000),($D$70+$D$71)/($D$67*$D$70*$D$71*10^(-9))),IMSUM(IMPRODUCT("i",2*PI()*D118*1000),1/($D$68*$D$72*10^(-9)))))) -> 10.1087975215842-2681.44183282755i | BE118: =20*LOG(IMABS(BD118)) -> 68.56742933 | BF118: =IMDIV(10^($D$17/20),IMSUM(1,IMPRODUCT("i",0.001*D118*10^($D$17/20)/$D$18))) -> 9975.06234413965-498.753117206983i | BG118: =20*LOG(IMABS(IMDIV(IMPRODUCT(BD118,BF118),IMSUM(1,BD118,BF118)))) -> 68.14908885 | BH118: =IMDIV(IMPRODUCT(BD118,BF118),IMSUM(1,BF118,BD118)) -> 662.162763850464-2468.0915459572i | BI118: =20*LOG(IMABS(BJ118)) -> 107.1761266 | BJ118: =IMPRODUCT(AZ118,BH118,AW118,AU118) -> -220584.881649818-59458.8722702617i | BK118: =IF(AND(IMREAL(AW118)>0,IMAGINARY(AW118)>0),-360+ATAN(IMAGINARY(AW118)/IMREAL(AW118))*180/PI(),IF(AND(IMREAL(AW118)>0,IMAGINARY(AW118)<0),ATAN(IMAGINARY(AW118)/IMREAL(AW118))*180/PI(),IF(AND(IMREAL(AW118)<0,IMAGINARY(AW118)>0),-180+ATAN(IMAGINARY(AW118)/IMREAL(AW118))*180/PI(),IF(AND(IMREAL(AW118)<0,IMAGINARY(AW118)<0),-180+ATAN(IMAGINARY(AW118)/IMREAL(AW118))*180/PI(),IF(AND(IMREAL(AW118)=0,IMAGINARY(AW118)>0),-270,IF(AND(IMREAL(AW118)=0,IMAGINARY(AW118)<0),-90,IF(AND(IMREAL(AW118)>0,IMAGINARY(AW118)=0),0,IF(AND(IMREAL(AW118)=0,IMAGINARY(AW118)<0),-180)))))))) -> -89.93009055 | BL118: =IF(AND(IMREAL(BH118)>0,IMAGINARY(BH118)>0),ATAN(IMAGINARY(BH118)/IMREAL(BH118))*180/PI(),IF(AND(IMREAL(BH118)>0,IMAGINARY(BH118)<0),ATAN(IMAGINARY(BH118)/IMREAL(BH118))*180/PI(),IF(AND(IMREAL(BH118)<0,IMAGINARY(BH118)>0),180+ATAN(IMAGINARY(BH118)/IMREAL(BH118))*180/PI(),IF(AND(IMREAL(BH118)<0,IMAGINARY(BH118)<0),-180+ATAN(IMAGINARY(BH118)/IMREAL(BH118))*180/PI(),IF(AND(IMREAL(BH118)=0,IMAGINARY(BH118)>0),90,IF(AND(IMREAL(BH118)=0,IMAGINARY(BH118)<0),-90,IF(AND(IMREAL(BH118)>0,IMAGINARY(BH118)=0),0,IF(AND(IMREAL(BH118)=0,IMAGINARY(BH118)<0),-180)))))))) -> -74.98181562 | BM118: =IF(AND(IMREAL(BJ118)>0,IMAGINARY(BJ118)>0),-360+ATAN(IMAGINARY(BJ118)/IMREAL(BJ118))*180/PI(),IF(AND(IMREAL(BJ118)>0,IMAGINARY(BJ118)<0),ATAN(IMAGINARY(BJ118)/IMREAL(BJ118))*180/PI(),IF(AND(IMREAL(BJ118)<0,IMAGINARY(BJ118)>0),-180+ATAN(IMAGINARY(BJ118)/IMREAL(BJ118))*180/PI(),IF(AND(IMREAL(BJ118)<0,IMAGINARY(BJ118)<0),-180+ATAN(IMAGINARY(BJ118)/IMREAL(BJ118))*180/PI(),IF(AND(IMREAL(BJ118)=0,IMAGINARY(BJ118)>0),-270,IF(AND(IMREAL(BJ118)=0,IMAGINARY(BJ118)<0),-90,IF(AND(IMREAL(BJ118)>0,IMAGINARY(BJ118)=0),0,IF(AND(IMREAL(BJ118)=0,IMAGINARY(BJ118)<0),-180)))))))) -> -164.9144062 | BN118: =IMPRODUCT(AZ118,AW118,AU118) -> 0.105184055110166-89.402895518969i | BO118: =20*LOG(IMABS(BN118)) -> 39.0270377 | BP118: =IF(AND(IMREAL(BN118)>0,IMAGINARY(BN118)>0),-360+ATAN(IMAGINARY(BN118)/IMREAL(BN118))*180/PI(),IF(AND(IMREAL(BN118)>0,IMAGINARY(BN118)<0),ATAN(IMAGINARY(BN118)/IMREAL(BN118))*180/PI(),IF(AND(IMREAL(BN118)<0,IMAGINARY(BN118)>0),-180+ATAN(IMAGINARY(BN118)/IMREAL(BN118))*180/PI(),IF(AND(IMREAL(BN118)<0,IMAGINARY(BN118)<0),-180+ATAN(IMAGINARY(BN118)/IMREAL(BN118))*180/PI(),IF(AND(IMREAL(BN118)=0,IMAGINARY(BN118)>0),-270,IF(AND(IMREAL(BN118)=0,IMAGINARY(BN118)<0),-90,IF(AND(IMREAL(BN118)>0,IMAGINARY(BN118)=0),0,IF(AND(IMREAL(BN118)=0,IMAGINARY(BN118)<0),-180)))))))) -> -89.93259055 | BQ118: =ABS(BO118) -> 39.0270377 | BR118: =IF($AG$28=BQ118,D118) -> FALSE | BS118: =ABS(BI118) -> 107.1761266 | BT118: =IF($AF$28=BS118,D118) -> FALSE | BU118: =IF($AF$28=BS118,BM118) -> FALSE | BV118: =IF(BV117=TRUE,TRUE,IF(AND(BM118<-170,BM118>=-180),180+BM118,IF(ABS(BM118)>180,TRUE))) -> FALSE | BW118: =IF($AI$28=BV118,BI118) -> FALSE | BY118: =IMPRODUCT("j",2*PI()*D118*$E$13*0.001/$D$15) -> 0.000131946891450771j | BZ118: =IMPRODUCT("j",-1/(2*PI()*D118*$E$39*0.001)) -> -1.69313769246697j | CA118: =IMPRODUCT("j",-1/(2*PI()*D118*$E$48*0.001)) -> -3.61715779754308j | CB118: =IMDIV(1,IMSUM(1,IMDIV(BY118,BZ118),IMDIV(BY118,CA118),IMDIV(BY118,$P$29))) -> 1.00011442154501-1.31977088312616E-12j | CC118: =IMDIV(1,IMSUM(BY118,IMDIV(1,IMSUM(IMDIV(1,BZ118),IMDIV(1,CA118),IMDIV(1,$P$29))))) -> 1.0002288561823E-08+0.867178784975098j | CD118: =IMPRODUCT(R118,CB118,10^(N118/20),IMDIV(1,IMSUM(1,IMPRODUCT(10^(O118/20),10^(N118/20),CC118)))) -> 0 | CE118: =IF(AND(IMREAL(CD118)>0,IMAGINARY(CD118)>0),-360+ATAN(IMAGINARY(CD118)/IMREAL(CD118))*180/PI(),IF(AND(IMREAL(CD118)>0,IMAGINARY(CD118)<0),ATAN(IMAGINARY(CD118)/IMREAL(CD118))*180/PI(),IF(AND(IMREAL(CD118)<0,IMAGINARY(CD118)>0),-180+ATAN(IMAGINARY(CD118)/IMREAL(CD118))*180/PI(),IF(AND(IMREAL(CD118)<0,IMAGINARY(CD118)<0),-180+ATAN(IMAGINARY(CD118)/IMREAL(CD118))*180/PI(),IF(AND(IMREAL(CD118)=0,IMAGINARY(CD118)>0),-270,IF(AND(IMREAL(CD118)=0,IMAGINARY(CD118)<0),-90,IF(AND(IMREAL(CD118)>0,IMAGINARY(CD118)=0),0,IF(AND(IMREAL(CD118)=0,IMAGINARY(CD118)<0),-180)))))))) -> FALSE | CF118: =IF(AND(D118<$E$80,ABS(CE118)<=45),CE118+45) -> 45 | CG118: =IF(AND(D118<$E$80,ABS(CE118)<=45,$AC$28=CE118),D118) -> FALSE
B119: =IMPRODUCT("i",2*PI()*D119*1000) -> 642.983618548855i | C119: =C118+1 -> 2 | D119: =0.1*1.02334021219164^(C119-1) -> 0.1023340212 | AO119: =IMPRODUCT("i",-1/(2*PI()*D119*1000*(10^(-12))*$D$61)) -> -15552495.7580862i | AP119: =IMSUM(0.001*$D$14/$D$15,IMPRODUCT("i",2*PI()*D119*$D$13*0.001/$D$15)) -> 0.00029+0.00013502655989526i | AQ119: =IMSUM($D$37*0.001/$D$35,IMPRODUCT("i",((2*PI()*D119*0.000001*$D$38/$D$35)-(1/(2*PI()*D119*0.001*$D$36*$D$35))))) -> 0.003-1.65452050383651i | AR119: =IMSUM($D$46*0.001/$D$44,IMPRODUCT("i",((2*PI()*D119*0.000001*$D$47/$D$44)-(1/(2*PI()*D119*$D$45*0.001*$D$44))))) -> 0.00015-3.53465811558556i | AS119: =-10*LOG((1/(10^($D$17/20)))^2+(D119/($D$18*1000))^2) -> 79.98864475 | AT119: =20*LOG10(IMABS(AU119)) -> 37.78820579 | AU119: =IMDIV(1,IMPRODUCT($E$25,IMSUM(1,IMDIV(B119,$E$28*$E$29),IMDIV(IMPOWER(B119,2),$E$29^2)))) -> 77.5193797530448-0.00346136745427442i | AV119: =IMARGUMENT(AU119)/PI()*180 -> -0.002558350531 | AW119: =COMPLEX(ROUND(IMREAL(IMDIV(1,IMSUM(IMDIV(1,AQ119),IMDIV(1,AR119),IMDIV(1,$P$29)))),10),ROUND(IMAGINARY(IMDIV(1,IMSUM(IMDIV(1,AQ119),IMDIV(1,AR119),IMDIV(1,$P$29)))),10)) -> 0.0014071958-1.1269930634i | AX119: =20*LOG10(IMABS(AW119)) -> 1.038431631 | AY119: =IMARGUMENT(AW119)/PI()*180 -> -89.92845889 | AZ119: =IF($D$59="DNP",IMDIV(AO119,IMSUM(AO119,1000*$D$58,1000*$D$60)),IMDIV(IMPRODUCT(AO119,$D$59*1000),IMSUM(IMPRODUCT(AO119,$D$59*1000),IMPRODUCT(IMSUM(AO119,$D$59*1000),IMSUM($D$58*1000,$D$60*1000))))) -> 1 | BA119: =20*LOG10(IMABS(AZ119)) -> 0 | BB119: =IMDIV(1,IMSUM(AP119,IMDIV(1,IMSUM(IMDIV(1,AQ119),IMDIV(1,AR119),IMDIV(1,$O$29))))) -> 0.00133657256232266+0.887421218020377i | BC119: =-20*LOG(IMABS(IMSUM(AP119,IMDIV(1,IMSUM(IMDIV(1,AQ119),IMDIV(1,AR119),IMDIV(1,$O$29)))))) -> -1.037393981 | BD119: =IMPRODUCT(($D$66+$D$68)/($D$66*$D$68*$D$70*10^(-9)),IMDIV(IMPRODUCT(IMSUM(1/($D$67*$D$71*10^(-9)),IMPRODUCT("i",2*PI()*D119*1000)),IMSUM(1/(($D$66+$D$68)*$D$72*10^(-9)),IMPRODUCT("i",2*PI()*D119*1000))),IMPRODUCT(IMPRODUCT("i",2*PI()*D119*1000),IMSUM(IMPRODUCT("i",2*PI()*D119*1000),($D$70+$D$71)/($D$67*$D$70*$D$71*10^(-9))),IMSUM(IMPRODUCT("i",2*PI()*D119*1000),1/($D$68*$D$72*10^(-9)))))) -> 10.1087975215841-2620.28385172595i | BE119: =20*LOG(IMABS(BD119)) -> 68.36703145 | BF119: =IMDIV(10^($D$17/20),IMSUM(1,IMPRODUCT("i",0.001*D119*10^($D$17/20)/$D$18))) -> 9973.88773381009-510.334019494641i | BG119: =20*LOG(IMABS(IMDIV(IMPRODUCT(BD119,BF119),IMSUM(1,BD119,BF119)))) -> 67.96149836 | BH119: =IMDIV(IMPRODUCT(BD119,BF119),IMSUM(1,BF119,BD119)) -> 634.584724539362-2418.92257807664i | BI119: =20*LOG(IMABS(BJ119)) -> 106.7881358 | BJ119: =IMPRODUCT(AZ119,BH119,AW119,AU119) -> -211259.539831161-55694.1700908885i | BK119: =IF(AND(IMREAL(AW119)>0,IMAGINARY(AW119)>0),-360+ATAN(IMAGINARY(AW119)/IMREAL(AW119))*180/PI(),IF(AND(IMREAL(AW119)>0,IMAGINARY(AW119)<0),ATAN(IMAGINARY(AW119)/IMREAL(AW119))*180/PI(),IF(AND(IMREAL(AW119)<0,IMAGINARY(AW119)>0),-180+ATAN(IMAGINARY(AW119)/IMREAL(AW119))*180/PI(),IF(AND(IMREAL(AW119)<0,IMAGINARY(AW119)<0),-180+ATAN(IMAGINARY(AW119)/IMREAL(AW119))*180/PI(),IF(AND(IMREAL(AW119)=0,IMAGINARY(AW119)>0),-270,IF(AND(IMREAL(AW119)=0,IMAGINARY(AW119)<0),-90,IF(AND(IMREAL(AW119)>0,IMAGINARY(AW119)=0),0,IF(AND(IMREAL(AW119)=0,IMAGINARY(AW119)<0),-180)))))))) -> -89.92845889 | BL119: =IF(AND(IMREAL(BH119)>0,IMAGINARY(BH119)>0),ATAN(IMAGINARY(BH119)/IMREAL(BH119))*180/PI(),IF(AND(IMREAL(BH119)>0,IMAGINARY(BH119)<0),ATAN(IMAGINARY(BH119)/IMREAL(BH119))*180/PI(),IF(AND(IMREAL(BH119)<0,IMAGINARY(BH119)>0),180+ATAN(IMAGINARY(BH119)/IMREAL(BH119))*180/PI(),IF(AND(IMREAL(BH119)<0,IMAGINARY(BH119)<0),-180+ATAN(IMAGINARY(BH119)/IMREAL(BH119))*180/PI(),IF(AND(IMREAL(BH119)=0,IMAGINARY(BH119)>0),90,IF(AND(IMREAL(BH119)=0,IMAGINARY(BH119)<0),-90,IF(AND(IMREAL(BH119)>0,IMAGINARY(BH119)=0),0,IF(AND(IMREAL(BH119)=0,IMAGINARY(BH119)<0),-180)))))))) -> -75.3001714 | BM119: =IF(AND(IMREAL(BJ119)>0,IMAGINARY(BJ119)>0),-360+ATAN(IMAGINARY(BJ119)/IMREAL(BJ119))*180/PI(),IF(AND(IMREAL(BJ119)>0,IMAGINARY(BJ119)<0),ATAN(IMAGINARY(BJ119)/IMREAL(BJ119))*180/PI(),IF(AND(IMREAL(BJ119)<0,IMAGINARY(BJ119)>0),-180+ATAN(IMAGINARY(BJ119)/IMREAL(BJ119))*180/PI(),IF(AND(IMREAL(BJ119)<0,IMAGINARY(BJ119)<0),-180+ATAN(IMAGINARY(BJ119)/IMREAL(BJ119))*180/PI(),IF(AND(IMREAL(BJ119)=0,IMAGINARY(BJ119)>0),-270,IF(AND(IMREAL(BJ119)=0,IMAGINARY(BJ119)<0),-90,IF(AND(IMREAL(BJ119)>0,IMAGINARY(BJ119)=0),0,IF(AND(IMREAL(BJ119)=0,IMAGINARY(BJ119)<0),-180)))))))) -> -165.2311886 | BN119: =IMPRODUCT(AZ119,AW119,AU119) -> 0.105184008496244-87.3638081315736i | BO119: =20*LOG(IMABS(BN119)) -> 38.82663742 | BP119: =IF(AND(IMREAL(BN119)>0,IMAGINARY(BN119)>0),-360+ATAN(IMAGINARY(BN119)/IMREAL(BN119))*180/PI(),IF(AND(IMREAL(BN119)>0,IMAGINARY(BN119)<0),ATAN(IMAGINARY(BN119)/IMREAL(BN119))*180/PI(),IF(AND(IMREAL(BN119)<0,IMAGINARY(BN119)>0),-180+ATAN(IMAGINARY(BN119)/IMREAL(BN119))*180/PI(),IF(AND(IMREAL(BN119)<0,IMAGINARY(BN119)<0),-180+ATAN(IMAGINARY(BN119)/IMREAL(BN119))*180/PI(),IF(AND(IMREAL(BN119)=0,IMAGINARY(BN119)>0),-270,IF(AND(IMREAL(BN119)=0,IMAGINARY(BN119)<0),-90,IF(AND(IMREAL(BN119)>0,IMAGINARY(BN119)=0),0,IF(AND(IMREAL(BN119)=0,IMAGINARY(BN119)<0),-180)))))))) -> -89.93101724 | BQ119: =ABS(BO119) -> 38.82663742 | BR119: =IF($AG$28=BQ119,D119) -> FALSE | BS119: 106.7881358 | BT119: =IF($AF$28=BS119,D119) -> FALSE | BU119: FALSE | BV119: FALSE | BW119: FALSE | BY119: 0.00013502655989526j | BZ119: -1.65452082532832j | CA119: -3.53465812683778j | CB119: =IMDIV(1,IMSUM(1,IMDIV(BY119,BZ119),IMDIV(BY119,CA119),IMDIV(BY119,$P$29))) -> 1.00011982577169-1.35058921157476E-12j | CC119: =IMDIV(1,IMSUM(BY119,IMDIV(1,IMSUM(IMDIV(1,BZ119),IMDIV(1,CA119),IMDIV(1,$P$29))))) -> 1.0002396659016E-08+0.887423717088845j | CD119: 0 | CE119: =IF(AND(IMREAL(CD119)>0,IMAGINARY(CD119)>0),-360+ATAN(IMAGINARY(CD119)/IMREAL(CD119))*180/PI(),IF(AND(IMREAL(CD119)>0,IMAGINARY(CD119)<0),ATAN(IMAGINARY(CD119)/IMREAL(CD119))*180/PI(),IF(AND(IMREAL(CD119)<0,IMAGINARY(CD119)>0),-180+ATAN(IMAGINARY(CD119)/IMREAL(CD119))*180/PI(),IF(AND(IMREAL(CD119)<0,IMAGINARY(CD119)<0),-180+ATAN(IMAGINARY(CD119)/IMREAL(CD119))*180/PI(),IF(AND(IMREAL(CD119)=0,IMAGINARY(CD119)>0),-270,IF(AND(IMREAL(CD119)=0,IMAGINARY(CD119)<0),-90,IF(AND(IMREAL(CD119)>0,IMAGINARY(CD119)=0),0,IF(AND(IMREAL(CD119)=0,IMAGINARY(CD119)<0),-180)))))))) -> FALSE | CF119: 45 | CG119: FALSE
B120: 657.990992641534i | C120: =C119+1 -> 3 | D120: 0.104722519 | AO120: -15197776.4313377i | AP120: 0.00029+0.000138178108454722i | AQ120: 0.003-1.61678439774256i | AR120: 0.00015-3.45404008651645i | AS120: 79.98810923 | AT120: 37.78820579 | AU120: 77.5193797487036-0.00354215650506721i | AV120: -0.002618062975 | AW120: 0.0014071952-1.1012887788i | AX120: 0.8380313738 | AY120: -89.92678914 | AZ120: 1 | BA120: 0 | BB120: 0.00139970759019818+0.908138835723429i | BC120: -0.8369447174 | BD120: 10.1087975215842-2560.52075400634i | BE120: 68.1666337 | BF120: 9972.6579487843-522.1809307054i | BG120: 67.77336581 | BH120: 608.09785909453-2370.43718853137i | BI120: 106.399603 | BJ120: -202303.171637634-52163.3929750503i | BK120: -89.92678914 | BL120: -75.61195016 | BM120: -165.5413574 | BN120: 0.105183961877569-85.3712280412889i | BO120: 38.62623717 | BP120: -89.9294072 | BQ120: 38.62623717 | BR120: FALSE | BS120: 106.399603 | BT120: FALSE | BU120: FALSE | BV120: FALSE | BW120: FALSE | BY120: 0.000138178108454722j | BZ120: -1.61678472673805j | CA120: -3.45404009803129j | CB120: 1.0001254852766-1.38212789266872E-12j | CC120: 1.00025098629976E-08+0.908141513936083j | CD120: 0 | CE120: FALSE | CF120: 45 | CG120: FALSE
B121: 673.348642029975i | C121: 4 | D121: 0.1071667648 | AO121: -14851147.4974577i | AP121: 0.00029+0.000141403214826295i | AQ121: 0.003-1.57990897156586i | AR121: 0.00015-3.37526078309315i | AS121: 79.9875485 | AT121: 37.78820579 | AU121: 77.5193797441577-0.00362483118944376i | AV121: -0.002679169121 | AW121: 0.0014071946-1.0761707548i | AX121: 0.6376311418 | AY121: -89.92508042 | AZ121: 1 | BA121: 0 | BB121: 0.00146582569094617+0.92934036671996i | BC121: -0.6364931652 | BD121: 10.1087975215841-2502.12072534764i | BE121: 67.96623609 | BF121: 9971.37041197218-534.299753853133i | BG121: 67.58471271 | BH121: 582.665218416543-2322.64516736211i | BI121: 106.0105496 | BJ121: -193703.282950299-48852.6231623351i | BK121: -89.92508042 | BL121: -75.91724032 | BM121: -165.8449999 | BN121: 0.105183915254162-83.4240945117409i | BO121: 38.42583693 | BP121: -89.92775958 | BQ121: 38.42583693 | BR121: FALSE | BS121: 106.0105496 | BT121: FALSE | BU121: FALSE | BV121: FALSE | BW121: FALSE | BY121: 0.000141403214826295j | BZ121: -1.57990930824018j | CA121: -3.37526079487675j | CB121: 1.00013141212138-1.41440381461068E-12j | CC121: 1.00026284151191E-08+0.929343236920763j | CD121: 0 | CE121: FALSE | CF121: 45 | CG121: FALSE
B122: 689.064742213907i | C122: 5 | D122: 0.1096680598 | AO122: -14512424.4318042i | AP122: 0.00029+0.000144703595864921i | AQ122: 0.003-1.54387459502127i | AR122: 0.00015-3.29827826789688i | AS122: 79.98696135 | AT122: 37.78820579 | AU122: 77.5193797393976-0.00370943551849171i | AV122: -0.002741701496 | AW122: 0.0014071941-1.0516256202i | AX122: 0.4372309372 | AY122: -89.92333181 | AZ122: 1 | BA122: 0 | BB122: 0.00153506788670226+0.951037131435042i | BC122: -0.4360392159 | BD122: 10.1087975215841-2445.05267704566i | BE122: 67.76583864 | BF122: 9970.02242732208-546.696508051374i | BG122: 67.39555986 | BH122: 558.250580562282-2275.55476822352i | BI122: 105.6209966 | BJ122: -185447.625567203-45748.7043692669i | BK122: -89.92333181 | BL122: -76.2161314 | BM122: -166.1422049 | BN122: 0.105183876377214-81.5213710158591i | BO122: 38.22543673 | BP122: -89.92607351 | BQ122: 38.22543673 | BR122: FALSE | BS122: 105.6209966 | BT122: FALSE | BU122: FALSE | BV122: FALSE | BW122: FALSE | BY122: 0.000144703595864921j | BZ122: -1.54387493955364j | CA122: -3.29827827995551j | CB122: 1.00013761893782-1.44743426515782E-12j | CC122: 1.00027525681461E-08+0.951040207389112j | CD122: 0 | CE122: FALSE | CF122: 45 | CG122: FALSE
B123: 705.147659510958i | C123: 6 | D123: 0.1122277356 | AO123: -14181426.9183497i | AP123: 0.00029+0.000148081008497301i | AQ123: 0.003-1.50866208554848i | AR123: 0.00015-3.22305156001213i | AS123: 79.98634657 | AT123: 37.78820579 | AU123: 77.519379734412-0.00379601453052673i | AV123: -0.002805693391 | AW123: 0.0014071936-1.0276403086i | AX123: 0.2368307611 | AY123: -89.92154239 | AZ123: 1 | BA123: 0 | BB123: 0.00160758187351666+0.973240716363861i | BC123: -0.2355827563 | BD123: 10.1087975215841-2389.28622946342i | BE123: 67.56544134 | BF123: 9968.61117446521-559.377329697464i | BG123: 67.20592733 | BH123: 534.818484244532-2229.17279496597i | BI123: 105.2309639 | BJ123: -177524.208474593-42839.2069229419i | BK123: -89.92154239 | BL123: -76.5087139 | BM123: -166.433062 | BN123: 0.105183837494634-79.6620446544791i | BO123: 38.02503655 | BP123: -89.92434808 | BQ123: 38.02503655 | BR123: FALSE | BS123: 105.2309639 | BT123: FALSE | BU123: FALSE | BV123: FALSE | BW123: FALSE | BY123: 0.000148081008497301j | BZ123: -1.50866243812231j | CA123: -3.22305157235221j | CB123: 1.00014411895493-1.48123694133364E-12j | CC123: 1.00028825868015E-08+0.973244012823518j | CD123: 0 | CE123: FALSE | CF123: 45 | CG123: FALSE
B124: 721.605955510382i | C124: 7 | D124: 0.1148471548 | AO124: -13857978.7536913i | AP124: 0.00029+0.00015153725065718i | AQ124: 0.003-1.47425269810036i | AR124: 0.00015-3.14954061321083i | AS124: 79.98570284 | AT124: 37.78820579 | AU124: 77.5193797291916-0.00388461431506848i | AV124: -0.00287117887 | AW124: 0.0014071931-1.0042020516i | AX124: 0.03643061423 | AY124: -89.9197112 | AZ124: 1 | BA124: 0 | BB124: 0.00168352233789641+0.995962980414351i | BC124: -0.03512366797 | BD124: 10.1087975215841-2334.79169585881i | BE124: 67.36504421 | BF124: 9967.13370313227-572.348473578365i | BG124: 67.01583449 | BH124: 512.334256830607-2183.50468599858i | BI124: 104.8404709 | BJ124: -169921.307330252-40112.3939042777i | BK124: -89.9197112 | BL124: -76.79507902 | BM124: -166.7176614 | BN124: 0.105183798606332-77.8451256292161i | BO124: 37.82463641 | BP124: -89.92258238 | BQ124: 37.82463641 | BR124: FALSE | BS124: 104.8404709 | BT124: FALSE | BU124: FALSE | BV124: FALSE | BW124: FALSE | BY124: 0.00015153725065718j | BZ124: -1.47425305890333j | CA124: -3.14954062583894j | CB124: 1.00015092602716-1.51582995939412E-12j | CC124: 1.00030187483297E-08+0.99596651318998j | CD124: 0 | CE124: FALSE | CF124: 45 | CG124: FALSE
B125: 738.448391630745i | C125: 8 | D125: 0.1175277117 | AO125: -13541907.7532508i | AP125: 0.00029+0.000155074162242456i | AQ125: 0.003-1.44062811516419i | AR125: 0.00015-3.07770629463416i | AS125: 79.98502882 | AT125: 37.78820579 | AU125: 77.5193797237243-0.00397528203737554i | AV125: -0.002938192794 | AW125: 0.0014071926-0.9812983721i | AX125: -0.1639695016 | AY125: -89.91783728 | AZ125: 1 | BA125: 0 | BB125: 0.00176305128842948+1.01921606140759i | BC125: 0.1653381734 | BD125: 10.1087975215841-2281.54006658109i | BE125: 67.16464725 | BF125: 9965.58692733366-585.616313889147i | BG125: 66.82530001 | BH125: 490.764037242456-2138.55459624889i | BI125: 104.4495363 | BJ125: -162627.472228103-37557.1881502087i | BK125: -89.91783728 | BL125: -77.07531854 | BM125: -166.996094 | BN125: 0.1051837597119-76.0696467230799i | BO125: 37.62423629 | BP125: -89.92077547 | BQ125: 37.62423629 | BR125: FALSE | BS125: 104.4495363 | BT125: FALSE | BU125: FALSE | BV125: FALSE | BW125: FALSE | BY125: 0.000155074162242456j | BZ125: -1.44062848438839j | CA125: -3.07770630755701j | CB125: 1.00015805466398-1.55123186505618E-12j | CC125: 1.00031613430924E-08+1.01921984744355j | CD125: 0 | CE125: FALSE | CF125: 45 | CG125: FALSE
B126: 755.683933783982i | C126: 9 | D126: 0.1202708335 | AO126: -13233045.6596138i | AP126: 0.00029+0.000158693626094636i | AQ126: 0.003-1.40777043701056i | AR126: 0.00015-3.00751036396049i | AS126: 79.98432308 | AT126: 37.78820579 | AU126: 77.5193797179989-0.00406806596355381i | AV126: -0.003006770838 | AW126: 0.0014071921-0.9589170775i | AX126: -0.3643695852 | AY126: -89.91591962 | AZ126: 1 | BA126: 0 | BB126: 0.00184633840321418+1.04301238273995i | BC126: 0.3658028979 | BD126: 10.1087975215841-2229.50299362792i | BE126: 66.96425048 | BF126: 9963.96761929475-599.187345154458i | BG126: 66.63434192 | BH126: 470.074794148194-2094.32547656959i | BI126: 104.0581781 | BJ126: -155631.533822521-35163.1402474716i | BK126: -89.91591962 | BL126: -77.34952464 | BM126: -167.268451 | BN126: 0.10518372081122-74.3346627733466i | BO126: 37.42383621 | BP126: -89.91892639 | BQ126: 37.42383621 | BR126: FALSE | BS126: 104.0581781 | BT126: FALSE | BU126: FALSE | BV126: FALSE | BW126: FALSE | BY126: 0.000158693626094636j | BZ126: -1.40777081485253j | CA126: -3.00751037718495j | CB126: 1.00016552006097-1.58746164399682E-12j | CC126: 1.00033106751883E-08+1.043016440196j | CD126: 0 | CE126: FALSE | CF126: 45 | CG126: FALSE
B127: 773.321757148313i | C127: 10 | D127: 0.1230779803 | AO127: -12931228.0529592i | AP127: 0.00029+0.000162397569001146i | AQ127: 0.003-1.37566217216457i | AR127: 0.00015-2.93891545304852i | AS127: 79.98358413 | AT127: 37.78820579 | AU127: 77.5193797120034-0.00416301548625021i | AV127: -0.003076949507 | AW127: 0.0014071917-0.9370462533i | AX127: -0.5647696355 | AY127: -89.9139572 | AZ127: 1 | BA127: 0 | BB127: 0.00193356139385524+1.06736466021186i | BC127: 0.5662706416 | BD127: 10.1087975215841-2178.65277555458i | BE127: 66.76385389 | BF127: 9962.27240313759-613.068183042553i | BG127: 66.44297756 | BH127: 450.234339820933-2050.81915047484i | BI127: 103.6664137 | BJ127: -148922.60802684-32920.3975728882i | BK127: -89.9139572 | BL127: -77.61778975 | BM127: -167.5348239 | BN127: 0.105183689656059-72.6392501754337i | BO127: 37.22343616 | BP127: -89.91703415 | BQ127: 37.22343616 | BR127: FALSE | BS127: 103.6664137 | BT127: FALSE | BU127: FALSE | BV127: FALSE | BW127: FALSE | BY127: 0.000162397569001146j | BZ127: -1.37566255882545j | CA127: -2.93891546658165j | CB127: 1.00017333813222-1.62453873263135E-12j | CC127: 1.00034670631054E-08+1.06736900855027j | CD127: 0 | CE127: FALSE | CF127: 45 | CG127: FALSE
B128: 791.371251052567i | C128: 11 | D128: 0.1259506464 | AO128: -12636294.2635324i | AP128: 0.00029+0.000166187962721039i | AQ128: 0.003-1.34428622809442i | AR128: 0.00015-2.87188504604473i | AS128: 79.98281042 | AT128: 37.78820579 | AU128: 77.519379705724-0.00426018115094642i | AV128: -0.003148766161 | AW128: 0.0014071913-0.9156742569i | AX128: -0.7651696496 | AY128: -89.91194897 | AZ128: 1 | BA128: 0 | BB128: 0.00202490638682431+1.09228590902743i | BC128: 0.7667415472 | BD128: 10.1087975215841-2128.96234272732i | BE128: 66.56345751 | BF128: 9960.49774829997-627.265565060719i | BG128: 66.25122365 | BH128: 431.21134002573-2008.03638811815i | BI128: 103.2742598 | BJ128: -142490.099389275-30819.6743178017i | BK128: -89.91194897 | BL128: -77.8802064 | BM128: -167.7953041 | BN128: 0.105183658493639-70.9825064022776i | BO128: 37.02303614 | BP128: -89.91509774 | BQ128: 37.02303614 | BR128: FALSE | BS128: 103.2742598 | BT128: FALSE | BU128: FALSE | BV128: FALSE | BW128: FALSE | BY128: 0.000166187962721039j | BZ128: -1.34428662378004j | CA128: -2.87188505989373j | CB128: 1.00018152554438-1.6624830291799E-12j | CC128: 1.00036308404028E-08+1.09229056910661j | CD128: 0 | CE128: FALSE | CF128: 45 | CG128: FALSE
B129: 809.842023974497i | C129: 12 | D129: 0.1288903612 | AO129: -12348087.2861136i | AP129: 0.00029+0.000170066825034644i | AQ129: 0.003-1.31362590211235i | AR129: 0.00015-2.80638345994449i | AS129: 79.98200031 | AT129: 37.78820579 | AU129: 77.5193796991486-0.00435961468286655i | AV129: -0.003222259032 | AW129: 0.0014071909-0.8947897111i | AX129: -0.9655696261 | AY129: -89.90989388 | AZ129: 1 | BA129: 0 | BB129: 0.00212056832302137+1.11778945097028i | BC129: 0.9672157641 | BD129: 10.1087975215841-2080.40524291314i | BE129: 66.36306133 | BF129: 9958.63996268291-641.786351120101i | BG129: 66.0590963 | BH129: 412.975320279218-1965.97697744954i | BI129: 102.8817325 | BJ129: -136323.703149909-28852.2226603799i | BK129: -89.90989388 | BL129: -78.13686707 | BM129: -168.0499832 | BN129: 0.105183627323697-69.3635495004625i | BO129: 36.82263617 | BP129: -89.91311613 | BQ129: 36.82263617 | BR129: FALSE | BS129: 102.8817325 | BT129: FALSE | BU129: FALSE | BV129: FALSE | BW129: FALSE | BY129: 0.000170066825034644j | BZ129: -1.31362630703336j | CA129: -2.80638347411673j | CB129: 1.00019009975233-1.70131490503141E-12j | CC129: 1.00038023564257E-08+1.1177944451449j | CD129: 0 | CE129: FALSE | CF129: 45 | CG129: FALSE
B130: 828.743908655769i | C130: 13 | D130: 0.1318986896 | AO130: -12066453.6964381i | AP130: 0.00029+0.000174036220817711i | AQ130: 0.003-1.28366487248317i | AR130: 0.00015-2.74237582559656i | AS130: 79.98115212 | AT130: 37.78820579 | AU130: 77.5193796922625-0.0044613690145122i | AV130: -0.003297467241 | AW130: 0.0014071905-0.8743814981i | AX130: -1.165969564 | AY130: -89.90779081 | AZ130: 1 | BA130: 0 | BB130: 0.00222075137641531+1.14388892176009i | BC130: 1.167693449 | BD130: 10.1087975215842-2032.95562719814i | BE130: 66.16266537 | BF130: 9956.69518551742-656.637523957077i | BG130: 65.866611 | BH130: 395.496668809913-1924.63979251367i | BI130: 102.4888472 | BJ130: -130413.406256343-27009.8049622701i | BK130: -89.90779081 | BL130: -78.38786407 | BM130: -168.2989524 | BN130: 0.105183596146359-67.7815176250993i | BO130: 36.62223623 | BP130: -89.91108828 | BQ130: 36.62223623 | BR130: FALSE | BS130: 102.4888472 | BT130: FALSE | BU130: FALSE | BV130: FALSE | BW130: FALSE | BY130: 0.000174036220817711j | BZ130: -1.28366528685512j | CA130: -2.74237584009958j | CB130: 1.00019907903646-1.74105521641494E-12j | CC130: 1.00039819770538E-08+1.14389427398851j | CD130: 0 | CE130: FALSE | CF130: 45 | CG130: FALSE
